Workbook

Sheet Start

Sheet Introductie (hidden)
B9: Calc&Go - Zelfstandige
B10: Hoeveel wil je verdienen en wat staat daar tegenover?
B12: Zelfstandigen een gemakkelijke tool aanbieden om alle belangrijke financiële cijfers voor hun eenmanszaak te berekenen. En hen tegelijkertijd een spiegel voorhouden over wat er allemaal bij komt kijken om voor jezelf te werken. Dat zijn de twee doelstellingen van deze Excel-tool voor zelfstandigen zonder personeel.
B13: Op basis van eenvoudige vragen over basisgegevens en cijfers die iedere zelfstandige bij zijn boekhouder kan opvragen, worden kerngetallen berekend. De belangrijkste: het uurtarief dat moet worden aangerekend en het aantal uren dat je zal moeten aanrekenen. Dit allemaal vertrekkende van de hamvraag hoeveel nettoloon de zelfstandige per maand zou willen verdienen. Met deze cijfers in de hand, is het gemakkelijker om correcte offertes op te maken.
B14: De eerste keer dat je deze oefening maakt, is het zeker niet eenvoudig om juiste antwoorden te geven op de vragen. Daarom zijn er extra werkbladen voorzien ("Opvolgingstabellen", Opvolging gefactureerde uren", "Registratie gewerkte uren") die je zullen helpen om de inschattingen te verbeteren en op termijn te perfectioneren. Deze extra werkbladen geven een sterke houvast om na te gaan of je doelstellingen wel gehaald worden en of je gewenst nettoloon daadwerkelijk "uitbetaald" kan worden. In deze extra werkbladen kan je onder meer de werkelijk gepresteerde uren & de werkelijk gefactureerde uren opvolgen. Dit geeft als grote eye-opener dat je ziet hoeveel uren je daadwerkelijk werkt iedere maand en hoeveel uren je daarvan “verzilverd”. Het verschil tussen beide is bij vele bouwondernemingen dé faalkost bij uitstek.
B15: Bij problemen bij het bepalen van bepaalde gegevens, kan altijd een van de Buildwise-experts worden gecontacteerd via gebe@buildwise.be of 02 716 42 11.

Sheet Berekening uurtarief (hidden)
B1: Wat kan je doen op deze pagina? --> Geef antwoord op de vragen en lees de opmerkingen. Indien je graag een voorbeeld zou willen zien, kan je met behulp van deze knoppen een voorbeeld laden en ook volledig terug wissen.
B2: Stap 1 - Nettoloon per maand bepalen
B4: Vraag 1 - Hoeveel wil je netto per maand verdienen?
B5: 2500 | D5: ←Ter info: Telkens je een veld tegenkomt met deze opmaak, dan kan je dat invullen
E6: Dit komt overeen met een nettojaarinkomen van: | F6: =12*B5 -> 30000 | G6: ←Ter info: Velden met deze opmaak worden automatisch berekend
B9: Stap 2 - Het aantal dagen bepalen
B11: Opmerking: Bij stap 2 en stap 3 moet je het totaal aantal dagen en uren oplijsten dat je met je onderneming bezig bent en dit in de meest ruime betekenis. Dit betekent dus niet enkel het verrichten van arbeid bij de klant, maar ook alle andere activiteiten waar je als zaakvoerder verantwoordelijk voor bent, zoals het maken van offertes en facturen, bezoeken aan de boekhouder, commerciële zaken, administratie ... Kortom, alles wat met je onderneming te maken heeft.
B16: Vraag 2 - Hoeveel zaterdagen denk je te werken per jaar?
B17: 10
B18: Vraag 3 - Hoeveel zondagen denk je te werken per jaar?
B20: Vraag 4 - Hoeveel vakantiedagen denk je te nemen? (excl. zaterdagen en zondagen --> 1 week vakantie = 5 dagen)
B21: 20
B22: Vraag 5 - Hoeveel feestdagen denk je te nemen? (er zijn 10 officiële feestdagen per jaar)
B23: 10
B24: Vraag 6 - Hoeveel arbeidsduurverminderingsdagen wil je nemen? Voor een arbeider zijn dat 12 dagen per jaar als hij 40 uren per week werkt (een normale werkweek in de bouw is 38 uren)
B25: 5
B26: Vraag 7 - Hoeveel dagen denk je zo ziek te zijn dat je niet kan gaan werken? (excl. zaterdagen en zondagen)
B28: Vraag 8 - Hoeveel weerverletdagen denk je te hebben? (excl. zaterdagen en zondagen)
B31: Volgens bovenstaande informatie denk je in totaal | F31: =365-52-52-B21-B23-B25-B27-B29+B17+B19 -> 236 | G31: te werken op 1 jaar. | J31: Ter info: een arbeider werkt maximaal 219 dagen op een jaar.
B34: Stap 3 - Het aantal uren bepalen
B36: Vraag 9 - Hoeveel uren denk je te werken op een weekdag? Zie ook opmerking bij stap 2.
B37: 10
B38: Vraag 10 - Hoeveel uren denk je te werken op een zaterdag? Zie ook opmerking bij stap 2.
B39: 4
B40: Vraag 11 - Hoeveel uren denk je te werken op een zondag?
B43: Volgens bovenstaande informatie denk je | F43: =(365-52-52-B21-B23-B25-B27-B29)*B37+B17*B39+B19*B41 -> 2300 | G43: te werken op 1 jaar. Deze uren stellen het potentieel aan uren voor.
J44: Ter info: een arbeider werkt maximaal 1752 uren op een jaar.
B45: Opmerking: Hoeveel van deze gepresteerde uren ga je kunnen verzilveren? M.a.w. hoeveel van deze uren worden ook effectief gefactureerd aan de klant? De volgende vragen kunnen je alvast een richting geven …
B48: Vraag 12 - Hoeveel uren denk je per week bezig te zijn met niet-factureerbare werken in de voorbereidingsfase en in de nazorgfase van het project? Bv. voorbereidende werken, reinigen van materieel, herstellingen/rechtzettingen, garantiegevallen …
B49: 3 | D49: per week OF | E49: omgerekend naar 1 jaar: | F49: =(52-($B$21+$B$23+$B$25+$B$27+$B$29)/5)*B49 -> 135 | G49: Ter info: in deze en in onderstaande jaaromrekeningen wordt rekening gehouden met de gegevens ingevuld in stap 2.
B50: Vraag 13 - Hoeveel uren denk je per week te verliezen omwille van een onderschatting van de duurtijd van een project?
B51: 2 | D51: per week OF | E51: omgerekend naar 1 jaar: | F51: =(52-($B$21+$B$23+$B$25+$B$27+$B$29)/5)*B51 -> 90
B52: Vraag 14 - Hoeveel uren denk je per week te verliezen omwille van het niet factureren van de heen- en terugritten naar de klant of de materiaalleverancier en het stilstaan in files?
B53: 1 | D53: per week OF | E53: omgerekend naar 1 jaar: | F53: =(52-($B$21+$B$23+$B$25+$B$27+$B$29)/5)*B53 -> 45
B54: Vraag 15 - Hoeveel uren denk je per week bezig te zijn met administratie die je niet factureert?
B55: 4 | D55: per week OF | E55: omgerekend naar 1 jaar: | F55: =(52-($B$21+$B$23+$B$25+$B$27+$B$29)/5)*B55 -> 180
B57: Volgens bovenstaande informatie denk je | F57: =F49+F51+F53+F55 -> 450 | G57: per jaar van je gepresteerde uren niet aan te rekenen aan je klanten.
B58: Dit komt overeen met een percentage van | F58: =IFERROR(F57/F43,"") -> 0.1956521739
B59: De uren die je wel denkt aan te rekenen, bedragen | F59: =F43-F57 -> 1850 | G59: per jaar
B60: Dit komt overeen met een percentage van | F60: =IFERROR(F59/F43,"") -> 0.8043478261
B62: ="Opmerking: De berekening hieronder gebeurt volledig volgens de uren die je denkt te factureren aan je klanten. In dit geval dus "&F59&" uren." -> Opmerking: De berekening hieronder gebeurt volledig volgens de uren die je denkt te factureren aan je klanten. In dit geval dus 1850 uren.
B66: Stap 4 - Schatting van de te betalen belastingen (incl. 7 % gemeentebelasting)
B68: Vraag 16 - Wat is je burgelijke staat?
B69: Gehuwd
B70: =IF(B69="Gehuwd","Vraag 17 - Heeft je echgeno(o)t(e) een inkomen? VERPLICHT in te vullen","Vraag 17 - Niet van toepassing.") -> Vraag 17 - Heeft je echgeno(o)t(e) een inkomen? VERPLICHT in te vullen
B71: Ja
B72: Vraag 18 - Hoeveel kinderen heb je ten laste?
B73: 2
B75: De maandelijks te betalen belastingen bedragen: | F75: =IF(B71="nee",'Berekening BV (Bruto->Netto)'!C72,'Berekening BV (Bruto->Netto)'!B72) -> 1220.970891 | G75: Maximale besparing in geval van een voorafbetaling: | L75: =IF(B71="nee",'Berekening BV (Bruto->Netto)'!C68,'Berekening BV (Bruto->Netto)'!B68) -> 288.1427091
B76: De jaarlijks te betalen belastingen bedragen: | F76: =F75*12 -> 14651.65069
B79: Stap 5 - Schatting van de te betalen sociale bijdragen (incl. bijzondere bijdrage sociale zekerheid)
B81: Vraag 19 - Hoeveel % bedraagt de beheerskost van je sociaal verzekeringsfonds? | I81: Enkele voorbeelden van beheerskosten: Liantis: 3,95% Securex: 4,10% Acerta: 3,05% Multipen: 4,20% Group S: 3,90% Partena: 4,25% Xerius: 3,05% CNH: 4,25% Incozina: 4,00% L'Entraide: 4,25%
B82: 0.0305
B89: De maandelijks te betalen sociale bijdrage: | F89: =IF((B5+F75)*12<'Gegevens sociale bijdrage &VAPZ'!B1,'Gegevens sociale bijdrage &VAPZ'!B2/3,IF(AND((B5+F75)*12>='Gegevens sociale bijdrage &VAPZ'!B1,(B5+F75)*12<='Gegevens sociale bijdrage &VAPZ'!M4),(B5+F75)*'Gegevens sociale bijdrage &VAPZ'!I4,IF(AND((B5+F75)*12>'Gegevens sociale bijdrage &VAPZ'!M4,(B5+F75)*12<='Gegevens sociale bijdrage &VAPZ'!M5),'Gegevens sociale bijdrage &VAPZ'!P4/12+(((B5+F75)*12-'Gegevens sociale bijdrage &VAPZ'!K5)*'Gegevens sociale bijdrage &VAPZ'!I5)/12,'Gegevens sociale bijdrage &VAPZ'!P5/12)))*(1+B82) -> 786.0644031
B90: De per kwartaal te betalen sociale bijdrage: | F90: =F89*3 -> 2358.193209
B91: De jaarlijks te betalen sociale bijdrage: | F91: =F89*12 -> 9432.772837
B93: We zijn nu in staat om nog een zeer belangrijk cijfer te berekenen, namelijk de kost van 1 uur arbeid.
B94: De totaalkost van de arbeid = (stap 1 + stap 4 + stap 5) | E94: =F6+F76+F91 -> 54084.42353 | G94: =IFERROR(E94/E95,"") -> 29.23482353 | H94: is de kost van 1 uur arbeid.
B95: Het aantal 'te verzilveren' uren = | E95: =F59 -> 1850
B98: Stap 6 - Directe kosten bepalen
B100: Opmerking: In deze stap ga je oplijsten hoeveel euro je gaat uitgeven aan kosten die je rechtstreeks kan linken aan een project of een werf. Je boekhouder kan je hier zeker mee helpen. In een goede boekhouding staan deze kosten namelijk allemaal mooi opgelijst. Je geeft de kosten in op jaarbasis, d.w.z. de gezamenlijke kostprijs van alle projecten die je dit jaar wenst uit te voeren. Indien je niet terecht kan bij je boekhouder, kan je ook de regel van drie toepassen. Voorbeeld: stel dat je weet dat je gemiddeld voor € 3.000 euro aan materiaalaankopen uitgeeft per project en dat je ongeveer 20 gelijkaardige projecten uitvoert. In dit geval zullen de geschatte materiaalaankopen € 60.000 bedragen.
B105: Vraag 20 - Lijst hier je directe kosten op die je op jaarbasis denkt uit te geven.
F107: Directe arbeidskosten: | G107: =F6+F76+F91 -> 54084.42353 | I107: =IFERROR(G107/$G$117,0) -> 0.5196207242
E108: Ter info: Groene, vetgedrukte tekst kan je aanpassen ← | F108: Materiaalaankopen: | G108: 45000 | I108: =IFERROR(G108/$G$117,0) -> 0.4323413483
F109: Onderaannemerskosten: | G109: 5000 | I109: 0.04803792758
F110: Materieelkosten: | I110: 0
F111: Andere directe kosten - containerkosten: | I111: 0
F112: Andere directe kosten - huur materieel: | I112: 0
F113: Vrij veld 1: | I113: 0
F114: Vrij veld 2: | I114: 0
F115: Vrij veld 3: | I115: 0
F116: Vrij veld 4: | I116: 0
F117: Algemeen totaal: | G117: =SUM(G107:H116) -> 104084.4235 | I117: 1
B120: Stap 7 - Indirecte kosten bepalen
B122: Vraag 21 - Lijst hier je indirecte kosten op die je op jaarbasis denkt uit te geven. Indirecte kosten zijn de kosten die niet rechtstreeks verbonden zijn aan projecten, maar die wel noodzakelijk zijn om je onderneming te runnen.
B124: Vraag 22 - Welk type VAPZ kiest u? | F124: SVAPZ | G124: =IF(AND(F124="VAPZ",(F6+F76)*'Gegevens sociale bijdrage &VAPZ'!B9<'Gegevens sociale bijdrage &VAPZ'!B11),(F6+F76)*'Gegevens sociale bijdrage &VAPZ'!B9,IF(AND(F124="VAPZ",(F6+F76)*'Gegevens sociale bijdrage &VAPZ'!B9>='Gegevens sociale bijdrage &VAPZ'!B11),'Gegevens sociale bijdrage &VAPZ'!B11,IF(AND(F124="SVAPZ",(F6+F76)*'Gegevens sociale bijdrage &VAPZ'!B10<'Gegevens sociale bijdrage &VAPZ'!B12),(F6+F76)*'Gegevens sociale bijdrage &VAPZ'!B10,IF(AND(F124="SVAPZ",(F6+F76)*'Gegevens sociale bijdrage &VAPZ'!B10>='Gegevens sociale bijdrage &VAPZ'!B12),'Gegevens sociale bijdrage &VAPZ'!B12,0)))) -> 4197.255165 | I124: =IFERROR(G124/$G$166,0) -> 0.1025803524
D125: boekhouder | G125: 3600 | I125: =IFERROR(G125/$G$166,0) -> 0.08798351642
D126: Wagenpark (Afschrijving of leasingkost op 5 jaar) | G126: 6000 | I126: 0.146639194
D127: Wagenpark verbruik | G127: 1800 | I127: 0.04399175821
D128: Wagenpark verzekering | G128: 1100 | I128: 0.02688385224
D129: Wagenpark onderhoud, slijtage en herstellingen | G129: 800 | I129: 0.01955189254
D130: Wagenpark taxen | G130: 180 | I130: 0.004399175821
D131: Carwash, parkeerkosten en keuring | G131: 200 | I131: 0.004887973135
B132: Telefoonkosten (aankoop (€ 750 op 3 jaar) en abonnement € 30/maand) | G132: 610 | I132: 0.01490831806
D133: Laptop en tablet (beide op 3 jaar) | G133: 850 | I133: 0.02077388582
D134: Softwarekosten | G134: 500 | I134: 0.01221993284
D135: Inschrijving KBO en activatie BTW-nummer | G135: 144.5 | I135: 0.00353156059
B136: Klein materiaal (hamer, schroeven, ladder, schroevendraaier, nagels …) | G136: 2500 | I136: 0.06109966418
B137: Klein materieel (schroefmachine, slijpmachine, boormachine, kruiwagen …) | G137: 1500 | I137: 0.03665979851
D138: Huisvestingskosten (huur, onderhoud, energie …) | G138: 6000 | I138: 0.146639194
D139: Advocaat | G139: 450 | I139: 0.01099793955
D140: Publiciteit, promotie, drukwerk en sponsering | G140: 250 | I140: 0.006109966418
D141: Website | G141: 500 | I141: 0.01221993284
D142: Verzekeringen (BA, brand …) | G142: 1500 | I142: 0.03665979851
D143: Levensverzekering/groepsverzekering/IPT | G143: 2500 | I143: 0.06109966418
B144: Hospitalisatieverzekering, verzekering gewaarbord inkomen | G144: 1350 | I144: 0.03299381866
D145: Financiële kosten | G145: 250 | I145: 0.006109966418
B146: Administratiekosten (postzegels, aangetekende zendingen, papier, diverse bureelbenodigdheden) | G146: 150 | I146: 0.003665979851
D147: Cursussen en bijscholing | G147: 300 | I147: 0.007331959702
D148: Afvalverwerking | G148: 500 | I148: 0.01221993284
D149: Representatiekosten | G149: 650 | I149: 0.01588591269
D150: Bijdragen verenigingen (Beroepsvereniging, Buildwise …) | G150: 360 | I150: 0.008798351642
D151: Provinciebelastingen | G151: 375 | I151: 0.009164949627
D152: Restaurantkosten | G152: 500 | I152: 0.01221993284
D153: Consultancy | G153: 800 | I153: 0.01955189254
D154: Werkkledij | G154: 350 | I154: 0.008553952986
D155: Kantinekosten | G155: 150 | I155: 0.003665979851
D156: Vrij veld 1 | I156: 0
D157: Vrij veld 2 | I157: 0
D158: Vrij veld 3 | I158: 0
D159: Vrij veld 4 | I159: 0
D160: Vrij veld 5 | I160: 0
D161: Vrij veld 6 | I161: 0
D162: Vrij veld 7 | I162: 0
D163: Vrij veld 8 | I163: 0
D164: Vrij veld 9 | I164: 0
D165: Vrij veld 10 | I165: 0
F166: Algemeen totaal: | G166: =SUM(G124:H165) -> 40916.75516 | I166: 1
B168: KOSTENKERNGETAL= | F168: =G166/G117 -> 0.3931112243
B171: Opmerking: het kostenkerngetal is een ZEER belangrijk cijfer in je onderneming. Het geeft weer welk percentage je minstens bij je directe kosten moet tellen om al je indirecte kosten betaald te krijgen. M.a.w. op elk materiaal, op elke uurkost, op elke onderaannemerskost en op al de overige directe kosten zal minimaal dit kostenkerngetal moeten worden bijgeteld.
B177: Stap 8 - Toeslagpercentages bepalen
B179: Opmerking: In de meeste gevallen kan je niet zomaar op elke directe kosten het kostenkerngetal toepassen. De kans is groot dat op die manier bepaalde posten te goedkoop verkocht worden (posten met veel arbeid) en andere posten niet meer marktconform zijn (posten met veel onderaanneming). Je zal daarom je eigen percentages moeten gebruiken, die weliswaar hetzelfde doel hebben als het kostenkerngetal, namelijk het terugverdienen van ALLE indirecte kosten. Het bepalen van je eigen percentages wordt voor het grootste stuk bepaald door de markt. In veel gevallen baseer je je het best op de kortingen die je krijgt bij je leveranciers. Deze kortingen zet je vervolgens om naar je eigen toeslagpercentages. Zo zal een korting van 20 % omgezet worden in een toeslagpercentage van 25 % en zal een korting van 50% omgezet worden in een toeslagpercentage van 100 %. Je kan deze omrekentabel terugvinden in het tabblad 'relatie korting & toeslag'. Na het invullen van de toeslagpercentages op je materialen, je onderaannemers, je materieel en al je andere directe kosten, wordt er automatisch berekend welk deel van de indirecte kosten nog niet terugverdiend is. Om dit gedeelte terug te verdienen, zal er een toeslag voorzien moeten worden op je eigen uren die je zal factureren. Deze toeslag wordt automatisch berekend in onderstaande tabel. Hoe groter deze toeslag, hoe meer je per uur zal moeten factureren aan je klanten. In onderstaande tabel zie je de invloed van je eigen toeslagpercentages op het uurtarief dat je zal moeten aanrekenen aan je klanten.
B189: Vraag 23 - Bepaal hier je eigen toeslagpercentages die je op de directe kosten wenst te nemen
G191: Toepassing kostenkerngetal | J191: OF Toepassing eigen percentages | M191: Uurtarief (verkoopprijs van 1 uur)
G192: KKG | H192: Bedrag aan IK | J192: eigen % | K192: Bedrag aan IK
F193: ="Op "&F107&" (€ "&ROUND(G107,0)&")" -> Op Directe arbeidskosten: (€ 54084) | G193: =$F$168 -> 0.3931112243 | H193: =G193*G107 -> 21261.19395 | J193: =IFERROR($K$193/$G$107,0) -> 0.5808836097 | K193: =G166-SUM(K194:L202) -> 31416.75516
F194: ="Op "&F108&" (€ "&ROUND(G108,0)&")" -> Op Materiaalaankopen: (€ 45000) | G194: =$F$168 -> 0.3931112243 | H194: 17690.00509 | J194: 0.2 | K194: =J194*G108 -> 9000
F195: Op Onderaannemerskosten: (€ 5000) | G195: 0.3931112243 | H195: 1965.556122 | J195: 0.1 | K195: 500
F196: Op Materieelkosten: (€ 0) | G196: 0.3931112243 | H196: 0 | K196: 0
F197: Op Andere directe kosten - containerkosten: (€ 0) | G197: 0.3931112243 | H197: 0 | K197: 0
F198: Op Andere directe kosten - huur materieel: (€ 0) | G198: 0.3931112243 | H198: 0 | K198: 0 | M198: =IFERROR(G94+G94*J193,"info ontbreekt") -> 46.21685335
F199: Op Vrij veld 1: (€ 0) | G199: 0.3931112243 | H199: 0 | K199: 0
F200: Op Vrij veld 2: (€ 0) | G200: 0.3931112243 | H200: 0 | K200: 0
F201: Op Vrij veld 3: (€ 0) | G201: 0.3931112243 | H201: 0 | K201: 0
F202: Op Vrij veld 4: (€ 0) | G202: 0.3931112243 | H202: 0 | K202: 0 | M202: Eigen % wijzigen → uurtarief zal wijzigen
G203: Algemeen totaal van de terugverdiende indirecte kosten: | H203: =SUM(H193:I202) -> 40916.75516 | J203: = | K203: =SUM(K193:L202) -> 40916.75516
B206: Stap 9 - Samenvatting
F208: De uiteindelijke omzet die je wenst te behalen: | G208: =G117+G166 -> 145001.1787
F209: Het aantal uren dat je denkt te moeten werken: | G209: =F43 -> 2300
F210: Het aantal uren dat je denkt te gaan factureren: | G210: =F59 -> 1850
F211: Het aantal dagen dat je denkt te moeten werken: | G211: =F31 -> 236
F212: De omzet die je per dag wenst te maken: | G212: =G208/G211 -> 614.4117741
F214: Je werkt gemiddeld per dag | G214: =G209/G211 -> 9.745762712
F215: Je factureert gemiddeld per dag | G215: =G210/G211 -> 7.838983051
F216: Gemiddeld aantal uren per dag dat je werkt maar niet factureert: | G216: =G214-G215 -> 1.906779661
F218: Je gewenst nettoloon per maand: | G218: =B5 -> 2500
F219: Je gewenst nettoloon per uur: | G219: =IFERROR(F6/F59,"") -> 16.21621622
F220: Het brutoloon per uur: | G220: =G94 -> 29.23482353
F221: Het uurtarief dat aan je klanten zal moeten vragen per uur: | G221: =M198 -> 46.21685335
F223: Je factureert gemiddeld per dag | G223: =IFERROR(G215*G221,"") -> 362.29313 | I223: aan arbeid.
F224: Je factureert gemiddeld per dag | G224: =(G108*(1+J194))/G211 -> 228.8135593 | I224: aan materialen.
F225: Je factureert gemiddeld per dag | G225: =((G109*(1+J195))+(G110*(1+J196))+(G111*(1+J197))+(G112*(1+J198))+(G113*(1+J199))+(G114*(1+J200))+(G115*(1+J201))+(G116*(1+J202)))/G211 -> 23.30508475 | I225: aan de overige directe kosten.
F227: Je koopt gemiddeld per dag voor | G227: =G108/G211 -> 190.6779661 | I227: bij je materiaalleveranciers.
F228: Je hebt gemiddeld per dag | G228: =G166/G211 -> 173.3760812 | I228: aan indirecte kosten.

Sheet Opvolgingstabellen !!! (hidden)
B1: Wat kan je doen op deze pagina?
B8: Vul hier het jaartal in:
B10: Opvolging aankopen Materialen | G10: Opvolging gefactureerde uren
B11: Op jaarbasis: | D11: ='Berekening uurtarief'!G108 -> 45000 | G11: Op jaarbasis: | I11: ='Berekening uurtarief'!G210 -> 1850 | M11: Werkelijk gewerkte uren (in ruime zin)
B12: =D8 -> 0 | C12: Doel per maand | D12: Werkelijk | E12: OK/NIET OK | G12: =B12 -> 0 | H12: Doel Per maand | I12: Werkelijk | J12: OK/NIET OK
B13: januari | C13: =$D$11/12 -> 3750 | E13: =IF('Opvolgingstabellen !!!'!$D13>='Opvolgingstabellen !!!'!$C13,"OK","NIET OK") -> NIET OK | G13: =B13 -> januari | H13: =$I$11/12 -> 154.1666667 | I13: =TRANSPOSE(Gefactureerde_uren) -> 0 | J13: =IF('Opvolgingstabellen !!!'!$I13>='Opvolgingstabellen !!!'!$H13,"OK","NIET OK") -> NIET OK | M13: ='Registratie gewerkte uren'!E39 -> 0 | N13: ="in "&B13 -> in januari
B14: februari | C14: =$D$11/12 -> 3750 | E14: =IF('Opvolgingstabellen !!!'!$D14>='Opvolgingstabellen !!!'!$C14,"OK","NIET OK") -> NIET OK | G14: =B14 -> februari | H14: 154.1666667 | I14: 0 | J14: =IF('Opvolgingstabellen !!!'!$I14>='Opvolgingstabellen !!!'!$H14,"OK","NIET OK") -> NIET OK | M14: ='Registratie gewerkte uren'!E69 -> 0 | N14: ="in "&B14 -> in februari
B15: maart | C15: 3750 | E15: =IF('Opvolgingstabellen !!!'!$D15>='Opvolgingstabellen !!!'!$C15,"OK","NIET OK") -> NIET OK | G15: maart | H15: 154.1666667 | I15: 0 | J15: =IF('Opvolgingstabellen !!!'!$I15>='Opvolgingstabellen !!!'!$H15,"OK","NIET OK") -> NIET OK | M15: ='Registratie gewerkte uren'!E101 -> 0 | N15: in maart
B16: april | C16: 3750 | E16: =IF('Opvolgingstabellen !!!'!$D16>='Opvolgingstabellen !!!'!$C16,"OK","NIET OK") -> NIET OK | G16: april | H16: 154.1666667 | I16: 0 | J16: =IF('Opvolgingstabellen !!!'!$I16>='Opvolgingstabellen !!!'!$H16,"OK","NIET OK") -> NIET OK | M16: ='Registratie gewerkte uren'!E132 -> 0 | N16: in april
B17: mei | C17: 3750 | E17: =IF('Opvolgingstabellen !!!'!$D17>='Opvolgingstabellen !!!'!$C17,"OK","NIET OK") -> NIET OK | G17: mei | H17: 154.1666667 | I17: 0 | J17: =IF('Opvolgingstabellen !!!'!$I17>='Opvolgingstabellen !!!'!$H17,"OK","NIET OK") -> NIET OK | M17: ='Registratie gewerkte uren'!E164 -> 0 | N17: in mei | O17: Ter info: Deze « » -velden bevatten formules die gelinkt zijn aan de pagina "Registratie gewerkte uren ",
B18: juni | C18: 3750 | E18: =IF('Opvolgingstabellen !!!'!$D18>='Opvolgingstabellen !!!'!$C18,"OK","NIET OK") -> NIET OK | G18: juni | H18: 154.1666667 | I18: 0 | J18: =IF('Opvolgingstabellen !!!'!$I18>='Opvolgingstabellen !!!'!$H18,"OK","NIET OK") -> NIET OK | M18: ='Registratie gewerkte uren'!E195 -> 0 | N18: in juni | O18: maar kan je indien gewenst overschrijven.
B19: juli | C19: 3750 | E19: =IF('Opvolgingstabellen !!!'!$D19>='Opvolgingstabellen !!!'!$C19,"OK","NIET OK") -> NIET OK | G19: juli | H19: 154.1666667 | I19: 0 | J19: =IF('Opvolgingstabellen !!!'!$I19>='Opvolgingstabellen !!!'!$H19,"OK","NIET OK") -> NIET OK | M19: ='Registratie gewerkte uren'!E227 -> 0 | N19: in juli
B20: augustus | C20: 3750 | E20: =IF('Opvolgingstabellen !!!'!$D20>='Opvolgingstabellen !!!'!$C20,"OK","NIET OK") -> NIET OK | G20: augustus | H20: 154.1666667 | I20: 0 | J20: =IF('Opvolgingstabellen !!!'!$I20>='Opvolgingstabellen !!!'!$H20,"OK","NIET OK") -> NIET OK | M20: ='Registratie gewerkte uren'!E259 -> 0 | N20: in augustus
B21: september | C21: 3750 | E21: =IF('Opvolgingstabellen !!!'!$D21>='Opvolgingstabellen !!!'!$C21,"OK","NIET OK") -> NIET OK | G21: september | H21: 154.1666667 | I21: 0 | J21: =IF('Opvolgingstabellen !!!'!$I21>='Opvolgingstabellen !!!'!$H21,"OK","NIET OK") -> NIET OK | M21: ='Registratie gewerkte uren'!E290 -> 0 | N21: in september
B22: oktober | C22: 3750 | E22: =IF('Opvolgingstabellen !!!'!$D22>='Opvolgingstabellen !!!'!$C22,"OK","NIET OK") -> NIET OK | G22: oktober | H22: 154.1666667 | I22: 0 | J22: =IF('Opvolgingstabellen !!!'!$I22>='Opvolgingstabellen !!!'!$H22,"OK","NIET OK") -> NIET OK | M22: ='Registratie gewerkte uren'!E322 -> 0 | N22: in oktober
B23: november | C23: 3750 | E23: =IF('Opvolgingstabellen !!!'!$D23>='Opvolgingstabellen !!!'!$C23,"OK","NIET OK") -> NIET OK | G23: november | H23: 154.1666667 | I23: 0 | J23: =IF('Opvolgingstabellen !!!'!$I23>='Opvolgingstabellen !!!'!$H23,"OK","NIET OK") -> NIET OK | M23: ='Registratie gewerkte uren'!E353 -> 0 | N23: in november
B24: december | C24: 3750 | E24: =IF('Opvolgingstabellen !!!'!$D24>='Opvolgingstabellen !!!'!$C24,"OK","NIET OK") -> NIET OK | G24: december | H24: 154.1666667 | I24: 0 | J24: =IF('Opvolgingstabellen !!!'!$I24>='Opvolgingstabellen !!!'!$H24,"OK","NIET OK") -> NIET OK | M24: ='Registratie gewerkte uren'!E385 -> 0 | N24: in december
B25: TOTAAL: | C25: =SUMIF(D13:D24,"<>",C13:C24) -> 0 | D25: =SUM(D13:D24) -> 0 | E25: =D25-C25 -> 0 | G25: TOTAAL: | H25: =SUMIF(I13:I24,"<>0",H13:H24) -> 0 | I25: =SUM(I13:I24) -> 0 | J25: =I25-H25 -> 0 | M25: =SUM(M13:M24) -> 0 | N25: =I25-M25 -> 0
E26: =IF(E25>0,"voor op schema", "achter op schema") -> achter op schema | J26: =IF(J25>0,"voor op schema", "achter op schema") -> achter op schema | N26: =IF(N25>0,"minder gewerkt dan gekregen", "meer gewerkt dan gekregen") -> meer gewerkt dan gekregen
B28: Opvolging Omzet | G28: Opvolging indirecte of algemene kosten
B29: Op jaarbasis: | D29: ='Berekening uurtarief'!G208 -> 145001.1787 | G29: Op jaarbasis: | I29: ='Berekening uurtarief'!G166 -> 40916.75516
B30: =B12 -> 0 | C30: Doel per maand | D30: Werkelijk | E30: OK/NIET OK | G30: =B12 -> 0 | H30: Doel per maand | I30: Werkelijk | J30: OK/NIET OK
B31: =B13 -> januari | C31: =$D$29/12 -> 12083.43156 | E31: =IF('Opvolgingstabellen !!!'!$D31>='Opvolgingstabellen !!!'!$C31,"OK","NIET OK") -> NIET OK | G31: =B13 -> januari | H31: =$I$29/12 -> 3409.729597 | J31: =IF('Opvolgingstabellen !!!'!$I31<='Opvolgingstabellen !!!'!$H31,"OK","NIET OK") -> OK
B32: =B14 -> februari | C32: =$D$29/12 -> 12083.43156 | E32: =IF('Opvolgingstabellen !!!'!$D32>='Opvolgingstabellen !!!'!$C32,"OK","NIET OK") -> NIET OK | G32: =B14 -> februari | H32: =$I$29/12 -> 3409.729597 | J32: =IF('Opvolgingstabellen !!!'!$I32<='Opvolgingstabellen !!!'!$H32,"OK","NIET OK") -> OK
B33: maart | C33: 12083.43156 | E33: =IF('Opvolgingstabellen !!!'!$D33>='Opvolgingstabellen !!!'!$C33,"OK","NIET OK") -> NIET OK | G33: maart | H33: 3409.729597 | J33: =IF('Opvolgingstabellen !!!'!$I33<='Opvolgingstabellen !!!'!$H33,"OK","NIET OK") -> OK
B34: april | C34: 12083.43156 | E34: =IF('Opvolgingstabellen !!!'!$D34>='Opvolgingstabellen !!!'!$C34,"OK","NIET OK") -> NIET OK | G34: april | H34: 3409.729597 | J34: =IF('Opvolgingstabellen !!!'!$I34<='Opvolgingstabellen !!!'!$H34,"OK","NIET OK") -> OK
B35: mei | C35: 12083.43156 | E35: =IF('Opvolgingstabellen !!!'!$D35>='Opvolgingstabellen !!!'!$C35,"OK","NIET OK") -> NIET OK | G35: mei | H35: 3409.729597 | J35: =IF('Opvolgingstabellen !!!'!$I35<='Opvolgingstabellen !!!'!$H35,"OK","NIET OK") -> OK
B36: juni | C36: 12083.43156 | E36: =IF('Opvolgingstabellen !!!'!$D36>='Opvolgingstabellen !!!'!$C36,"OK","NIET OK") -> NIET OK | G36: juni | H36: 3409.729597 | J36: =IF('Opvolgingstabellen !!!'!$I36<='Opvolgingstabellen !!!'!$H36,"OK","NIET OK") -> OK
B37: juli | C37: 12083.43156 | E37: =IF('Opvolgingstabellen !!!'!$D37>='Opvolgingstabellen !!!'!$C37,"OK","NIET OK") -> NIET OK | G37: juli | H37: 3409.729597 | J37: =IF('Opvolgingstabellen !!!'!$I37<='Opvolgingstabellen !!!'!$H37,"OK","NIET OK") -> OK
B38: augustus | C38: 12083.43156 | E38: =IF('Opvolgingstabellen !!!'!$D38>='Opvolgingstabellen !!!'!$C38,"OK","NIET OK") -> NIET OK | G38: augustus | H38: 3409.729597 | J38: =IF('Opvolgingstabellen !!!'!$I38<='Opvolgingstabellen !!!'!$H38,"OK","NIET OK") -> OK
B39: september | C39: 12083.43156 | E39: =IF('Opvolgingstabellen !!!'!$D39>='Opvolgingstabellen !!!'!$C39,"OK","NIET OK") -> NIET OK | G39: september | H39: 3409.729597 | J39: =IF('Opvolgingstabellen !!!'!$I39<='Opvolgingstabellen !!!'!$H39,"OK","NIET OK") -> OK
B40: oktober | C40: 12083.43156 | E40: =IF('Opvolgingstabellen !!!'!$D40>='Opvolgingstabellen !!!'!$C40,"OK","NIET OK") -> NIET OK | G40: oktober | H40: 3409.729597 | J40: =IF('Opvolgingstabellen !!!'!$I40<='Opvolgingstabellen !!!'!$H40,"OK","NIET OK") -> OK
B41: november | C41: 12083.43156 | E41: =IF('Opvolgingstabellen !!!'!$D41>='Opvolgingstabellen !!!'!$C41,"OK","NIET OK") -> NIET OK | G41: november | H41: 3409.729597 | J41: =IF('Opvolgingstabellen !!!'!$I41<='Opvolgingstabellen !!!'!$H41,"OK","NIET OK") -> OK
B42: december | C42: 12083.43156 | E42: =IF('Opvolgingstabellen !!!'!$D42>='Opvolgingstabellen !!!'!$C42,"OK","NIET OK") -> NIET OK | G42: december | H42: 3409.729597 | J42: =IF('Opvolgingstabellen !!!'!$I42<='Opvolgingstabellen !!!'!$H42,"OK","NIET OK") -> OK
B43: TOTAAL: | C43: =SUMIF(D31:D42,"<>",C31:C42) -> 0 | D43: =SUM(D31:D42) -> 0 | E43: =D43-C43 -> 0 | G43: TOTAAL: | H43: =SUMIF(I31:I42,"<>",H31:H42) -> 0 | I43: =SUM(I31:I42) -> 0 | J43: =H43-I43 -> 0
E44: =IF(E43>0,"voor op schema", "achter op schema") -> achter op schema | J44: =IF(J43>0,"minder indirecte kosten", "meer indirecte kosten") -> meer indirecte kosten
B46: Opvolging onderaannemers | G46: Opvolging overige Directe kosten
B47: Op jaarbasis: | D47: ='Berekening uurtarief'!G109 -> 5000 | G47: Op jaarbasis: | I47: =SUM('Berekening uurtarief'!G110:G116) -> 0
B48: =B30 -> 0 | C48: Doel per maand | D48: Werkelijk | E48: OK/NIET OK | G48: =G30 -> 0 | H48: Doel per maand | I48: Werkelijk | J48: OK/NIET OK
B49: =B13 -> januari | C49: =$D$47/12 -> 416.6666667 | E49: =IF('Opvolgingstabellen !!!'!$D49>='Opvolgingstabellen !!!'!$C49,"OK","NIET OK") -> NIET OK | G49: =B13 -> januari | H49: =$I$47/12 -> 0 | J49: =IF('Opvolgingstabellen !!!'!$I49>='Opvolgingstabellen !!!'!$H49,"OK","NIET OK") -> OK
B50: =B14 -> februari | C50: =$D$47/12 -> 416.6666667 | E50: =IF('Opvolgingstabellen !!!'!$D50>='Opvolgingstabellen !!!'!$C50,"OK","NIET OK") -> NIET OK | G50: =B14 -> februari | H50: =$I$47/12 -> 0 | J50: =IF('Opvolgingstabellen !!!'!$I50>='Opvolgingstabellen !!!'!$H50,"OK","NIET OK") -> OK
B51: maart | C51: 416.6666667 | E51: =IF('Opvolgingstabellen !!!'!$D51>='Opvolgingstabellen !!!'!$C51,"OK","NIET OK") -> NIET OK | G51: maart | H51: 0 | J51: =IF('Opvolgingstabellen !!!'!$I51>='Opvolgingstabellen !!!'!$H51,"OK","NIET OK") -> OK
B52: april | C52: 416.6666667 | E52: =IF('Opvolgingstabellen !!!'!$D52>='Opvolgingstabellen !!!'!$C52,"OK","NIET OK") -> NIET OK | G52: april | H52: 0 | J52: =IF('Opvolgingstabellen !!!'!$I52>='Opvolgingstabellen !!!'!$H52,"OK","NIET OK") -> OK
B53: mei | C53: 416.6666667 | E53: =IF('Opvolgingstabellen !!!'!$D53>='Opvolgingstabellen !!!'!$C53,"OK","NIET OK") -> NIET OK | G53: mei | H53: 0 | J53: =IF('Opvolgingstabellen !!!'!$I53>='Opvolgingstabellen !!!'!$H53,"OK","NIET OK") -> OK
B54: juni | C54: 416.6666667 | E54: =IF('Opvolgingstabellen !!!'!$D54>='Opvolgingstabellen !!!'!$C54,"OK","NIET OK") -> NIET OK | G54: juni | H54: 0 | J54: =IF('Opvolgingstabellen !!!'!$I54>='Opvolgingstabellen !!!'!$H54,"OK","NIET OK") -> OK
B55: juli | C55: 416.6666667 | E55: =IF('Opvolgingstabellen !!!'!$D55>='Opvolgingstabellen !!!'!$C55,"OK","NIET OK") -> NIET OK | G55: juli | H55: 0 | J55: =IF('Opvolgingstabellen !!!'!$I55>='Opvolgingstabellen !!!'!$H55,"OK","NIET OK") -> OK
B56: augustus | C56: 416.6666667 | E56: =IF('Opvolgingstabellen !!!'!$D56>='Opvolgingstabellen !!!'!$C56,"OK","NIET OK") -> NIET OK | G56: augustus | H56: 0 | J56: =IF('Opvolgingstabellen !!!'!$I56>='Opvolgingstabellen !!!'!$H56,"OK","NIET OK") -> OK
B57: september | C57: 416.6666667 | E57: =IF('Opvolgingstabellen !!!'!$D57>='Opvolgingstabellen !!!'!$C57,"OK","NIET OK") -> NIET OK | G57: september | H57: 0 | J57: =IF('Opvolgingstabellen !!!'!$I57>='Opvolgingstabellen !!!'!$H57,"OK","NIET OK") -> OK
B58: oktober | C58: 416.6666667 | E58: =IF('Opvolgingstabellen !!!'!$D58>='Opvolgingstabellen !!!'!$C58,"OK","NIET OK") -> NIET OK | G58: oktober | H58: 0 | J58: =IF('Opvolgingstabellen !!!'!$I58>='Opvolgingstabellen !!!'!$H58,"OK","NIET OK") -> OK
B59: november | C59: 416.6666667 | E59: =IF('Opvolgingstabellen !!!'!$D59>='Opvolgingstabellen !!!'!$C59,"OK","NIET OK") -> NIET OK | G59: november | H59: 0 | J59: =IF('Opvolgingstabellen !!!'!$I59>='Opvolgingstabellen !!!'!$H59,"OK","NIET OK") -> OK
B60: december | C60: 416.6666667 | E60: =IF('Opvolgingstabellen !!!'!$D60>='Opvolgingstabellen !!!'!$C60,"OK","NIET OK") -> NIET OK | G60: december | H60: 0 | J60: =IF('Opvolgingstabellen !!!'!$I60>='Opvolgingstabellen !!!'!$H60,"OK","NIET OK") -> OK
B61: TOTAAL: | C61: =SUMIF(D49:D60,"<>",C49:C60) -> 0 | D61: =SUM(D49:D60) -> 0 | E61: =D61-C61 -> 0 | G61: TOTAAL: | H61: =SUMIF(I49:I60,"<>",H49:H60) -> 0 | I61: =SUM(I49:I60) -> 0 | J61: =I61-H61 -> 0
E62: =IF(E61>0,"voor op schema", "achter op schema") -> achter op schema | J62: =IF(J61>0,"voor op schema", "achter op schema") -> achter op schema

Sheet Opvolging gefactureerde uren (hidden)
B1: Wat kan je doen op deze pagina?
K6: =MATCH($E$7,Langage!$A$5:$A$16,0) -> 1 | L6: =MOD(K6,12)+1 -> 2 | M6: =MOD(L6,12)+1 -> 3 | N6: 4 | O6: 5 | P6: 6 | Q6: 7 | R6: 8 | S6: 9 | T6: 10 | U6: 11 | V6: 12
B7: Vul hier de beginmaand van je boekjaar in: | E7: januari | F7: Vul hier het jaartal in: | I7: ='Opvolgingstabellen !!!'!D8 -> 0 | J7: Totaal --> | K7: =SUM(K11:K199928) -> 0 | L7: =SUM(L11:L199928) -> 0 | M7: 0 | N7: 0 | O7: 0 | P7: 0 | Q7: 0 | R7: 0 | S7: 0 | T7: 0 | U7: 0 | V7: 0
B8: Projectnummer | C8: Datum project goedgekeurd | D8: Omschrijving project/meerwerk | E8: Aantal voorziene uren | F8: Verkoopprijs project/meerwerk (Excl. BTW) | H8: ="Voltooiings-percentage "&$I$7 -> Voltooiings-percentage 0 | I8: Uren reeds gefactureerd | K8: ="gefactureerd in "&INDEX(Langage!$A$5:$A$16,K6) -> gefactureerd in januari | L8: ="gefactureerd in "&INDEX(Langage!$A$5:$A$16,L6) -> gefactureerd in februari | M8: ="gefactureerd in "&INDEX(Langage!$A$5:$A$16,M6) -> gefactureerd in maart | N8: ="gefactureerd in "&INDEX(Langage!$A$5:$A$16,N6) -> gefactureerd in april | O8: ="gefactureerd in "&INDEX(Langage!$A$5:$A$16,O6) -> gefactureerd in mei | P8: ="gefactureerd in "&INDEX(Langage!$A$5:$A$16,P6) -> gefactureerd in juni | Q8: ="gefactureerd in "&INDEX(Langage!$A$5:$A$16,Q6) -> gefactureerd in juli | R8: ="gefactureerd in "&INDEX(Langage!$A$5:$A$16,R6) -> gefactureerd in augstus | S8: ="gefactureerd in "&INDEX(Langage!$A$5:$A$16,S6) -> gefactureerd in september | T8: ="gefactureerd in "&INDEX(Langage!$A$5:$A$16,T6) -> gefactureerd in oktober | U8: ="gefactureerd in "&INDEX(Langage!$A$5:$A$16,U6) -> gefactureerd in november | V8: ="gefactureerd in "&INDEX(Langage!$A$5:$A$16,V6) -> gefactureerd in december | W8: controle
H9: =IFERROR(I9/E9,0) -> 0 | I9: =SUM(I10:J20) -> 0 | K9: =IF(OR(ISBLANK($C9),$Y9=""),"",IF(MONTH($C9)=K$6,$E9/INDIRECT("F"&$Y9)*INDIRECT("E"&$Y9),"")) ->  | L9: =IF(OR(ISBLANK($C9),$Y9=""),"",IF(MONTH($C9)=L$6,$E9/INDIRECT("F"&$Y9)*INDIRECT("E"&$Y9),"")) ->  | M9: =IF(OR(ISBLANK($C9),$Y9=""),"",IF(MONTH($C9)=M$6,$E9/INDIRECT("F"&$Y9)*INDIRECT("E"&$Y9),"")) ->  | N9: =IF(OR(ISBLANK($C9),$Y9=""),"",IF(MONTH($C9)=N$6,$E9/INDIRECT("F"&$Y9)*INDIRECT("E"&$Y9),"")) ->  | O9: =IF(OR(ISBLANK($C9),$Y9=""),"",IF(MONTH($C9)=O$6,$E9/INDIRECT("F"&$Y9)*INDIRECT("E"&$Y9),"")) ->  | P9: =IF(OR(ISBLANK($C9),$Y9=""),"",IF(MONTH($C9)=P$6,$E9/INDIRECT("F"&$Y9)*INDIRECT("E"&$Y9),"")) ->  | Q9: =IF(OR(ISBLANK($C9),$Y9=""),"",IF(MONTH($C9)=Q$6,$E9/INDIRECT("F"&$Y9)*INDIRECT("E"&$Y9),"")) ->  | R9: =IF(OR(ISBLANK($C9),$Y9=""),"",IF(MONTH($C9)=R$6,$E9/INDIRECT("F"&$Y9)*INDIRECT("E"&$Y9),"")) ->  | S9: =IF(OR(ISBLANK($C9),$Y9=""),"",IF(MONTH($C9)=S$6,$E9/INDIRECT("F"&$Y9)*INDIRECT("E"&$Y9),"")) ->  | T9: =IF(OR(ISBLANK($C9),$Y9=""),"",IF(MONTH($C9)=T$6,$E9/INDIRECT("F"&$Y9)*INDIRECT("E"&$Y9),"")) ->  | U9: =IF(OR(ISBLANK($C9),$Y9=""),"",IF(MONTH($C9)=U$6,$E9/INDIRECT("F"&$Y9)*INDIRECT("E"&$Y9),"")) ->  | V9: =IF(OR(ISBLANK($C9),$Y9=""),"",IF(MONTH($C9)=V$6,$E9/INDIRECT("F"&$Y9)*INDIRECT("E"&$Y9),"")) ->  | W9: =IF(H9<>100%,"Niet ok","ok") -> Niet ok | X9: =ROW()-MOD(ROW()-9,12) -> 9 | Y9: =IF(OR(X9=ROW(),X9=ROW()-1),"",X9) -> 
B10: Factuurnummer | C10: Factuurdatum | D10: Omschrijving factuur | E10: Factuurbedrag (Excl. BTW) | K10: =IF(OR(ISBLANK($C10),$Y10=""),"",IF(MONTH($C10)=K$6,$E10/INDIRECT("F"&$Y10)*INDIRECT("E"&$Y10),"")) ->  | L10: =IF(OR(ISBLANK($C10),$Y10=""),"",IF(MONTH($C10)=L$6,$E10/INDIRECT("F"&$Y10)*INDIRECT("E"&$Y10),"")) ->  | M10: =IF(OR(ISBLANK($C10),$Y10=""),"",IF(MONTH($C10)=M$6,$E10/INDIRECT("F"&$Y10)*INDIRECT("E"&$Y10),"")) ->  | N10: =IF(OR(ISBLANK($C10),$Y10=""),"",IF(MONTH($C10)=N$6,$E10/INDIRECT("F"&$Y10)*INDIRECT("E"&$Y10),"")) ->  | O10: =IF(OR(ISBLANK($C10),$Y10=""),"",IF(MONTH($C10)=O$6,$E10/INDIRECT("F"&$Y10)*INDIRECT("E"&$Y10),"")) ->  | P10: =IF(OR(ISBLANK($C10),$Y10=""),"",IF(MONTH($C10)=P$6,$E10/INDIRECT("F"&$Y10)*INDIRECT("E"&$Y10),"")) ->  | Q10: =IF(OR(ISBLANK($C10),$Y10=""),"",IF(MONTH($C10)=Q$6,$E10/INDIRECT("F"&$Y10)*INDIRECT("E"&$Y10),"")) ->  | R10: =IF(OR(ISBLANK($C10),$Y10=""),"",IF(MONTH($C10)=R$6,$E10/INDIRECT("F"&$Y10)*INDIRECT("E"&$Y10),"")) ->  | S10: =IF(OR(ISBLANK($C10),$Y10=""),"",IF(MONTH($C10)=S$6,$E10/INDIRECT("F"&$Y10)*INDIRECT("E"&$Y10),"")) ->  | T10: =IF(OR(ISBLANK($C10),$Y10=""),"",IF(MONTH($C10)=T$6,$E10/INDIRECT("F"&$Y10)*INDIRECT("E"&$Y10),"")) ->  | U10: =IF(OR(ISBLANK($C10),$Y10=""),"",IF(MONTH($C10)=U$6,$E10/INDIRECT("F"&$Y10)*INDIRECT("E"&$Y10),"")) ->  | V10: =IF(OR(ISBLANK($C10),$Y10=""),"",IF(MONTH($C10)=V$6,$E10/INDIRECT("F"&$Y10)*INDIRECT("E"&$Y10),"")) ->  | X10: =ROW()-MOD(ROW()-9,12) -> 9 | Y10: =IF(OR(X10=ROW(),X10=ROW()-1),"",X10) -> 
I11: =SUM(K11:V11) -> 0 | K11: =IF(OR(ISBLANK($C11),$Y11=""),"",IF(MONTH($C11)=K$6,$E11/INDIRECT("F"&$Y11)*INDIRECT("E"&$Y11),"")) ->  | L11: =IF(OR(ISBLANK($C11),$Y11=""),"",IF(MONTH($C11)=L$6,$E11/INDIRECT("F"&$Y11)*INDIRECT("E"&$Y11),"")) ->  | M11: =IF(OR(ISBLANK($C11),$Y11=""),"",IF(MONTH($C11)=M$6,$E11/INDIRECT("F"&$Y11)*INDIRECT("E"&$Y11),"")) ->  | N11: =IF(OR(ISBLANK($C11),$Y11=""),"",IF(MONTH($C11)=N$6,$E11/INDIRECT("F"&$Y11)*INDIRECT("E"&$Y11),"")) ->  | O11: =IF(OR(ISBLANK($C11),$Y11=""),"",IF(MONTH($C11)=O$6,$E11/INDIRECT("F"&$Y11)*INDIRECT("E"&$Y11),"")) ->  | P11: =IF(OR(ISBLANK($C11),$Y11=""),"",IF(MONTH($C11)=P$6,$E11/INDIRECT("F"&$Y11)*INDIRECT("E"&$Y11),"")) ->  | Q11: =IF(OR(ISBLANK($C11),$Y11=""),"",IF(MONTH($C11)=Q$6,$E11/INDIRECT("F"&$Y11)*INDIRECT("E"&$Y11),"")) ->  | R11: =IF(OR(ISBLANK($C11),$Y11=""),"",IF(MONTH($C11)=R$6,$E11/INDIRECT("F"&$Y11)*INDIRECT("E"&$Y11),"")) ->  | S11: =IF(OR(ISBLANK($C11),$Y11=""),"",IF(MONTH($C11)=S$6,$E11/INDIRECT("F"&$Y11)*INDIRECT("E"&$Y11),"")) ->  | T11: =IF(OR(ISBLANK($C11),$Y11=""),"",IF(MONTH($C11)=T$6,$E11/INDIRECT("F"&$Y11)*INDIRECT("E"&$Y11),"")) ->  | U11: =IF(OR(ISBLANK($C11),$Y11=""),"",IF(MONTH($C11)=U$6,$E11/INDIRECT("F"&$Y11)*INDIRECT("E"&$Y11),"")) ->  | V11: =IF(OR(ISBLANK($C11),$Y11=""),"",IF(MONTH($C11)=V$6,$E11/INDIRECT("F"&$Y11)*INDIRECT("E"&$Y11),"")) ->  | X11: 9 | Y11: 9
I12: =SUM(K12:V12) -> 0 | K12: =IF(OR(ISBLANK($C12),$Y12=""),"",IF(MONTH($C12)=K$6,$E12/INDIRECT("F"&$Y12)*INDIRECT("E"&$Y12),"")) ->  | L12: =IF(OR(ISBLANK($C12),$Y12=""),"",IF(MONTH($C12)=L$6,$E12/INDIRECT("F"&$Y12)*INDIRECT("E"&$Y12),"")) ->  | M12: =IF(OR(ISBLANK($C12),$Y12=""),"",IF(MONTH($C12)=M$6,$E12/INDIRECT("F"&$Y12)*INDIRECT("E"&$Y12),"")) ->  | N12: =IF(OR(ISBLANK($C12),$Y12=""),"",IF(MONTH($C12)=N$6,$E12/INDIRECT("F"&$Y12)*INDIRECT("E"&$Y12),"")) ->  | O12: =IF(OR(ISBLANK($C12),$Y12=""),"",IF(MONTH($C12)=O$6,$E12/INDIRECT("F"&$Y12)*INDIRECT("E"&$Y12),"")) ->  | P12: =IF(OR(ISBLANK($C12),$Y12=""),"",IF(MONTH($C12)=P$6,$E12/INDIRECT("F"&$Y12)*INDIRECT("E"&$Y12),"")) ->  | Q12: =IF(OR(ISBLANK($C12),$Y12=""),"",IF(MONTH($C12)=Q$6,$E12/INDIRECT("F"&$Y12)*INDIRECT("E"&$Y12),"")) ->  | R12: =IF(OR(ISBLANK($C12),$Y12=""),"",IF(MONTH($C12)=R$6,$E12/INDIRECT("F"&$Y12)*INDIRECT("E"&$Y12),"")) ->  | S12: =IF(OR(ISBLANK($C12),$Y12=""),"",IF(MONTH($C12)=S$6,$E12/INDIRECT("F"&$Y12)*INDIRECT("E"&$Y12),"")) ->  | T12: =IF(OR(ISBLANK($C12),$Y12=""),"",IF(MONTH($C12)=T$6,$E12/INDIRECT("F"&$Y12)*INDIRECT("E"&$Y12),"")) ->  | U12: =IF(OR(ISBLANK($C12),$Y12=""),"",IF(MONTH($C12)=U$6,$E12/INDIRECT("F"&$Y12)*INDIRECT("E"&$Y12),"")) ->  | V12: =IF(OR(ISBLANK($C12),$Y12=""),"",IF(MONTH($C12)=V$6,$E12/INDIRECT("F"&$Y12)*INDIRECT("E"&$Y12),"")) ->  | X12: 9 | Y12: 9
I13: 0 | K13: =IF(OR(ISBLANK($C13),$Y13=""),"",IF(MONTH($C13)=K$6,$E13/INDIRECT("F"&$Y13)*INDIRECT("E"&$Y13),"")) ->  | L13: =IF(OR(ISBLANK($C13),$Y13=""),"",IF(MONTH($C13)=L$6,$E13/INDIRECT("F"&$Y13)*INDIRECT("E"&$Y13),"")) ->  | M13: =IF(OR(ISBLANK($C13),$Y13=""),"",IF(MONTH($C13)=M$6,$E13/INDIRECT("F"&$Y13)*INDIRECT("E"&$Y13),"")) ->  | N13: =IF(OR(ISBLANK($C13),$Y13=""),"",IF(MONTH($C13)=N$6,$E13/INDIRECT("F"&$Y13)*INDIRECT("E"&$Y13),"")) ->  | O13: =IF(OR(ISBLANK($C13),$Y13=""),"",IF(MONTH($C13)=O$6,$E13/INDIRECT("F"&$Y13)*INDIRECT("E"&$Y13),"")) ->  | P13: =IF(OR(ISBLANK($C13),$Y13=""),"",IF(MONTH($C13)=P$6,$E13/INDIRECT("F"&$Y13)*INDIRECT("E"&$Y13),"")) ->  | Q13: =IF(OR(ISBLANK($C13),$Y13=""),"",IF(MONTH($C13)=Q$6,$E13/INDIRECT("F"&$Y13)*INDIRECT("E"&$Y13),"")) ->  | R13: =IF(OR(ISBLANK($C13),$Y13=""),"",IF(MONTH($C13)=R$6,$E13/INDIRECT("F"&$Y13)*INDIRECT("E"&$Y13),"")) ->  | S13: =IF(OR(ISBLANK($C13),$Y13=""),"",IF(MONTH($C13)=S$6,$E13/INDIRECT("F"&$Y13)*INDIRECT("E"&$Y13),"")) ->  | T13: =IF(OR(ISBLANK($C13),$Y13=""),"",IF(MONTH($C13)=T$6,$E13/INDIRECT("F"&$Y13)*INDIRECT("E"&$Y13),"")) ->  | U13: =IF(OR(ISBLANK($C13),$Y13=""),"",IF(MONTH($C13)=U$6,$E13/INDIRECT("F"&$Y13)*INDIRECT("E"&$Y13),"")) ->  | V13: =IF(OR(ISBLANK($C13),$Y13=""),"",IF(MONTH($C13)=V$6,$E13/INDIRECT("F"&$Y13)*INDIRECT("E"&$Y13),"")) ->  | X13: 9 | Y13: 9
I14: 0 | K14: =IF(OR(ISBLANK($C14),$Y14=""),"",IF(MONTH($C14)=K$6,$E14/INDIRECT("F"&$Y14)*INDIRECT("E"&$Y14),"")) ->  | L14: =IF(OR(ISBLANK($C14),$Y14=""),"",IF(MONTH($C14)=L$6,$E14/INDIRECT("F"&$Y14)*INDIRECT("E"&$Y14),"")) ->  | M14: =IF(OR(ISBLANK($C14),$Y14=""),"",IF(MONTH($C14)=M$6,$E14/INDIRECT("F"&$Y14)*INDIRECT("E"&$Y14),"")) ->  | N14: =IF(OR(ISBLANK($C14),$Y14=""),"",IF(MONTH($C14)=N$6,$E14/INDIRECT("F"&$Y14)*INDIRECT("E"&$Y14),"")) ->  | O14: =IF(OR(ISBLANK($C14),$Y14=""),"",IF(MONTH($C14)=O$6,$E14/INDIRECT("F"&$Y14)*INDIRECT("E"&$Y14),"")) ->  | P14: =IF(OR(ISBLANK($C14),$Y14=""),"",IF(MONTH($C14)=P$6,$E14/INDIRECT("F"&$Y14)*INDIRECT("E"&$Y14),"")) ->  | Q14: =IF(OR(ISBLANK($C14),$Y14=""),"",IF(MONTH($C14)=Q$6,$E14/INDIRECT("F"&$Y14)*INDIRECT("E"&$Y14),"")) ->  | R14: =IF(OR(ISBLANK($C14),$Y14=""),"",IF(MONTH($C14)=R$6,$E14/INDIRECT("F"&$Y14)*INDIRECT("E"&$Y14),"")) ->  | S14: =IF(OR(ISBLANK($C14),$Y14=""),"",IF(MONTH($C14)=S$6,$E14/INDIRECT("F"&$Y14)*INDIRECT("E"&$Y14),"")) ->  | T14: =IF(OR(ISBLANK($C14),$Y14=""),"",IF(MONTH($C14)=T$6,$E14/INDIRECT("F"&$Y14)*INDIRECT("E"&$Y14),"")) ->  | U14: =IF(OR(ISBLANK($C14),$Y14=""),"",IF(MONTH($C14)=U$6,$E14/INDIRECT("F"&$Y14)*INDIRECT("E"&$Y14),"")) ->  | V14: =IF(OR(ISBLANK($C14),$Y14=""),"",IF(MONTH($C14)=V$6,$E14/INDIRECT("F"&$Y14)*INDIRECT("E"&$Y14),"")) ->  | X14: 9 | Y14: 9
I15: 0 | K15: =IF(OR(ISBLANK($C15),$Y15=""),"",IF(MONTH($C15)=K$6,$E15/INDIRECT("F"&$Y15)*INDIRECT("E"&$Y15),"")) ->  | L15: =IF(OR(ISBLANK($C15),$Y15=""),"",IF(MONTH($C15)=L$6,$E15/INDIRECT("F"&$Y15)*INDIRECT("E"&$Y15),"")) ->  | M15: =IF(OR(ISBLANK($C15),$Y15=""),"",IF(MONTH($C15)=M$6,$E15/INDIRECT("F"&$Y15)*INDIRECT("E"&$Y15),"")) ->  | N15: =IF(OR(ISBLANK($C15),$Y15=""),"",IF(MONTH($C15)=N$6,$E15/INDIRECT("F"&$Y15)*INDIRECT("E"&$Y15),"")) ->  | O15: =IF(OR(ISBLANK($C15),$Y15=""),"",IF(MONTH($C15)=O$6,$E15/INDIRECT("F"&$Y15)*INDIRECT("E"&$Y15),"")) ->  | P15: =IF(OR(ISBLANK($C15),$Y15=""),"",IF(MONTH($C15)=P$6,$E15/INDIRECT("F"&$Y15)*INDIRECT("E"&$Y15),"")) ->  | Q15: =IF(OR(ISBLANK($C15),$Y15=""),"",IF(MONTH($C15)=Q$6,$E15/INDIRECT("F"&$Y15)*INDIRECT("E"&$Y15),"")) ->  | R15: =IF(OR(ISBLANK($C15),$Y15=""),"",IF(MONTH($C15)=R$6,$E15/INDIRECT("F"&$Y15)*INDIRECT("E"&$Y15),"")) ->  | S15: =IF(OR(ISBLANK($C15),$Y15=""),"",IF(MONTH($C15)=S$6,$E15/INDIRECT("F"&$Y15)*INDIRECT("E"&$Y15),"")) ->  | T15: =IF(OR(ISBLANK($C15),$Y15=""),"",IF(MONTH($C15)=T$6,$E15/INDIRECT("F"&$Y15)*INDIRECT("E"&$Y15),"")) ->  | U15: =IF(OR(ISBLANK($C15),$Y15=""),"",IF(MONTH($C15)=U$6,$E15/INDIRECT("F"&$Y15)*INDIRECT("E"&$Y15),"")) ->  | V15: =IF(OR(ISBLANK($C15),$Y15=""),"",IF(MONTH($C15)=V$6,$E15/INDIRECT("F"&$Y15)*INDIRECT("E"&$Y15),"")) ->  | X15: 9 | Y15: 9
I16: 0 | K16: =IF(OR(ISBLANK($C16),$Y16=""),"",IF(MONTH($C16)=K$6,$E16/INDIRECT("F"&$Y16)*INDIRECT("E"&$Y16),"")) ->  | L16: =IF(OR(ISBLANK($C16),$Y16=""),"",IF(MONTH($C16)=L$6,$E16/INDIRECT("F"&$Y16)*INDIRECT("E"&$Y16),"")) ->  | M16: =IF(OR(ISBLANK($C16),$Y16=""),"",IF(MONTH($C16)=M$6,$E16/INDIRECT("F"&$Y16)*INDIRECT("E"&$Y16),"")) ->  | N16: =IF(OR(ISBLANK($C16),$Y16=""),"",IF(MONTH($C16)=N$6,$E16/INDIRECT("F"&$Y16)*INDIRECT("E"&$Y16),"")) ->  | O16: =IF(OR(ISBLANK($C16),$Y16=""),"",IF(MONTH($C16)=O$6,$E16/INDIRECT("F"&$Y16)*INDIRECT("E"&$Y16),"")) ->  | P16: =IF(OR(ISBLANK($C16),$Y16=""),"",IF(MONTH($C16)=P$6,$E16/INDIRECT("F"&$Y16)*INDIRECT("E"&$Y16),"")) ->  | Q16: =IF(OR(ISBLANK($C16),$Y16=""),"",IF(MONTH($C16)=Q$6,$E16/INDIRECT("F"&$Y16)*INDIRECT("E"&$Y16),"")) ->  | R16: =IF(OR(ISBLANK($C16),$Y16=""),"",IF(MONTH($C16)=R$6,$E16/INDIRECT("F"&$Y16)*INDIRECT("E"&$Y16),"")) ->  | S16: =IF(OR(ISBLANK($C16),$Y16=""),"",IF(MONTH($C16)=S$6,$E16/INDIRECT("F"&$Y16)*INDIRECT("E"&$Y16),"")) ->  | T16: =IF(OR(ISBLANK($C16),$Y16=""),"",IF(MONTH($C16)=T$6,$E16/INDIRECT("F"&$Y16)*INDIRECT("E"&$Y16),"")) ->  | U16: =IF(OR(ISBLANK($C16),$Y16=""),"",IF(MONTH($C16)=U$6,$E16/INDIRECT("F"&$Y16)*INDIRECT("E"&$Y16),"")) ->  | V16: =IF(OR(ISBLANK($C16),$Y16=""),"",IF(MONTH($C16)=V$6,$E16/INDIRECT("F"&$Y16)*INDIRECT("E"&$Y16),"")) ->  | X16: 9 | Y16: 9
I17: 0 | K17: =IF(OR(ISBLANK($C17),$Y17=""),"",IF(MONTH($C17)=K$6,$E17/INDIRECT("F"&$Y17)*INDIRECT("E"&$Y17),"")) ->  | L17: =IF(OR(ISBLANK($C17),$Y17=""),"",IF(MONTH($C17)=L$6,$E17/INDIRECT("F"&$Y17)*INDIRECT("E"&$Y17),"")) ->  | M17: =IF(OR(ISBLANK($C17),$Y17=""),"",IF(MONTH($C17)=M$6,$E17/INDIRECT("F"&$Y17)*INDIRECT("E"&$Y17),"")) ->  | N17: =IF(OR(ISBLANK($C17),$Y17=""),"",IF(MONTH($C17)=N$6,$E17/INDIRECT("F"&$Y17)*INDIRECT("E"&$Y17),"")) ->  | O17: =IF(OR(ISBLANK($C17),$Y17=""),"",IF(MONTH($C17)=O$6,$E17/INDIRECT("F"&$Y17)*INDIRECT("E"&$Y17),"")) ->  | P17: =IF(OR(ISBLANK($C17),$Y17=""),"",IF(MONTH($C17)=P$6,$E17/INDIRECT("F"&$Y17)*INDIRECT("E"&$Y17),"")) ->  | Q17: =IF(OR(ISBLANK($C17),$Y17=""),"",IF(MONTH($C17)=Q$6,$E17/INDIRECT("F"&$Y17)*INDIRECT("E"&$Y17),"")) ->  | R17: =IF(OR(ISBLANK($C17),$Y17=""),"",IF(MONTH($C17)=R$6,$E17/INDIRECT("F"&$Y17)*INDIRECT("E"&$Y17),"")) ->  | S17: =IF(OR(ISBLANK($C17),$Y17=""),"",IF(MONTH($C17)=S$6,$E17/INDIRECT("F"&$Y17)*INDIRECT("E"&$Y17),"")) ->  | T17: =IF(OR(ISBLANK($C17),$Y17=""),"",IF(MONTH($C17)=T$6,$E17/INDIRECT("F"&$Y17)*INDIRECT("E"&$Y17),"")) ->  | U17: =IF(OR(ISBLANK($C17),$Y17=""),"",IF(MONTH($C17)=U$6,$E17/INDIRECT("F"&$Y17)*INDIRECT("E"&$Y17),"")) ->  | V17: =IF(OR(ISBLANK($C17),$Y17=""),"",IF(MONTH($C17)=V$6,$E17/INDIRECT("F"&$Y17)*INDIRECT("E"&$Y17),"")) ->  | X17: 9 | Y17: 9
I18: 0 | K18: =IF(OR(ISBLANK($C18),$Y18=""),"",IF(MONTH($C18)=K$6,$E18/INDIRECT("F"&$Y18)*INDIRECT("E"&$Y18),"")) ->  | L18: =IF(OR(ISBLANK($C18),$Y18=""),"",IF(MONTH($C18)=L$6,$E18/INDIRECT("F"&$Y18)*INDIRECT("E"&$Y18),"")) ->  | M18: =IF(OR(ISBLANK($C18),$Y18=""),"",IF(MONTH($C18)=M$6,$E18/INDIRECT("F"&$Y18)*INDIRECT("E"&$Y18),"")) ->  | N18: =IF(OR(ISBLANK($C18),$Y18=""),"",IF(MONTH($C18)=N$6,$E18/INDIRECT("F"&$Y18)*INDIRECT("E"&$Y18),"")) ->  | O18: =IF(OR(ISBLANK($C18),$Y18=""),"",IF(MONTH($C18)=O$6,$E18/INDIRECT("F"&$Y18)*INDIRECT("E"&$Y18),"")) ->  | P18: =IF(OR(ISBLANK($C18),$Y18=""),"",IF(MONTH($C18)=P$6,$E18/INDIRECT("F"&$Y18)*INDIRECT("E"&$Y18),"")) ->  | Q18: =IF(OR(ISBLANK($C18),$Y18=""),"",IF(MONTH($C18)=Q$6,$E18/INDIRECT("F"&$Y18)*INDIRECT("E"&$Y18),"")) ->  | R18: =IF(OR(ISBLANK($C18),$Y18=""),"",IF(MONTH($C18)=R$6,$E18/INDIRECT("F"&$Y18)*INDIRECT("E"&$Y18),"")) ->  | S18: =IF(OR(ISBLANK($C18),$Y18=""),"",IF(MONTH($C18)=S$6,$E18/INDIRECT("F"&$Y18)*INDIRECT("E"&$Y18),"")) ->  | T18: =IF(OR(ISBLANK($C18),$Y18=""),"",IF(MONTH($C18)=T$6,$E18/INDIRECT("F"&$Y18)*INDIRECT("E"&$Y18),"")) ->  | U18: =IF(OR(ISBLANK($C18),$Y18=""),"",IF(MONTH($C18)=U$6,$E18/INDIRECT("F"&$Y18)*INDIRECT("E"&$Y18),"")) ->  | V18: =IF(OR(ISBLANK($C18),$Y18=""),"",IF(MONTH($C18)=V$6,$E18/INDIRECT("F"&$Y18)*INDIRECT("E"&$Y18),"")) ->  | X18: 9 | Y18: 9
I19: 0 | K19: =IF(OR(ISBLANK($C19),$Y19=""),"",IF(MONTH($C19)=K$6,$E19/INDIRECT("F"&$Y19)*INDIRECT("E"&$Y19),"")) ->  | L19: =IF(OR(ISBLANK($C19),$Y19=""),"",IF(MONTH($C19)=L$6,$E19/INDIRECT("F"&$Y19)*INDIRECT("E"&$Y19),"")) ->  | M19: =IF(OR(ISBLANK($C19),$Y19=""),"",IF(MONTH($C19)=M$6,$E19/INDIRECT("F"&$Y19)*INDIRECT("E"&$Y19),"")) ->  | N19: =IF(OR(ISBLANK($C19),$Y19=""),"",IF(MONTH($C19)=N$6,$E19/INDIRECT("F"&$Y19)*INDIRECT("E"&$Y19),"")) ->  | O19: =IF(OR(ISBLANK($C19),$Y19=""),"",IF(MONTH($C19)=O$6,$E19/INDIRECT("F"&$Y19)*INDIRECT("E"&$Y19),"")) ->  | P19: =IF(OR(ISBLANK($C19),$Y19=""),"",IF(MONTH($C19)=P$6,$E19/INDIRECT("F"&$Y19)*INDIRECT("E"&$Y19),"")) ->  | Q19: =IF(OR(ISBLANK($C19),$Y19=""),"",IF(MONTH($C19)=Q$6,$E19/INDIRECT("F"&$Y19)*INDIRECT("E"&$Y19),"")) ->  | R19: =IF(OR(ISBLANK($C19),$Y19=""),"",IF(MONTH($C19)=R$6,$E19/INDIRECT("F"&$Y19)*INDIRECT("E"&$Y19),"")) ->  | S19: =IF(OR(ISBLANK($C19),$Y19=""),"",IF(MONTH($C19)=S$6,$E19/INDIRECT("F"&$Y19)*INDIRECT("E"&$Y19),"")) ->  | T19: =IF(OR(ISBLANK($C19),$Y19=""),"",IF(MONTH($C19)=T$6,$E19/INDIRECT("F"&$Y19)*INDIRECT("E"&$Y19),"")) ->  | U19: =IF(OR(ISBLANK($C19),$Y19=""),"",IF(MONTH($C19)=U$6,$E19/INDIRECT("F"&$Y19)*INDIRECT("E"&$Y19),"")) ->  | V19: =IF(OR(ISBLANK($C19),$Y19=""),"",IF(MONTH($C19)=V$6,$E19/INDIRECT("F"&$Y19)*INDIRECT("E"&$Y19),"")) ->  | X19: 9 | Y19: 9
I20: 0 | K20: =IF(OR(ISBLANK($C20),$Y20=""),"",IF(MONTH($C20)=K$6,$E20/INDIRECT("F"&$Y20)*INDIRECT("E"&$Y20),"")) ->  | L20: =IF(OR(ISBLANK($C20),$Y20=""),"",IF(MONTH($C20)=L$6,$E20/INDIRECT("F"&$Y20)*INDIRECT("E"&$Y20),"")) ->  | M20: =IF(OR(ISBLANK($C20),$Y20=""),"",IF(MONTH($C20)=M$6,$E20/INDIRECT("F"&$Y20)*INDIRECT("E"&$Y20),"")) ->  | N20: =IF(OR(ISBLANK($C20),$Y20=""),"",IF(MONTH($C20)=N$6,$E20/INDIRECT("F"&$Y20)*INDIRECT("E"&$Y20),"")) ->  | O20: =IF(OR(ISBLANK($C20),$Y20=""),"",IF(MONTH($C20)=O$6,$E20/INDIRECT("F"&$Y20)*INDIRECT("E"&$Y20),"")) ->  | P20: =IF(OR(ISBLANK($C20),$Y20=""),"",IF(MONTH($C20)=P$6,$E20/INDIRECT("F"&$Y20)*INDIRECT("E"&$Y20),"")) ->  | Q20: =IF(OR(ISBLANK($C20),$Y20=""),"",IF(MONTH($C20)=Q$6,$E20/INDIRECT("F"&$Y20)*INDIRECT("E"&$Y20),"")) ->  | R20: =IF(OR(ISBLANK($C20),$Y20=""),"",IF(MONTH($C20)=R$6,$E20/INDIRECT("F"&$Y20)*INDIRECT("E"&$Y20),"")) ->  | S20: =IF(OR(ISBLANK($C20),$Y20=""),"",IF(MONTH($C20)=S$6,$E20/INDIRECT("F"&$Y20)*INDIRECT("E"&$Y20),"")) ->  | T20: =IF(OR(ISBLANK($C20),$Y20=""),"",IF(MONTH($C20)=T$6,$E20/INDIRECT("F"&$Y20)*INDIRECT("E"&$Y20),"")) ->  | U20: =IF(OR(ISBLANK($C20),$Y20=""),"",IF(MONTH($C20)=U$6,$E20/INDIRECT("F"&$Y20)*INDIRECT("E"&$Y20),"")) ->  | V20: =IF(OR(ISBLANK($C20),$Y20=""),"",IF(MONTH($C20)=V$6,$E20/INDIRECT("F"&$Y20)*INDIRECT("E"&$Y20),"")) ->  | X20: 9 | Y20: 9
H21: =IFERROR(I21/E21,0) -> 0 | I21: =SUM(I22:J32) -> 0 | K21: =IF(OR(ISBLANK($C21),$Y21=""),"",IF(MONTH($C21)=K$6,$E21/INDIRECT("F"&$Y21)*INDIRECT("E"&$Y21),"")) ->  | L21: =IF(OR(ISBLANK($C21),$Y21=""),"",IF(MONTH($C21)=L$6,$E21/INDIRECT("F"&$Y21)*INDIRECT("E"&$Y21),"")) ->  | M21: =IF(OR(ISBLANK($C21),$Y21=""),"",IF(MONTH($C21)=M$6,$E21/INDIRECT("F"&$Y21)*INDIRECT("E"&$Y21),"")) ->  | N21: =IF(OR(ISBLANK($C21),$Y21=""),"",IF(MONTH($C21)=N$6,$E21/INDIRECT("F"&$Y21)*INDIRECT("E"&$Y21),"")) ->  | O21: =IF(OR(ISBLANK($C21),$Y21=""),"",IF(MONTH($C21)=O$6,$E21/INDIRECT("F"&$Y21)*INDIRECT("E"&$Y21),"")) ->  | P21: =IF(OR(ISBLANK($C21),$Y21=""),"",IF(MONTH($C21)=P$6,$E21/INDIRECT("F"&$Y21)*INDIRECT("E"&$Y21),"")) ->  | Q21: =IF(OR(ISBLANK($C21),$Y21=""),"",IF(MONTH($C21)=Q$6,$E21/INDIRECT("F"&$Y21)*INDIRECT("E"&$Y21),"")) ->  | R21: =IF(OR(ISBLANK($C21),$Y21=""),"",IF(MONTH($C21)=R$6,$E21/INDIRECT("F"&$Y21)*INDIRECT("E"&$Y21),"")) ->  | S21: =IF(OR(ISBLANK($C21),$Y21=""),"",IF(MONTH($C21)=S$6,$E21/INDIRECT("F"&$Y21)*INDIRECT("E"&$Y21),"")) ->  | T21: =IF(OR(ISBLANK($C21),$Y21=""),"",IF(MONTH($C21)=T$6,$E21/INDIRECT("F"&$Y21)*INDIRECT("E"&$Y21),"")) ->  | U21: =IF(OR(ISBLANK($C21),$Y21=""),"",IF(MONTH($C21)=U$6,$E21/INDIRECT("F"&$Y21)*INDIRECT("E"&$Y21),"")) ->  | V21: =IF(OR(ISBLANK($C21),$Y21=""),"",IF(MONTH($C21)=V$6,$E21/INDIRECT("F"&$Y21)*INDIRECT("E"&$Y21),"")) ->  | W21: =IF(H21<>100%,"Niet ok","ok") -> Niet ok | X21: 21
B22: Factuurnummer | C22: Factuurdatum | D22: Omschrijving factuur | E22: Factuurbedrag | K22: =IF(OR(ISBLANK($C22),$Y22=""),"",IF(MONTH($C22)=K$6,$E22/INDIRECT("F"&$Y22)*INDIRECT("E"&$Y22),"")) ->  | L22: =IF(OR(ISBLANK($C22),$Y22=""),"",IF(MONTH($C22)=L$6,$E22/INDIRECT("F"&$Y22)*INDIRECT("E"&$Y22),"")) ->  | M22: =IF(OR(ISBLANK($C22),$Y22=""),"",IF(MONTH($C22)=M$6,$E22/INDIRECT("F"&$Y22)*INDIRECT("E"&$Y22),"")) ->  | N22: =IF(OR(ISBLANK($C22),$Y22=""),"",IF(MONTH($C22)=N$6,$E22/INDIRECT("F"&$Y22)*INDIRECT("E"&$Y22),"")) ->  | O22: =IF(OR(ISBLANK($C22),$Y22=""),"",IF(MONTH($C22)=O$6,$E22/INDIRECT("F"&$Y22)*INDIRECT("E"&$Y22),"")) ->  | P22: =IF(OR(ISBLANK($C22),$Y22=""),"",IF(MONTH($C22)=P$6,$E22/INDIRECT("F"&$Y22)*INDIRECT("E"&$Y22),"")) ->  | Q22: =IF(OR(ISBLANK($C22),$Y22=""),"",IF(MONTH($C22)=Q$6,$E22/INDIRECT("F"&$Y22)*INDIRECT("E"&$Y22),"")) ->  | R22: =IF(OR(ISBLANK($C22),$Y22=""),"",IF(MONTH($C22)=R$6,$E22/INDIRECT("F"&$Y22)*INDIRECT("E"&$Y22),"")) ->  | S22: =IF(OR(ISBLANK($C22),$Y22=""),"",IF(MONTH($C22)=S$6,$E22/INDIRECT("F"&$Y22)*INDIRECT("E"&$Y22),"")) ->  | T22: =IF(OR(ISBLANK($C22),$Y22=""),"",IF(MONTH($C22)=T$6,$E22/INDIRECT("F"&$Y22)*INDIRECT("E"&$Y22),"")) ->  | U22: =IF(OR(ISBLANK($C22),$Y22=""),"",IF(MONTH($C22)=U$6,$E22/INDIRECT("F"&$Y22)*INDIRECT("E"&$Y22),"")) ->  | V22: =IF(OR(ISBLANK($C22),$Y22=""),"",IF(MONTH($C22)=V$6,$E22/INDIRECT("F"&$Y22)*INDIRECT("E"&$Y22),"")) ->  | X22: 21
I23: =SUM(K23:V23) -> 0 | K23: =IF(OR(ISBLANK($C23),$Y23=""),"",IF(MONTH($C23)=K$6,$E23/INDIRECT("F"&$Y23)*INDIRECT("E"&$Y23),"")) ->  | L23: =IF(OR(ISBLANK($C23),$Y23=""),"",IF(MONTH($C23)=L$6,$E23/INDIRECT("F"&$Y23)*INDIRECT("E"&$Y23),"")) ->  | M23: =IF(OR(ISBLANK($C23),$Y23=""),"",IF(MONTH($C23)=M$6,$E23/INDIRECT("F"&$Y23)*INDIRECT("E"&$Y23),"")) ->  | N23: =IF(OR(ISBLANK($C23),$Y23=""),"",IF(MONTH($C23)=N$6,$E23/INDIRECT("F"&$Y23)*INDIRECT("E"&$Y23),"")) ->  | O23: =IF(OR(ISBLANK($C23),$Y23=""),"",IF(MONTH($C23)=O$6,$E23/INDIRECT("F"&$Y23)*INDIRECT("E"&$Y23),"")) ->  | P23: =IF(OR(ISBLANK($C23),$Y23=""),"",IF(MONTH($C23)=P$6,$E23/INDIRECT("F"&$Y23)*INDIRECT("E"&$Y23),"")) ->  | Q23: =IF(OR(ISBLANK($C23),$Y23=""),"",IF(MONTH($C23)=Q$6,$E23/INDIRECT("F"&$Y23)*INDIRECT("E"&$Y23),"")) ->  | R23: =IF(OR(ISBLANK($C23),$Y23=""),"",IF(MONTH($C23)=R$6,$E23/INDIRECT("F"&$Y23)*INDIRECT("E"&$Y23),"")) ->  | S23: =IF(OR(ISBLANK($C23),$Y23=""),"",IF(MONTH($C23)=S$6,$E23/INDIRECT("F"&$Y23)*INDIRECT("E"&$Y23),"")) ->  | T23: =IF(OR(ISBLANK($C23),$Y23=""),"",IF(MONTH($C23)=T$6,$E23/INDIRECT("F"&$Y23)*INDIRECT("E"&$Y23),"")) ->  | U23: =IF(OR(ISBLANK($C23),$Y23=""),"",IF(MONTH($C23)=U$6,$E23/INDIRECT("F"&$Y23)*INDIRECT("E"&$Y23),"")) ->  | V23: =IF(OR(ISBLANK($C23),$Y23=""),"",IF(MONTH($C23)=V$6,$E23/INDIRECT("F"&$Y23)*INDIRECT("E"&$Y23),"")) ->  | X23: 21 | Y23: 21
I24: 0 | K24: =IF(OR(ISBLANK($C24),$Y24=""),"",IF(MONTH($C24)=K$6,$E24/INDIRECT("F"&$Y24)*INDIRECT("E"&$Y24),"")) ->  | L24: =IF(OR(ISBLANK($C24),$Y24=""),"",IF(MONTH($C24)=L$6,$E24/INDIRECT("F"&$Y24)*INDIRECT("E"&$Y24),"")) ->  | M24: =IF(OR(ISBLANK($C24),$Y24=""),"",IF(MONTH($C24)=M$6,$E24/INDIRECT("F"&$Y24)*INDIRECT("E"&$Y24),"")) ->  | N24: =IF(OR(ISBLANK($C24),$Y24=""),"",IF(MONTH($C24)=N$6,$E24/INDIRECT("F"&$Y24)*INDIRECT("E"&$Y24),"")) ->  | O24: =IF(OR(ISBLANK($C24),$Y24=""),"",IF(MONTH($C24)=O$6,$E24/INDIRECT("F"&$Y24)*INDIRECT("E"&$Y24),"")) ->  | P24: =IF(OR(ISBLANK($C24),$Y24=""),"",IF(MONTH($C24)=P$6,$E24/INDIRECT("F"&$Y24)*INDIRECT("E"&$Y24),"")) ->  | Q24: =IF(OR(ISBLANK($C24),$Y24=""),"",IF(MONTH($C24)=Q$6,$E24/INDIRECT("F"&$Y24)*INDIRECT("E"&$Y24),"")) ->  | R24: =IF(OR(ISBLANK($C24),$Y24=""),"",IF(MONTH($C24)=R$6,$E24/INDIRECT("F"&$Y24)*INDIRECT("E"&$Y24),"")) ->  | S24: =IF(OR(ISBLANK($C24),$Y24=""),"",IF(MONTH($C24)=S$6,$E24/INDIRECT("F"&$Y24)*INDIRECT("E"&$Y24),"")) ->  | T24: =IF(OR(ISBLANK($C24),$Y24=""),"",IF(MONTH($C24)=T$6,$E24/INDIRECT("F"&$Y24)*INDIRECT("E"&$Y24),"")) ->  | U24: =IF(OR(ISBLANK($C24),$Y24=""),"",IF(MONTH($C24)=U$6,$E24/INDIRECT("F"&$Y24)*INDIRECT("E"&$Y24),"")) ->  | V24: =IF(OR(ISBLANK($C24),$Y24=""),"",IF(MONTH($C24)=V$6,$E24/INDIRECT("F"&$Y24)*INDIRECT("E"&$Y24),"")) ->  | X24: 21 | Y24: 21
I25: 0 | K25: =IF(OR(ISBLANK($C25),$Y25=""),"",IF(MONTH($C25)=K$6,$E25/INDIRECT("F"&$Y25)*INDIRECT("E"&$Y25),"")) ->  | L25: =IF(OR(ISBLANK($C25),$Y25=""),"",IF(MONTH($C25)=L$6,$E25/INDIRECT("F"&$Y25)*INDIRECT("E"&$Y25),"")) ->  | M25: =IF(OR(ISBLANK($C25),$Y25=""),"",IF(MONTH($C25)=M$6,$E25/INDIRECT("F"&$Y25)*INDIRECT("E"&$Y25),"")) ->  | N25: =IF(OR(ISBLANK($C25),$Y25=""),"",IF(MONTH($C25)=N$6,$E25/INDIRECT("F"&$Y25)*INDIRECT("E"&$Y25),"")) ->  | O25: =IF(OR(ISBLANK($C25),$Y25=""),"",IF(MONTH($C25)=O$6,$E25/INDIRECT("F"&$Y25)*INDIRECT("E"&$Y25),"")) ->  | P25: =IF(OR(ISBLANK($C25),$Y25=""),"",IF(MONTH($C25)=P$6,$E25/INDIRECT("F"&$Y25)*INDIRECT("E"&$Y25),"")) ->  | Q25: =IF(OR(ISBLANK($C25),$Y25=""),"",IF(MONTH($C25)=Q$6,$E25/INDIRECT("F"&$Y25)*INDIRECT("E"&$Y25),"")) ->  | R25: =IF(OR(ISBLANK($C25),$Y25=""),"",IF(MONTH($C25)=R$6,$E25/INDIRECT("F"&$Y25)*INDIRECT("E"&$Y25),"")) ->  | S25: =IF(OR(ISBLANK($C25),$Y25=""),"",IF(MONTH($C25)=S$6,$E25/INDIRECT("F"&$Y25)*INDIRECT("E"&$Y25),"")) ->  | T25: =IF(OR(ISBLANK($C25),$Y25=""),"",IF(MONTH($C25)=T$6,$E25/INDIRECT("F"&$Y25)*INDIRECT("E"&$Y25),"")) ->  | U25: =IF(OR(ISBLANK($C25),$Y25=""),"",IF(MONTH($C25)=U$6,$E25/INDIRECT("F"&$Y25)*INDIRECT("E"&$Y25),"")) ->  | V25: =IF(OR(ISBLANK($C25),$Y25=""),"",IF(MONTH($C25)=V$6,$E25/INDIRECT("F"&$Y25)*INDIRECT("E"&$Y25),"")) ->  | X25: 21 | Y25: 21
I26: 0 | K26: =IF(OR(ISBLANK($C26),$Y26=""),"",IF(MONTH($C26)=K$6,$E26/INDIRECT("F"&$Y26)*INDIRECT("E"&$Y26),"")) ->  | L26: =IF(OR(ISBLANK($C26),$Y26=""),"",IF(MONTH($C26)=L$6,$E26/INDIRECT("F"&$Y26)*INDIRECT("E"&$Y26),"")) ->  | M26: =IF(OR(ISBLANK($C26),$Y26=""),"",IF(MONTH($C26)=M$6,$E26/INDIRECT("F"&$Y26)*INDIRECT("E"&$Y26),"")) ->  | N26: =IF(OR(ISBLANK($C26),$Y26=""),"",IF(MONTH($C26)=N$6,$E26/INDIRECT("F"&$Y26)*INDIRECT("E"&$Y26),"")) ->  | O26: =IF(OR(ISBLANK($C26),$Y26=""),"",IF(MONTH($C26)=O$6,$E26/INDIRECT("F"&$Y26)*INDIRECT("E"&$Y26),"")) ->  | P26: =IF(OR(ISBLANK($C26),$Y26=""),"",IF(MONTH($C26)=P$6,$E26/INDIRECT("F"&$Y26)*INDIRECT("E"&$Y26),"")) ->  | Q26: =IF(OR(ISBLANK($C26),$Y26=""),"",IF(MONTH($C26)=Q$6,$E26/INDIRECT("F"&$Y26)*INDIRECT("E"&$Y26),"")) ->  | R26: =IF(OR(ISBLANK($C26),$Y26=""),"",IF(MONTH($C26)=R$6,$E26/INDIRECT("F"&$Y26)*INDIRECT("E"&$Y26),"")) ->  | S26: =IF(OR(ISBLANK($C26),$Y26=""),"",IF(MONTH($C26)=S$6,$E26/INDIRECT("F"&$Y26)*INDIRECT("E"&$Y26),"")) ->  | T26: =IF(OR(ISBLANK($C26),$Y26=""),"",IF(MONTH($C26)=T$6,$E26/INDIRECT("F"&$Y26)*INDIRECT("E"&$Y26),"")) ->  | U26: =IF(OR(ISBLANK($C26),$Y26=""),"",IF(MONTH($C26)=U$6,$E26/INDIRECT("F"&$Y26)*INDIRECT("E"&$Y26),"")) ->  | V26: =IF(OR(ISBLANK($C26),$Y26=""),"",IF(MONTH($C26)=V$6,$E26/INDIRECT("F"&$Y26)*INDIRECT("E"&$Y26),"")) ->  | X26: 21 | Y26: 21
I27: 0 | K27: =IF(OR(ISBLANK($C27),$Y27=""),"",IF(MONTH($C27)=K$6,$E27/INDIRECT("F"&$Y27)*INDIRECT("E"&$Y27),"")) ->  | L27: =IF(OR(ISBLANK($C27),$Y27=""),"",IF(MONTH($C27)=L$6,$E27/INDIRECT("F"&$Y27)*INDIRECT("E"&$Y27),"")) ->  | M27: =IF(OR(ISBLANK($C27),$Y27=""),"",IF(MONTH($C27)=M$6,$E27/INDIRECT("F"&$Y27)*INDIRECT("E"&$Y27),"")) ->  | N27: =IF(OR(ISBLANK($C27),$Y27=""),"",IF(MONTH($C27)=N$6,$E27/INDIRECT("F"&$Y27)*INDIRECT("E"&$Y27),"")) ->  | O27: =IF(OR(ISBLANK($C27),$Y27=""),"",IF(MONTH($C27)=O$6,$E27/INDIRECT("F"&$Y27)*INDIRECT("E"&$Y27),"")) ->  | P27: =IF(OR(ISBLANK($C27),$Y27=""),"",IF(MONTH($C27)=P$6,$E27/INDIRECT("F"&$Y27)*INDIRECT("E"&$Y27),"")) ->  | Q27: =IF(OR(ISBLANK($C27),$Y27=""),"",IF(MONTH($C27)=Q$6,$E27/INDIRECT("F"&$Y27)*INDIRECT("E"&$Y27),"")) ->  | R27: =IF(OR(ISBLANK($C27),$Y27=""),"",IF(MONTH($C27)=R$6,$E27/INDIRECT("F"&$Y27)*INDIRECT("E"&$Y27),"")) ->  | S27: =IF(OR(ISBLANK($C27),$Y27=""),"",IF(MONTH($C27)=S$6,$E27/INDIRECT("F"&$Y27)*INDIRECT("E"&$Y27),"")) ->  | T27: =IF(OR(ISBLANK($C27),$Y27=""),"",IF(MONTH($C27)=T$6,$E27/INDIRECT("F"&$Y27)*INDIRECT("E"&$Y27),"")) ->  | U27: =IF(OR(ISBLANK($C27),$Y27=""),"",IF(MONTH($C27)=U$6,$E27/INDIRECT("F"&$Y27)*INDIRECT("E"&$Y27),"")) ->  | V27: =IF(OR(ISBLANK($C27),$Y27=""),"",IF(MONTH($C27)=V$6,$E27/INDIRECT("F"&$Y27)*INDIRECT("E"&$Y27),"")) ->  | X27: 21 | Y27: 21
I28: 0 | K28: =IF(OR(ISBLANK($C28),$Y28=""),"",IF(MONTH($C28)=K$6,$E28/INDIRECT("F"&$Y28)*INDIRECT("E"&$Y28),"")) ->  | L28: =IF(OR(ISBLANK($C28),$Y28=""),"",IF(MONTH($C28)=L$6,$E28/INDIRECT("F"&$Y28)*INDIRECT("E"&$Y28),"")) ->  | M28: =IF(OR(ISBLANK($C28),$Y28=""),"",IF(MONTH($C28)=M$6,$E28/INDIRECT("F"&$Y28)*INDIRECT("E"&$Y28),"")) ->  | N28: =IF(OR(ISBLANK($C28),$Y28=""),"",IF(MONTH($C28)=N$6,$E28/INDIRECT("F"&$Y28)*INDIRECT("E"&$Y28),"")) ->  | O28: =IF(OR(ISBLANK($C28),$Y28=""),"",IF(MONTH($C28)=O$6,$E28/INDIRECT("F"&$Y28)*INDIRECT("E"&$Y28),"")) ->  | P28: =IF(OR(ISBLANK($C28),$Y28=""),"",IF(MONTH($C28)=P$6,$E28/INDIRECT("F"&$Y28)*INDIRECT("E"&$Y28),"")) ->  | Q28: =IF(OR(ISBLANK($C28),$Y28=""),"",IF(MONTH($C28)=Q$6,$E28/INDIRECT("F"&$Y28)*INDIRECT("E"&$Y28),"")) ->  | R28: =IF(OR(ISBLANK($C28),$Y28=""),"",IF(MONTH($C28)=R$6,$E28/INDIRECT("F"&$Y28)*INDIRECT("E"&$Y28),"")) ->  | S28: =IF(OR(ISBLANK($C28),$Y28=""),"",IF(MONTH($C28)=S$6,$E28/INDIRECT("F"&$Y28)*INDIRECT("E"&$Y28),"")) ->  | T28: =IF(OR(ISBLANK($C28),$Y28=""),"",IF(MONTH($C28)=T$6,$E28/INDIRECT("F"&$Y28)*INDIRECT("E"&$Y28),"")) ->  | U28: =IF(OR(ISBLANK($C28),$Y28=""),"",IF(MONTH($C28)=U$6,$E28/INDIRECT("F"&$Y28)*INDIRECT("E"&$Y28),"")) ->  | V28: =IF(OR(ISBLANK($C28),$Y28=""),"",IF(MONTH($C28)=V$6,$E28/INDIRECT("F"&$Y28)*INDIRECT("E"&$Y28),"")) ->  | X28: 21 | Y28: 21
I29: 0 | K29: =IF(OR(ISBLANK($C29),$Y29=""),"",IF(MONTH($C29)=K$6,$E29/INDIRECT("F"&$Y29)*INDIRECT("E"&$Y29),"")) ->  | L29: =IF(OR(ISBLANK($C29),$Y29=""),"",IF(MONTH($C29)=L$6,$E29/INDIRECT("F"&$Y29)*INDIRECT("E"&$Y29),"")) ->  | M29: =IF(OR(ISBLANK($C29),$Y29=""),"",IF(MONTH($C29)=M$6,$E29/INDIRECT("F"&$Y29)*INDIRECT("E"&$Y29),"")) ->  | N29: =IF(OR(ISBLANK($C29),$Y29=""),"",IF(MONTH($C29)=N$6,$E29/INDIRECT("F"&$Y29)*INDIRECT("E"&$Y29),"")) ->  | O29: =IF(OR(ISBLANK($C29),$Y29=""),"",IF(MONTH($C29)=O$6,$E29/INDIRECT("F"&$Y29)*INDIRECT("E"&$Y29),"")) ->  | P29: =IF(OR(ISBLANK($C29),$Y29=""),"",IF(MONTH($C29)=P$6,$E29/INDIRECT("F"&$Y29)*INDIRECT("E"&$Y29),"")) ->  | Q29: =IF(OR(ISBLANK($C29),$Y29=""),"",IF(MONTH($C29)=Q$6,$E29/INDIRECT("F"&$Y29)*INDIRECT("E"&$Y29),"")) ->  | R29: =IF(OR(ISBLANK($C29),$Y29=""),"",IF(MONTH($C29)=R$6,$E29/INDIRECT("F"&$Y29)*INDIRECT("E"&$Y29),"")) ->  | S29: =IF(OR(ISBLANK($C29),$Y29=""),"",IF(MONTH($C29)=S$6,$E29/INDIRECT("F"&$Y29)*INDIRECT("E"&$Y29),"")) ->  | T29: =IF(OR(ISBLANK($C29),$Y29=""),"",IF(MONTH($C29)=T$6,$E29/INDIRECT("F"&$Y29)*INDIRECT("E"&$Y29),"")) ->  | U29: =IF(OR(ISBLANK($C29),$Y29=""),"",IF(MONTH($C29)=U$6,$E29/INDIRECT("F"&$Y29)*INDIRECT("E"&$Y29),"")) ->  | V29: =IF(OR(ISBLANK($C29),$Y29=""),"",IF(MONTH($C29)=V$6,$E29/INDIRECT("F"&$Y29)*INDIRECT("E"&$Y29),"")) ->  | X29: 21 | Y29: 21
I30: 0 | K30: =IF(OR(ISBLANK($C30),$Y30=""),"",IF(MONTH($C30)=K$6,$E30/INDIRECT("F"&$Y30)*INDIRECT("E"&$Y30),"")) ->  | L30: =IF(OR(ISBLANK($C30),$Y30=""),"",IF(MONTH($C30)=L$6,$E30/INDIRECT("F"&$Y30)*INDIRECT("E"&$Y30),"")) ->  | M30: =IF(OR(ISBLANK($C30),$Y30=""),"",IF(MONTH($C30)=M$6,$E30/INDIRECT("F"&$Y30)*INDIRECT("E"&$Y30),"")) ->  | N30: =IF(OR(ISBLANK($C30),$Y30=""),"",IF(MONTH($C30)=N$6,$E30/INDIRECT("F"&$Y30)*INDIRECT("E"&$Y30),"")) ->  | O30: =IF(OR(ISBLANK($C30),$Y30=""),"",IF(MONTH($C30)=O$6,$E30/INDIRECT("F"&$Y30)*INDIRECT("E"&$Y30),"")) ->  | P30: =IF(OR(ISBLANK($C30),$Y30=""),"",IF(MONTH($C30)=P$6,$E30/INDIRECT("F"&$Y30)*INDIRECT("E"&$Y30),"")) ->  | Q30: =IF(OR(ISBLANK($C30),$Y30=""),"",IF(MONTH($C30)=Q$6,$E30/INDIRECT("F"&$Y30)*INDIRECT("E"&$Y30),"")) ->  | R30: =IF(OR(ISBLANK($C30),$Y30=""),"",IF(MONTH($C30)=R$6,$E30/INDIRECT("F"&$Y30)*INDIRECT("E"&$Y30),"")) ->  | S30: =IF(OR(ISBLANK($C30),$Y30=""),"",IF(MONTH($C30)=S$6,$E30/INDIRECT("F"&$Y30)*INDIRECT("E"&$Y30),"")) ->  | T30: =IF(OR(ISBLANK($C30),$Y30=""),"",IF(MONTH($C30)=T$6,$E30/INDIRECT("F"&$Y30)*INDIRECT("E"&$Y30),"")) ->  | U30: =IF(OR(ISBLANK($C30),$Y30=""),"",IF(MONTH($C30)=U$6,$E30/INDIRECT("F"&$Y30)*INDIRECT("E"&$Y30),"")) ->  | V30: =IF(OR(ISBLANK($C30),$Y30=""),"",IF(MONTH($C30)=V$6,$E30/INDIRECT("F"&$Y30)*INDIRECT("E"&$Y30),"")) ->  | X30: 21 | Y30: 21
I31: 0 | K31: =IF(OR(ISBLANK($C31),$Y31=""),"",IF(MONTH($C31)=K$6,$E31/INDIRECT("F"&$Y31)*INDIRECT("E"&$Y31),"")) ->  | L31: =IF(OR(ISBLANK($C31),$Y31=""),"",IF(MONTH($C31)=L$6,$E31/INDIRECT("F"&$Y31)*INDIRECT("E"&$Y31),"")) ->  | M31: =IF(OR(ISBLANK($C31),$Y31=""),"",IF(MONTH($C31)=M$6,$E31/INDIRECT("F"&$Y31)*INDIRECT("E"&$Y31),"")) ->  | N31: =IF(OR(ISBLANK($C31),$Y31=""),"",IF(MONTH($C31)=N$6,$E31/INDIRECT("F"&$Y31)*INDIRECT("E"&$Y31),"")) ->  | O31: =IF(OR(ISBLANK($C31),$Y31=""),"",IF(MONTH($C31)=O$6,$E31/INDIRECT("F"&$Y31)*INDIRECT("E"&$Y31),"")) ->  | P31: =IF(OR(ISBLANK($C31),$Y31=""),"",IF(MONTH($C31)=P$6,$E31/INDIRECT("F"&$Y31)*INDIRECT("E"&$Y31),"")) ->  | Q31: =IF(OR(ISBLANK($C31),$Y31=""),"",IF(MONTH($C31)=Q$6,$E31/INDIRECT("F"&$Y31)*INDIRECT("E"&$Y31),"")) ->  | R31: =IF(OR(ISBLANK($C31),$Y31=""),"",IF(MONTH($C31)=R$6,$E31/INDIRECT("F"&$Y31)*INDIRECT("E"&$Y31),"")) ->  | S31: =IF(OR(ISBLANK($C31),$Y31=""),"",IF(MONTH($C31)=S$6,$E31/INDIRECT("F"&$Y31)*INDIRECT("E"&$Y31),"")) ->  | T31: =IF(OR(ISBLANK($C31),$Y31=""),"",IF(MONTH($C31)=T$6,$E31/INDIRECT("F"&$Y31)*INDIRECT("E"&$Y31),"")) ->  | U31: =IF(OR(ISBLANK($C31),$Y31=""),"",IF(MONTH($C31)=U$6,$E31/INDIRECT("F"&$Y31)*INDIRECT("E"&$Y31),"")) ->  | V31: =IF(OR(ISBLANK($C31),$Y31=""),"",IF(MONTH($C31)=V$6,$E31/INDIRECT("F"&$Y31)*INDIRECT("E"&$Y31),"")) ->  | X31: 21 | Y31: 21
I32: 0 | K32: =IF(OR(ISBLANK($C32),$Y32=""),"",IF(MONTH($C32)=K$6,$E32/INDIRECT("F"&$Y32)*INDIRECT("E"&$Y32),"")) ->  | L32: =IF(OR(ISBLANK($C32),$Y32=""),"",IF(MONTH($C32)=L$6,$E32/INDIRECT("F"&$Y32)*INDIRECT("E"&$Y32),"")) ->  | M32: =IF(OR(ISBLANK($C32),$Y32=""),"",IF(MONTH($C32)=M$6,$E32/INDIRECT("F"&$Y32)*INDIRECT("E"&$Y32),"")) ->  | N32: =IF(OR(ISBLANK($C32),$Y32=""),"",IF(MONTH($C32)=N$6,$E32/INDIRECT("F"&$Y32)*INDIRECT("E"&$Y32),"")) ->  | O32: =IF(OR(ISBLANK($C32),$Y32=""),"",IF(MONTH($C32)=O$6,$E32/INDIRECT("F"&$Y32)*INDIRECT("E"&$Y32),"")) ->  | P32: =IF(OR(ISBLANK($C32),$Y32=""),"",IF(MONTH($C32)=P$6,$E32/INDIRECT("F"&$Y32)*INDIRECT("E"&$Y32),"")) ->  | Q32: =IF(OR(ISBLANK($C32),$Y32=""),"",IF(MONTH($C32)=Q$6,$E32/INDIRECT("F"&$Y32)*INDIRECT("E"&$Y32),"")) ->  | R32: =IF(OR(ISBLANK($C32),$Y32=""),"",IF(MONTH($C32)=R$6,$E32/INDIRECT("F"&$Y32)*INDIRECT("E"&$Y32),"")) ->  | S32: =IF(OR(ISBLANK($C32),$Y32=""),"",IF(MONTH($C32)=S$6,$E32/INDIRECT("F"&$Y32)*INDIRECT("E"&$Y32),"")) ->  | T32: =IF(OR(ISBLANK($C32),$Y32=""),"",IF(MONTH($C32)=T$6,$E32/INDIRECT("F"&$Y32)*INDIRECT("E"&$Y32),"")) ->  | U32: =IF(OR(ISBLANK($C32),$Y32=""),"",IF(MONTH($C32)=U$6,$E32/INDIRECT("F"&$Y32)*INDIRECT("E"&$Y32),"")) ->  | V32: =IF(OR(ISBLANK($C32),$Y32=""),"",IF(MONTH($C32)=V$6,$E32/INDIRECT("F"&$Y32)*INDIRECT("E"&$Y32),"")) ->  | X32: 21 | Y32: 21
H33: =IFERROR(I33/E33,0) -> 0 | I33: =SUM(I34:J44) -> 0 | K33: =IF(OR(ISBLANK($C33),$Y33=""),"",IF(MONTH($C33)=K$6,$E33/INDIRECT("F"&$Y33)*INDIRECT("E"&$Y33),"")) ->  | L33: =IF(OR(ISBLANK($C33),$Y33=""),"",IF(MONTH($C33)=L$6,$E33/INDIRECT("F"&$Y33)*INDIRECT("E"&$Y33),"")) ->  | M33: =IF(OR(ISBLANK($C33),$Y33=""),"",IF(MONTH($C33)=M$6,$E33/INDIRECT("F"&$Y33)*INDIRECT("E"&$Y33),"")) ->  | N33: =IF(OR(ISBLANK($C33),$Y33=""),"",IF(MONTH($C33)=N$6,$E33/INDIRECT("F"&$Y33)*INDIRECT("E"&$Y33),"")) ->  | O33: =IF(OR(ISBLANK($C33),$Y33=""),"",IF(MONTH($C33)=O$6,$E33/INDIRECT("F"&$Y33)*INDIRECT("E"&$Y33),"")) ->  | P33: =IF(OR(ISBLANK($C33),$Y33=""),"",IF(MONTH($C33)=P$6,$E33/INDIRECT("F"&$Y33)*INDIRECT("E"&$Y33),"")) ->  | Q33: =IF(OR(ISBLANK($C33),$Y33=""),"",IF(MONTH($C33)=Q$6,$E33/INDIRECT("F"&$Y33)*INDIRECT("E"&$Y33),"")) ->  | R33: =IF(OR(ISBLANK($C33),$Y33=""),"",IF(MONTH($C33)=R$6,$E33/INDIRECT("F"&$Y33)*INDIRECT("E"&$Y33),"")) ->  | S33: =IF(OR(ISBLANK($C33),$Y33=""),"",IF(MONTH($C33)=S$6,$E33/INDIRECT("F"&$Y33)*INDIRECT("E"&$Y33),"")) ->  | T33: =IF(OR(ISBLANK($C33),$Y33=""),"",IF(MONTH($C33)=T$6,$E33/INDIRECT("F"&$Y33)*INDIRECT("E"&$Y33),"")) ->  | U33: =IF(OR(ISBLANK($C33),$Y33=""),"",IF(MONTH($C33)=U$6,$E33/INDIRECT("F"&$Y33)*INDIRECT("E"&$Y33),"")) ->  | V33: =IF(OR(ISBLANK($C33),$Y33=""),"",IF(MONTH($C33)=V$6,$E33/INDIRECT("F"&$Y33)*INDIRECT("E"&$Y33),"")) ->  | W33: =IF(H33<>100%,"Niet ok","ok") -> Niet ok | X33: 33
B34: Factuurnummer | C34: Factuurdatum | D34: Omschrijving factuur | E34: Factuurbedrag | K34: =IF(OR(ISBLANK($C34),$Y34=""),"",IF(MONTH($C34)=K$6,$E34/INDIRECT("F"&$Y34)*INDIRECT("E"&$Y34),"")) ->  | L34: =IF(OR(ISBLANK($C34),$Y34=""),"",IF(MONTH($C34)=L$6,$E34/INDIRECT("F"&$Y34)*INDIRECT("E"&$Y34),"")) ->  | M34: =IF(OR(ISBLANK($C34),$Y34=""),"",IF(MONTH($C34)=M$6,$E34/INDIRECT("F"&$Y34)*INDIRECT("E"&$Y34),"")) ->  | N34: =IF(OR(ISBLANK($C34),$Y34=""),"",IF(MONTH($C34)=N$6,$E34/INDIRECT("F"&$Y34)*INDIRECT("E"&$Y34),"")) ->  | O34: =IF(OR(ISBLANK($C34),$Y34=""),"",IF(MONTH($C34)=O$6,$E34/INDIRECT("F"&$Y34)*INDIRECT("E"&$Y34),"")) ->  | P34: =IF(OR(ISBLANK($C34),$Y34=""),"",IF(MONTH($C34)=P$6,$E34/INDIRECT("F"&$Y34)*INDIRECT("E"&$Y34),"")) ->  | Q34: =IF(OR(ISBLANK($C34),$Y34=""),"",IF(MONTH($C34)=Q$6,$E34/INDIRECT("F"&$Y34)*INDIRECT("E"&$Y34),"")) ->  | R34: =IF(OR(ISBLANK($C34),$Y34=""),"",IF(MONTH($C34)=R$6,$E34/INDIRECT("F"&$Y34)*INDIRECT("E"&$Y34),"")) ->  | S34: =IF(OR(ISBLANK($C34),$Y34=""),"",IF(MONTH($C34)=S$6,$E34/INDIRECT("F"&$Y34)*INDIRECT("E"&$Y34),"")) ->  | T34: =IF(OR(ISBLANK($C34),$Y34=""),"",IF(MONTH($C34)=T$6,$E34/INDIRECT("F"&$Y34)*INDIRECT("E"&$Y34),"")) ->  | U34: =IF(OR(ISBLANK($C34),$Y34=""),"",IF(MONTH($C34)=U$6,$E34/INDIRECT("F"&$Y34)*INDIRECT("E"&$Y34),"")) ->  | V34: =IF(OR(ISBLANK($C34),$Y34=""),"",IF(MONTH($C34)=V$6,$E34/INDIRECT("F"&$Y34)*INDIRECT("E"&$Y34),"")) ->  | X34: 33
I35: =SUM(K35:V35) -> 0 | K35: =IF(OR(ISBLANK($C35),$Y35=""),"",IF(MONTH($C35)=K$6,$E35/INDIRECT("F"&$Y35)*INDIRECT("E"&$Y35),"")) ->  | L35: =IF(OR(ISBLANK($C35),$Y35=""),"",IF(MONTH($C35)=L$6,$E35/INDIRECT("F"&$Y35)*INDIRECT("E"&$Y35),"")) ->  | M35: =IF(OR(ISBLANK($C35),$Y35=""),"",IF(MONTH($C35)=M$6,$E35/INDIRECT("F"&$Y35)*INDIRECT("E"&$Y35),"")) ->  | N35: =IF(OR(ISBLANK($C35),$Y35=""),"",IF(MONTH($C35)=N$6,$E35/INDIRECT("F"&$Y35)*INDIRECT("E"&$Y35),"")) ->  | O35: =IF(OR(ISBLANK($C35),$Y35=""),"",IF(MONTH($C35)=O$6,$E35/INDIRECT("F"&$Y35)*INDIRECT("E"&$Y35),"")) ->  | P35: =IF(OR(ISBLANK($C35),$Y35=""),"",IF(MONTH($C35)=P$6,$E35/INDIRECT("F"&$Y35)*INDIRECT("E"&$Y35),"")) ->  | Q35: =IF(OR(ISBLANK($C35),$Y35=""),"",IF(MONTH($C35)=Q$6,$E35/INDIRECT("F"&$Y35)*INDIRECT("E"&$Y35),"")) ->  | R35: =IF(OR(ISBLANK($C35),$Y35=""),"",IF(MONTH($C35)=R$6,$E35/INDIRECT("F"&$Y35)*INDIRECT("E"&$Y35),"")) ->  | S35: =IF(OR(ISBLANK($C35),$Y35=""),"",IF(MONTH($C35)=S$6,$E35/INDIRECT("F"&$Y35)*INDIRECT("E"&$Y35),"")) ->  | T35: =IF(OR(ISBLANK($C35),$Y35=""),"",IF(MONTH($C35)=T$6,$E35/INDIRECT("F"&$Y35)*INDIRECT("E"&$Y35),"")) ->  | U35: =IF(OR(ISBLANK($C35),$Y35=""),"",IF(MONTH($C35)=U$6,$E35/INDIRECT("F"&$Y35)*INDIRECT("E"&$Y35),"")) ->  | V35: =IF(OR(ISBLANK($C35),$Y35=""),"",IF(MONTH($C35)=V$6,$E35/INDIRECT("F"&$Y35)*INDIRECT("E"&$Y35),"")) ->  | X35: 33 | Y35: 33
I36: 0 | K36: =IF(OR(ISBLANK($C36),$Y36=""),"",IF(MONTH($C36)=K$6,$E36/INDIRECT("F"&$Y36)*INDIRECT("E"&$Y36),"")) ->  | L36: =IF(OR(ISBLANK($C36),$Y36=""),"",IF(MONTH($C36)=L$6,$E36/INDIRECT("F"&$Y36)*INDIRECT("E"&$Y36),"")) ->  | M36: =IF(OR(ISBLANK($C36),$Y36=""),"",IF(MONTH($C36)=M$6,$E36/INDIRECT("F"&$Y36)*INDIRECT("E"&$Y36),"")) ->  | N36: =IF(OR(ISBLANK($C36),$Y36=""),"",IF(MONTH($C36)=N$6,$E36/INDIRECT("F"&$Y36)*INDIRECT("E"&$Y36),"")) ->  | O36: =IF(OR(ISBLANK($C36),$Y36=""),"",IF(MONTH($C36)=O$6,$E36/INDIRECT("F"&$Y36)*INDIRECT("E"&$Y36),"")) ->  | P36: =IF(OR(ISBLANK($C36),$Y36=""),"",IF(MONTH($C36)=P$6,$E36/INDIRECT("F"&$Y36)*INDIRECT("E"&$Y36),"")) ->  | Q36: =IF(OR(ISBLANK($C36),$Y36=""),"",IF(MONTH($C36)=Q$6,$E36/INDIRECT("F"&$Y36)*INDIRECT("E"&$Y36),"")) ->  | R36: =IF(OR(ISBLANK($C36),$Y36=""),"",IF(MONTH($C36)=R$6,$E36/INDIRECT("F"&$Y36)*INDIRECT("E"&$Y36),"")) ->  | S36: =IF(OR(ISBLANK($C36),$Y36=""),"",IF(MONTH($C36)=S$6,$E36/INDIRECT("F"&$Y36)*INDIRECT("E"&$Y36),"")) ->  | T36: =IF(OR(ISBLANK($C36),$Y36=""),"",IF(MONTH($C36)=T$6,$E36/INDIRECT("F"&$Y36)*INDIRECT("E"&$Y36),"")) ->  | U36: =IF(OR(ISBLANK($C36),$Y36=""),"",IF(MONTH($C36)=U$6,$E36/INDIRECT("F"&$Y36)*INDIRECT("E"&$Y36),"")) ->  | V36: =IF(OR(ISBLANK($C36),$Y36=""),"",IF(MONTH($C36)=V$6,$E36/INDIRECT("F"&$Y36)*INDIRECT("E"&$Y36),"")) ->  | X36: 33 | Y36: 33
I37: 0 | K37: =IF(OR(ISBLANK($C37),$Y37=""),"",IF(MONTH($C37)=K$6,$E37/INDIRECT("F"&$Y37)*INDIRECT("E"&$Y37),"")) ->  | L37: =IF(OR(ISBLANK($C37),$Y37=""),"",IF(MONTH($C37)=L$6,$E37/INDIRECT("F"&$Y37)*INDIRECT("E"&$Y37),"")) ->  | M37: =IF(OR(ISBLANK($C37),$Y37=""),"",IF(MONTH($C37)=M$6,$E37/INDIRECT("F"&$Y37)*INDIRECT("E"&$Y37),"")) ->  | N37: =IF(OR(ISBLANK($C37),$Y37=""),"",IF(MONTH($C37)=N$6,$E37/INDIRECT("F"&$Y37)*INDIRECT("E"&$Y37),"")) ->  | O37: =IF(OR(ISBLANK($C37),$Y37=""),"",IF(MONTH($C37)=O$6,$E37/INDIRECT("F"&$Y37)*INDIRECT("E"&$Y37),"")) ->  | P37: =IF(OR(ISBLANK($C37),$Y37=""),"",IF(MONTH($C37)=P$6,$E37/INDIRECT("F"&$Y37)*INDIRECT("E"&$Y37),"")) ->  | Q37: =IF(OR(ISBLANK($C37),$Y37=""),"",IF(MONTH($C37)=Q$6,$E37/INDIRECT("F"&$Y37)*INDIRECT("E"&$Y37),"")) ->  | R37: =IF(OR(ISBLANK($C37),$Y37=""),"",IF(MONTH($C37)=R$6,$E37/INDIRECT("F"&$Y37)*INDIRECT("E"&$Y37),"")) ->  | S37: =IF(OR(ISBLANK($C37),$Y37=""),"",IF(MONTH($C37)=S$6,$E37/INDIRECT("F"&$Y37)*INDIRECT("E"&$Y37),"")) ->  | T37: =IF(OR(ISBLANK($C37),$Y37=""),"",IF(MONTH($C37)=T$6,$E37/INDIRECT("F"&$Y37)*INDIRECT("E"&$Y37),"")) ->  | U37: =IF(OR(ISBLANK($C37),$Y37=""),"",IF(MONTH($C37)=U$6,$E37/INDIRECT("F"&$Y37)*INDIRECT("E"&$Y37),"")) ->  | V37: =IF(OR(ISBLANK($C37),$Y37=""),"",IF(MONTH($C37)=V$6,$E37/INDIRECT("F"&$Y37)*INDIRECT("E"&$Y37),"")) ->  | X37: 33 | Y37: 33
I38: 0 | K38: =IF(OR(ISBLANK($C38),$Y38=""),"",IF(MONTH($C38)=K$6,$E38/INDIRECT("F"&$Y38)*INDIRECT("E"&$Y38),"")) ->  | L38: =IF(OR(ISBLANK($C38),$Y38=""),"",IF(MONTH($C38)=L$6,$E38/INDIRECT("F"&$Y38)*INDIRECT("E"&$Y38),"")) ->  | M38: =IF(OR(ISBLANK($C38),$Y38=""),"",IF(MONTH($C38)=M$6,$E38/INDIRECT("F"&$Y38)*INDIRECT("E"&$Y38),"")) ->  | N38: =IF(OR(ISBLANK($C38),$Y38=""),"",IF(MONTH($C38)=N$6,$E38/INDIRECT("F"&$Y38)*INDIRECT("E"&$Y38),"")) ->  | O38: =IF(OR(ISBLANK($C38),$Y38=""),"",IF(MONTH($C38)=O$6,$E38/INDIRECT("F"&$Y38)*INDIRECT("E"&$Y38),"")) ->  | P38: =IF(OR(ISBLANK($C38),$Y38=""),"",IF(MONTH($C38)=P$6,$E38/INDIRECT("F"&$Y38)*INDIRECT("E"&$Y38),"")) ->  | Q38: =IF(OR(ISBLANK($C38),$Y38=""),"",IF(MONTH($C38)=Q$6,$E38/INDIRECT("F"&$Y38)*INDIRECT("E"&$Y38),"")) ->  | R38: =IF(OR(ISBLANK($C38),$Y38=""),"",IF(MONTH($C38)=R$6,$E38/INDIRECT("F"&$Y38)*INDIRECT("E"&$Y38),"")) ->  | S38: =IF(OR(ISBLANK($C38),$Y38=""),"",IF(MONTH($C38)=S$6,$E38/INDIRECT("F"&$Y38)*INDIRECT("E"&$Y38),"")) ->  | T38: =IF(OR(ISBLANK($C38),$Y38=""),"",IF(MONTH($C38)=T$6,$E38/INDIRECT("F"&$Y38)*INDIRECT("E"&$Y38),"")) ->  | U38: =IF(OR(ISBLANK($C38),$Y38=""),"",IF(MONTH($C38)=U$6,$E38/INDIRECT("F"&$Y38)*INDIRECT("E"&$Y38),"")) ->  | V38: =IF(OR(ISBLANK($C38),$Y38=""),"",IF(MONTH($C38)=V$6,$E38/INDIRECT("F"&$Y38)*INDIRECT("E"&$Y38),"")) ->  | X38: 33 | Y38: 33
I39: 0 | K39: =IF(OR(ISBLANK($C39),$Y39=""),"",IF(MONTH($C39)=K$6,$E39/INDIRECT("F"&$Y39)*INDIRECT("E"&$Y39),"")) ->  | L39: =IF(OR(ISBLANK($C39),$Y39=""),"",IF(MONTH($C39)=L$6,$E39/INDIRECT("F"&$Y39)*INDIRECT("E"&$Y39),"")) ->  | M39: =IF(OR(ISBLANK($C39),$Y39=""),"",IF(MONTH($C39)=M$6,$E39/INDIRECT("F"&$Y39)*INDIRECT("E"&$Y39),"")) ->  | N39: =IF(OR(ISBLANK($C39),$Y39=""),"",IF(MONTH($C39)=N$6,$E39/INDIRECT("F"&$Y39)*INDIRECT("E"&$Y39),"")) ->  | O39: =IF(OR(ISBLANK($C39),$Y39=""),"",IF(MONTH($C39)=O$6,$E39/INDIRECT("F"&$Y39)*INDIRECT("E"&$Y39),"")) ->  | P39: =IF(OR(ISBLANK($C39),$Y39=""),"",IF(MONTH($C39)=P$6,$E39/INDIRECT("F"&$Y39)*INDIRECT("E"&$Y39),"")) ->  | Q39: =IF(OR(ISBLANK($C39),$Y39=""),"",IF(MONTH($C39)=Q$6,$E39/INDIRECT("F"&$Y39)*INDIRECT("E"&$Y39),"")) ->  | R39: =IF(OR(ISBLANK($C39),$Y39=""),"",IF(MONTH($C39)=R$6,$E39/INDIRECT("F"&$Y39)*INDIRECT("E"&$Y39),"")) ->  | S39: =IF(OR(ISBLANK($C39),$Y39=""),"",IF(MONTH($C39)=S$6,$E39/INDIRECT("F"&$Y39)*INDIRECT("E"&$Y39),"")) ->  | T39: =IF(OR(ISBLANK($C39),$Y39=""),"",IF(MONTH($C39)=T$6,$E39/INDIRECT("F"&$Y39)*INDIRECT("E"&$Y39),"")) ->  | U39: =IF(OR(ISBLANK($C39),$Y39=""),"",IF(MONTH($C39)=U$6,$E39/INDIRECT("F"&$Y39)*INDIRECT("E"&$Y39),"")) ->  | V39: =IF(OR(ISBLANK($C39),$Y39=""),"",IF(MONTH($C39)=V$6,$E39/INDIRECT("F"&$Y39)*INDIRECT("E"&$Y39),"")) ->  | X39: 33 | Y39: 33
I40: 0 | K40: =IF(OR(ISBLANK($C40),$Y40=""),"",IF(MONTH($C40)=K$6,$E40/INDIRECT("F"&$Y40)*INDIRECT("E"&$Y40),"")) ->  | L40: =IF(OR(ISBLANK($C40),$Y40=""),"",IF(MONTH($C40)=L$6,$E40/INDIRECT("F"&$Y40)*INDIRECT("E"&$Y40),"")) ->  | M40: =IF(OR(ISBLANK($C40),$Y40=""),"",IF(MONTH($C40)=M$6,$E40/INDIRECT("F"&$Y40)*INDIRECT("E"&$Y40),"")) ->  | N40: =IF(OR(ISBLANK($C40),$Y40=""),"",IF(MONTH($C40)=N$6,$E40/INDIRECT("F"&$Y40)*INDIRECT("E"&$Y40),"")) ->  | O40: =IF(OR(ISBLANK($C40),$Y40=""),"",IF(MONTH($C40)=O$6,$E40/INDIRECT("F"&$Y40)*INDIRECT("E"&$Y40),"")) ->  | P40: =IF(OR(ISBLANK($C40),$Y40=""),"",IF(MONTH($C40)=P$6,$E40/INDIRECT("F"&$Y40)*INDIRECT("E"&$Y40),"")) ->  | Q40: =IF(OR(ISBLANK($C40),$Y40=""),"",IF(MONTH($C40)=Q$6,$E40/INDIRECT("F"&$Y40)*INDIRECT("E"&$Y40),"")) ->  | R40: =IF(OR(ISBLANK($C40),$Y40=""),"",IF(MONTH($C40)=R$6,$E40/INDIRECT("F"&$Y40)*INDIRECT("E"&$Y40),"")) ->  | S40: =IF(OR(ISBLANK($C40),$Y40=""),"",IF(MONTH($C40)=S$6,$E40/INDIRECT("F"&$Y40)*INDIRECT("E"&$Y40),"")) ->  | T40: =IF(OR(ISBLANK($C40),$Y40=""),"",IF(MONTH($C40)=T$6,$E40/INDIRECT("F"&$Y40)*INDIRECT("E"&$Y40),"")) ->  | U40: =IF(OR(ISBLANK($C40),$Y40=""),"",IF(MONTH($C40)=U$6,$E40/INDIRECT("F"&$Y40)*INDIRECT("E"&$Y40),"")) ->  | V40: =IF(OR(ISBLANK($C40),$Y40=""),"",IF(MONTH($C40)=V$6,$E40/INDIRECT("F"&$Y40)*INDIRECT("E"&$Y40),"")) ->  | X40: 33 | Y40: 33
I41: 0 | K41: =IF(OR(ISBLANK($C41),$Y41=""),"",IF(MONTH($C41)=K$6,$E41/INDIRECT("F"&$Y41)*INDIRECT("E"&$Y41),"")) ->  | L41: =IF(OR(ISBLANK($C41),$Y41=""),"",IF(MONTH($C41)=L$6,$E41/INDIRECT("F"&$Y41)*INDIRECT("E"&$Y41),"")) ->  | M41: =IF(OR(ISBLANK($C41),$Y41=""),"",IF(MONTH($C41)=M$6,$E41/INDIRECT("F"&$Y41)*INDIRECT("E"&$Y41),"")) ->  | N41: =IF(OR(ISBLANK($C41),$Y41=""),"",IF(MONTH($C41)=N$6,$E41/INDIRECT("F"&$Y41)*INDIRECT("E"&$Y41),"")) ->  | O41: =IF(OR(ISBLANK($C41),$Y41=""),"",IF(MONTH($C41)=O$6,$E41/INDIRECT("F"&$Y41)*INDIRECT("E"&$Y41),"")) ->  | P41: =IF(OR(ISBLANK($C41),$Y41=""),"",IF(MONTH($C41)=P$6,$E41/INDIRECT("F"&$Y41)*INDIRECT("E"&$Y41),"")) ->  | Q41: =IF(OR(ISBLANK($C41),$Y41=""),"",IF(MONTH($C41)=Q$6,$E41/INDIRECT("F"&$Y41)*INDIRECT("E"&$Y41),"")) ->  | R41: =IF(OR(ISBLANK($C41),$Y41=""),"",IF(MONTH($C41)=R$6,$E41/INDIRECT("F"&$Y41)*INDIRECT("E"&$Y41),"")) ->  | S41: =IF(OR(ISBLANK($C41),$Y41=""),"",IF(MONTH($C41)=S$6,$E41/INDIRECT("F"&$Y41)*INDIRECT("E"&$Y41),"")) ->  | T41: =IF(OR(ISBLANK($C41),$Y41=""),"",IF(MONTH($C41)=T$6,$E41/INDIRECT("F"&$Y41)*INDIRECT("E"&$Y41),"")) ->  | U41: =IF(OR(ISBLANK($C41),$Y41=""),"",IF(MONTH($C41)=U$6,$E41/INDIRECT("F"&$Y41)*INDIRECT("E"&$Y41),"")) ->  | V41: =IF(OR(ISBLANK($C41),$Y41=""),"",IF(MONTH($C41)=V$6,$E41/INDIRECT("F"&$Y41)*INDIRECT("E"&$Y41),"")) ->  | X41: 33 | Y41: 33
I42: 0 | K42: =IF(OR(ISBLANK($C42),$Y42=""),"",IF(MONTH($C42)=K$6,$E42/INDIRECT("F"&$Y42)*INDIRECT("E"&$Y42),"")) ->  | L42: =IF(OR(ISBLANK($C42),$Y42=""),"",IF(MONTH($C42)=L$6,$E42/INDIRECT("F"&$Y42)*INDIRECT("E"&$Y42),"")) ->  | M42: =IF(OR(ISBLANK($C42),$Y42=""),"",IF(MONTH($C42)=M$6,$E42/INDIRECT("F"&$Y42)*INDIRECT("E"&$Y42),"")) ->  | N42: =IF(OR(ISBLANK($C42),$Y42=""),"",IF(MONTH($C42)=N$6,$E42/INDIRECT("F"&$Y42)*INDIRECT("E"&$Y42),"")) ->  | O42: =IF(OR(ISBLANK($C42),$Y42=""),"",IF(MONTH($C42)=O$6,$E42/INDIRECT("F"&$Y42)*INDIRECT("E"&$Y42),"")) ->  | P42: =IF(OR(ISBLANK($C42),$Y42=""),"",IF(MONTH($C42)=P$6,$E42/INDIRECT("F"&$Y42)*INDIRECT("E"&$Y42),"")) ->  | Q42: =IF(OR(ISBLANK($C42),$Y42=""),"",IF(MONTH($C42)=Q$6,$E42/INDIRECT("F"&$Y42)*INDIRECT("E"&$Y42),"")) ->  | R42: =IF(OR(ISBLANK($C42),$Y42=""),"",IF(MONTH($C42)=R$6,$E42/INDIRECT("F"&$Y42)*INDIRECT("E"&$Y42),"")) ->  | S42: =IF(OR(ISBLANK($C42),$Y42=""),"",IF(MONTH($C42)=S$6,$E42/INDIRECT("F"&$Y42)*INDIRECT("E"&$Y42),"")) ->  | T42: =IF(OR(ISBLANK($C42),$Y42=""),"",IF(MONTH($C42)=T$6,$E42/INDIRECT("F"&$Y42)*INDIRECT("E"&$Y42),"")) ->  | U42: =IF(OR(ISBLANK($C42),$Y42=""),"",IF(MONTH($C42)=U$6,$E42/INDIRECT("F"&$Y42)*INDIRECT("E"&$Y42),"")) ->  | V42: =IF(OR(ISBLANK($C42),$Y42=""),"",IF(MONTH($C42)=V$6,$E42/INDIRECT("F"&$Y42)*INDIRECT("E"&$Y42),"")) ->  | X42: 33 | Y42: 33
I43: 0 | K43: =IF(OR(ISBLANK($C43),$Y43=""),"",IF(MONTH($C43)=K$6,$E43/INDIRECT("F"&$Y43)*INDIRECT("E"&$Y43),"")) ->  | L43: =IF(OR(ISBLANK($C43),$Y43=""),"",IF(MONTH($C43)=L$6,$E43/INDIRECT("F"&$Y43)*INDIRECT("E"&$Y43),"")) ->  | M43: =IF(OR(ISBLANK($C43),$Y43=""),"",IF(MONTH($C43)=M$6,$E43/INDIRECT("F"&$Y43)*INDIRECT("E"&$Y43),"")) ->  | N43: =IF(OR(ISBLANK($C43),$Y43=""),"",IF(MONTH($C43)=N$6,$E43/INDIRECT("F"&$Y43)*INDIRECT("E"&$Y43),"")) ->  | O43: =IF(OR(ISBLANK($C43),$Y43=""),"",IF(MONTH($C43)=O$6,$E43/INDIRECT("F"&$Y43)*INDIRECT("E"&$Y43),"")) ->  | P43: =IF(OR(ISBLANK($C43),$Y43=""),"",IF(MONTH($C43)=P$6,$E43/INDIRECT("F"&$Y43)*INDIRECT("E"&$Y43),"")) ->  | Q43: =IF(OR(ISBLANK($C43),$Y43=""),"",IF(MONTH($C43)=Q$6,$E43/INDIRECT("F"&$Y43)*INDIRECT("E"&$Y43),"")) ->  | R43: =IF(OR(ISBLANK($C43),$Y43=""),"",IF(MONTH($C43)=R$6,$E43/INDIRECT("F"&$Y43)*INDIRECT("E"&$Y43),"")) ->  | S43: =IF(OR(ISBLANK($C43),$Y43=""),"",IF(MONTH($C43)=S$6,$E43/INDIRECT("F"&$Y43)*INDIRECT("E"&$Y43),"")) ->  | T43: =IF(OR(ISBLANK($C43),$Y43=""),"",IF(MONTH($C43)=T$6,$E43/INDIRECT("F"&$Y43)*INDIRECT("E"&$Y43),"")) ->  | U43: =IF(OR(ISBLANK($C43),$Y43=""),"",IF(MONTH($C43)=U$6,$E43/INDIRECT("F"&$Y43)*INDIRECT("E"&$Y43),"")) ->  | V43: =IF(OR(ISBLANK($C43),$Y43=""),"",IF(MONTH($C43)=V$6,$E43/INDIRECT("F"&$Y43)*INDIRECT("E"&$Y43),"")) ->  | X43: 33 | Y43: 33
I44: 0 | K44: =IF(OR(ISBLANK($C44),$Y44=""),"",IF(MONTH($C44)=K$6,$E44/INDIRECT("F"&$Y44)*INDIRECT("E"&$Y44),"")) ->  | L44: =IF(OR(ISBLANK($C44),$Y44=""),"",IF(MONTH($C44)=L$6,$E44/INDIRECT("F"&$Y44)*INDIRECT("E"&$Y44),"")) ->  | M44: =IF(OR(ISBLANK($C44),$Y44=""),"",IF(MONTH($C44)=M$6,$E44/INDIRECT("F"&$Y44)*INDIRECT("E"&$Y44),"")) ->  | N44: =IF(OR(ISBLANK($C44),$Y44=""),"",IF(MONTH($C44)=N$6,$E44/INDIRECT("F"&$Y44)*INDIRECT("E"&$Y44),"")) ->  | O44: =IF(OR(ISBLANK($C44),$Y44=""),"",IF(MONTH($C44)=O$6,$E44/INDIRECT("F"&$Y44)*INDIRECT("E"&$Y44),"")) ->  | P44: =IF(OR(ISBLANK($C44),$Y44=""),"",IF(MONTH($C44)=P$6,$E44/INDIRECT("F"&$Y44)*INDIRECT("E"&$Y44),"")) ->  | Q44: =IF(OR(ISBLANK($C44),$Y44=""),"",IF(MONTH($C44)=Q$6,$E44/INDIRECT("F"&$Y44)*INDIRECT("E"&$Y44),"")) ->  | R44: =IF(OR(ISBLANK($C44),$Y44=""),"",IF(MONTH($C44)=R$6,$E44/INDIRECT("F"&$Y44)*INDIRECT("E"&$Y44),"")) ->  | S44: =IF(OR(ISBLANK($C44),$Y44=""),"",IF(MONTH($C44)=S$6,$E44/INDIRECT("F"&$Y44)*INDIRECT("E"&$Y44),"")) ->  | T44: =IF(OR(ISBLANK($C44),$Y44=""),"",IF(MONTH($C44)=T$6,$E44/INDIRECT("F"&$Y44)*INDIRECT("E"&$Y44),"")) ->  | U44: =IF(OR(ISBLANK($C44),$Y44=""),"",IF(MONTH($C44)=U$6,$E44/INDIRECT("F"&$Y44)*INDIRECT("E"&$Y44),"")) ->  | V44: =IF(OR(ISBLANK($C44),$Y44=""),"",IF(MONTH($C44)=V$6,$E44/INDIRECT("F"&$Y44)*INDIRECT("E"&$Y44),"")) ->  | X44: 33 | Y44: 33
H45: =IFERROR(I45/E45,0) -> 0 | I45: =SUM(I46:J56) -> 0 | K45: =IF(OR(ISBLANK($C45),$Y45=""),"",IF(MONTH($C45)=K$6,$E45/INDIRECT("F"&$Y45)*INDIRECT("E"&$Y45),"")) ->  | L45: =IF(OR(ISBLANK($C45),$Y45=""),"",IF(MONTH($C45)=L$6,$E45/INDIRECT("F"&$Y45)*INDIRECT("E"&$Y45),"")) ->  | M45: =IF(OR(ISBLANK($C45),$Y45=""),"",IF(MONTH($C45)=M$6,$E45/INDIRECT("F"&$Y45)*INDIRECT("E"&$Y45),"")) ->  | N45: =IF(OR(ISBLANK($C45),$Y45=""),"",IF(MONTH($C45)=N$6,$E45/INDIRECT("F"&$Y45)*INDIRECT("E"&$Y45),"")) ->  | O45: =IF(OR(ISBLANK($C45),$Y45=""),"",IF(MONTH($C45)=O$6,$E45/INDIRECT("F"&$Y45)*INDIRECT("E"&$Y45),"")) ->  | P45: =IF(OR(ISBLANK($C45),$Y45=""),"",IF(MONTH($C45)=P$6,$E45/INDIRECT("F"&$Y45)*INDIRECT("E"&$Y45),"")) ->  | Q45: =IF(OR(ISBLANK($C45),$Y45=""),"",IF(MONTH($C45)=Q$6,$E45/INDIRECT("F"&$Y45)*INDIRECT("E"&$Y45),"")) ->  | R45: =IF(OR(ISBLANK($C45),$Y45=""),"",IF(MONTH($C45)=R$6,$E45/INDIRECT("F"&$Y45)*INDIRECT("E"&$Y45),"")) ->  | S45: =IF(OR(ISBLANK($C45),$Y45=""),"",IF(MONTH($C45)=S$6,$E45/INDIRECT("F"&$Y45)*INDIRECT("E"&$Y45),"")) ->  | T45: =IF(OR(ISBLANK($C45),$Y45=""),"",IF(MONTH($C45)=T$6,$E45/INDIRECT("F"&$Y45)*INDIRECT("E"&$Y45),"")) ->  | U45: =IF(OR(ISBLANK($C45),$Y45=""),"",IF(MONTH($C45)=U$6,$E45/INDIRECT("F"&$Y45)*INDIRECT("E"&$Y45),"")) ->  | V45: =IF(OR(ISBLANK($C45),$Y45=""),"",IF(MONTH($C45)=V$6,$E45/INDIRECT("F"&$Y45)*INDIRECT("E"&$Y45),"")) ->  | W45: =IF(H45<>100%,"Niet ok","ok") -> Niet ok | X45: 45
B46: Factuurnummer | C46: Factuurdatum | D46: Omschrijving factuur | E46: Factuurbedrag | K46: =IF(OR(ISBLANK($C46),$Y46=""),"",IF(MONTH($C46)=K$6,$E46/INDIRECT("F"&$Y46)*INDIRECT("E"&$Y46),"")) ->  | L46: =IF(OR(ISBLANK($C46),$Y46=""),"",IF(MONTH($C46)=L$6,$E46/INDIRECT("F"&$Y46)*INDIRECT("E"&$Y46),"")) ->  | M46: =IF(OR(ISBLANK($C46),$Y46=""),"",IF(MONTH($C46)=M$6,$E46/INDIRECT("F"&$Y46)*INDIRECT("E"&$Y46),"")) ->  | N46: =IF(OR(ISBLANK($C46),$Y46=""),"",IF(MONTH($C46)=N$6,$E46/INDIRECT("F"&$Y46)*INDIRECT("E"&$Y46),"")) ->  | O46: =IF(OR(ISBLANK($C46),$Y46=""),"",IF(MONTH($C46)=O$6,$E46/INDIRECT("F"&$Y46)*INDIRECT("E"&$Y46),"")) ->  | P46: =IF(OR(ISBLANK($C46),$Y46=""),"",IF(MONTH($C46)=P$6,$E46/INDIRECT("F"&$Y46)*INDIRECT("E"&$Y46),"")) ->  | Q46: =IF(OR(ISBLANK($C46),$Y46=""),"",IF(MONTH($C46)=Q$6,$E46/INDIRECT("F"&$Y46)*INDIRECT("E"&$Y46),"")) ->  | R46: =IF(OR(ISBLANK($C46),$Y46=""),"",IF(MONTH($C46)=R$6,$E46/INDIRECT("F"&$Y46)*INDIRECT("E"&$Y46),"")) ->  | S46: =IF(OR(ISBLANK($C46),$Y46=""),"",IF(MONTH($C46)=S$6,$E46/INDIRECT("F"&$Y46)*INDIRECT("E"&$Y46),"")) ->  | T46: =IF(OR(ISBLANK($C46),$Y46=""),"",IF(MONTH($C46)=T$6,$E46/INDIRECT("F"&$Y46)*INDIRECT("E"&$Y46),"")) ->  | U46: =IF(OR(ISBLANK($C46),$Y46=""),"",IF(MONTH($C46)=U$6,$E46/INDIRECT("F"&$Y46)*INDIRECT("E"&$Y46),"")) ->  | V46: =IF(OR(ISBLANK($C46),$Y46=""),"",IF(MONTH($C46)=V$6,$E46/INDIRECT("F"&$Y46)*INDIRECT("E"&$Y46),"")) ->  | X46: 45
I47: =SUM(K47:V47) -> 0 | K47: =IF(OR(ISBLANK($C47),$Y47=""),"",IF(MONTH($C47)=K$6,$E47/INDIRECT("F"&$Y47)*INDIRECT("E"&$Y47),"")) ->  | L47: =IF(OR(ISBLANK($C47),$Y47=""),"",IF(MONTH($C47)=L$6,$E47/INDIRECT("F"&$Y47)*INDIRECT("E"&$Y47),"")) ->  | M47: =IF(OR(ISBLANK($C47),$Y47=""),"",IF(MONTH($C47)=M$6,$E47/INDIRECT("F"&$Y47)*INDIRECT("E"&$Y47),"")) ->  | N47: =IF(OR(ISBLANK($C47),$Y47=""),"",IF(MONTH($C47)=N$6,$E47/INDIRECT("F"&$Y47)*INDIRECT("E"&$Y47),"")) ->  | O47: =IF(OR(ISBLANK($C47),$Y47=""),"",IF(MONTH($C47)=O$6,$E47/INDIRECT("F"&$Y47)*INDIRECT("E"&$Y47),"")) ->  | P47: =IF(OR(ISBLANK($C47),$Y47=""),"",IF(MONTH($C47)=P$6,$E47/INDIRECT("F"&$Y47)*INDIRECT("E"&$Y47),"")) ->  | Q47: =IF(OR(ISBLANK($C47),$Y47=""),"",IF(MONTH($C47)=Q$6,$E47/INDIRECT("F"&$Y47)*INDIRECT("E"&$Y47),"")) ->  | R47: =IF(OR(ISBLANK($C47),$Y47=""),"",IF(MONTH($C47)=R$6,$E47/INDIRECT("F"&$Y47)*INDIRECT("E"&$Y47),"")) ->  | S47: =IF(OR(ISBLANK($C47),$Y47=""),"",IF(MONTH($C47)=S$6,$E47/INDIRECT("F"&$Y47)*INDIRECT("E"&$Y47),"")) ->  | T47: =IF(OR(ISBLANK($C47),$Y47=""),"",IF(MONTH($C47)=T$6,$E47/INDIRECT("F"&$Y47)*INDIRECT("E"&$Y47),"")) ->  | U47: =IF(OR(ISBLANK($C47),$Y47=""),"",IF(MONTH($C47)=U$6,$E47/INDIRECT("F"&$Y47)*INDIRECT("E"&$Y47),"")) ->  | V47: =IF(OR(ISBLANK($C47),$Y47=""),"",IF(MONTH($C47)=V$6,$E47/INDIRECT("F"&$Y47)*INDIRECT("E"&$Y47),"")) ->  | X47: 45 | Y47: 45
I48: 0 | K48: =IF(OR(ISBLANK($C48),$Y48=""),"",IF(MONTH($C48)=K$6,$E48/INDIRECT("F"&$Y48)*INDIRECT("E"&$Y48),"")) ->  | L48: =IF(OR(ISBLANK($C48),$Y48=""),"",IF(MONTH($C48)=L$6,$E48/INDIRECT("F"&$Y48)*INDIRECT("E"&$Y48),"")) ->  | M48: =IF(OR(ISBLANK($C48),$Y48=""),"",IF(MONTH($C48)=M$6,$E48/INDIRECT("F"&$Y48)*INDIRECT("E"&$Y48),"")) ->  | N48: =IF(OR(ISBLANK($C48),$Y48=""),"",IF(MONTH($C48)=N$6,$E48/INDIRECT("F"&$Y48)*INDIRECT("E"&$Y48),"")) ->  | O48: =IF(OR(ISBLANK($C48),$Y48=""),"",IF(MONTH($C48)=O$6,$E48/INDIRECT("F"&$Y48)*INDIRECT("E"&$Y48),"")) ->  | P48: =IF(OR(ISBLANK($C48),$Y48=""),"",IF(MONTH($C48)=P$6,$E48/INDIRECT("F"&$Y48)*INDIRECT("E"&$Y48),"")) ->  | Q48: =IF(OR(ISBLANK($C48),$Y48=""),"",IF(MONTH($C48)=Q$6,$E48/INDIRECT("F"&$Y48)*INDIRECT("E"&$Y48),"")) ->  | R48: =IF(OR(ISBLANK($C48),$Y48=""),"",IF(MONTH($C48)=R$6,$E48/INDIRECT("F"&$Y48)*INDIRECT("E"&$Y48),"")) ->  | S48: =IF(OR(ISBLANK($C48),$Y48=""),"",IF(MONTH($C48)=S$6,$E48/INDIRECT("F"&$Y48)*INDIRECT("E"&$Y48),"")) ->  | T48: =IF(OR(ISBLANK($C48),$Y48=""),"",IF(MONTH($C48)=T$6,$E48/INDIRECT("F"&$Y48)*INDIRECT("E"&$Y48),"")) ->  | U48: =IF(OR(ISBLANK($C48),$Y48=""),"",IF(MONTH($C48)=U$6,$E48/INDIRECT("F"&$Y48)*INDIRECT("E"&$Y48),"")) ->  | V48: =IF(OR(ISBLANK($C48),$Y48=""),"",IF(MONTH($C48)=V$6,$E48/INDIRECT("F"&$Y48)*INDIRECT("E"&$Y48),"")) ->  | X48: 45 | Y48: 45
I49: 0 | K49: =IF(OR(ISBLANK($C49),$Y49=""),"",IF(MONTH($C49)=K$6,$E49/INDIRECT("F"&$Y49)*INDIRECT("E"&$Y49),"")) ->  | L49: =IF(OR(ISBLANK($C49),$Y49=""),"",IF(MONTH($C49)=L$6,$E49/INDIRECT("F"&$Y49)*INDIRECT("E"&$Y49),"")) ->  | M49: =IF(OR(ISBLANK($C49),$Y49=""),"",IF(MONTH($C49)=M$6,$E49/INDIRECT("F"&$Y49)*INDIRECT("E"&$Y49),"")) ->  | N49: =IF(OR(ISBLANK($C49),$Y49=""),"",IF(MONTH($C49)=N$6,$E49/INDIRECT("F"&$Y49)*INDIRECT("E"&$Y49),"")) ->  | O49: =IF(OR(ISBLANK($C49),$Y49=""),"",IF(MONTH($C49)=O$6,$E49/INDIRECT("F"&$Y49)*INDIRECT("E"&$Y49),"")) ->  | P49: =IF(OR(ISBLANK($C49),$Y49=""),"",IF(MONTH($C49)=P$6,$E49/INDIRECT("F"&$Y49)*INDIRECT("E"&$Y49),"")) ->  | Q49: =IF(OR(ISBLANK($C49),$Y49=""),"",IF(MONTH($C49)=Q$6,$E49/INDIRECT("F"&$Y49)*INDIRECT("E"&$Y49),"")) ->  | R49: =IF(OR(ISBLANK($C49),$Y49=""),"",IF(MONTH($C49)=R$6,$E49/INDIRECT("F"&$Y49)*INDIRECT("E"&$Y49),"")) ->  | S49: =IF(OR(ISBLANK($C49),$Y49=""),"",IF(MONTH($C49)=S$6,$E49/INDIRECT("F"&$Y49)*INDIRECT("E"&$Y49),"")) ->  | T49: =IF(OR(ISBLANK($C49),$Y49=""),"",IF(MONTH($C49)=T$6,$E49/INDIRECT("F"&$Y49)*INDIRECT("E"&$Y49),"")) ->  | U49: =IF(OR(ISBLANK($C49),$Y49=""),"",IF(MONTH($C49)=U$6,$E49/INDIRECT("F"&$Y49)*INDIRECT("E"&$Y49),"")) ->  | V49: =IF(OR(ISBLANK($C49),$Y49=""),"",IF(MONTH($C49)=V$6,$E49/INDIRECT("F"&$Y49)*INDIRECT("E"&$Y49),"")) ->  | X49: 45 | Y49: 45
I50: 0 | K50: =IF(OR(ISBLANK($C50),$Y50=""),"",IF(MONTH($C50)=K$6,$E50/INDIRECT("F"&$Y50)*INDIRECT("E"&$Y50),"")) ->  | L50: =IF(OR(ISBLANK($C50),$Y50=""),"",IF(MONTH($C50)=L$6,$E50/INDIRECT("F"&$Y50)*INDIRECT("E"&$Y50),"")) ->  | M50: =IF(OR(ISBLANK($C50),$Y50=""),"",IF(MONTH($C50)=M$6,$E50/INDIRECT("F"&$Y50)*INDIRECT("E"&$Y50),"")) ->  | N50: =IF(OR(ISBLANK($C50),$Y50=""),"",IF(MONTH($C50)=N$6,$E50/INDIRECT("F"&$Y50)*INDIRECT("E"&$Y50),"")) ->  | O50: =IF(OR(ISBLANK($C50),$Y50=""),"",IF(MONTH($C50)=O$6,$E50/INDIRECT("F"&$Y50)*INDIRECT("E"&$Y50),"")) ->  | P50: =IF(OR(ISBLANK($C50),$Y50=""),"",IF(MONTH($C50)=P$6,$E50/INDIRECT("F"&$Y50)*INDIRECT("E"&$Y50),"")) ->  | Q50: =IF(OR(ISBLANK($C50),$Y50=""),"",IF(MONTH($C50)=Q$6,$E50/INDIRECT("F"&$Y50)*INDIRECT("E"&$Y50),"")) ->  | R50: =IF(OR(ISBLANK($C50),$Y50=""),"",IF(MONTH($C50)=R$6,$E50/INDIRECT("F"&$Y50)*INDIRECT("E"&$Y50),"")) ->  | S50: =IF(OR(ISBLANK($C50),$Y50=""),"",IF(MONTH($C50)=S$6,$E50/INDIRECT("F"&$Y50)*INDIRECT("E"&$Y50),"")) ->  | T50: =IF(OR(ISBLANK($C50),$Y50=""),"",IF(MONTH($C50)=T$6,$E50/INDIRECT("F"&$Y50)*INDIRECT("E"&$Y50),"")) ->  | U50: =IF(OR(ISBLANK($C50),$Y50=""),"",IF(MONTH($C50)=U$6,$E50/INDIRECT("F"&$Y50)*INDIRECT("E"&$Y50),"")) ->  | V50: =IF(OR(ISBLANK($C50),$Y50=""),"",IF(MONTH($C50)=V$6,$E50/INDIRECT("F"&$Y50)*INDIRECT("E"&$Y50),"")) ->  | X50: 45 | Y50: 45
I51: 0 | K51: =IF(OR(ISBLANK($C51),$Y51=""),"",IF(MONTH($C51)=K$6,$E51/INDIRECT("F"&$Y51)*INDIRECT("E"&$Y51),"")) ->  | L51: =IF(OR(ISBLANK($C51),$Y51=""),"",IF(MONTH($C51)=L$6,$E51/INDIRECT("F"&$Y51)*INDIRECT("E"&$Y51),"")) ->  | M51: =IF(OR(ISBLANK($C51),$Y51=""),"",IF(MONTH($C51)=M$6,$E51/INDIRECT("F"&$Y51)*INDIRECT("E"&$Y51),"")) ->  | N51: =IF(OR(ISBLANK($C51),$Y51=""),"",IF(MONTH($C51)=N$6,$E51/INDIRECT("F"&$Y51)*INDIRECT("E"&$Y51),"")) ->  | O51: =IF(OR(ISBLANK($C51),$Y51=""),"",IF(MONTH($C51)=O$6,$E51/INDIRECT("F"&$Y51)*INDIRECT("E"&$Y51),"")) ->  | P51: =IF(OR(ISBLANK($C51),$Y51=""),"",IF(MONTH($C51)=P$6,$E51/INDIRECT("F"&$Y51)*INDIRECT("E"&$Y51),"")) ->  | Q51: =IF(OR(ISBLANK($C51),$Y51=""),"",IF(MONTH($C51)=Q$6,$E51/INDIRECT("F"&$Y51)*INDIRECT("E"&$Y51),"")) ->  | R51: =IF(OR(ISBLANK($C51),$Y51=""),"",IF(MONTH($C51)=R$6,$E51/INDIRECT("F"&$Y51)*INDIRECT("E"&$Y51),"")) ->  | S51: =IF(OR(ISBLANK($C51),$Y51=""),"",IF(MONTH($C51)=S$6,$E51/INDIRECT("F"&$Y51)*INDIRECT("E"&$Y51),"")) ->  | T51: =IF(OR(ISBLANK($C51),$Y51=""),"",IF(MONTH($C51)=T$6,$E51/INDIRECT("F"&$Y51)*INDIRECT("E"&$Y51),"")) ->  | U51: =IF(OR(ISBLANK($C51),$Y51=""),"",IF(MONTH($C51)=U$6,$E51/INDIRECT("F"&$Y51)*INDIRECT("E"&$Y51),"")) ->  | V51: =IF(OR(ISBLANK($C51),$Y51=""),"",IF(MONTH($C51)=V$6,$E51/INDIRECT("F"&$Y51)*INDIRECT("E"&$Y51),"")) ->  | X51: 45 | Y51: 45
I52: 0 | K52: =IF(OR(ISBLANK($C52),$Y52=""),"",IF(MONTH($C52)=K$6,$E52/INDIRECT("F"&$Y52)*INDIRECT("E"&$Y52),"")) ->  | L52: =IF(OR(ISBLANK($C52),$Y52=""),"",IF(MONTH($C52)=L$6,$E52/INDIRECT("F"&$Y52)*INDIRECT("E"&$Y52),"")) ->  | M52: =IF(OR(ISBLANK($C52),$Y52=""),"",IF(MONTH($C52)=M$6,$E52/INDIRECT("F"&$Y52)*INDIRECT("E"&$Y52),"")) ->  | N52: =IF(OR(ISBLANK($C52),$Y52=""),"",IF(MONTH($C52)=N$6,$E52/INDIRECT("F"&$Y52)*INDIRECT("E"&$Y52),"")) ->  | O52: =IF(OR(ISBLANK($C52),$Y52=""),"",IF(MONTH($C52)=O$6,$E52/INDIRECT("F"&$Y52)*INDIRECT("E"&$Y52),"")) ->  | P52: =IF(OR(ISBLANK($C52),$Y52=""),"",IF(MONTH($C52)=P$6,$E52/INDIRECT("F"&$Y52)*INDIRECT("E"&$Y52),"")) ->  | Q52: =IF(OR(ISBLANK($C52),$Y52=""),"",IF(MONTH($C52)=Q$6,$E52/INDIRECT("F"&$Y52)*INDIRECT("E"&$Y52),"")) ->  | R52: =IF(OR(ISBLANK($C52),$Y52=""),"",IF(MONTH($C52)=R$6,$E52/INDIRECT("F"&$Y52)*INDIRECT("E"&$Y52),"")) ->  | S52: =IF(OR(ISBLANK($C52),$Y52=""),"",IF(MONTH($C52)=S$6,$E52/INDIRECT("F"&$Y52)*INDIRECT("E"&$Y52),"")) ->  | T52: =IF(OR(ISBLANK($C52),$Y52=""),"",IF(MONTH($C52)=T$6,$E52/INDIRECT("F"&$Y52)*INDIRECT("E"&$Y52),"")) ->  | U52: =IF(OR(ISBLANK($C52),$Y52=""),"",IF(MONTH($C52)=U$6,$E52/INDIRECT("F"&$Y52)*INDIRECT("E"&$Y52),"")) ->  | V52: =IF(OR(ISBLANK($C52),$Y52=""),"",IF(MONTH($C52)=V$6,$E52/INDIRECT("F"&$Y52)*INDIRECT("E"&$Y52),"")) ->  | X52: 45 | Y52: 45
I53: 0 | K53: =IF(OR(ISBLANK($C53),$Y53=""),"",IF(MONTH($C53)=K$6,$E53/INDIRECT("F"&$Y53)*INDIRECT("E"&$Y53),"")) ->  | L53: =IF(OR(ISBLANK($C53),$Y53=""),"",IF(MONTH($C53)=L$6,$E53/INDIRECT("F"&$Y53)*INDIRECT("E"&$Y53),"")) ->  | M53: =IF(OR(ISBLANK($C53),$Y53=""),"",IF(MONTH($C53)=M$6,$E53/INDIRECT("F"&$Y53)*INDIRECT("E"&$Y53),"")) ->  | N53: =IF(OR(ISBLANK($C53),$Y53=""),"",IF(MONTH($C53)=N$6,$E53/INDIRECT("F"&$Y53)*INDIRECT("E"&$Y53),"")) ->  | O53: =IF(OR(ISBLANK($C53),$Y53=""),"",IF(MONTH($C53)=O$6,$E53/INDIRECT("F"&$Y53)*INDIRECT("E"&$Y53),"")) ->  | P53: =IF(OR(ISBLANK($C53),$Y53=""),"",IF(MONTH($C53)=P$6,$E53/INDIRECT("F"&$Y53)*INDIRECT("E"&$Y53),"")) ->  | Q53: =IF(OR(ISBLANK($C53),$Y53=""),"",IF(MONTH($C53)=Q$6,$E53/INDIRECT("F"&$Y53)*INDIRECT("E"&$Y53),"")) ->  | R53: =IF(OR(ISBLANK($C53),$Y53=""),"",IF(MONTH($C53)=R$6,$E53/INDIRECT("F"&$Y53)*INDIRECT("E"&$Y53),"")) ->  | S53: =IF(OR(ISBLANK($C53),$Y53=""),"",IF(MONTH($C53)=S$6,$E53/INDIRECT("F"&$Y53)*INDIRECT("E"&$Y53),"")) ->  | T53: =IF(OR(ISBLANK($C53),$Y53=""),"",IF(MONTH($C53)=T$6,$E53/INDIRECT("F"&$Y53)*INDIRECT("E"&$Y53),"")) ->  | U53: =IF(OR(ISBLANK($C53),$Y53=""),"",IF(MONTH($C53)=U$6,$E53/INDIRECT("F"&$Y53)*INDIRECT("E"&$Y53),"")) ->  | V53: =IF(OR(ISBLANK($C53),$Y53=""),"",IF(MONTH($C53)=V$6,$E53/INDIRECT("F"&$Y53)*INDIRECT("E"&$Y53),"")) ->  | X53: 45 | Y53: 45
I54: 0 | K54: =IF(OR(ISBLANK($C54),$Y54=""),"",IF(MONTH($C54)=K$6,$E54/INDIRECT("F"&$Y54)*INDIRECT("E"&$Y54),"")) ->  | L54: =IF(OR(ISBLANK($C54),$Y54=""),"",IF(MONTH($C54)=L$6,$E54/INDIRECT("F"&$Y54)*INDIRECT("E"&$Y54),"")) ->  | M54: =IF(OR(ISBLANK($C54),$Y54=""),"",IF(MONTH($C54)=M$6,$E54/INDIRECT("F"&$Y54)*INDIRECT("E"&$Y54),"")) ->  | N54: =IF(OR(ISBLANK($C54),$Y54=""),"",IF(MONTH($C54)=N$6,$E54/INDIRECT("F"&$Y54)*INDIRECT("E"&$Y54),"")) ->  | O54: =IF(OR(ISBLANK($C54),$Y54=""),"",IF(MONTH($C54)=O$6,$E54/INDIRECT("F"&$Y54)*INDIRECT("E"&$Y54),"")) ->  | P54: =IF(OR(ISBLANK($C54),$Y54=""),"",IF(MONTH($C54)=P$6,$E54/INDIRECT("F"&$Y54)*INDIRECT("E"&$Y54),"")) ->  | Q54: =IF(OR(ISBLANK($C54),$Y54=""),"",IF(MONTH($C54)=Q$6,$E54/INDIRECT("F"&$Y54)*INDIRECT("E"&$Y54),"")) ->  | R54: =IF(OR(ISBLANK($C54),$Y54=""),"",IF(MONTH($C54)=R$6,$E54/INDIRECT("F"&$Y54)*INDIRECT("E"&$Y54),"")) ->  | S54: =IF(OR(ISBLANK($C54),$Y54=""),"",IF(MONTH($C54)=S$6,$E54/INDIRECT("F"&$Y54)*INDIRECT("E"&$Y54),"")) ->  | T54: =IF(OR(ISBLANK($C54),$Y54=""),"",IF(MONTH($C54)=T$6,$E54/INDIRECT("F"&$Y54)*INDIRECT("E"&$Y54),"")) ->  | U54: =IF(OR(ISBLANK($C54),$Y54=""),"",IF(MONTH($C54)=U$6,$E54/INDIRECT("F"&$Y54)*INDIRECT("E"&$Y54),"")) ->  | V54: =IF(OR(ISBLANK($C54),$Y54=""),"",IF(MONTH($C54)=V$6,$E54/INDIRECT("F"&$Y54)*INDIRECT("E"&$Y54),"")) ->  | X54: 45 | Y54: 45
I55: 0 | K55: =IF(OR(ISBLANK($C55),$Y55=""),"",IF(MONTH($C55)=K$6,$E55/INDIRECT("F"&$Y55)*INDIRECT("E"&$Y55),"")) ->  | L55: =IF(OR(ISBLANK($C55),$Y55=""),"",IF(MONTH($C55)=L$6,$E55/INDIRECT("F"&$Y55)*INDIRECT("E"&$Y55),"")) ->  | M55: =IF(OR(ISBLANK($C55),$Y55=""),"",IF(MONTH($C55)=M$6,$E55/INDIRECT("F"&$Y55)*INDIRECT("E"&$Y55),"")) ->  | N55: =IF(OR(ISBLANK($C55),$Y55=""),"",IF(MONTH($C55)=N$6,$E55/INDIRECT("F"&$Y55)*INDIRECT("E"&$Y55),"")) ->  | O55: =IF(OR(ISBLANK($C55),$Y55=""),"",IF(MONTH($C55)=O$6,$E55/INDIRECT("F"&$Y55)*INDIRECT("E"&$Y55),"")) ->  | P55: =IF(OR(ISBLANK($C55),$Y55=""),"",IF(MONTH($C55)=P$6,$E55/INDIRECT("F"&$Y55)*INDIRECT("E"&$Y55),"")) ->  | Q55: =IF(OR(ISBLANK($C55),$Y55=""),"",IF(MONTH($C55)=Q$6,$E55/INDIRECT("F"&$Y55)*INDIRECT("E"&$Y55),"")) ->  | R55: =IF(OR(ISBLANK($C55),$Y55=""),"",IF(MONTH($C55)=R$6,$E55/INDIRECT("F"&$Y55)*INDIRECT("E"&$Y55),"")) ->  | S55: =IF(OR(ISBLANK($C55),$Y55=""),"",IF(MONTH($C55)=S$6,$E55/INDIRECT("F"&$Y55)*INDIRECT("E"&$Y55),"")) ->  | T55: =IF(OR(ISBLANK($C55),$Y55=""),"",IF(MONTH($C55)=T$6,$E55/INDIRECT("F"&$Y55)*INDIRECT("E"&$Y55),"")) ->  | U55: =IF(OR(ISBLANK($C55),$Y55=""),"",IF(MONTH($C55)=U$6,$E55/INDIRECT("F"&$Y55)*INDIRECT("E"&$Y55),"")) ->  | V55: =IF(OR(ISBLANK($C55),$Y55=""),"",IF(MONTH($C55)=V$6,$E55/INDIRECT("F"&$Y55)*INDIRECT("E"&$Y55),"")) ->  | X55: 45 | Y55: 45
I56: 0 | K56: =IF(OR(ISBLANK($C56),$Y56=""),"",IF(MONTH($C56)=K$6,$E56/INDIRECT("F"&$Y56)*INDIRECT("E"&$Y56),"")) ->  | L56: =IF(OR(ISBLANK($C56),$Y56=""),"",IF(MONTH($C56)=L$6,$E56/INDIRECT("F"&$Y56)*INDIRECT("E"&$Y56),"")) ->  | M56: =IF(OR(ISBLANK($C56),$Y56=""),"",IF(MONTH($C56)=M$6,$E56/INDIRECT("F"&$Y56)*INDIRECT("E"&$Y56),"")) ->  | N56: =IF(OR(ISBLANK($C56),$Y56=""),"",IF(MONTH($C56)=N$6,$E56/INDIRECT("F"&$Y56)*INDIRECT("E"&$Y56),"")) ->  | O56: =IF(OR(ISBLANK($C56),$Y56=""),"",IF(MONTH($C56)=O$6,$E56/INDIRECT("F"&$Y56)*INDIRECT("E"&$Y56),"")) ->  | P56: =IF(OR(ISBLANK($C56),$Y56=""),"",IF(MONTH($C56)=P$6,$E56/INDIRECT("F"&$Y56)*INDIRECT("E"&$Y56),"")) ->  | Q56: =IF(OR(ISBLANK($C56),$Y56=""),"",IF(MONTH($C56)=Q$6,$E56/INDIRECT("F"&$Y56)*INDIRECT("E"&$Y56),"")) ->  | R56: =IF(OR(ISBLANK($C56),$Y56=""),"",IF(MONTH($C56)=R$6,$E56/INDIRECT("F"&$Y56)*INDIRECT("E"&$Y56),"")) ->  | S56: =IF(OR(ISBLANK($C56),$Y56=""),"",IF(MONTH($C56)=S$6,$E56/INDIRECT("F"&$Y56)*INDIRECT("E"&$Y56),"")) ->  | T56: =IF(OR(ISBLANK($C56),$Y56=""),"",IF(MONTH($C56)=T$6,$E56/INDIRECT("F"&$Y56)*INDIRECT("E"&$Y56),"")) ->  | U56: =IF(OR(ISBLANK($C56),$Y56=""),"",IF(MONTH($C56)=U$6,$E56/INDIRECT("F"&$Y56)*INDIRECT("E"&$Y56),"")) ->  | V56: =IF(OR(ISBLANK($C56),$Y56=""),"",IF(MONTH($C56)=V$6,$E56/INDIRECT("F"&$Y56)*INDIRECT("E"&$Y56),"")) ->  | X56: 45 | Y56: 45
H57: =IFERROR(I57/E57,0) -> 0 | I57: =SUM(I58:J68) -> 0 | K57: =IF(OR(ISBLANK($C57),$Y57=""),"",IF(MONTH($C57)=K$6,$E57/INDIRECT("F"&$Y57)*INDIRECT("E"&$Y57),"")) ->  | L57: =IF(OR(ISBLANK($C57),$Y57=""),"",IF(MONTH($C57)=L$6,$E57/INDIRECT("F"&$Y57)*INDIRECT("E"&$Y57),"")) ->  | M57: =IF(OR(ISBLANK($C57),$Y57=""),"",IF(MONTH($C57)=M$6,$E57/INDIRECT("F"&$Y57)*INDIRECT("E"&$Y57),"")) ->  | N57: =IF(OR(ISBLANK($C57),$Y57=""),"",IF(MONTH($C57)=N$6,$E57/INDIRECT("F"&$Y57)*INDIRECT("E"&$Y57),"")) ->  | O57: =IF(OR(ISBLANK($C57),$Y57=""),"",IF(MONTH($C57)=O$6,$E57/INDIRECT("F"&$Y57)*INDIRECT("E"&$Y57),"")) ->  | P57: =IF(OR(ISBLANK($C57),$Y57=""),"",IF(MONTH($C57)=P$6,$E57/INDIRECT("F"&$Y57)*INDIRECT("E"&$Y57),"")) ->  | Q57: =IF(OR(ISBLANK($C57),$Y57=""),"",IF(MONTH($C57)=Q$6,$E57/INDIRECT("F"&$Y57)*INDIRECT("E"&$Y57),"")) ->  | R57: =IF(OR(ISBLANK($C57),$Y57=""),"",IF(MONTH($C57)=R$6,$E57/INDIRECT("F"&$Y57)*INDIRECT("E"&$Y57),"")) ->  | S57: =IF(OR(ISBLANK($C57),$Y57=""),"",IF(MONTH($C57)=S$6,$E57/INDIRECT("F"&$Y57)*INDIRECT("E"&$Y57),"")) ->  | T57: =IF(OR(ISBLANK($C57),$Y57=""),"",IF(MONTH($C57)=T$6,$E57/INDIRECT("F"&$Y57)*INDIRECT("E"&$Y57),"")) ->  | U57: =IF(OR(ISBLANK($C57),$Y57=""),"",IF(MONTH($C57)=U$6,$E57/INDIRECT("F"&$Y57)*INDIRECT("E"&$Y57),"")) ->  | V57: =IF(OR(ISBLANK($C57),$Y57=""),"",IF(MONTH($C57)=V$6,$E57/INDIRECT("F"&$Y57)*INDIRECT("E"&$Y57),"")) ->  | W57: =IF(H57<>100%,"Niet ok","ok") -> Niet ok | X57: 57
B58: Factuurnummer | C58: Factuurdatum | D58: Omschrijving factuur | E58: Factuurbedrag | K58: =IF(OR(ISBLANK($C58),$Y58=""),"",IF(MONTH($C58)=K$6,$E58/INDIRECT("F"&$Y58)*INDIRECT("E"&$Y58),"")) ->  | L58: =IF(OR(ISBLANK($C58),$Y58=""),"",IF(MONTH($C58)=L$6,$E58/INDIRECT("F"&$Y58)*INDIRECT("E"&$Y58),"")) ->  | M58: =IF(OR(ISBLANK($C58),$Y58=""),"",IF(MONTH($C58)=M$6,$E58/INDIRECT("F"&$Y58)*INDIRECT("E"&$Y58),"")) ->  | N58: =IF(OR(ISBLANK($C58),$Y58=""),"",IF(MONTH($C58)=N$6,$E58/INDIRECT("F"&$Y58)*INDIRECT("E"&$Y58),"")) ->  | O58: =IF(OR(ISBLANK($C58),$Y58=""),"",IF(MONTH($C58)=O$6,$E58/INDIRECT("F"&$Y58)*INDIRECT("E"&$Y58),"")) ->  | P58: =IF(OR(ISBLANK($C58),$Y58=""),"",IF(MONTH($C58)=P$6,$E58/INDIRECT("F"&$Y58)*INDIRECT("E"&$Y58),"")) ->  | Q58: =IF(OR(ISBLANK($C58),$Y58=""),"",IF(MONTH($C58)=Q$6,$E58/INDIRECT("F"&$Y58)*INDIRECT("E"&$Y58),"")) ->  | R58: =IF(OR(ISBLANK($C58),$Y58=""),"",IF(MONTH($C58)=R$6,$E58/INDIRECT("F"&$Y58)*INDIRECT("E"&$Y58),"")) ->  | S58: =IF(OR(ISBLANK($C58),$Y58=""),"",IF(MONTH($C58)=S$6,$E58/INDIRECT("F"&$Y58)*INDIRECT("E"&$Y58),"")) ->  | T58: =IF(OR(ISBLANK($C58),$Y58=""),"",IF(MONTH($C58)=T$6,$E58/INDIRECT("F"&$Y58)*INDIRECT("E"&$Y58),"")) ->  | U58: =IF(OR(ISBLANK($C58),$Y58=""),"",IF(MONTH($C58)=U$6,$E58/INDIRECT("F"&$Y58)*INDIRECT("E"&$Y58),"")) ->  | V58: =IF(OR(ISBLANK($C58),$Y58=""),"",IF(MONTH($C58)=V$6,$E58/INDIRECT("F"&$Y58)*INDIRECT("E"&$Y58),"")) ->  | X58: 57
I59: =SUM(K59:V59) -> 0 | K59: =IF(OR(ISBLANK($C59),$Y59=""),"",IF(MONTH($C59)=K$6,$E59/INDIRECT("F"&$Y59)*INDIRECT("E"&$Y59),"")) ->  | L59: =IF(OR(ISBLANK($C59),$Y59=""),"",IF(MONTH($C59)=L$6,$E59/INDIRECT("F"&$Y59)*INDIRECT("E"&$Y59),"")) ->  | M59: =IF(OR(ISBLANK($C59),$Y59=""),"",IF(MONTH($C59)=M$6,$E59/INDIRECT("F"&$Y59)*INDIRECT("E"&$Y59),"")) ->  | N59: =IF(OR(ISBLANK($C59),$Y59=""),"",IF(MONTH($C59)=N$6,$E59/INDIRECT("F"&$Y59)*INDIRECT("E"&$Y59),"")) ->  | O59: =IF(OR(ISBLANK($C59),$Y59=""),"",IF(MONTH($C59)=O$6,$E59/INDIRECT("F"&$Y59)*INDIRECT("E"&$Y59),"")) ->  | P59: =IF(OR(ISBLANK($C59),$Y59=""),"",IF(MONTH($C59)=P$6,$E59/INDIRECT("F"&$Y59)*INDIRECT("E"&$Y59),"")) ->  | Q59: =IF(OR(ISBLANK($C59),$Y59=""),"",IF(MONTH($C59)=Q$6,$E59/INDIRECT("F"&$Y59)*INDIRECT("E"&$Y59),"")) ->  | R59: =IF(OR(ISBLANK($C59),$Y59=""),"",IF(MONTH($C59)=R$6,$E59/INDIRECT("F"&$Y59)*INDIRECT("E"&$Y59),"")) ->  | S59: =IF(OR(ISBLANK($C59),$Y59=""),"",IF(MONTH($C59)=S$6,$E59/INDIRECT("F"&$Y59)*INDIRECT("E"&$Y59),"")) ->  | T59: =IF(OR(ISBLANK($C59),$Y59=""),"",IF(MONTH($C59)=T$6,$E59/INDIRECT("F"&$Y59)*INDIRECT("E"&$Y59),"")) ->  | U59: =IF(OR(ISBLANK($C59),$Y59=""),"",IF(MONTH($C59)=U$6,$E59/INDIRECT("F"&$Y59)*INDIRECT("E"&$Y59),"")) ->  | V59: =IF(OR(ISBLANK($C59),$Y59=""),"",IF(MONTH($C59)=V$6,$E59/INDIRECT("F"&$Y59)*INDIRECT("E"&$Y59),"")) ->  | X59: 57 | Y59: 57
I60: 0 | K60: =IF(OR(ISBLANK($C60),$Y60=""),"",IF(MONTH($C60)=K$6,$E60/INDIRECT("F"&$Y60)*INDIRECT("E"&$Y60),"")) ->  | L60: =IF(OR(ISBLANK($C60),$Y60=""),"",IF(MONTH($C60)=L$6,$E60/INDIRECT("F"&$Y60)*INDIRECT("E"&$Y60),"")) ->  | M60: =IF(OR(ISBLANK($C60),$Y60=""),"",IF(MONTH($C60)=M$6,$E60/INDIRECT("F"&$Y60)*INDIRECT("E"&$Y60),"")) ->  | N60: =IF(OR(ISBLANK($C60),$Y60=""),"",IF(MONTH($C60)=N$6,$E60/INDIRECT("F"&$Y60)*INDIRECT("E"&$Y60),"")) ->  | O60: =IF(OR(ISBLANK($C60),$Y60=""),"",IF(MONTH($C60)=O$6,$E60/INDIRECT("F"&$Y60)*INDIRECT("E"&$Y60),"")) ->  | P60: =IF(OR(ISBLANK($C60),$Y60=""),"",IF(MONTH($C60)=P$6,$E60/INDIRECT("F"&$Y60)*INDIRECT("E"&$Y60),"")) ->  | Q60: =IF(OR(ISBLANK($C60),$Y60=""),"",IF(MONTH($C60)=Q$6,$E60/INDIRECT("F"&$Y60)*INDIRECT("E"&$Y60),"")) ->  | R60: =IF(OR(ISBLANK($C60),$Y60=""),"",IF(MONTH($C60)=R$6,$E60/INDIRECT("F"&$Y60)*INDIRECT("E"&$Y60),"")) ->  | S60: =IF(OR(ISBLANK($C60),$Y60=""),"",IF(MONTH($C60)=S$6,$E60/INDIRECT("F"&$Y60)*INDIRECT("E"&$Y60),"")) ->  | T60: =IF(OR(ISBLANK($C60),$Y60=""),"",IF(MONTH($C60)=T$6,$E60/INDIRECT("F"&$Y60)*INDIRECT("E"&$Y60),"")) ->  | U60: =IF(OR(ISBLANK($C60),$Y60=""),"",IF(MONTH($C60)=U$6,$E60/INDIRECT("F"&$Y60)*INDIRECT("E"&$Y60),"")) ->  | V60: =IF(OR(ISBLANK($C60),$Y60=""),"",IF(MONTH($C60)=V$6,$E60/INDIRECT("F"&$Y60)*INDIRECT("E"&$Y60),"")) ->  | X60: 57 | Y60: 57
I61: 0 | K61: =IF(OR(ISBLANK($C61),$Y61=""),"",IF(MONTH($C61)=K$6,$E61/INDIRECT("F"&$Y61)*INDIRECT("E"&$Y61),"")) ->  | L61: =IF(OR(ISBLANK($C61),$Y61=""),"",IF(MONTH($C61)=L$6,$E61/INDIRECT("F"&$Y61)*INDIRECT("E"&$Y61),"")) ->  | M61: =IF(OR(ISBLANK($C61),$Y61=""),"",IF(MONTH($C61)=M$6,$E61/INDIRECT("F"&$Y61)*INDIRECT("E"&$Y61),"")) ->  | N61: =IF(OR(ISBLANK($C61),$Y61=""),"",IF(MONTH($C61)=N$6,$E61/INDIRECT("F"&$Y61)*INDIRECT("E"&$Y61),"")) ->  | O61: =IF(OR(ISBLANK($C61),$Y61=""),"",IF(MONTH($C61)=O$6,$E61/INDIRECT("F"&$Y61)*INDIRECT("E"&$Y61),"")) ->  | P61: =IF(OR(ISBLANK($C61),$Y61=""),"",IF(MONTH($C61)=P$6,$E61/INDIRECT("F"&$Y61)*INDIRECT("E"&$Y61),"")) ->  | Q61: =IF(OR(ISBLANK($C61),$Y61=""),"",IF(MONTH($C61)=Q$6,$E61/INDIRECT("F"&$Y61)*INDIRECT("E"&$Y61),"")) ->  | R61: =IF(OR(ISBLANK($C61),$Y61=""),"",IF(MONTH($C61)=R$6,$E61/INDIRECT("F"&$Y61)*INDIRECT("E"&$Y61),"")) ->  | S61: =IF(OR(ISBLANK($C61),$Y61=""),"",IF(MONTH($C61)=S$6,$E61/INDIRECT("F"&$Y61)*INDIRECT("E"&$Y61),"")) ->  | T61: =IF(OR(ISBLANK($C61),$Y61=""),"",IF(MONTH($C61)=T$6,$E61/INDIRECT("F"&$Y61)*INDIRECT("E"&$Y61),"")) ->  | U61: =IF(OR(ISBLANK($C61),$Y61=""),"",IF(MONTH($C61)=U$6,$E61/INDIRECT("F"&$Y61)*INDIRECT("E"&$Y61),"")) ->  | V61: =IF(OR(ISBLANK($C61),$Y61=""),"",IF(MONTH($C61)=V$6,$E61/INDIRECT("F"&$Y61)*INDIRECT("E"&$Y61),"")) ->  | X61: 57 | Y61: 57
I62: 0 | K62: =IF(OR(ISBLANK($C62),$Y62=""),"",IF(MONTH($C62)=K$6,$E62/INDIRECT("F"&$Y62)*INDIRECT("E"&$Y62),"")) ->  | L62: =IF(OR(ISBLANK($C62),$Y62=""),"",IF(MONTH($C62)=L$6,$E62/INDIRECT("F"&$Y62)*INDIRECT("E"&$Y62),"")) ->  | M62: =IF(OR(ISBLANK($C62),$Y62=""),"",IF(MONTH($C62)=M$6,$E62/INDIRECT("F"&$Y62)*INDIRECT("E"&$Y62),"")) ->  | N62: =IF(OR(ISBLANK($C62),$Y62=""),"",IF(MONTH($C62)=N$6,$E62/INDIRECT("F"&$Y62)*INDIRECT("E"&$Y62),"")) ->  | O62: =IF(OR(ISBLANK($C62),$Y62=""),"",IF(MONTH($C62)=O$6,$E62/INDIRECT("F"&$Y62)*INDIRECT("E"&$Y62),"")) ->  | P62: =IF(OR(ISBLANK($C62),$Y62=""),"",IF(MONTH($C62)=P$6,$E62/INDIRECT("F"&$Y62)*INDIRECT("E"&$Y62),"")) ->  | Q62: =IF(OR(ISBLANK($C62),$Y62=""),"",IF(MONTH($C62)=Q$6,$E62/INDIRECT("F"&$Y62)*INDIRECT("E"&$Y62),"")) ->  | R62: =IF(OR(ISBLANK($C62),$Y62=""),"",IF(MONTH($C62)=R$6,$E62/INDIRECT("F"&$Y62)*INDIRECT("E"&$Y62),"")) ->  | S62: =IF(OR(ISBLANK($C62),$Y62=""),"",IF(MONTH($C62)=S$6,$E62/INDIRECT("F"&$Y62)*INDIRECT("E"&$Y62),"")) ->  | T62: =IF(OR(ISBLANK($C62),$Y62=""),"",IF(MONTH($C62)=T$6,$E62/INDIRECT("F"&$Y62)*INDIRECT("E"&$Y62),"")) ->  | U62: =IF(OR(ISBLANK($C62),$Y62=""),"",IF(MONTH($C62)=U$6,$E62/INDIRECT("F"&$Y62)*INDIRECT("E"&$Y62),"")) ->  | V62: =IF(OR(ISBLANK($C62),$Y62=""),"",IF(MONTH($C62)=V$6,$E62/INDIRECT("F"&$Y62)*INDIRECT("E"&$Y62),"")) ->  | X62: 57 | Y62: 57
I63: 0 | K63: =IF(OR(ISBLANK($C63),$Y63=""),"",IF(MONTH($C63)=K$6,$E63/INDIRECT("F"&$Y63)*INDIRECT("E"&$Y63),"")) ->  | L63: =IF(OR(ISBLANK($C63),$Y63=""),"",IF(MONTH($C63)=L$6,$E63/INDIRECT("F"&$Y63)*INDIRECT("E"&$Y63),"")) ->  | M63: =IF(OR(ISBLANK($C63),$Y63=""),"",IF(MONTH($C63)=M$6,$E63/INDIRECT("F"&$Y63)*INDIRECT("E"&$Y63),"")) ->  | N63: =IF(OR(ISBLANK($C63),$Y63=""),"",IF(MONTH($C63)=N$6,$E63/INDIRECT("F"&$Y63)*INDIRECT("E"&$Y63),"")) ->  | O63: =IF(OR(ISBLANK($C63),$Y63=""),"",IF(MONTH($C63)=O$6,$E63/INDIRECT("F"&$Y63)*INDIRECT("E"&$Y63),"")) ->  | P63: =IF(OR(ISBLANK($C63),$Y63=""),"",IF(MONTH($C63)=P$6,$E63/INDIRECT("F"&$Y63)*INDIRECT("E"&$Y63),"")) ->  | Q63: =IF(OR(ISBLANK($C63),$Y63=""),"",IF(MONTH($C63)=Q$6,$E63/INDIRECT("F"&$Y63)*INDIRECT("E"&$Y63),"")) ->  | R63: =IF(OR(ISBLANK($C63),$Y63=""),"",IF(MONTH($C63)=R$6,$E63/INDIRECT("F"&$Y63)*INDIRECT("E"&$Y63),"")) ->  | S63: =IF(OR(ISBLANK($C63),$Y63=""),"",IF(MONTH($C63)=S$6,$E63/INDIRECT("F"&$Y63)*INDIRECT("E"&$Y63),"")) ->  | T63: =IF(OR(ISBLANK($C63),$Y63=""),"",IF(MONTH($C63)=T$6,$E63/INDIRECT("F"&$Y63)*INDIRECT("E"&$Y63),"")) ->  | U63: =IF(OR(ISBLANK($C63),$Y63=""),"",IF(MONTH($C63)=U$6,$E63/INDIRECT("F"&$Y63)*INDIRECT("E"&$Y63),"")) ->  | V63: =IF(OR(ISBLANK($C63),$Y63=""),"",IF(MONTH($C63)=V$6,$E63/INDIRECT("F"&$Y63)*INDIRECT("E"&$Y63),"")) ->  | X63: 57 | Y63: 57
I64: 0 | K64: =IF(OR(ISBLANK($C64),$Y64=""),"",IF(MONTH($C64)=K$6,$E64/INDIRECT("F"&$Y64)*INDIRECT("E"&$Y64),"")) ->  | L64: =IF(OR(ISBLANK($C64),$Y64=""),"",IF(MONTH($C64)=L$6,$E64/INDIRECT("F"&$Y64)*INDIRECT("E"&$Y64),"")) ->  | M64: =IF(OR(ISBLANK($C64),$Y64=""),"",IF(MONTH($C64)=M$6,$E64/INDIRECT("F"&$Y64)*INDIRECT("E"&$Y64),"")) ->  | N64: =IF(OR(ISBLANK($C64),$Y64=""),"",IF(MONTH($C64)=N$6,$E64/INDIRECT("F"&$Y64)*INDIRECT("E"&$Y64),"")) ->  | O64: =IF(OR(ISBLANK($C64),$Y64=""),"",IF(MONTH($C64)=O$6,$E64/INDIRECT("F"&$Y64)*INDIRECT("E"&$Y64),"")) ->  | P64: =IF(OR(ISBLANK($C64),$Y64=""),"",IF(MONTH($C64)=P$6,$E64/INDIRECT("F"&$Y64)*INDIRECT("E"&$Y64),"")) ->  | Q64: =IF(OR(ISBLANK($C64),$Y64=""),"",IF(MONTH($C64)=Q$6,$E64/INDIRECT("F"&$Y64)*INDIRECT("E"&$Y64),"")) ->  | R64: =IF(OR(ISBLANK($C64),$Y64=""),"",IF(MONTH($C64)=R$6,$E64/INDIRECT("F"&$Y64)*INDIRECT("E"&$Y64),"")) ->  | S64: =IF(OR(ISBLANK($C64),$Y64=""),"",IF(MONTH($C64)=S$6,$E64/INDIRECT("F"&$Y64)*INDIRECT("E"&$Y64),"")) ->  | T64: =IF(OR(ISBLANK($C64),$Y64=""),"",IF(MONTH($C64)=T$6,$E64/INDIRECT("F"&$Y64)*INDIRECT("E"&$Y64),"")) ->  | U64: =IF(OR(ISBLANK($C64),$Y64=""),"",IF(MONTH($C64)=U$6,$E64/INDIRECT("F"&$Y64)*INDIRECT("E"&$Y64),"")) ->  | V64: =IF(OR(ISBLANK($C64),$Y64=""),"",IF(MONTH($C64)=V$6,$E64/INDIRECT("F"&$Y64)*INDIRECT("E"&$Y64),"")) ->  | X64: 57 | Y64: 57
I65: 0 | K65: =IF(OR(ISBLANK($C65),$Y65=""),"",IF(MONTH($C65)=K$6,$E65/INDIRECT("F"&$Y65)*INDIRECT("E"&$Y65),"")) ->  | L65: =IF(OR(ISBLANK($C65),$Y65=""),"",IF(MONTH($C65)=L$6,$E65/INDIRECT("F"&$Y65)*INDIRECT("E"&$Y65),"")) ->  | M65: =IF(OR(ISBLANK($C65),$Y65=""),"",IF(MONTH($C65)=M$6,$E65/INDIRECT("F"&$Y65)*INDIRECT("E"&$Y65),"")) ->  | N65: =IF(OR(ISBLANK($C65),$Y65=""),"",IF(MONTH($C65)=N$6,$E65/INDIRECT("F"&$Y65)*INDIRECT("E"&$Y65),"")) ->  | O65: =IF(OR(ISBLANK($C65),$Y65=""),"",IF(MONTH($C65)=O$6,$E65/INDIRECT("F"&$Y65)*INDIRECT("E"&$Y65),"")) ->  | P65: =IF(OR(ISBLANK($C65),$Y65=""),"",IF(MONTH($C65)=P$6,$E65/INDIRECT("F"&$Y65)*INDIRECT("E"&$Y65),"")) ->  | Q65: =IF(OR(ISBLANK($C65),$Y65=""),"",IF(MONTH($C65)=Q$6,$E65/INDIRECT("F"&$Y65)*INDIRECT("E"&$Y65),"")) ->  | R65: =IF(OR(ISBLANK($C65),$Y65=""),"",IF(MONTH($C65)=R$6,$E65/INDIRECT("F"&$Y65)*INDIRECT("E"&$Y65),"")) ->  | S65: =IF(OR(ISBLANK($C65),$Y65=""),"",IF(MONTH($C65)=S$6,$E65/INDIRECT("F"&$Y65)*INDIRECT("E"&$Y65),"")) ->  | T65: =IF(OR(ISBLANK($C65),$Y65=""),"",IF(MONTH($C65)=T$6,$E65/INDIRECT("F"&$Y65)*INDIRECT("E"&$Y65),"")) ->  | U65: =IF(OR(ISBLANK($C65),$Y65=""),"",IF(MONTH($C65)=U$6,$E65/INDIRECT("F"&$Y65)*INDIRECT("E"&$Y65),"")) ->  | V65: =IF(OR(ISBLANK($C65),$Y65=""),"",IF(MONTH($C65)=V$6,$E65/INDIRECT("F"&$Y65)*INDIRECT("E"&$Y65),"")) ->  | X65: 57 | Y65: 57
I66: 0 | K66: =IF(OR(ISBLANK($C66),$Y66=""),"",IF(MONTH($C66)=K$6,$E66/INDIRECT("F"&$Y66)*INDIRECT("E"&$Y66),"")) ->  | L66: =IF(OR(ISBLANK($C66),$Y66=""),"",IF(MONTH($C66)=L$6,$E66/INDIRECT("F"&$Y66)*INDIRECT("E"&$Y66),"")) ->  | M66: =IF(OR(ISBLANK($C66),$Y66=""),"",IF(MONTH($C66)=M$6,$E66/INDIRECT("F"&$Y66)*INDIRECT("E"&$Y66),"")) ->  | N66: =IF(OR(ISBLANK($C66),$Y66=""),"",IF(MONTH($C66)=N$6,$E66/INDIRECT("F"&$Y66)*INDIRECT("E"&$Y66),"")) ->  | O66: =IF(OR(ISBLANK($C66),$Y66=""),"",IF(MONTH($C66)=O$6,$E66/INDIRECT("F"&$Y66)*INDIRECT("E"&$Y66),"")) ->  | P66: =IF(OR(ISBLANK($C66),$Y66=""),"",IF(MONTH($C66)=P$6,$E66/INDIRECT("F"&$Y66)*INDIRECT("E"&$Y66),"")) ->  | Q66: =IF(OR(ISBLANK($C66),$Y66=""),"",IF(MONTH($C66)=Q$6,$E66/INDIRECT("F"&$Y66)*INDIRECT("E"&$Y66),"")) ->  | R66: =IF(OR(ISBLANK($C66),$Y66=""),"",IF(MONTH($C66)=R$6,$E66/INDIRECT("F"&$Y66)*INDIRECT("E"&$Y66),"")) ->  | S66: =IF(OR(ISBLANK($C66),$Y66=""),"",IF(MONTH($C66)=S$6,$E66/INDIRECT("F"&$Y66)*INDIRECT("E"&$Y66),"")) ->  | T66: =IF(OR(ISBLANK($C66),$Y66=""),"",IF(MONTH($C66)=T$6,$E66/INDIRECT("F"&$Y66)*INDIRECT("E"&$Y66),"")) ->  | U66: =IF(OR(ISBLANK($C66),$Y66=""),"",IF(MONTH($C66)=U$6,$E66/INDIRECT("F"&$Y66)*INDIRECT("E"&$Y66),"")) ->  | V66: =IF(OR(ISBLANK($C66),$Y66=""),"",IF(MONTH($C66)=V$6,$E66/INDIRECT("F"&$Y66)*INDIRECT("E"&$Y66),"")) ->  | X66: 57 | Y66: 57
I67: 0 | K67: =IF(OR(ISBLANK($C67),$Y67=""),"",IF(MONTH($C67)=K$6,$E67/INDIRECT("F"&$Y67)*INDIRECT("E"&$Y67),"")) ->  | L67: =IF(OR(ISBLANK($C67),$Y67=""),"",IF(MONTH($C67)=L$6,$E67/INDIRECT("F"&$Y67)*INDIRECT("E"&$Y67),"")) ->  | M67: =IF(OR(ISBLANK($C67),$Y67=""),"",IF(MONTH($C67)=M$6,$E67/INDIRECT("F"&$Y67)*INDIRECT("E"&$Y67),"")) ->  | N67: =IF(OR(ISBLANK($C67),$Y67=""),"",IF(MONTH($C67)=N$6,$E67/INDIRECT("F"&$Y67)*INDIRECT("E"&$Y67),"")) ->  | O67: =IF(OR(ISBLANK($C67),$Y67=""),"",IF(MONTH($C67)=O$6,$E67/INDIRECT("F"&$Y67)*INDIRECT("E"&$Y67),"")) ->  | P67: =IF(OR(ISBLANK($C67),$Y67=""),"",IF(MONTH($C67)=P$6,$E67/INDIRECT("F"&$Y67)*INDIRECT("E"&$Y67),"")) ->  | Q67: =IF(OR(ISBLANK($C67),$Y67=""),"",IF(MONTH($C67)=Q$6,$E67/INDIRECT("F"&$Y67)*INDIRECT("E"&$Y67),"")) ->  | R67: =IF(OR(ISBLANK($C67),$Y67=""),"",IF(MONTH($C67)=R$6,$E67/INDIRECT("F"&$Y67)*INDIRECT("E"&$Y67),"")) ->  | S67: =IF(OR(ISBLANK($C67),$Y67=""),"",IF(MONTH($C67)=S$6,$E67/INDIRECT("F"&$Y67)*INDIRECT("E"&$Y67),"")) ->  | T67: =IF(OR(ISBLANK($C67),$Y67=""),"",IF(MONTH($C67)=T$6,$E67/INDIRECT("F"&$Y67)*INDIRECT("E"&$Y67),"")) ->  | U67: =IF(OR(ISBLANK($C67),$Y67=""),"",IF(MONTH($C67)=U$6,$E67/INDIRECT("F"&$Y67)*INDIRECT("E"&$Y67),"")) ->  | V67: =IF(OR(ISBLANK($C67),$Y67=""),"",IF(MONTH($C67)=V$6,$E67/INDIRECT("F"&$Y67)*INDIRECT("E"&$Y67),"")) ->  | X67: 57 | Y67: 57
I68: 0 | K68: =IF(OR(ISBLANK($C68),$Y68=""),"",IF(MONTH($C68)=K$6,$E68/INDIRECT("F"&$Y68)*INDIRECT("E"&$Y68),"")) ->  | L68: =IF(OR(ISBLANK($C68),$Y68=""),"",IF(MONTH($C68)=L$6,$E68/INDIRECT("F"&$Y68)*INDIRECT("E"&$Y68),"")) ->  | M68: =IF(OR(ISBLANK($C68),$Y68=""),"",IF(MONTH($C68)=M$6,$E68/INDIRECT("F"&$Y68)*INDIRECT("E"&$Y68),"")) ->  | N68: =IF(OR(ISBLANK($C68),$Y68=""),"",IF(MONTH($C68)=N$6,$E68/INDIRECT("F"&$Y68)*INDIRECT("E"&$Y68),"")) ->  | O68: =IF(OR(ISBLANK($C68),$Y68=""),"",IF(MONTH($C68)=O$6,$E68/INDIRECT("F"&$Y68)*INDIRECT("E"&$Y68),"")) ->  | P68: =IF(OR(ISBLANK($C68),$Y68=""),"",IF(MONTH($C68)=P$6,$E68/INDIRECT("F"&$Y68)*INDIRECT("E"&$Y68),"")) ->  | Q68: =IF(OR(ISBLANK($C68),$Y68=""),"",IF(MONTH($C68)=Q$6,$E68/INDIRECT("F"&$Y68)*INDIRECT("E"&$Y68),"")) ->  | R68: =IF(OR(ISBLANK($C68),$Y68=""),"",IF(MONTH($C68)=R$6,$E68/INDIRECT("F"&$Y68)*INDIRECT("E"&$Y68),"")) ->  | S68: =IF(OR(ISBLANK($C68),$Y68=""),"",IF(MONTH($C68)=S$6,$E68/INDIRECT("F"&$Y68)*INDIRECT("E"&$Y68),"")) ->  | T68: =IF(OR(ISBLANK($C68),$Y68=""),"",IF(MONTH($C68)=T$6,$E68/INDIRECT("F"&$Y68)*INDIRECT("E"&$Y68),"")) ->  | U68: =IF(OR(ISBLANK($C68),$Y68=""),"",IF(MONTH($C68)=U$6,$E68/INDIRECT("F"&$Y68)*INDIRECT("E"&$Y68),"")) ->  | V68: =IF(OR(ISBLANK($C68),$Y68=""),"",IF(MONTH($C68)=V$6,$E68/INDIRECT("F"&$Y68)*INDIRECT("E"&$Y68),"")) ->  | X68: 57 | Y68: 57
H69: =IFERROR(I69/E69,0) -> 0 | I69: =SUM(I70:J80) -> 0 | K69: =IF(OR(ISBLANK($C69),$Y69=""),"",IF(MONTH($C69)=K$6,$E69/INDIRECT("F"&$Y69)*INDIRECT("E"&$Y69),"")) ->  | L69: =IF(OR(ISBLANK($C69),$Y69=""),"",IF(MONTH($C69)=L$6,$E69/INDIRECT("F"&$Y69)*INDIRECT("E"&$Y69),"")) ->  | M69: =IF(OR(ISBLANK($C69),$Y69=""),"",IF(MONTH($C69)=M$6,$E69/INDIRECT("F"&$Y69)*INDIRECT("E"&$Y69),"")) ->  | N69: =IF(OR(ISBLANK($C69),$Y69=""),"",IF(MONTH($C69)=N$6,$E69/INDIRECT("F"&$Y69)*INDIRECT("E"&$Y69),"")) ->  | O69: =IF(OR(ISBLANK($C69),$Y69=""),"",IF(MONTH($C69)=O$6,$E69/INDIRECT("F"&$Y69)*INDIRECT("E"&$Y69),"")) ->  | P69: =IF(OR(ISBLANK($C69),$Y69=""),"",IF(MONTH($C69)=P$6,$E69/INDIRECT("F"&$Y69)*INDIRECT("E"&$Y69),"")) ->  | Q69: =IF(OR(ISBLANK($C69),$Y69=""),"",IF(MONTH($C69)=Q$6,$E69/INDIRECT("F"&$Y69)*INDIRECT("E"&$Y69),"")) ->  | R69: =IF(OR(ISBLANK($C69),$Y69=""),"",IF(MONTH($C69)=R$6,$E69/INDIRECT("F"&$Y69)*INDIRECT("E"&$Y69),"")) ->  | S69: =IF(OR(ISBLANK($C69),$Y69=""),"",IF(MONTH($C69)=S$6,$E69/INDIRECT("F"&$Y69)*INDIRECT("E"&$Y69),"")) ->  | T69: =IF(OR(ISBLANK($C69),$Y69=""),"",IF(MONTH($C69)=T$6,$E69/INDIRECT("F"&$Y69)*INDIRECT("E"&$Y69),"")) ->  | U69: =IF(OR(ISBLANK($C69),$Y69=""),"",IF(MONTH($C69)=U$6,$E69/INDIRECT("F"&$Y69)*INDIRECT("E"&$Y69),"")) ->  | V69: =IF(OR(ISBLANK($C69),$Y69=""),"",IF(MONTH($C69)=V$6,$E69/INDIRECT("F"&$Y69)*INDIRECT("E"&$Y69),"")) ->  | W69: =IF(H69<>100%,"Niet ok","ok") -> Niet ok | X69: 69
B70: Factuurnummer | C70: Factuurdatum | D70: Omschrijving factuur | E70: Factuurbedrag | K70: =IF(OR(ISBLANK($C70),$Y70=""),"",IF(MONTH($C70)=K$6,$E70/INDIRECT("F"&$Y70)*INDIRECT("E"&$Y70),"")) ->  | L70: =IF(OR(ISBLANK($C70),$Y70=""),"",IF(MONTH($C70)=L$6,$E70/INDIRECT("F"&$Y70)*INDIRECT("E"&$Y70),"")) ->  | M70: =IF(OR(ISBLANK($C70),$Y70=""),"",IF(MONTH($C70)=M$6,$E70/INDIRECT("F"&$Y70)*INDIRECT("E"&$Y70),"")) ->  | N70: =IF(OR(ISBLANK($C70),$Y70=""),"",IF(MONTH($C70)=N$6,$E70/INDIRECT("F"&$Y70)*INDIRECT("E"&$Y70),"")) ->  | O70: =IF(OR(ISBLANK($C70),$Y70=""),"",IF(MONTH($C70)=O$6,$E70/INDIRECT("F"&$Y70)*INDIRECT("E"&$Y70),"")) ->  | P70: =IF(OR(ISBLANK($C70),$Y70=""),"",IF(MONTH($C70)=P$6,$E70/INDIRECT("F"&$Y70)*INDIRECT("E"&$Y70),"")) ->  | Q70: =IF(OR(ISBLANK($C70),$Y70=""),"",IF(MONTH($C70)=Q$6,$E70/INDIRECT("F"&$Y70)*INDIRECT("E"&$Y70),"")) ->  | R70: =IF(OR(ISBLANK($C70),$Y70=""),"",IF(MONTH($C70)=R$6,$E70/INDIRECT("F"&$Y70)*INDIRECT("E"&$Y70),"")) ->  | S70: =IF(OR(ISBLANK($C70),$Y70=""),"",IF(MONTH($C70)=S$6,$E70/INDIRECT("F"&$Y70)*INDIRECT("E"&$Y70),"")) ->  | T70: =IF(OR(ISBLANK($C70),$Y70=""),"",IF(MONTH($C70)=T$6,$E70/INDIRECT("F"&$Y70)*INDIRECT("E"&$Y70),"")) ->  | U70: =IF(OR(ISBLANK($C70),$Y70=""),"",IF(MONTH($C70)=U$6,$E70/INDIRECT("F"&$Y70)*INDIRECT("E"&$Y70),"")) ->  | V70: =IF(OR(ISBLANK($C70),$Y70=""),"",IF(MONTH($C70)=V$6,$E70/INDIRECT("F"&$Y70)*INDIRECT("E"&$Y70),"")) ->  | X70: 69
I71: =SUM(K71:V71) -> 0 | K71: =IF(OR(ISBLANK($C71),$Y71=""),"",IF(MONTH($C71)=K$6,$E71/INDIRECT("F"&$Y71)*INDIRECT("E"&$Y71),"")) ->  | L71: =IF(OR(ISBLANK($C71),$Y71=""),"",IF(MONTH($C71)=L$6,$E71/INDIRECT("F"&$Y71)*INDIRECT("E"&$Y71),"")) ->  | M71: =IF(OR(ISBLANK($C71),$Y71=""),"",IF(MONTH($C71)=M$6,$E71/INDIRECT("F"&$Y71)*INDIRECT("E"&$Y71),"")) ->  | N71: =IF(OR(ISBLANK($C71),$Y71=""),"",IF(MONTH($C71)=N$6,$E71/INDIRECT("F"&$Y71)*INDIRECT("E"&$Y71),"")) ->  | O71: =IF(OR(ISBLANK($C71),$Y71=""),"",IF(MONTH($C71)=O$6,$E71/INDIRECT("F"&$Y71)*INDIRECT("E"&$Y71),"")) ->  | P71: =IF(OR(ISBLANK($C71),$Y71=""),"",IF(MONTH($C71)=P$6,$E71/INDIRECT("F"&$Y71)*INDIRECT("E"&$Y71),"")) ->  | Q71: =IF(OR(ISBLANK($C71),$Y71=""),"",IF(MONTH($C71)=Q$6,$E71/INDIRECT("F"&$Y71)*INDIRECT("E"&$Y71),"")) ->  | R71: =IF(OR(ISBLANK($C71),$Y71=""),"",IF(MONTH($C71)=R$6,$E71/INDIRECT("F"&$Y71)*INDIRECT("E"&$Y71),"")) ->  | S71: =IF(OR(ISBLANK($C71),$Y71=""),"",IF(MONTH($C71)=S$6,$E71/INDIRECT("F"&$Y71)*INDIRECT("E"&$Y71),"")) ->  | T71: =IF(OR(ISBLANK($C71),$Y71=""),"",IF(MONTH($C71)=T$6,$E71/INDIRECT("F"&$Y71)*INDIRECT("E"&$Y71),"")) ->  | U71: =IF(OR(ISBLANK($C71),$Y71=""),"",IF(MONTH($C71)=U$6,$E71/INDIRECT("F"&$Y71)*INDIRECT("E"&$Y71),"")) ->  | V71: =IF(OR(ISBLANK($C71),$Y71=""),"",IF(MONTH($C71)=V$6,$E71/INDIRECT("F"&$Y71)*INDIRECT("E"&$Y71),"")) ->  | X71: 69 | Y71: 69
I72: 0 | K72: =IF(OR(ISBLANK($C72),$Y72=""),"",IF(MONTH($C72)=K$6,$E72/INDIRECT("F"&$Y72)*INDIRECT("E"&$Y72),"")) ->  | L72: =IF(OR(ISBLANK($C72),$Y72=""),"",IF(MONTH($C72)=L$6,$E72/INDIRECT("F"&$Y72)*INDIRECT("E"&$Y72),"")) ->  | M72: =IF(OR(ISBLANK($C72),$Y72=""),"",IF(MONTH($C72)=M$6,$E72/INDIRECT("F"&$Y72)*INDIRECT("E"&$Y72),"")) ->  | N72: =IF(OR(ISBLANK($C72),$Y72=""),"",IF(MONTH($C72)=N$6,$E72/INDIRECT("F"&$Y72)*INDIRECT("E"&$Y72),"")) ->  | O72: =IF(OR(ISBLANK($C72),$Y72=""),"",IF(MONTH($C72)=O$6,$E72/INDIRECT("F"&$Y72)*INDIRECT("E"&$Y72),"")) ->  | P72: =IF(OR(ISBLANK($C72),$Y72=""),"",IF(MONTH($C72)=P$6,$E72/INDIRECT("F"&$Y72)*INDIRECT("E"&$Y72),"")) ->  | Q72: =IF(OR(ISBLANK($C72),$Y72=""),"",IF(MONTH($C72)=Q$6,$E72/INDIRECT("F"&$Y72)*INDIRECT("E"&$Y72),"")) ->  | R72: =IF(OR(ISBLANK($C72),$Y72=""),"",IF(MONTH($C72)=R$6,$E72/INDIRECT("F"&$Y72)*INDIRECT("E"&$Y72),"")) ->  | S72: =IF(OR(ISBLANK($C72),$Y72=""),"",IF(MONTH($C72)=S$6,$E72/INDIRECT("F"&$Y72)*INDIRECT("E"&$Y72),"")) ->  | T72: =IF(OR(ISBLANK($C72),$Y72=""),"",IF(MONTH($C72)=T$6,$E72/INDIRECT("F"&$Y72)*INDIRECT("E"&$Y72),"")) ->  | U72: =IF(OR(ISBLANK($C72),$Y72=""),"",IF(MONTH($C72)=U$6,$E72/INDIRECT("F"&$Y72)*INDIRECT("E"&$Y72),"")) ->  | V72: =IF(OR(ISBLANK($C72),$Y72=""),"",IF(MONTH($C72)=V$6,$E72/INDIRECT("F"&$Y72)*INDIRECT("E"&$Y72),"")) ->  | X72: 69 | Y72: 69
I73: 0 | K73: =IF(OR(ISBLANK($C73),$Y73=""),"",IF(MONTH($C73)=K$6,$E73/INDIRECT("F"&$Y73)*INDIRECT("E"&$Y73),"")) ->  | L73: =IF(OR(ISBLANK($C73),$Y73=""),"",IF(MONTH($C73)=L$6,$E73/INDIRECT("F"&$Y73)*INDIRECT("E"&$Y73),"")) ->  | M73: =IF(OR(ISBLANK($C73),$Y73=""),"",IF(MONTH($C73)=M$6,$E73/INDIRECT("F"&$Y73)*INDIRECT("E"&$Y73),"")) ->  | N73: =IF(OR(ISBLANK($C73),$Y73=""),"",IF(MONTH($C73)=N$6,$E73/INDIRECT("F"&$Y73)*INDIRECT("E"&$Y73),"")) ->  | O73: =IF(OR(ISBLANK($C73),$Y73=""),"",IF(MONTH($C73)=O$6,$E73/INDIRECT("F"&$Y73)*INDIRECT("E"&$Y73),"")) ->  | P73: =IF(OR(ISBLANK($C73),$Y73=""),"",IF(MONTH($C73)=P$6,$E73/INDIRECT("F"&$Y73)*INDIRECT("E"&$Y73),"")) ->  | Q73: =IF(OR(ISBLANK($C73),$Y73=""),"",IF(MONTH($C73)=Q$6,$E73/INDIRECT("F"&$Y73)*INDIRECT("E"&$Y73),"")) ->  | R73: =IF(OR(ISBLANK($C73),$Y73=""),"",IF(MONTH($C73)=R$6,$E73/INDIRECT("F"&$Y73)*INDIRECT("E"&$Y73),"")) ->  | S73: =IF(OR(ISBLANK($C73),$Y73=""),"",IF(MONTH($C73)=S$6,$E73/INDIRECT("F"&$Y73)*INDIRECT("E"&$Y73),"")) ->  | T73: =IF(OR(ISBLANK($C73),$Y73=""),"",IF(MONTH($C73)=T$6,$E73/INDIRECT("F"&$Y73)*INDIRECT("E"&$Y73),"")) ->  | U73: =IF(OR(ISBLANK($C73),$Y73=""),"",IF(MONTH($C73)=U$6,$E73/INDIRECT("F"&$Y73)*INDIRECT("E"&$Y73),"")) ->  | V73: =IF(OR(ISBLANK($C73),$Y73=""),"",IF(MONTH($C73)=V$6,$E73/INDIRECT("F"&$Y73)*INDIRECT("E"&$Y73),"")) ->  | X73: 69 | Y73: 69
I74: 0 | K74: =IF(OR(ISBLANK($C74),$Y74=""),"",IF(MONTH($C74)=K$6,$E74/INDIRECT("F"&$Y74)*INDIRECT("E"&$Y74),"")) ->  | L74: =IF(OR(ISBLANK($C74),$Y74=""),"",IF(MONTH($C74)=L$6,$E74/INDIRECT("F"&$Y74)*INDIRECT("E"&$Y74),"")) ->  | M74: =IF(OR(ISBLANK($C74),$Y74=""),"",IF(MONTH($C74)=M$6,$E74/INDIRECT("F"&$Y74)*INDIRECT("E"&$Y74),"")) ->  | N74: =IF(OR(ISBLANK($C74),$Y74=""),"",IF(MONTH($C74)=N$6,$E74/INDIRECT("F"&$Y74)*INDIRECT("E"&$Y74),"")) ->  | O74: =IF(OR(ISBLANK($C74),$Y74=""),"",IF(MONTH($C74)=O$6,$E74/INDIRECT("F"&$Y74)*INDIRECT("E"&$Y74),"")) ->  | P74: =IF(OR(ISBLANK($C74),$Y74=""),"",IF(MONTH($C74)=P$6,$E74/INDIRECT("F"&$Y74)*INDIRECT("E"&$Y74),"")) ->  | Q74: =IF(OR(ISBLANK($C74),$Y74=""),"",IF(MONTH($C74)=Q$6,$E74/INDIRECT("F"&$Y74)*INDIRECT("E"&$Y74),"")) ->  | R74: =IF(OR(ISBLANK($C74),$Y74=""),"",IF(MONTH($C74)=R$6,$E74/INDIRECT("F"&$Y74)*INDIRECT("E"&$Y74),"")) ->  | S74: =IF(OR(ISBLANK($C74),$Y74=""),"",IF(MONTH($C74)=S$6,$E74/INDIRECT("F"&$Y74)*INDIRECT("E"&$Y74),"")) ->  | T74: =IF(OR(ISBLANK($C74),$Y74=""),"",IF(MONTH($C74)=T$6,$E74/INDIRECT("F"&$Y74)*INDIRECT("E"&$Y74),"")) ->  | U74: =IF(OR(ISBLANK($C74),$Y74=""),"",IF(MONTH($C74)=U$6,$E74/INDIRECT("F"&$Y74)*INDIRECT("E"&$Y74),"")) ->  | V74: =IF(OR(ISBLANK($C74),$Y74=""),"",IF(MONTH($C74)=V$6,$E74/INDIRECT("F"&$Y74)*INDIRECT("E"&$Y74),"")) ->  | X74: =ROW()-MOD(ROW()-9,12) -> 69 | Y74: =IF(OR(X74=ROW(),X74=ROW()-1),"",X74) -> 69
I75: 0 | K75: =IF(OR(ISBLANK($C75),$Y75=""),"",IF(MONTH($C75)=K$6,$E75/INDIRECT("F"&$Y75)*INDIRECT("E"&$Y75),"")) ->  | L75: =IF(OR(ISBLANK($C75),$Y75=""),"",IF(MONTH($C75)=L$6,$E75/INDIRECT("F"&$Y75)*INDIRECT("E"&$Y75),"")) ->  | M75: =IF(OR(ISBLANK($C75),$Y75=""),"",IF(MONTH($C75)=M$6,$E75/INDIRECT("F"&$Y75)*INDIRECT("E"&$Y75),"")) ->  | N75: =IF(OR(ISBLANK($C75),$Y75=""),"",IF(MONTH($C75)=N$6,$E75/INDIRECT("F"&$Y75)*INDIRECT("E"&$Y75),"")) ->  | O75: =IF(OR(ISBLANK($C75),$Y75=""),"",IF(MONTH($C75)=O$6,$E75/INDIRECT("F"&$Y75)*INDIRECT("E"&$Y75),"")) ->  | P75: =IF(OR(ISBLANK($C75),$Y75=""),"",IF(MONTH($C75)=P$6,$E75/INDIRECT("F"&$Y75)*INDIRECT("E"&$Y75),"")) ->  | Q75: =IF(OR(ISBLANK($C75),$Y75=""),"",IF(MONTH($C75)=Q$6,$E75/INDIRECT("F"&$Y75)*INDIRECT("E"&$Y75),"")) ->  | R75: =IF(OR(ISBLANK($C75),$Y75=""),"",IF(MONTH($C75)=R$6,$E75/INDIRECT("F"&$Y75)*INDIRECT("E"&$Y75),"")) ->  | S75: =IF(OR(ISBLANK($C75),$Y75=""),"",IF(MONTH($C75)=S$6,$E75/INDIRECT("F"&$Y75)*INDIRECT("E"&$Y75),"")) ->  | T75: =IF(OR(ISBLANK($C75),$Y75=""),"",IF(MONTH($C75)=T$6,$E75/INDIRECT("F"&$Y75)*INDIRECT("E"&$Y75),"")) ->  | U75: =IF(OR(ISBLANK($C75),$Y75=""),"",IF(MONTH($C75)=U$6,$E75/INDIRECT("F"&$Y75)*INDIRECT("E"&$Y75),"")) ->  | V75: =IF(OR(ISBLANK($C75),$Y75=""),"",IF(MONTH($C75)=V$6,$E75/INDIRECT("F"&$Y75)*INDIRECT("E"&$Y75),"")) ->  | X75: 69 | Y75: 69
I76: 0 | K76: =IF(OR(ISBLANK($C76),$Y76=""),"",IF(MONTH($C76)=K$6,$E76/INDIRECT("F"&$Y76)*INDIRECT("E"&$Y76),"")) ->  | L76: =IF(OR(ISBLANK($C76),$Y76=""),"",IF(MONTH($C76)=L$6,$E76/INDIRECT("F"&$Y76)*INDIRECT("E"&$Y76),"")) ->  | M76: =IF(OR(ISBLANK($C76),$Y76=""),"",IF(MONTH($C76)=M$6,$E76/INDIRECT("F"&$Y76)*INDIRECT("E"&$Y76),"")) ->  | N76: =IF(OR(ISBLANK($C76),$Y76=""),"",IF(MONTH($C76)=N$6,$E76/INDIRECT("F"&$Y76)*INDIRECT("E"&$Y76),"")) ->  | O76: =IF(OR(ISBLANK($C76),$Y76=""),"",IF(MONTH($C76)=O$6,$E76/INDIRECT("F"&$Y76)*INDIRECT("E"&$Y76),"")) ->  | P76: =IF(OR(ISBLANK($C76),$Y76=""),"",IF(MONTH($C76)=P$6,$E76/INDIRECT("F"&$Y76)*INDIRECT("E"&$Y76),"")) ->  | Q76: =IF(OR(ISBLANK($C76),$Y76=""),"",IF(MONTH($C76)=Q$6,$E76/INDIRECT("F"&$Y76)*INDIRECT("E"&$Y76),"")) ->  | R76: =IF(OR(ISBLANK($C76),$Y76=""),"",IF(MONTH($C76)=R$6,$E76/INDIRECT("F"&$Y76)*INDIRECT("E"&$Y76),"")) ->  | S76: =IF(OR(ISBLANK($C76),$Y76=""),"",IF(MONTH($C76)=S$6,$E76/INDIRECT("F"&$Y76)*INDIRECT("E"&$Y76),"")) ->  | T76: =IF(OR(ISBLANK($C76),$Y76=""),"",IF(MONTH($C76)=T$6,$E76/INDIRECT("F"&$Y76)*INDIRECT("E"&$Y76),"")) ->  | U76: =IF(OR(ISBLANK($C76),$Y76=""),"",IF(MONTH($C76)=U$6,$E76/INDIRECT("F"&$Y76)*INDIRECT("E"&$Y76),"")) ->  | V76: =IF(OR(ISBLANK($C76),$Y76=""),"",IF(MONTH($C76)=V$6,$E76/INDIRECT("F"&$Y76)*INDIRECT("E"&$Y76),"")) ->  | X76: 69 | Y76: 69
I77: 0 | K77: =IF(OR(ISBLANK($C77),$Y77=""),"",IF(MONTH($C77)=K$6,$E77/INDIRECT("F"&$Y77)*INDIRECT("E"&$Y77),"")) ->  | L77: =IF(OR(ISBLANK($C77),$Y77=""),"",IF(MONTH($C77)=L$6,$E77/INDIRECT("F"&$Y77)*INDIRECT("E"&$Y77),"")) ->  | M77: =IF(OR(ISBLANK($C77),$Y77=""),"",IF(MONTH($C77)=M$6,$E77/INDIRECT("F"&$Y77)*INDIRECT("E"&$Y77),"")) ->  | N77: =IF(OR(ISBLANK($C77),$Y77=""),"",IF(MONTH($C77)=N$6,$E77/INDIRECT("F"&$Y77)*INDIRECT("E"&$Y77),"")) ->  | O77: =IF(OR(ISBLANK($C77),$Y77=""),"",IF(MONTH($C77)=O$6,$E77/INDIRECT("F"&$Y77)*INDIRECT("E"&$Y77),"")) ->  | P77: =IF(OR(ISBLANK($C77),$Y77=""),"",IF(MONTH($C77)=P$6,$E77/INDIRECT("F"&$Y77)*INDIRECT("E"&$Y77),"")) ->  | Q77: =IF(OR(ISBLANK($C77),$Y77=""),"",IF(MONTH($C77)=Q$6,$E77/INDIRECT("F"&$Y77)*INDIRECT("E"&$Y77),"")) ->  | R77: =IF(OR(ISBLANK($C77),$Y77=""),"",IF(MONTH($C77)=R$6,$E77/INDIRECT("F"&$Y77)*INDIRECT("E"&$Y77),"")) ->  | S77: =IF(OR(ISBLANK($C77),$Y77=""),"",IF(MONTH($C77)=S$6,$E77/INDIRECT("F"&$Y77)*INDIRECT("E"&$Y77),"")) ->  | T77: =IF(OR(ISBLANK($C77),$Y77=""),"",IF(MONTH($C77)=T$6,$E77/INDIRECT("F"&$Y77)*INDIRECT("E"&$Y77),"")) ->  | U77: =IF(OR(ISBLANK($C77),$Y77=""),"",IF(MONTH($C77)=U$6,$E77/INDIRECT("F"&$Y77)*INDIRECT("E"&$Y77),"")) ->  | V77: =IF(OR(ISBLANK($C77),$Y77=""),"",IF(MONTH($C77)=V$6,$E77/INDIRECT("F"&$Y77)*INDIRECT("E"&$Y77),"")) ->  | X77: 69 | Y77: 69
I78: 0 | K78: =IF(OR(ISBLANK($C78),$Y78=""),"",IF(MONTH($C78)=K$6,$E78/INDIRECT("F"&$Y78)*INDIRECT("E"&$Y78),"")) ->  | L78: =IF(OR(ISBLANK($C78),$Y78=""),"",IF(MONTH($C78)=L$6,$E78/INDIRECT("F"&$Y78)*INDIRECT("E"&$Y78),"")) ->  | M78: =IF(OR(ISBLANK($C78),$Y78=""),"",IF(MONTH($C78)=M$6,$E78/INDIRECT("F"&$Y78)*INDIRECT("E"&$Y78),"")) ->  | N78: =IF(OR(ISBLANK($C78),$Y78=""),"",IF(MONTH($C78)=N$6,$E78/INDIRECT("F"&$Y78)*INDIRECT("E"&$Y78),"")) ->  | O78: =IF(OR(ISBLANK($C78),$Y78=""),"",IF(MONTH($C78)=O$6,$E78/INDIRECT("F"&$Y78)*INDIRECT("E"&$Y78),"")) ->  | P78: =IF(OR(ISBLANK($C78),$Y78=""),"",IF(MONTH($C78)=P$6,$E78/INDIRECT("F"&$Y78)*INDIRECT("E"&$Y78),"")) ->  | Q78: =IF(OR(ISBLANK($C78),$Y78=""),"",IF(MONTH($C78)=Q$6,$E78/INDIRECT("F"&$Y78)*INDIRECT("E"&$Y78),"")) ->  | R78: =IF(OR(ISBLANK($C78),$Y78=""),"",IF(MONTH($C78)=R$6,$E78/INDIRECT("F"&$Y78)*INDIRECT("E"&$Y78),"")) ->  | S78: =IF(OR(ISBLANK($C78),$Y78=""),"",IF(MONTH($C78)=S$6,$E78/INDIRECT("F"&$Y78)*INDIRECT("E"&$Y78),"")) ->  | T78: =IF(OR(ISBLANK($C78),$Y78=""),"",IF(MONTH($C78)=T$6,$E78/INDIRECT("F"&$Y78)*INDIRECT("E"&$Y78),"")) ->  | U78: =IF(OR(ISBLANK($C78),$Y78=""),"",IF(MONTH($C78)=U$6,$E78/INDIRECT("F"&$Y78)*INDIRECT("E"&$Y78),"")) ->  | V78: =IF(OR(ISBLANK($C78),$Y78=""),"",IF(MONTH($C78)=V$6,$E78/INDIRECT("F"&$Y78)*INDIRECT("E"&$Y78),"")) ->  | X78: 69 | Y78: 69
I79: 0 | K79: =IF(OR(ISBLANK($C79),$Y79=""),"",IF(MONTH($C79)=K$6,$E79/INDIRECT("F"&$Y79)*INDIRECT("E"&$Y79),"")) ->  | L79: =IF(OR(ISBLANK($C79),$Y79=""),"",IF(MONTH($C79)=L$6,$E79/INDIRECT("F"&$Y79)*INDIRECT("E"&$Y79),"")) ->  | M79: =IF(OR(ISBLANK($C79),$Y79=""),"",IF(MONTH($C79)=M$6,$E79/INDIRECT("F"&$Y79)*INDIRECT("E"&$Y79),"")) ->  | N79: =IF(OR(ISBLANK($C79),$Y79=""),"",IF(MONTH($C79)=N$6,$E79/INDIRECT("F"&$Y79)*INDIRECT("E"&$Y79),"")) ->  | O79: =IF(OR(ISBLANK($C79),$Y79=""),"",IF(MONTH($C79)=O$6,$E79/INDIRECT("F"&$Y79)*INDIRECT("E"&$Y79),"")) ->  | P79: =IF(OR(ISBLANK($C79),$Y79=""),"",IF(MONTH($C79)=P$6,$E79/INDIRECT("F"&$Y79)*INDIRECT("E"&$Y79),"")) ->  | Q79: =IF(OR(ISBLANK($C79),$Y79=""),"",IF(MONTH($C79)=Q$6,$E79/INDIRECT("F"&$Y79)*INDIRECT("E"&$Y79),"")) ->  | R79: =IF(OR(ISBLANK($C79),$Y79=""),"",IF(MONTH($C79)=R$6,$E79/INDIRECT("F"&$Y79)*INDIRECT("E"&$Y79),"")) ->  | S79: =IF(OR(ISBLANK($C79),$Y79=""),"",IF(MONTH($C79)=S$6,$E79/INDIRECT("F"&$Y79)*INDIRECT("E"&$Y79),"")) ->  | T79: =IF(OR(ISBLANK($C79),$Y79=""),"",IF(MONTH($C79)=T$6,$E79/INDIRECT("F"&$Y79)*INDIRECT("E"&$Y79),"")) ->  | U79: =IF(OR(ISBLANK($C79),$Y79=""),"",IF(MONTH($C79)=U$6,$E79/INDIRECT("F"&$Y79)*INDIRECT("E"&$Y79),"")) ->  | V79: =IF(OR(ISBLANK($C79),$Y79=""),"",IF(MONTH($C79)=V$6,$E79/INDIRECT("F"&$Y79)*INDIRECT("E"&$Y79),"")) ->  | X79: 69 | Y79: 69
I80: 0 | K80: =IF(OR(ISBLANK($C80),$Y80=""),"",IF(MONTH($C80)=K$6,$E80/INDIRECT("F"&$Y80)*INDIRECT("E"&$Y80),"")) ->  | L80: =IF(OR(ISBLANK($C80),$Y80=""),"",IF(MONTH($C80)=L$6,$E80/INDIRECT("F"&$Y80)*INDIRECT("E"&$Y80),"")) ->  | M80: =IF(OR(ISBLANK($C80),$Y80=""),"",IF(MONTH($C80)=M$6,$E80/INDIRECT("F"&$Y80)*INDIRECT("E"&$Y80),"")) ->  | N80: =IF(OR(ISBLANK($C80),$Y80=""),"",IF(MONTH($C80)=N$6,$E80/INDIRECT("F"&$Y80)*INDIRECT("E"&$Y80),"")) ->  | O80: =IF(OR(ISBLANK($C80),$Y80=""),"",IF(MONTH($C80)=O$6,$E80/INDIRECT("F"&$Y80)*INDIRECT("E"&$Y80),"")) ->  | P80: =IF(OR(ISBLANK($C80),$Y80=""),"",IF(MONTH($C80)=P$6,$E80/INDIRECT("F"&$Y80)*INDIRECT("E"&$Y80),"")) ->  | Q80: =IF(OR(ISBLANK($C80),$Y80=""),"",IF(MONTH($C80)=Q$6,$E80/INDIRECT("F"&$Y80)*INDIRECT("E"&$Y80),"")) ->  | R80: =IF(OR(ISBLANK($C80),$Y80=""),"",IF(MONTH($C80)=R$6,$E80/INDIRECT("F"&$Y80)*INDIRECT("E"&$Y80),"")) ->  | S80: =IF(OR(ISBLANK($C80),$Y80=""),"",IF(MONTH($C80)=S$6,$E80/INDIRECT("F"&$Y80)*INDIRECT("E"&$Y80),"")) ->  | T80: =IF(OR(ISBLANK($C80),$Y80=""),"",IF(MONTH($C80)=T$6,$E80/INDIRECT("F"&$Y80)*INDIRECT("E"&$Y80),"")) ->  | U80: =IF(OR(ISBLANK($C80),$Y80=""),"",IF(MONTH($C80)=U$6,$E80/INDIRECT("F"&$Y80)*INDIRECT("E"&$Y80),"")) ->  | V80: =IF(OR(ISBLANK($C80),$Y80=""),"",IF(MONTH($C80)=V$6,$E80/INDIRECT("F"&$Y80)*INDIRECT("E"&$Y80),"")) ->  | X80: 69 | Y80: 69
H81: =IFERROR(I81/E81,0) -> 0 | I81: =SUM(I82:J92) -> 0 | K81: =IF(OR(ISBLANK($C81),$Y81=""),"",IF(MONTH($C81)=K$6,$E81/INDIRECT("F"&$Y81)*INDIRECT("E"&$Y81),"")) ->  | L81: =IF(OR(ISBLANK($C81),$Y81=""),"",IF(MONTH($C81)=L$6,$E81/INDIRECT("F"&$Y81)*INDIRECT("E"&$Y81),"")) ->  | M81: =IF(OR(ISBLANK($C81),$Y81=""),"",IF(MONTH($C81)=M$6,$E81/INDIRECT("F"&$Y81)*INDIRECT("E"&$Y81),"")) ->  | N81: =IF(OR(ISBLANK($C81),$Y81=""),"",IF(MONTH($C81)=N$6,$E81/INDIRECT("F"&$Y81)*INDIRECT("E"&$Y81),"")) ->  | O81: =IF(OR(ISBLANK($C81),$Y81=""),"",IF(MONTH($C81)=O$6,$E81/INDIRECT("F"&$Y81)*INDIRECT("E"&$Y81),"")) ->  | P81: =IF(OR(ISBLANK($C81),$Y81=""),"",IF(MONTH($C81)=P$6,$E81/INDIRECT("F"&$Y81)*INDIRECT("E"&$Y81),"")) ->  | Q81: =IF(OR(ISBLANK($C81),$Y81=""),"",IF(MONTH($C81)=Q$6,$E81/INDIRECT("F"&$Y81)*INDIRECT("E"&$Y81),"")) ->  | R81: =IF(OR(ISBLANK($C81),$Y81=""),"",IF(MONTH($C81)=R$6,$E81/INDIRECT("F"&$Y81)*INDIRECT("E"&$Y81),"")) ->  | S81: =IF(OR(ISBLANK($C81),$Y81=""),"",IF(MONTH($C81)=S$6,$E81/INDIRECT("F"&$Y81)*INDIRECT("E"&$Y81),"")) ->  | T81: =IF(OR(ISBLANK($C81),$Y81=""),"",IF(MONTH($C81)=T$6,$E81/INDIRECT("F"&$Y81)*INDIRECT("E"&$Y81),"")) ->  | U81: =IF(OR(ISBLANK($C81),$Y81=""),"",IF(MONTH($C81)=U$6,$E81/INDIRECT("F"&$Y81)*INDIRECT("E"&$Y81),"")) ->  | V81: =IF(OR(ISBLANK($C81),$Y81=""),"",IF(MONTH($C81)=V$6,$E81/INDIRECT("F"&$Y81)*INDIRECT("E"&$Y81),"")) ->  | W81: =IF(H81<>100%,"Niet ok","ok") -> Niet ok | X81: 81
B82: Factuurnummer | C82: Factuurdatum | D82: Omschrijving factuur | E82: Factuurbedrag | K82: =IF(OR(ISBLANK($C82),$Y82=""),"",IF(MONTH($C82)=K$6,$E82/INDIRECT("F"&$Y82)*INDIRECT("E"&$Y82),"")) ->  | L82: =IF(OR(ISBLANK($C82),$Y82=""),"",IF(MONTH($C82)=L$6,$E82/INDIRECT("F"&$Y82)*INDIRECT("E"&$Y82),"")) ->  | M82: =IF(OR(ISBLANK($C82),$Y82=""),"",IF(MONTH($C82)=M$6,$E82/INDIRECT("F"&$Y82)*INDIRECT("E"&$Y82),"")) ->  | N82: =IF(OR(ISBLANK($C82),$Y82=""),"",IF(MONTH($C82)=N$6,$E82/INDIRECT("F"&$Y82)*INDIRECT("E"&$Y82),"")) ->  | O82: =IF(OR(ISBLANK($C82),$Y82=""),"",IF(MONTH($C82)=O$6,$E82/INDIRECT("F"&$Y82)*INDIRECT("E"&$Y82),"")) ->  | P82: =IF(OR(ISBLANK($C82),$Y82=""),"",IF(MONTH($C82)=P$6,$E82/INDIRECT("F"&$Y82)*INDIRECT("E"&$Y82),"")) ->  | Q82: =IF(OR(ISBLANK($C82),$Y82=""),"",IF(MONTH($C82)=Q$6,$E82/INDIRECT("F"&$Y82)*INDIRECT("E"&$Y82),"")) ->  | R82: =IF(OR(ISBLANK($C82),$Y82=""),"",IF(MONTH($C82)=R$6,$E82/INDIRECT("F"&$Y82)*INDIRECT("E"&$Y82),"")) ->  | S82: =IF(OR(ISBLANK($C82),$Y82=""),"",IF(MONTH($C82)=S$6,$E82/INDIRECT("F"&$Y82)*INDIRECT("E"&$Y82),"")) ->  | T82: =IF(OR(ISBLANK($C82),$Y82=""),"",IF(MONTH($C82)=T$6,$E82/INDIRECT("F"&$Y82)*INDIRECT("E"&$Y82),"")) ->  | U82: =IF(OR(ISBLANK($C82),$Y82=""),"",IF(MONTH($C82)=U$6,$E82/INDIRECT("F"&$Y82)*INDIRECT("E"&$Y82),"")) ->  | V82: =IF(OR(ISBLANK($C82),$Y82=""),"",IF(MONTH($C82)=V$6,$E82/INDIRECT("F"&$Y82)*INDIRECT("E"&$Y82),"")) ->  | X82: 81
I83: =SUM(K83:V83) -> 0 | K83: =IF(OR(ISBLANK($C83),$Y83=""),"",IF(MONTH($C83)=K$6,$E83/INDIRECT("F"&$Y83)*INDIRECT("E"&$Y83),"")) ->  | L83: =IF(OR(ISBLANK($C83),$Y83=""),"",IF(MONTH($C83)=L$6,$E83/INDIRECT("F"&$Y83)*INDIRECT("E"&$Y83),"")) ->  | M83: =IF(OR(ISBLANK($C83),$Y83=""),"",IF(MONTH($C83)=M$6,$E83/INDIRECT("F"&$Y83)*INDIRECT("E"&$Y83),"")) ->  | N83: =IF(OR(ISBLANK($C83),$Y83=""),"",IF(MONTH($C83)=N$6,$E83/INDIRECT("F"&$Y83)*INDIRECT("E"&$Y83),"")) ->  | O83: =IF(OR(ISBLANK($C83),$Y83=""),"",IF(MONTH($C83)=O$6,$E83/INDIRECT("F"&$Y83)*INDIRECT("E"&$Y83),"")) ->  | P83: =IF(OR(ISBLANK($C83),$Y83=""),"",IF(MONTH($C83)=P$6,$E83/INDIRECT("F"&$Y83)*INDIRECT("E"&$Y83),"")) ->  | Q83: =IF(OR(ISBLANK($C83),$Y83=""),"",IF(MONTH($C83)=Q$6,$E83/INDIRECT("F"&$Y83)*INDIRECT("E"&$Y83),"")) ->  | R83: =IF(OR(ISBLANK($C83),$Y83=""),"",IF(MONTH($C83)=R$6,$E83/INDIRECT("F"&$Y83)*INDIRECT("E"&$Y83),"")) ->  | S83: =IF(OR(ISBLANK($C83),$Y83=""),"",IF(MONTH($C83)=S$6,$E83/INDIRECT("F"&$Y83)*INDIRECT("E"&$Y83),"")) ->  | T83: =IF(OR(ISBLANK($C83),$Y83=""),"",IF(MONTH($C83)=T$6,$E83/INDIRECT("F"&$Y83)*INDIRECT("E"&$Y83),"")) ->  | U83: =IF(OR(ISBLANK($C83),$Y83=""),"",IF(MONTH($C83)=U$6,$E83/INDIRECT("F"&$Y83)*INDIRECT("E"&$Y83),"")) ->  | V83: =IF(OR(ISBLANK($C83),$Y83=""),"",IF(MONTH($C83)=V$6,$E83/INDIRECT("F"&$Y83)*INDIRECT("E"&$Y83),"")) ->  | X83: 81 | Y83: 81
I84: 0 | K84: =IF(OR(ISBLANK($C84),$Y84=""),"",IF(MONTH($C84)=K$6,$E84/INDIRECT("F"&$Y84)*INDIRECT("E"&$Y84),"")) ->  | L84: =IF(OR(ISBLANK($C84),$Y84=""),"",IF(MONTH($C84)=L$6,$E84/INDIRECT("F"&$Y84)*INDIRECT("E"&$Y84),"")) ->  | M84: =IF(OR(ISBLANK($C84),$Y84=""),"",IF(MONTH($C84)=M$6,$E84/INDIRECT("F"&$Y84)*INDIRECT("E"&$Y84),"")) ->  | N84: =IF(OR(ISBLANK($C84),$Y84=""),"",IF(MONTH($C84)=N$6,$E84/INDIRECT("F"&$Y84)*INDIRECT("E"&$Y84),"")) ->  | O84: =IF(OR(ISBLANK($C84),$Y84=""),"",IF(MONTH($C84)=O$6,$E84/INDIRECT("F"&$Y84)*INDIRECT("E"&$Y84),"")) ->  | P84: =IF(OR(ISBLANK($C84),$Y84=""),"",IF(MONTH($C84)=P$6,$E84/INDIRECT("F"&$Y84)*INDIRECT("E"&$Y84),"")) ->  | Q84: =IF(OR(ISBLANK($C84),$Y84=""),"",IF(MONTH($C84)=Q$6,$E84/INDIRECT("F"&$Y84)*INDIRECT("E"&$Y84),"")) ->  | R84: =IF(OR(ISBLANK($C84),$Y84=""),"",IF(MONTH($C84)=R$6,$E84/INDIRECT("F"&$Y84)*INDIRECT("E"&$Y84),"")) ->  | S84: =IF(OR(ISBLANK($C84),$Y84=""),"",IF(MONTH($C84)=S$6,$E84/INDIRECT("F"&$Y84)*INDIRECT("E"&$Y84),"")) ->  | T84: =IF(OR(ISBLANK($C84),$Y84=""),"",IF(MONTH($C84)=T$6,$E84/INDIRECT("F"&$Y84)*INDIRECT("E"&$Y84),"")) ->  | U84: =IF(OR(ISBLANK($C84),$Y84=""),"",IF(MONTH($C84)=U$6,$E84/INDIRECT("F"&$Y84)*INDIRECT("E"&$Y84),"")) ->  | V84: =IF(OR(ISBLANK($C84),$Y84=""),"",IF(MONTH($C84)=V$6,$E84/INDIRECT("F"&$Y84)*INDIRECT("E"&$Y84),"")) ->  | X84: 81 | Y84: 81
I85: 0 | K85: =IF(OR(ISBLANK($C85),$Y85=""),"",IF(MONTH($C85)=K$6,$E85/INDIRECT("F"&$Y85)*INDIRECT("E"&$Y85),"")) ->  | L85: =IF(OR(ISBLANK($C85),$Y85=""),"",IF(MONTH($C85)=L$6,$E85/INDIRECT("F"&$Y85)*INDIRECT("E"&$Y85),"")) ->  | M85: =IF(OR(ISBLANK($C85),$Y85=""),"",IF(MONTH($C85)=M$6,$E85/INDIRECT("F"&$Y85)*INDIRECT("E"&$Y85),"")) ->  | N85: =IF(OR(ISBLANK($C85),$Y85=""),"",IF(MONTH($C85)=N$6,$E85/INDIRECT("F"&$Y85)*INDIRECT("E"&$Y85),"")) ->  | O85: =IF(OR(ISBLANK($C85),$Y85=""),"",IF(MONTH($C85)=O$6,$E85/INDIRECT("F"&$Y85)*INDIRECT("E"&$Y85),"")) ->  | P85: =IF(OR(ISBLANK($C85),$Y85=""),"",IF(MONTH($C85)=P$6,$E85/INDIRECT("F"&$Y85)*INDIRECT("E"&$Y85),"")) ->  | Q85: =IF(OR(ISBLANK($C85),$Y85=""),"",IF(MONTH($C85)=Q$6,$E85/INDIRECT("F"&$Y85)*INDIRECT("E"&$Y85),"")) ->  | R85: =IF(OR(ISBLANK($C85),$Y85=""),"",IF(MONTH($C85)=R$6,$E85/INDIRECT("F"&$Y85)*INDIRECT("E"&$Y85),"")) ->  | S85: =IF(OR(ISBLANK($C85),$Y85=""),"",IF(MONTH($C85)=S$6,$E85/INDIRECT("F"&$Y85)*INDIRECT("E"&$Y85),"")) ->  | T85: =IF(OR(ISBLANK($C85),$Y85=""),"",IF(MONTH($C85)=T$6,$E85/INDIRECT("F"&$Y85)*INDIRECT("E"&$Y85),"")) ->  | U85: =IF(OR(ISBLANK($C85),$Y85=""),"",IF(MONTH($C85)=U$6,$E85/INDIRECT("F"&$Y85)*INDIRECT("E"&$Y85),"")) ->  | V85: =IF(OR(ISBLANK($C85),$Y85=""),"",IF(MONTH($C85)=V$6,$E85/INDIRECT("F"&$Y85)*INDIRECT("E"&$Y85),"")) ->  | X85: 81 | Y85: 81
I86: 0 | K86: =IF(OR(ISBLANK($C86),$Y86=""),"",IF(MONTH($C86)=K$6,$E86/INDIRECT("F"&$Y86)*INDIRECT("E"&$Y86),"")) ->  | L86: =IF(OR(ISBLANK($C86),$Y86=""),"",IF(MONTH($C86)=L$6,$E86/INDIRECT("F"&$Y86)*INDIRECT("E"&$Y86),"")) ->  | M86: =IF(OR(ISBLANK($C86),$Y86=""),"",IF(MONTH($C86)=M$6,$E86/INDIRECT("F"&$Y86)*INDIRECT("E"&$Y86),"")) ->  | N86: =IF(OR(ISBLANK($C86),$Y86=""),"",IF(MONTH($C86)=N$6,$E86/INDIRECT("F"&$Y86)*INDIRECT("E"&$Y86),"")) ->  | O86: =IF(OR(ISBLANK($C86),$Y86=""),"",IF(MONTH($C86)=O$6,$E86/INDIRECT("F"&$Y86)*INDIRECT("E"&$Y86),"")) ->  | P86: =IF(OR(ISBLANK($C86),$Y86=""),"",IF(MONTH($C86)=P$6,$E86/INDIRECT("F"&$Y86)*INDIRECT("E"&$Y86),"")) ->  | Q86: =IF(OR(ISBLANK($C86),$Y86=""),"",IF(MONTH($C86)=Q$6,$E86/INDIRECT("F"&$Y86)*INDIRECT("E"&$Y86),"")) ->  | R86: =IF(OR(ISBLANK($C86),$Y86=""),"",IF(MONTH($C86)=R$6,$E86/INDIRECT("F"&$Y86)*INDIRECT("E"&$Y86),"")) ->  | S86: =IF(OR(ISBLANK($C86),$Y86=""),"",IF(MONTH($C86)=S$6,$E86/INDIRECT("F"&$Y86)*INDIRECT("E"&$Y86),"")) ->  | T86: =IF(OR(ISBLANK($C86),$Y86=""),"",IF(MONTH($C86)=T$6,$E86/INDIRECT("F"&$Y86)*INDIRECT("E"&$Y86),"")) ->  | U86: =IF(OR(ISBLANK($C86),$Y86=""),"",IF(MONTH($C86)=U$6,$E86/INDIRECT("F"&$Y86)*INDIRECT("E"&$Y86),"")) ->  | V86: =IF(OR(ISBLANK($C86),$Y86=""),"",IF(MONTH($C86)=V$6,$E86/INDIRECT("F"&$Y86)*INDIRECT("E"&$Y86),"")) ->  | X86: 81 | Y86: 81
I87: 0 | K87: =IF(OR(ISBLANK($C87),$Y87=""),"",IF(MONTH($C87)=K$6,$E87/INDIRECT("F"&$Y87)*INDIRECT("E"&$Y87),"")) ->  | L87: =IF(OR(ISBLANK($C87),$Y87=""),"",IF(MONTH($C87)=L$6,$E87/INDIRECT("F"&$Y87)*INDIRECT("E"&$Y87),"")) ->  | M87: =IF(OR(ISBLANK($C87),$Y87=""),"",IF(MONTH($C87)=M$6,$E87/INDIRECT("F"&$Y87)*INDIRECT("E"&$Y87),"")) ->  | N87: =IF(OR(ISBLANK($C87),$Y87=""),"",IF(MONTH($C87)=N$6,$E87/INDIRECT("F"&$Y87)*INDIRECT("E"&$Y87),"")) ->  | O87: =IF(OR(ISBLANK($C87),$Y87=""),"",IF(MONTH($C87)=O$6,$E87/INDIRECT("F"&$Y87)*INDIRECT("E"&$Y87),"")) ->  | P87: =IF(OR(ISBLANK($C87),$Y87=""),"",IF(MONTH($C87)=P$6,$E87/INDIRECT("F"&$Y87)*INDIRECT("E"&$Y87),"")) ->  | Q87: =IF(OR(ISBLANK($C87),$Y87=""),"",IF(MONTH($C87)=Q$6,$E87/INDIRECT("F"&$Y87)*INDIRECT("E"&$Y87),"")) ->  | R87: =IF(OR(ISBLANK($C87),$Y87=""),"",IF(MONTH($C87)=R$6,$E87/INDIRECT("F"&$Y87)*INDIRECT("E"&$Y87),"")) ->  | S87: =IF(OR(ISBLANK($C87),$Y87=""),"",IF(MONTH($C87)=S$6,$E87/INDIRECT("F"&$Y87)*INDIRECT("E"&$Y87),"")) ->  | T87: =IF(OR(ISBLANK($C87),$Y87=""),"",IF(MONTH($C87)=T$6,$E87/INDIRECT("F"&$Y87)*INDIRECT("E"&$Y87),"")) ->  | U87: =IF(OR(ISBLANK($C87),$Y87=""),"",IF(MONTH($C87)=U$6,$E87/INDIRECT("F"&$Y87)*INDIRECT("E"&$Y87),"")) ->  | V87: =IF(OR(ISBLANK($C87),$Y87=""),"",IF(MONTH($C87)=V$6,$E87/INDIRECT("F"&$Y87)*INDIRECT("E"&$Y87),"")) ->  | X87: 81 | Y87: 81
I88: 0 | K88: =IF(OR(ISBLANK($C88),$Y88=""),"",IF(MONTH($C88)=K$6,$E88/INDIRECT("F"&$Y88)*INDIRECT("E"&$Y88),"")) ->  | L88: =IF(OR(ISBLANK($C88),$Y88=""),"",IF(MONTH($C88)=L$6,$E88/INDIRECT("F"&$Y88)*INDIRECT("E"&$Y88),"")) ->  | M88: =IF(OR(ISBLANK($C88),$Y88=""),"",IF(MONTH($C88)=M$6,$E88/INDIRECT("F"&$Y88)*INDIRECT("E"&$Y88),"")) ->  | N88: =IF(OR(ISBLANK($C88),$Y88=""),"",IF(MONTH($C88)=N$6,$E88/INDIRECT("F"&$Y88)*INDIRECT("E"&$Y88),"")) ->  | O88: =IF(OR(ISBLANK($C88),$Y88=""),"",IF(MONTH($C88)=O$6,$E88/INDIRECT("F"&$Y88)*INDIRECT("E"&$Y88),"")) ->  | P88: =IF(OR(ISBLANK($C88),$Y88=""),"",IF(MONTH($C88)=P$6,$E88/INDIRECT("F"&$Y88)*INDIRECT("E"&$Y88),"")) ->  | Q88: =IF(OR(ISBLANK($C88),$Y88=""),"",IF(MONTH($C88)=Q$6,$E88/INDIRECT("F"&$Y88)*INDIRECT("E"&$Y88),"")) ->  | R88: =IF(OR(ISBLANK($C88),$Y88=""),"",IF(MONTH($C88)=R$6,$E88/INDIRECT("F"&$Y88)*INDIRECT("E"&$Y88),"")) ->  | S88: =IF(OR(ISBLANK($C88),$Y88=""),"",IF(MONTH($C88)=S$6,$E88/INDIRECT("F"&$Y88)*INDIRECT("E"&$Y88),"")) ->  | T88: =IF(OR(ISBLANK($C88),$Y88=""),"",IF(MONTH($C88)=T$6,$E88/INDIRECT("F"&$Y88)*INDIRECT("E"&$Y88),"")) ->  | U88: =IF(OR(ISBLANK($C88),$Y88=""),"",IF(MONTH($C88)=U$6,$E88/INDIRECT("F"&$Y88)*INDIRECT("E"&$Y88),"")) ->  | V88: =IF(OR(ISBLANK($C88),$Y88=""),"",IF(MONTH($C88)=V$6,$E88/INDIRECT("F"&$Y88)*INDIRECT("E"&$Y88),"")) ->  | X88: 81 | Y88: 81
I89: 0 | K89: =IF(OR(ISBLANK($C89),$Y89=""),"",IF(MONTH($C89)=K$6,$E89/INDIRECT("F"&$Y89)*INDIRECT("E"&$Y89),"")) ->  | L89: =IF(OR(ISBLANK($C89),$Y89=""),"",IF(MONTH($C89)=L$6,$E89/INDIRECT("F"&$Y89)*INDIRECT("E"&$Y89),"")) ->  | M89: =IF(OR(ISBLANK($C89),$Y89=""),"",IF(MONTH($C89)=M$6,$E89/INDIRECT("F"&$Y89)*INDIRECT("E"&$Y89),"")) ->  | N89: =IF(OR(ISBLANK($C89),$Y89=""),"",IF(MONTH($C89)=N$6,$E89/INDIRECT("F"&$Y89)*INDIRECT("E"&$Y89),"")) ->  | O89: =IF(OR(ISBLANK($C89),$Y89=""),"",IF(MONTH($C89)=O$6,$E89/INDIRECT("F"&$Y89)*INDIRECT("E"&$Y89),"")) ->  | P89: =IF(OR(ISBLANK($C89),$Y89=""),"",IF(MONTH($C89)=P$6,$E89/INDIRECT("F"&$Y89)*INDIRECT("E"&$Y89),"")) ->  | Q89: =IF(OR(ISBLANK($C89),$Y89=""),"",IF(MONTH($C89)=Q$6,$E89/INDIRECT("F"&$Y89)*INDIRECT("E"&$Y89),"")) ->  | R89: =IF(OR(ISBLANK($C89),$Y89=""),"",IF(MONTH($C89)=R$6,$E89/INDIRECT("F"&$Y89)*INDIRECT("E"&$Y89),"")) ->  | S89: =IF(OR(ISBLANK($C89),$Y89=""),"",IF(MONTH($C89)=S$6,$E89/INDIRECT("F"&$Y89)*INDIRECT("E"&$Y89),"")) ->  | T89: =IF(OR(ISBLANK($C89),$Y89=""),"",IF(MONTH($C89)=T$6,$E89/INDIRECT("F"&$Y89)*INDIRECT("E"&$Y89),"")) ->  | U89: =IF(OR(ISBLANK($C89),$Y89=""),"",IF(MONTH($C89)=U$6,$E89/INDIRECT("F"&$Y89)*INDIRECT("E"&$Y89),"")) ->  | V89: =IF(OR(ISBLANK($C89),$Y89=""),"",IF(MONTH($C89)=V$6,$E89/INDIRECT("F"&$Y89)*INDIRECT("E"&$Y89),"")) ->  | X89: 81 | Y89: 81
I90: 0 | K90: =IF(OR(ISBLANK($C90),$Y90=""),"",IF(MONTH($C90)=K$6,$E90/INDIRECT("F"&$Y90)*INDIRECT("E"&$Y90),"")) ->  | L90: =IF(OR(ISBLANK($C90),$Y90=""),"",IF(MONTH($C90)=L$6,$E90/INDIRECT("F"&$Y90)*INDIRECT("E"&$Y90),"")) ->  | M90: =IF(OR(ISBLANK($C90),$Y90=""),"",IF(MONTH($C90)=M$6,$E90/INDIRECT("F"&$Y90)*INDIRECT("E"&$Y90),"")) ->  | N90: =IF(OR(ISBLANK($C90),$Y90=""),"",IF(MONTH($C90)=N$6,$E90/INDIRECT("F"&$Y90)*INDIRECT("E"&$Y90),"")) ->  | O90: =IF(OR(ISBLANK($C90),$Y90=""),"",IF(MONTH($C90)=O$6,$E90/INDIRECT("F"&$Y90)*INDIRECT("E"&$Y90),"")) ->  | P90: =IF(OR(ISBLANK($C90),$Y90=""),"",IF(MONTH($C90)=P$6,$E90/INDIRECT("F"&$Y90)*INDIRECT("E"&$Y90),"")) ->  | Q90: =IF(OR(ISBLANK($C90),$Y90=""),"",IF(MONTH($C90)=Q$6,$E90/INDIRECT("F"&$Y90)*INDIRECT("E"&$Y90),"")) ->  | R90: =IF(OR(ISBLANK($C90),$Y90=""),"",IF(MONTH($C90)=R$6,$E90/INDIRECT("F"&$Y90)*INDIRECT("E"&$Y90),"")) ->  | S90: =IF(OR(ISBLANK($C90),$Y90=""),"",IF(MONTH($C90)=S$6,$E90/INDIRECT("F"&$Y90)*INDIRECT("E"&$Y90),"")) ->  | T90: =IF(OR(ISBLANK($C90),$Y90=""),"",IF(MONTH($C90)=T$6,$E90/INDIRECT("F"&$Y90)*INDIRECT("E"&$Y90),"")) ->  | U90: =IF(OR(ISBLANK($C90),$Y90=""),"",IF(MONTH($C90)=U$6,$E90/INDIRECT("F"&$Y90)*INDIRECT("E"&$Y90),"")) ->  | V90: =IF(OR(ISBLANK($C90),$Y90=""),"",IF(MONTH($C90)=V$6,$E90/INDIRECT("F"&$Y90)*INDIRECT("E"&$Y90),"")) ->  | X90: 81 | Y90: 81
I91: 0 | K91: =IF(OR(ISBLANK($C91),$Y91=""),"",IF(MONTH($C91)=K$6,$E91/INDIRECT("F"&$Y91)*INDIRECT("E"&$Y91),"")) ->  | L91: =IF(OR(ISBLANK($C91),$Y91=""),"",IF(MONTH($C91)=L$6,$E91/INDIRECT("F"&$Y91)*INDIRECT("E"&$Y91),"")) ->  | M91: =IF(OR(ISBLANK($C91),$Y91=""),"",IF(MONTH($C91)=M$6,$E91/INDIRECT("F"&$Y91)*INDIRECT("E"&$Y91),"")) ->  | N91: =IF(OR(ISBLANK($C91),$Y91=""),"",IF(MONTH($C91)=N$6,$E91/INDIRECT("F"&$Y91)*INDIRECT("E"&$Y91),"")) ->  | O91: =IF(OR(ISBLANK($C91),$Y91=""),"",IF(MONTH($C91)=O$6,$E91/INDIRECT("F"&$Y91)*INDIRECT("E"&$Y91),"")) ->  | P91: =IF(OR(ISBLANK($C91),$Y91=""),"",IF(MONTH($C91)=P$6,$E91/INDIRECT("F"&$Y91)*INDIRECT("E"&$Y91),"")) ->  | Q91: =IF(OR(ISBLANK($C91),$Y91=""),"",IF(MONTH($C91)=Q$6,$E91/INDIRECT("F"&$Y91)*INDIRECT("E"&$Y91),"")) ->  | R91: =IF(OR(ISBLANK($C91),$Y91=""),"",IF(MONTH($C91)=R$6,$E91/INDIRECT("F"&$Y91)*INDIRECT("E"&$Y91),"")) ->  | S91: =IF(OR(ISBLANK($C91),$Y91=""),"",IF(MONTH($C91)=S$6,$E91/INDIRECT("F"&$Y91)*INDIRECT("E"&$Y91),"")) ->  | T91: =IF(OR(ISBLANK($C91),$Y91=""),"",IF(MONTH($C91)=T$6,$E91/INDIRECT("F"&$Y91)*INDIRECT("E"&$Y91),"")) ->  | U91: =IF(OR(ISBLANK($C91),$Y91=""),"",IF(MONTH($C91)=U$6,$E91/INDIRECT("F"&$Y91)*INDIRECT("E"&$Y91),"")) ->  | V91: =IF(OR(ISBLANK($C91),$Y91=""),"",IF(MONTH($C91)=V$6,$E91/INDIRECT("F"&$Y91)*INDIRECT("E"&$Y91),"")) ->  | X91: 81 | Y91: 81
I92: 0 | K92: =IF(OR(ISBLANK($C92),$Y92=""),"",IF(MONTH($C92)=K$6,$E92/INDIRECT("F"&$Y92)*INDIRECT("E"&$Y92),"")) ->  | L92: =IF(OR(ISBLANK($C92),$Y92=""),"",IF(MONTH($C92)=L$6,$E92/INDIRECT("F"&$Y92)*INDIRECT("E"&$Y92),"")) ->  | M92: =IF(OR(ISBLANK($C92),$Y92=""),"",IF(MONTH($C92)=M$6,$E92/INDIRECT("F"&$Y92)*INDIRECT("E"&$Y92),"")) ->  | N92: =IF(OR(ISBLANK($C92),$Y92=""),"",IF(MONTH($C92)=N$6,$E92/INDIRECT("F"&$Y92)*INDIRECT("E"&$Y92),"")) ->  | O92: =IF(OR(ISBLANK($C92),$Y92=""),"",IF(MONTH($C92)=O$6,$E92/INDIRECT("F"&$Y92)*INDIRECT("E"&$Y92),"")) ->  | P92: =IF(OR(ISBLANK($C92),$Y92=""),"",IF(MONTH($C92)=P$6,$E92/INDIRECT("F"&$Y92)*INDIRECT("E"&$Y92),"")) ->  | Q92: =IF(OR(ISBLANK($C92),$Y92=""),"",IF(MONTH($C92)=Q$6,$E92/INDIRECT("F"&$Y92)*INDIRECT("E"&$Y92),"")) ->  | R92: =IF(OR(ISBLANK($C92),$Y92=""),"",IF(MONTH($C92)=R$6,$E92/INDIRECT("F"&$Y92)*INDIRECT("E"&$Y92),"")) ->  | S92: =IF(OR(ISBLANK($C92),$Y92=""),"",IF(MONTH($C92)=S$6,$E92/INDIRECT("F"&$Y92)*INDIRECT("E"&$Y92),"")) ->  | T92: =IF(OR(ISBLANK($C92),$Y92=""),"",IF(MONTH($C92)=T$6,$E92/INDIRECT("F"&$Y92)*INDIRECT("E"&$Y92),"")) ->  | U92: =IF(OR(ISBLANK($C92),$Y92=""),"",IF(MONTH($C92)=U$6,$E92/INDIRECT("F"&$Y92)*INDIRECT("E"&$Y92),"")) ->  | V92: =IF(OR(ISBLANK($C92),$Y92=""),"",IF(MONTH($C92)=V$6,$E92/INDIRECT("F"&$Y92)*INDIRECT("E"&$Y92),"")) ->  | X92: 81 | Y92: 81
H93: =IFERROR(I93/E93,0) -> 0 | I93: =SUM(I94:J104) -> 0 | K93: =IF(OR(ISBLANK($C93),$Y93=""),"",IF(MONTH($C93)=K$6,$E93/INDIRECT("F"&$Y93)*INDIRECT("E"&$Y93),"")) ->  | L93: =IF(OR(ISBLANK($C93),$Y93=""),"",IF(MONTH($C93)=L$6,$E93/INDIRECT("F"&$Y93)*INDIRECT("E"&$Y93),"")) ->  | M93: =IF(OR(ISBLANK($C93),$Y93=""),"",IF(MONTH($C93)=M$6,$E93/INDIRECT("F"&$Y93)*INDIRECT("E"&$Y93),"")) ->  | N93: =IF(OR(ISBLANK($C93),$Y93=""),"",IF(MONTH($C93)=N$6,$E93/INDIRECT("F"&$Y93)*INDIRECT("E"&$Y93),"")) ->  | O93: =IF(OR(ISBLANK($C93),$Y93=""),"",IF(MONTH($C93)=O$6,$E93/INDIRECT("F"&$Y93)*INDIRECT("E"&$Y93),"")) ->  | P93: =IF(OR(ISBLANK($C93),$Y93=""),"",IF(MONTH($C93)=P$6,$E93/INDIRECT("F"&$Y93)*INDIRECT("E"&$Y93),"")) ->  | Q93: =IF(OR(ISBLANK($C93),$Y93=""),"",IF(MONTH($C93)=Q$6,$E93/INDIRECT("F"&$Y93)*INDIRECT("E"&$Y93),"")) ->  | R93: =IF(OR(ISBLANK($C93),$Y93=""),"",IF(MONTH($C93)=R$6,$E93/INDIRECT("F"&$Y93)*INDIRECT("E"&$Y93),"")) ->  | S93: =IF(OR(ISBLANK($C93),$Y93=""),"",IF(MONTH($C93)=S$6,$E93/INDIRECT("F"&$Y93)*INDIRECT("E"&$Y93),"")) ->  | T93: =IF(OR(ISBLANK($C93),$Y93=""),"",IF(MONTH($C93)=T$6,$E93/INDIRECT("F"&$Y93)*INDIRECT("E"&$Y93),"")) ->  | U93: =IF(OR(ISBLANK($C93),$Y93=""),"",IF(MONTH($C93)=U$6,$E93/INDIRECT("F"&$Y93)*INDIRECT("E"&$Y93),"")) ->  | V93: =IF(OR(ISBLANK($C93),$Y93=""),"",IF(MONTH($C93)=V$6,$E93/INDIRECT("F"&$Y93)*INDIRECT("E"&$Y93),"")) ->  | W93: =IF(H93<>100%,"Niet ok","ok") -> Niet ok | X93: 93
B94: Factuurnummer | C94: Factuurdatum | D94: Omschrijving factuur | E94: Factuurbedrag | K94: =IF(OR(ISBLANK($C94),$Y94=""),"",IF(MONTH($C94)=K$6,$E94/INDIRECT("F"&$Y94)*INDIRECT("E"&$Y94),"")) ->  | L94: =IF(OR(ISBLANK($C94),$Y94=""),"",IF(MONTH($C94)=L$6,$E94/INDIRECT("F"&$Y94)*INDIRECT("E"&$Y94),"")) ->  | M94: =IF(OR(ISBLANK($C94),$Y94=""),"",IF(MONTH($C94)=M$6,$E94/INDIRECT("F"&$Y94)*INDIRECT("E"&$Y94),"")) ->  | N94: =IF(OR(ISBLANK($C94),$Y94=""),"",IF(MONTH($C94)=N$6,$E94/INDIRECT("F"&$Y94)*INDIRECT("E"&$Y94),"")) ->  | O94: =IF(OR(ISBLANK($C94),$Y94=""),"",IF(MONTH($C94)=O$6,$E94/INDIRECT("F"&$Y94)*INDIRECT("E"&$Y94),"")) ->  | P94: =IF(OR(ISBLANK($C94),$Y94=""),"",IF(MONTH($C94)=P$6,$E94/INDIRECT("F"&$Y94)*INDIRECT("E"&$Y94),"")) ->  | Q94: =IF(OR(ISBLANK($C94),$Y94=""),"",IF(MONTH($C94)=Q$6,$E94/INDIRECT("F"&$Y94)*INDIRECT("E"&$Y94),"")) ->  | R94: =IF(OR(ISBLANK($C94),$Y94=""),"",IF(MONTH($C94)=R$6,$E94/INDIRECT("F"&$Y94)*INDIRECT("E"&$Y94),"")) ->  | S94: =IF(OR(ISBLANK($C94),$Y94=""),"",IF(MONTH($C94)=S$6,$E94/INDIRECT("F"&$Y94)*INDIRECT("E"&$Y94),"")) ->  | T94: =IF(OR(ISBLANK($C94),$Y94=""),"",IF(MONTH($C94)=T$6,$E94/INDIRECT("F"&$Y94)*INDIRECT("E"&$Y94),"")) ->  | U94: =IF(OR(ISBLANK($C94),$Y94=""),"",IF(MONTH($C94)=U$6,$E94/INDIRECT("F"&$Y94)*INDIRECT("E"&$Y94),"")) ->  | V94: =IF(OR(ISBLANK($C94),$Y94=""),"",IF(MONTH($C94)=V$6,$E94/INDIRECT("F"&$Y94)*INDIRECT("E"&$Y94),"")) ->  | X94: 93
I95: =SUM(K95:V95) -> 0 | K95: =IF(OR(ISBLANK($C95),$Y95=""),"",IF(MONTH($C95)=K$6,$E95/INDIRECT("F"&$Y95)*INDIRECT("E"&$Y95),"")) ->  | L95: =IF(OR(ISBLANK($C95),$Y95=""),"",IF(MONTH($C95)=L$6,$E95/INDIRECT("F"&$Y95)*INDIRECT("E"&$Y95),"")) ->  | M95: =IF(OR(ISBLANK($C95),$Y95=""),"",IF(MONTH($C95)=M$6,$E95/INDIRECT("F"&$Y95)*INDIRECT("E"&$Y95),"")) ->  | N95: =IF(OR(ISBLANK($C95),$Y95=""),"",IF(MONTH($C95)=N$6,$E95/INDIRECT("F"&$Y95)*INDIRECT("E"&$Y95),"")) ->  | O95: =IF(OR(ISBLANK($C95),$Y95=""),"",IF(MONTH($C95)=O$6,$E95/INDIRECT("F"&$Y95)*INDIRECT("E"&$Y95),"")) ->  | P95: =IF(OR(ISBLANK($C95),$Y95=""),"",IF(MONTH($C95)=P$6,$E95/INDIRECT("F"&$Y95)*INDIRECT("E"&$Y95),"")) ->  | Q95: =IF(OR(ISBLANK($C95),$Y95=""),"",IF(MONTH($C95)=Q$6,$E95/INDIRECT("F"&$Y95)*INDIRECT("E"&$Y95),"")) ->  | R95: =IF(OR(ISBLANK($C95),$Y95=""),"",IF(MONTH($C95)=R$6,$E95/INDIRECT("F"&$Y95)*INDIRECT("E"&$Y95),"")) ->  | S95: =IF(OR(ISBLANK($C95),$Y95=""),"",IF(MONTH($C95)=S$6,$E95/INDIRECT("F"&$Y95)*INDIRECT("E"&$Y95),"")) ->  | T95: =IF(OR(ISBLANK($C95),$Y95=""),"",IF(MONTH($C95)=T$6,$E95/INDIRECT("F"&$Y95)*INDIRECT("E"&$Y95),"")) ->  | U95: =IF(OR(ISBLANK($C95),$Y95=""),"",IF(MONTH($C95)=U$6,$E95/INDIRECT("F"&$Y95)*INDIRECT("E"&$Y95),"")) ->  | V95: =IF(OR(ISBLANK($C95),$Y95=""),"",IF(MONTH($C95)=V$6,$E95/INDIRECT("F"&$Y95)*INDIRECT("E"&$Y95),"")) ->  | X95: 93 | Y95: 93
I96: 0 | K96: =IF(OR(ISBLANK($C96),$Y96=""),"",IF(MONTH($C96)=K$6,$E96/INDIRECT("F"&$Y96)*INDIRECT("E"&$Y96),"")) ->  | L96: =IF(OR(ISBLANK($C96),$Y96=""),"",IF(MONTH($C96)=L$6,$E96/INDIRECT("F"&$Y96)*INDIRECT("E"&$Y96),"")) ->  | M96: =IF(OR(ISBLANK($C96),$Y96=""),"",IF(MONTH($C96)=M$6,$E96/INDIRECT("F"&$Y96)*INDIRECT("E"&$Y96),"")) ->  | N96: =IF(OR(ISBLANK($C96),$Y96=""),"",IF(MONTH($C96)=N$6,$E96/INDIRECT("F"&$Y96)*INDIRECT("E"&$Y96),"")) ->  | O96: =IF(OR(ISBLANK($C96),$Y96=""),"",IF(MONTH($C96)=O$6,$E96/INDIRECT("F"&$Y96)*INDIRECT("E"&$Y96),"")) ->  | P96: =IF(OR(ISBLANK($C96),$Y96=""),"",IF(MONTH($C96)=P$6,$E96/INDIRECT("F"&$Y96)*INDIRECT("E"&$Y96),"")) ->  | Q96: =IF(OR(ISBLANK($C96),$Y96=""),"",IF(MONTH($C96)=Q$6,$E96/INDIRECT("F"&$Y96)*INDIRECT("E"&$Y96),"")) ->  | R96: =IF(OR(ISBLANK($C96),$Y96=""),"",IF(MONTH($C96)=R$6,$E96/INDIRECT("F"&$Y96)*INDIRECT("E"&$Y96),"")) ->  | S96: =IF(OR(ISBLANK($C96),$Y96=""),"",IF(MONTH($C96)=S$6,$E96/INDIRECT("F"&$Y96)*INDIRECT("E"&$Y96),"")) ->  | T96: =IF(OR(ISBLANK($C96),$Y96=""),"",IF(MONTH($C96)=T$6,$E96/INDIRECT("F"&$Y96)*INDIRECT("E"&$Y96),"")) ->  | U96: =IF(OR(ISBLANK($C96),$Y96=""),"",IF(MONTH($C96)=U$6,$E96/INDIRECT("F"&$Y96)*INDIRECT("E"&$Y96),"")) ->  | V96: =IF(OR(ISBLANK($C96),$Y96=""),"",IF(MONTH($C96)=V$6,$E96/INDIRECT("F"&$Y96)*INDIRECT("E"&$Y96),"")) ->  | X96: 93 | Y96: 93
I97: 0 | K97: =IF(OR(ISBLANK($C97),$Y97=""),"",IF(MONTH($C97)=K$6,$E97/INDIRECT("F"&$Y97)*INDIRECT("E"&$Y97),"")) ->  | L97: =IF(OR(ISBLANK($C97),$Y97=""),"",IF(MONTH($C97)=L$6,$E97/INDIRECT("F"&$Y97)*INDIRECT("E"&$Y97),"")) ->  | M97: =IF(OR(ISBLANK($C97),$Y97=""),"",IF(MONTH($C97)=M$6,$E97/INDIRECT("F"&$Y97)*INDIRECT("E"&$Y97),"")) ->  | N97: =IF(OR(ISBLANK($C97),$Y97=""),"",IF(MONTH($C97)=N$6,$E97/INDIRECT("F"&$Y97)*INDIRECT("E"&$Y97),"")) ->  | O97: =IF(OR(ISBLANK($C97),$Y97=""),"",IF(MONTH($C97)=O$6,$E97/INDIRECT("F"&$Y97)*INDIRECT("E"&$Y97),"")) ->  | P97: =IF(OR(ISBLANK($C97),$Y97=""),"",IF(MONTH($C97)=P$6,$E97/INDIRECT("F"&$Y97)*INDIRECT("E"&$Y97),"")) ->  | Q97: =IF(OR(ISBLANK($C97),$Y97=""),"",IF(MONTH($C97)=Q$6,$E97/INDIRECT("F"&$Y97)*INDIRECT("E"&$Y97),"")) ->  | R97: =IF(OR(ISBLANK($C97),$Y97=""),"",IF(MONTH($C97)=R$6,$E97/INDIRECT("F"&$Y97)*INDIRECT("E"&$Y97),"")) ->  | S97: =IF(OR(ISBLANK($C97),$Y97=""),"",IF(MONTH($C97)=S$6,$E97/INDIRECT("F"&$Y97)*INDIRECT("E"&$Y97),"")) ->  | T97: =IF(OR(ISBLANK($C97),$Y97=""),"",IF(MONTH($C97)=T$6,$E97/INDIRECT("F"&$Y97)*INDIRECT("E"&$Y97),"")) ->  | U97: =IF(OR(ISBLANK($C97),$Y97=""),"",IF(MONTH($C97)=U$6,$E97/INDIRECT("F"&$Y97)*INDIRECT("E"&$Y97),"")) ->  | V97: =IF(OR(ISBLANK($C97),$Y97=""),"",IF(MONTH($C97)=V$6,$E97/INDIRECT("F"&$Y97)*INDIRECT("E"&$Y97),"")) ->  | X97: 93 | Y97: 93
I98: 0 | K98: =IF(OR(ISBLANK($C98),$Y98=""),"",IF(MONTH($C98)=K$6,$E98/INDIRECT("F"&$Y98)*INDIRECT("E"&$Y98),"")) ->  | L98: =IF(OR(ISBLANK($C98),$Y98=""),"",IF(MONTH($C98)=L$6,$E98/INDIRECT("F"&$Y98)*INDIRECT("E"&$Y98),"")) ->  | M98: =IF(OR(ISBLANK($C98),$Y98=""),"",IF(MONTH($C98)=M$6,$E98/INDIRECT("F"&$Y98)*INDIRECT("E"&$Y98),"")) ->  | N98: =IF(OR(ISBLANK($C98),$Y98=""),"",IF(MONTH($C98)=N$6,$E98/INDIRECT("F"&$Y98)*INDIRECT("E"&$Y98),"")) ->  | O98: =IF(OR(ISBLANK($C98),$Y98=""),"",IF(MONTH($C98)=O$6,$E98/INDIRECT("F"&$Y98)*INDIRECT("E"&$Y98),"")) ->  | P98: =IF(OR(ISBLANK($C98),$Y98=""),"",IF(MONTH($C98)=P$6,$E98/INDIRECT("F"&$Y98)*INDIRECT("E"&$Y98),"")) ->  | Q98: =IF(OR(ISBLANK($C98),$Y98=""),"",IF(MONTH($C98)=Q$6,$E98/INDIRECT("F"&$Y98)*INDIRECT("E"&$Y98),"")) ->  | R98: =IF(OR(ISBLANK($C98),$Y98=""),"",IF(MONTH($C98)=R$6,$E98/INDIRECT("F"&$Y98)*INDIRECT("E"&$Y98),"")) ->  | S98: =IF(OR(ISBLANK($C98),$Y98=""),"",IF(MONTH($C98)=S$6,$E98/INDIRECT("F"&$Y98)*INDIRECT("E"&$Y98),"")) ->  | T98: =IF(OR(ISBLANK($C98),$Y98=""),"",IF(MONTH($C98)=T$6,$E98/INDIRECT("F"&$Y98)*INDIRECT("E"&$Y98),"")) ->  | U98: =IF(OR(ISBLANK($C98),$Y98=""),"",IF(MONTH($C98)=U$6,$E98/INDIRECT("F"&$Y98)*INDIRECT("E"&$Y98),"")) ->  | V98: =IF(OR(ISBLANK($C98),$Y98=""),"",IF(MONTH($C98)=V$6,$E98/INDIRECT("F"&$Y98)*INDIRECT("E"&$Y98),"")) ->  | X98: 93 | Y98: 93
I99: 0 | K99: =IF(OR(ISBLANK($C99),$Y99=""),"",IF(MONTH($C99)=K$6,$E99/INDIRECT("F"&$Y99)*INDIRECT("E"&$Y99),"")) ->  | L99: =IF(OR(ISBLANK($C99),$Y99=""),"",IF(MONTH($C99)=L$6,$E99/INDIRECT("F"&$Y99)*INDIRECT("E"&$Y99),"")) ->  | M99: =IF(OR(ISBLANK($C99),$Y99=""),"",IF(MONTH($C99)=M$6,$E99/INDIRECT("F"&$Y99)*INDIRECT("E"&$Y99),"")) ->  | N99: =IF(OR(ISBLANK($C99),$Y99=""),"",IF(MONTH($C99)=N$6,$E99/INDIRECT("F"&$Y99)*INDIRECT("E"&$Y99),"")) ->  | O99: =IF(OR(ISBLANK($C99),$Y99=""),"",IF(MONTH($C99)=O$6,$E99/INDIRECT("F"&$Y99)*INDIRECT("E"&$Y99),"")) ->  | P99: =IF(OR(ISBLANK($C99),$Y99=""),"",IF(MONTH($C99)=P$6,$E99/INDIRECT("F"&$Y99)*INDIRECT("E"&$Y99),"")) ->  | Q99: =IF(OR(ISBLANK($C99),$Y99=""),"",IF(MONTH($C99)=Q$6,$E99/INDIRECT("F"&$Y99)*INDIRECT("E"&$Y99),"")) ->  | R99: =IF(OR(ISBLANK($C99),$Y99=""),"",IF(MONTH($C99)=R$6,$E99/INDIRECT("F"&$Y99)*INDIRECT("E"&$Y99),"")) ->  | S99: =IF(OR(ISBLANK($C99),$Y99=""),"",IF(MONTH($C99)=S$6,$E99/INDIRECT("F"&$Y99)*INDIRECT("E"&$Y99),"")) ->  | T99: =IF(OR(ISBLANK($C99),$Y99=""),"",IF(MONTH($C99)=T$6,$E99/INDIRECT("F"&$Y99)*INDIRECT("E"&$Y99),"")) ->  | U99: =IF(OR(ISBLANK($C99),$Y99=""),"",IF(MONTH($C99)=U$6,$E99/INDIRECT("F"&$Y99)*INDIRECT("E"&$Y99),"")) ->  | V99: =IF(OR(ISBLANK($C99),$Y99=""),"",IF(MONTH($C99)=V$6,$E99/INDIRECT("F"&$Y99)*INDIRECT("E"&$Y99),"")) ->  | X99: 93 | Y99: 93
I100: 0 | K100: =IF(OR(ISBLANK($C100),$Y100=""),"",IF(MONTH($C100)=K$6,$E100/INDIRECT("F"&$Y100)*INDIRECT("E"&$Y100),"")) ->  | L100: =IF(OR(ISBLANK($C100),$Y100=""),"",IF(MONTH($C100)=L$6,$E100/INDIRECT("F"&$Y100)*INDIRECT("E"&$Y100),"")) ->  | M100: =IF(OR(ISBLANK($C100),$Y100=""),"",IF(MONTH($C100)=M$6,$E100/INDIRECT("F"&$Y100)*INDIRECT("E"&$Y100),"")) ->  | N100: =IF(OR(ISBLANK($C100),$Y100=""),"",IF(MONTH($C100)=N$6,$E100/INDIRECT("F"&$Y100)*INDIRECT("E"&$Y100),"")) ->  | O100: =IF(OR(ISBLANK($C100),$Y100=""),"",IF(MONTH($C100)=O$6,$E100/INDIRECT("F"&$Y100)*INDIRECT("E"&$Y100),"")) ->  | P100: =IF(OR(ISBLANK($C100),$Y100=""),"",IF(MONTH($C100)=P$6,$E100/INDIRECT("F"&$Y100)*INDIRECT("E"&$Y100),"")) ->  | Q100: =IF(OR(ISBLANK($C100),$Y100=""),"",IF(MONTH($C100)=Q$6,$E100/INDIRECT("F"&$Y100)*INDIRECT("E"&$Y100),"")) ->  | R100: =IF(OR(ISBLANK($C100),$Y100=""),"",IF(MONTH($C100)=R$6,$E100/INDIRECT("F"&$Y100)*INDIRECT("E"&$Y100),"")) ->  | S100: =IF(OR(ISBLANK($C100),$Y100=""),"",IF(MONTH($C100)=S$6,$E100/INDIRECT("F"&$Y100)*INDIRECT("E"&$Y100),"")) ->  | T100: =IF(OR(ISBLANK($C100),$Y100=""),"",IF(MONTH($C100)=T$6,$E100/INDIRECT("F"&$Y100)*INDIRECT("E"&$Y100),"")) ->  | U100: =IF(OR(ISBLANK($C100),$Y100=""),"",IF(MONTH($C100)=U$6,$E100/INDIRECT("F"&$Y100)*INDIRECT("E"&$Y100),"")) ->  | V100: =IF(OR(ISBLANK($C100),$Y100=""),"",IF(MONTH($C100)=V$6,$E100/INDIRECT("F"&$Y100)*INDIRECT("E"&$Y100),"")) ->  | X100: 93 | Y100: 93
I101: 0 | K101: =IF(OR(ISBLANK($C101),$Y101=""),"",IF(MONTH($C101)=K$6,$E101/INDIRECT("F"&$Y101)*INDIRECT("E"&$Y101),"")) ->  | L101: =IF(OR(ISBLANK($C101),$Y101=""),"",IF(MONTH($C101)=L$6,$E101/INDIRECT("F"&$Y101)*INDIRECT("E"&$Y101),"")) ->  | M101: =IF(OR(ISBLANK($C101),$Y101=""),"",IF(MONTH($C101)=M$6,$E101/INDIRECT("F"&$Y101)*INDIRECT("E"&$Y101),"")) ->  | N101: =IF(OR(ISBLANK($C101),$Y101=""),"",IF(MONTH($C101)=N$6,$E101/INDIRECT("F"&$Y101)*INDIRECT("E"&$Y101),"")) ->  | O101: =IF(OR(ISBLANK($C101),$Y101=""),"",IF(MONTH($C101)=O$6,$E101/INDIRECT("F"&$Y101)*INDIRECT("E"&$Y101),"")) ->  | P101: =IF(OR(ISBLANK($C101),$Y101=""),"",IF(MONTH($C101)=P$6,$E101/INDIRECT("F"&$Y101)*INDIRECT("E"&$Y101),"")) ->  | Q101: =IF(OR(ISBLANK($C101),$Y101=""),"",IF(MONTH($C101)=Q$6,$E101/INDIRECT("F"&$Y101)*INDIRECT("E"&$Y101),"")) ->  | R101: =IF(OR(ISBLANK($C101),$Y101=""),"",IF(MONTH($C101)=R$6,$E101/INDIRECT("F"&$Y101)*INDIRECT("E"&$Y101),"")) ->  | S101: =IF(OR(ISBLANK($C101),$Y101=""),"",IF(MONTH($C101)=S$6,$E101/INDIRECT("F"&$Y101)*INDIRECT("E"&$Y101),"")) ->  | T101: =IF(OR(ISBLANK($C101),$Y101=""),"",IF(MONTH($C101)=T$6,$E101/INDIRECT("F"&$Y101)*INDIRECT("E"&$Y101),"")) ->  | U101: =IF(OR(ISBLANK($C101),$Y101=""),"",IF(MONTH($C101)=U$6,$E101/INDIRECT("F"&$Y101)*INDIRECT("E"&$Y101),"")) ->  | V101: =IF(OR(ISBLANK($C101),$Y101=""),"",IF(MONTH($C101)=V$6,$E101/INDIRECT("F"&$Y101)*INDIRECT("E"&$Y101),"")) ->  | X101: 93 | Y101: 93
I102: 0 | K102: =IF(OR(ISBLANK($C102),$Y102=""),"",IF(MONTH($C102)=K$6,$E102/INDIRECT("F"&$Y102)*INDIRECT("E"&$Y102),"")) ->  | L102: =IF(OR(ISBLANK($C102),$Y102=""),"",IF(MONTH($C102)=L$6,$E102/INDIRECT("F"&$Y102)*INDIRECT("E"&$Y102),"")) ->  | M102: =IF(OR(ISBLANK($C102),$Y102=""),"",IF(MONTH($C102)=M$6,$E102/INDIRECT("F"&$Y102)*INDIRECT("E"&$Y102),"")) ->  | N102: =IF(OR(ISBLANK($C102),$Y102=""),"",IF(MONTH($C102)=N$6,$E102/INDIRECT("F"&$Y102)*INDIRECT("E"&$Y102),"")) ->  | O102: =IF(OR(ISBLANK($C102),$Y102=""),"",IF(MONTH($C102)=O$6,$E102/INDIRECT("F"&$Y102)*INDIRECT("E"&$Y102),"")) ->  | P102: =IF(OR(ISBLANK($C102),$Y102=""),"",IF(MONTH($C102)=P$6,$E102/INDIRECT("F"&$Y102)*INDIRECT("E"&$Y102),"")) ->  | Q102: =IF(OR(ISBLANK($C102),$Y102=""),"",IF(MONTH($C102)=Q$6,$E102/INDIRECT("F"&$Y102)*INDIRECT("E"&$Y102),"")) ->  | R102: =IF(OR(ISBLANK($C102),$Y102=""),"",IF(MONTH($C102)=R$6,$E102/INDIRECT("F"&$Y102)*INDIRECT("E"&$Y102),"")) ->  | S102: =IF(OR(ISBLANK($C102),$Y102=""),"",IF(MONTH($C102)=S$6,$E102/INDIRECT("F"&$Y102)*INDIRECT("E"&$Y102),"")) ->  | T102: =IF(OR(ISBLANK($C102),$Y102=""),"",IF(MONTH($C102)=T$6,$E102/INDIRECT("F"&$Y102)*INDIRECT("E"&$Y102),"")) ->  | U102: =IF(OR(ISBLANK($C102),$Y102=""),"",IF(MONTH($C102)=U$6,$E102/INDIRECT("F"&$Y102)*INDIRECT("E"&$Y102),"")) ->  | V102: =IF(OR(ISBLANK($C102),$Y102=""),"",IF(MONTH($C102)=V$6,$E102/INDIRECT("F"&$Y102)*INDIRECT("E"&$Y102),"")) ->  | X102: 93 | Y102: 93
I103: 0 | K103: =IF(OR(ISBLANK($C103),$Y103=""),"",IF(MONTH($C103)=K$6,$E103/INDIRECT("F"&$Y103)*INDIRECT("E"&$Y103),"")) ->  | L103: =IF(OR(ISBLANK($C103),$Y103=""),"",IF(MONTH($C103)=L$6,$E103/INDIRECT("F"&$Y103)*INDIRECT("E"&$Y103),"")) ->  | M103: =IF(OR(ISBLANK($C103),$Y103=""),"",IF(MONTH($C103)=M$6,$E103/INDIRECT("F"&$Y103)*INDIRECT("E"&$Y103),"")) ->  | N103: =IF(OR(ISBLANK($C103),$Y103=""),"",IF(MONTH($C103)=N$6,$E103/INDIRECT("F"&$Y103)*INDIRECT("E"&$Y103),"")) ->  | O103: =IF(OR(ISBLANK($C103),$Y103=""),"",IF(MONTH($C103)=O$6,$E103/INDIRECT("F"&$Y103)*INDIRECT("E"&$Y103),"")) ->  | P103: =IF(OR(ISBLANK($C103),$Y103=""),"",IF(MONTH($C103)=P$6,$E103/INDIRECT("F"&$Y103)*INDIRECT("E"&$Y103),"")) ->  | Q103: =IF(OR(ISBLANK($C103),$Y103=""),"",IF(MONTH($C103)=Q$6,$E103/INDIRECT("F"&$Y103)*INDIRECT("E"&$Y103),"")) ->  | R103: =IF(OR(ISBLANK($C103),$Y103=""),"",IF(MONTH($C103)=R$6,$E103/INDIRECT("F"&$Y103)*INDIRECT("E"&$Y103),"")) ->  | S103: =IF(OR(ISBLANK($C103),$Y103=""),"",IF(MONTH($C103)=S$6,$E103/INDIRECT("F"&$Y103)*INDIRECT("E"&$Y103),"")) ->  | T103: =IF(OR(ISBLANK($C103),$Y103=""),"",IF(MONTH($C103)=T$6,$E103/INDIRECT("F"&$Y103)*INDIRECT("E"&$Y103),"")) ->  | U103: =IF(OR(ISBLANK($C103),$Y103=""),"",IF(MONTH($C103)=U$6,$E103/INDIRECT("F"&$Y103)*INDIRECT("E"&$Y103),"")) ->  | V103: =IF(OR(ISBLANK($C103),$Y103=""),"",IF(MONTH($C103)=V$6,$E103/INDIRECT("F"&$Y103)*INDIRECT("E"&$Y103),"")) ->  | X103: 93 | Y103: 93
I104: 0 | K104: =IF(OR(ISBLANK($C104),$Y104=""),"",IF(MONTH($C104)=K$6,$E104/INDIRECT("F"&$Y104)*INDIRECT("E"&$Y104),"")) ->  | L104: =IF(OR(ISBLANK($C104),$Y104=""),"",IF(MONTH($C104)=L$6,$E104/INDIRECT("F"&$Y104)*INDIRECT("E"&$Y104),"")) ->  | M104: =IF(OR(ISBLANK($C104),$Y104=""),"",IF(MONTH($C104)=M$6,$E104/INDIRECT("F"&$Y104)*INDIRECT("E"&$Y104),"")) ->  | N104: =IF(OR(ISBLANK($C104),$Y104=""),"",IF(MONTH($C104)=N$6,$E104/INDIRECT("F"&$Y104)*INDIRECT("E"&$Y104),"")) ->  | O104: =IF(OR(ISBLANK($C104),$Y104=""),"",IF(MONTH($C104)=O$6,$E104/INDIRECT("F"&$Y104)*INDIRECT("E"&$Y104),"")) ->  | P104: =IF(OR(ISBLANK($C104),$Y104=""),"",IF(MONTH($C104)=P$6,$E104/INDIRECT("F"&$Y104)*INDIRECT("E"&$Y104),"")) ->  | Q104: =IF(OR(ISBLANK($C104),$Y104=""),"",IF(MONTH($C104)=Q$6,$E104/INDIRECT("F"&$Y104)*INDIRECT("E"&$Y104),"")) ->  | R104: =IF(OR(ISBLANK($C104),$Y104=""),"",IF(MONTH($C104)=R$6,$E104/INDIRECT("F"&$Y104)*INDIRECT("E"&$Y104),"")) ->  | S104: =IF(OR(ISBLANK($C104),$Y104=""),"",IF(MONTH($C104)=S$6,$E104/INDIRECT("F"&$Y104)*INDIRECT("E"&$Y104),"")) ->  | T104: =IF(OR(ISBLANK($C104),$Y104=""),"",IF(MONTH($C104)=T$6,$E104/INDIRECT("F"&$Y104)*INDIRECT("E"&$Y104),"")) ->  | U104: =IF(OR(ISBLANK($C104),$Y104=""),"",IF(MONTH($C104)=U$6,$E104/INDIRECT("F"&$Y104)*INDIRECT("E"&$Y104),"")) ->  | V104: =IF(OR(ISBLANK($C104),$Y104=""),"",IF(MONTH($C104)=V$6,$E104/INDIRECT("F"&$Y104)*INDIRECT("E"&$Y104),"")) ->  | X104: 93 | Y104: 93
H105: =IFERROR(I105/E105,0) -> 0 | I105: =SUM(I106:J116) -> 0 | K105: =IF(OR(ISBLANK($C105),$Y105=""),"",IF(MONTH($C105)=K$6,$E105/INDIRECT("F"&$Y105)*INDIRECT("E"&$Y105),"")) ->  | L105: =IF(OR(ISBLANK($C105),$Y105=""),"",IF(MONTH($C105)=L$6,$E105/INDIRECT("F"&$Y105)*INDIRECT("E"&$Y105),"")) ->  | M105: =IF(OR(ISBLANK($C105),$Y105=""),"",IF(MONTH($C105)=M$6,$E105/INDIRECT("F"&$Y105)*INDIRECT("E"&$Y105),"")) ->  | N105: =IF(OR(ISBLANK($C105),$Y105=""),"",IF(MONTH($C105)=N$6,$E105/INDIRECT("F"&$Y105)*INDIRECT("E"&$Y105),"")) ->  | O105: =IF(OR(ISBLANK($C105),$Y105=""),"",IF(MONTH($C105)=O$6,$E105/INDIRECT("F"&$Y105)*INDIRECT("E"&$Y105),"")) ->  | P105: =IF(OR(ISBLANK($C105),$Y105=""),"",IF(MONTH($C105)=P$6,$E105/INDIRECT("F"&$Y105)*INDIRECT("E"&$Y105),"")) ->  | Q105: =IF(OR(ISBLANK($C105),$Y105=""),"",IF(MONTH($C105)=Q$6,$E105/INDIRECT("F"&$Y105)*INDIRECT("E"&$Y105),"")) ->  | R105: =IF(OR(ISBLANK($C105),$Y105=""),"",IF(MONTH($C105)=R$6,$E105/INDIRECT("F"&$Y105)*INDIRECT("E"&$Y105),"")) ->  | S105: =IF(OR(ISBLANK($C105),$Y105=""),"",IF(MONTH($C105)=S$6,$E105/INDIRECT("F"&$Y105)*INDIRECT("E"&$Y105),"")) ->  | T105: =IF(OR(ISBLANK($C105),$Y105=""),"",IF(MONTH($C105)=T$6,$E105/INDIRECT("F"&$Y105)*INDIRECT("E"&$Y105),"")) ->  | U105: =IF(OR(ISBLANK($C105),$Y105=""),"",IF(MONTH($C105)=U$6,$E105/INDIRECT("F"&$Y105)*INDIRECT("E"&$Y105),"")) ->  | V105: =IF(OR(ISBLANK($C105),$Y105=""),"",IF(MONTH($C105)=V$6,$E105/INDIRECT("F"&$Y105)*INDIRECT("E"&$Y105),"")) ->  | W105: =IF(H105<>100%,"Niet ok","ok") -> Niet ok | X105: 105
B106: Factuurnummer | C106: Factuurdatum | D106: Omschrijving factuur | E106: Factuurbedrag | K106: =IF(OR(ISBLANK($C106),$Y106=""),"",IF(MONTH($C106)=K$6,$E106/INDIRECT("F"&$Y106)*INDIRECT("E"&$Y106),"")) ->  | L106: =IF(OR(ISBLANK($C106),$Y106=""),"",IF(MONTH($C106)=L$6,$E106/INDIRECT("F"&$Y106)*INDIRECT("E"&$Y106),"")) ->  | M106: =IF(OR(ISBLANK($C106),$Y106=""),"",IF(MONTH($C106)=M$6,$E106/INDIRECT("F"&$Y106)*INDIRECT("E"&$Y106),"")) ->  | N106: =IF(OR(ISBLANK($C106),$Y106=""),"",IF(MONTH($C106)=N$6,$E106/INDIRECT("F"&$Y106)*INDIRECT("E"&$Y106),"")) ->  | O106: =IF(OR(ISBLANK($C106),$Y106=""),"",IF(MONTH($C106)=O$6,$E106/INDIRECT("F"&$Y106)*INDIRECT("E"&$Y106),"")) ->  | P106: =IF(OR(ISBLANK($C106),$Y106=""),"",IF(MONTH($C106)=P$6,$E106/INDIRECT("F"&$Y106)*INDIRECT("E"&$Y106),"")) ->  | Q106: =IF(OR(ISBLANK($C106),$Y106=""),"",IF(MONTH($C106)=Q$6,$E106/INDIRECT("F"&$Y106)*INDIRECT("E"&$Y106),"")) ->  | R106: =IF(OR(ISBLANK($C106),$Y106=""),"",IF(MONTH($C106)=R$6,$E106/INDIRECT("F"&$Y106)*INDIRECT("E"&$Y106),"")) ->  | S106: =IF(OR(ISBLANK($C106),$Y106=""),"",IF(MONTH($C106)=S$6,$E106/INDIRECT("F"&$Y106)*INDIRECT("E"&$Y106),"")) ->  | T106: =IF(OR(ISBLANK($C106),$Y106=""),"",IF(MONTH($C106)=T$6,$E106/INDIRECT("F"&$Y106)*INDIRECT("E"&$Y106),"")) ->  | U106: =IF(OR(ISBLANK($C106),$Y106=""),"",IF(MONTH($C106)=U$6,$E106/INDIRECT("F"&$Y106)*INDIRECT("E"&$Y106),"")) ->  | V106: =IF(OR(ISBLANK($C106),$Y106=""),"",IF(MONTH($C106)=V$6,$E106/INDIRECT("F"&$Y106)*INDIRECT("E"&$Y106),"")) ->  | X106: 105
I107: =SUM(K107:V107) -> 0 | K107: =IF(OR(ISBLANK($C107),$Y107=""),"",IF(MONTH($C107)=K$6,$E107/INDIRECT("F"&$Y107)*INDIRECT("E"&$Y107),"")) ->  | L107: =IF(OR(ISBLANK($C107),$Y107=""),"",IF(MONTH($C107)=L$6,$E107/INDIRECT("F"&$Y107)*INDIRECT("E"&$Y107),"")) ->  | M107: =IF(OR(ISBLANK($C107),$Y107=""),"",IF(MONTH($C107)=M$6,$E107/INDIRECT("F"&$Y107)*INDIRECT("E"&$Y107),"")) ->  | N107: =IF(OR(ISBLANK($C107),$Y107=""),"",IF(MONTH($C107)=N$6,$E107/INDIRECT("F"&$Y107)*INDIRECT("E"&$Y107),"")) ->  | O107: =IF(OR(ISBLANK($C107),$Y107=""),"",IF(MONTH($C107)=O$6,$E107/INDIRECT("F"&$Y107)*INDIRECT("E"&$Y107),"")) ->  | P107: =IF(OR(ISBLANK($C107),$Y107=""),"",IF(MONTH($C107)=P$6,$E107/INDIRECT("F"&$Y107)*INDIRECT("E"&$Y107),"")) ->  | Q107: =IF(OR(ISBLANK($C107),$Y107=""),"",IF(MONTH($C107)=Q$6,$E107/INDIRECT("F"&$Y107)*INDIRECT("E"&$Y107),"")) ->  | R107: =IF(OR(ISBLANK($C107),$Y107=""),"",IF(MONTH($C107)=R$6,$E107/INDIRECT("F"&$Y107)*INDIRECT("E"&$Y107),"")) ->  | S107: =IF(OR(ISBLANK($C107),$Y107=""),"",IF(MONTH($C107)=S$6,$E107/INDIRECT("F"&$Y107)*INDIRECT("E"&$Y107),"")) ->  | T107: =IF(OR(ISBLANK($C107),$Y107=""),"",IF(MONTH($C107)=T$6,$E107/INDIRECT("F"&$Y107)*INDIRECT("E"&$Y107),"")) ->  | U107: =IF(OR(ISBLANK($C107),$Y107=""),"",IF(MONTH($C107)=U$6,$E107/INDIRECT("F"&$Y107)*INDIRECT("E"&$Y107),"")) ->  | V107: =IF(OR(ISBLANK($C107),$Y107=""),"",IF(MONTH($C107)=V$6,$E107/INDIRECT("F"&$Y107)*INDIRECT("E"&$Y107),"")) ->  | X107: 105 | Y107: 105
I108: 0 | K108: =IF(OR(ISBLANK($C108),$Y108=""),"",IF(MONTH($C108)=K$6,$E108/INDIRECT("F"&$Y108)*INDIRECT("E"&$Y108),"")) ->  | L108: =IF(OR(ISBLANK($C108),$Y108=""),"",IF(MONTH($C108)=L$6,$E108/INDIRECT("F"&$Y108)*INDIRECT("E"&$Y108),"")) ->  | M108: =IF(OR(ISBLANK($C108),$Y108=""),"",IF(MONTH($C108)=M$6,$E108/INDIRECT("F"&$Y108)*INDIRECT("E"&$Y108),"")) ->  | N108: =IF(OR(ISBLANK($C108),$Y108=""),"",IF(MONTH($C108)=N$6,$E108/INDIRECT("F"&$Y108)*INDIRECT("E"&$Y108),"")) ->  | O108: =IF(OR(ISBLANK($C108),$Y108=""),"",IF(MONTH($C108)=O$6,$E108/INDIRECT("F"&$Y108)*INDIRECT("E"&$Y108),"")) ->  | P108: =IF(OR(ISBLANK($C108),$Y108=""),"",IF(MONTH($C108)=P$6,$E108/INDIRECT("F"&$Y108)*INDIRECT("E"&$Y108),"")) ->  | Q108: =IF(OR(ISBLANK($C108),$Y108=""),"",IF(MONTH($C108)=Q$6,$E108/INDIRECT("F"&$Y108)*INDIRECT("E"&$Y108),"")) ->  | R108: =IF(OR(ISBLANK($C108),$Y108=""),"",IF(MONTH($C108)=R$6,$E108/INDIRECT("F"&$Y108)*INDIRECT("E"&$Y108),"")) ->  | S108: =IF(OR(ISBLANK($C108),$Y108=""),"",IF(MONTH($C108)=S$6,$E108/INDIRECT("F"&$Y108)*INDIRECT("E"&$Y108),"")) ->  | T108: =IF(OR(ISBLANK($C108),$Y108=""),"",IF(MONTH($C108)=T$6,$E108/INDIRECT("F"&$Y108)*INDIRECT("E"&$Y108),"")) ->  | U108: =IF(OR(ISBLANK($C108),$Y108=""),"",IF(MONTH($C108)=U$6,$E108/INDIRECT("F"&$Y108)*INDIRECT("E"&$Y108),"")) ->  | V108: =IF(OR(ISBLANK($C108),$Y108=""),"",IF(MONTH($C108)=V$6,$E108/INDIRECT("F"&$Y108)*INDIRECT("E"&$Y108),"")) ->  | X108: 105 | Y108: 105
I109: 0 | K109: =IF(OR(ISBLANK($C109),$Y109=""),"",IF(MONTH($C109)=K$6,$E109/INDIRECT("F"&$Y109)*INDIRECT("E"&$Y109),"")) ->  | L109: =IF(OR(ISBLANK($C109),$Y109=""),"",IF(MONTH($C109)=L$6,$E109/INDIRECT("F"&$Y109)*INDIRECT("E"&$Y109),"")) ->  | M109: =IF(OR(ISBLANK($C109),$Y109=""),"",IF(MONTH($C109)=M$6,$E109/INDIRECT("F"&$Y109)*INDIRECT("E"&$Y109),"")) ->  | N109: =IF(OR(ISBLANK($C109),$Y109=""),"",IF(MONTH($C109)=N$6,$E109/INDIRECT("F"&$Y109)*INDIRECT("E"&$Y109),"")) ->  | O109: =IF(OR(ISBLANK($C109),$Y109=""),"",IF(MONTH($C109)=O$6,$E109/INDIRECT("F"&$Y109)*INDIRECT("E"&$Y109),"")) ->  | P109: =IF(OR(ISBLANK($C109),$Y109=""),"",IF(MONTH($C109)=P$6,$E109/INDIRECT("F"&$Y109)*INDIRECT("E"&$Y109),"")) ->  | Q109: =IF(OR(ISBLANK($C109),$Y109=""),"",IF(MONTH($C109)=Q$6,$E109/INDIRECT("F"&$Y109)*INDIRECT("E"&$Y109),"")) ->  | R109: =IF(OR(ISBLANK($C109),$Y109=""),"",IF(MONTH($C109)=R$6,$E109/INDIRECT("F"&$Y109)*INDIRECT("E"&$Y109),"")) ->  | S109: =IF(OR(ISBLANK($C109),$Y109=""),"",IF(MONTH($C109)=S$6,$E109/INDIRECT("F"&$Y109)*INDIRECT("E"&$Y109),"")) ->  | T109: =IF(OR(ISBLANK($C109),$Y109=""),"",IF(MONTH($C109)=T$6,$E109/INDIRECT("F"&$Y109)*INDIRECT("E"&$Y109),"")) ->  | U109: =IF(OR(ISBLANK($C109),$Y109=""),"",IF(MONTH($C109)=U$6,$E109/INDIRECT("F"&$Y109)*INDIRECT("E"&$Y109),"")) ->  | V109: =IF(OR(ISBLANK($C109),$Y109=""),"",IF(MONTH($C109)=V$6,$E109/INDIRECT("F"&$Y109)*INDIRECT("E"&$Y109),"")) ->  | X109: 105 | Y109: 105
I110: 0 | K110: =IF(OR(ISBLANK($C110),$Y110=""),"",IF(MONTH($C110)=K$6,$E110/INDIRECT("F"&$Y110)*INDIRECT("E"&$Y110),"")) ->  | L110: =IF(OR(ISBLANK($C110),$Y110=""),"",IF(MONTH($C110)=L$6,$E110/INDIRECT("F"&$Y110)*INDIRECT("E"&$Y110),"")) ->  | M110: =IF(OR(ISBLANK($C110),$Y110=""),"",IF(MONTH($C110)=M$6,$E110/INDIRECT("F"&$Y110)*INDIRECT("E"&$Y110),"")) ->  | N110: =IF(OR(ISBLANK($C110),$Y110=""),"",IF(MONTH($C110)=N$6,$E110/INDIRECT("F"&$Y110)*INDIRECT("E"&$Y110),"")) ->  | O110: =IF(OR(ISBLANK($C110),$Y110=""),"",IF(MONTH($C110)=O$6,$E110/INDIRECT("F"&$Y110)*INDIRECT("E"&$Y110),"")) ->  | P110: =IF(OR(ISBLANK($C110),$Y110=""),"",IF(MONTH($C110)=P$6,$E110/INDIRECT("F"&$Y110)*INDIRECT("E"&$Y110),"")) ->  | Q110: =IF(OR(ISBLANK($C110),$Y110=""),"",IF(MONTH($C110)=Q$6,$E110/INDIRECT("F"&$Y110)*INDIRECT("E"&$Y110),"")) ->  | R110: =IF(OR(ISBLANK($C110),$Y110=""),"",IF(MONTH($C110)=R$6,$E110/INDIRECT("F"&$Y110)*INDIRECT("E"&$Y110),"")) ->  | S110: =IF(OR(ISBLANK($C110),$Y110=""),"",IF(MONTH($C110)=S$6,$E110/INDIRECT("F"&$Y110)*INDIRECT("E"&$Y110),"")) ->  | T110: =IF(OR(ISBLANK($C110),$Y110=""),"",IF(MONTH($C110)=T$6,$E110/INDIRECT("F"&$Y110)*INDIRECT("E"&$Y110),"")) ->  | U110: =IF(OR(ISBLANK($C110),$Y110=""),"",IF(MONTH($C110)=U$6,$E110/INDIRECT("F"&$Y110)*INDIRECT("E"&$Y110),"")) ->  | V110: =IF(OR(ISBLANK($C110),$Y110=""),"",IF(MONTH($C110)=V$6,$E110/INDIRECT("F"&$Y110)*INDIRECT("E"&$Y110),"")) ->  | X110: 105 | Y110: 105
I111: 0 | K111: =IF(OR(ISBLANK($C111),$Y111=""),"",IF(MONTH($C111)=K$6,$E111/INDIRECT("F"&$Y111)*INDIRECT("E"&$Y111),"")) ->  | L111: =IF(OR(ISBLANK($C111),$Y111=""),"",IF(MONTH($C111)=L$6,$E111/INDIRECT("F"&$Y111)*INDIRECT("E"&$Y111),"")) ->  | M111: =IF(OR(ISBLANK($C111),$Y111=""),"",IF(MONTH($C111)=M$6,$E111/INDIRECT("F"&$Y111)*INDIRECT("E"&$Y111),"")) ->  | N111: =IF(OR(ISBLANK($C111),$Y111=""),"",IF(MONTH($C111)=N$6,$E111/INDIRECT("F"&$Y111)*INDIRECT("E"&$Y111),"")) ->  | O111: =IF(OR(ISBLANK($C111),$Y111=""),"",IF(MONTH($C111)=O$6,$E111/INDIRECT("F"&$Y111)*INDIRECT("E"&$Y111),"")) ->  | P111: =IF(OR(ISBLANK($C111),$Y111=""),"",IF(MONTH($C111)=P$6,$E111/INDIRECT("F"&$Y111)*INDIRECT("E"&$Y111),"")) ->  | Q111: =IF(OR(ISBLANK($C111),$Y111=""),"",IF(MONTH($C111)=Q$6,$E111/INDIRECT("F"&$Y111)*INDIRECT("E"&$Y111),"")) ->  | R111: =IF(OR(ISBLANK($C111),$Y111=""),"",IF(MONTH($C111)=R$6,$E111/INDIRECT("F"&$Y111)*INDIRECT("E"&$Y111),"")) ->  | S111: =IF(OR(ISBLANK($C111),$Y111=""),"",IF(MONTH($C111)=S$6,$E111/INDIRECT("F"&$Y111)*INDIRECT("E"&$Y111),"")) ->  | T111: =IF(OR(ISBLANK($C111),$Y111=""),"",IF(MONTH($C111)=T$6,$E111/INDIRECT("F"&$Y111)*INDIRECT("E"&$Y111),"")) ->  | U111: =IF(OR(ISBLANK($C111),$Y111=""),"",IF(MONTH($C111)=U$6,$E111/INDIRECT("F"&$Y111)*INDIRECT("E"&$Y111),"")) ->  | V111: =IF(OR(ISBLANK($C111),$Y111=""),"",IF(MONTH($C111)=V$6,$E111/INDIRECT("F"&$Y111)*INDIRECT("E"&$Y111),"")) ->  | X111: 105 | Y111: 105
I112: 0 | K112: =IF(OR(ISBLANK($C112),$Y112=""),"",IF(MONTH($C112)=K$6,$E112/INDIRECT("F"&$Y112)*INDIRECT("E"&$Y112),"")) ->  | L112: =IF(OR(ISBLANK($C112),$Y112=""),"",IF(MONTH($C112)=L$6,$E112/INDIRECT("F"&$Y112)*INDIRECT("E"&$Y112),"")) ->  | M112: =IF(OR(ISBLANK($C112),$Y112=""),"",IF(MONTH($C112)=M$6,$E112/INDIRECT("F"&$Y112)*INDIRECT("E"&$Y112),"")) ->  | N112: =IF(OR(ISBLANK($C112),$Y112=""),"",IF(MONTH($C112)=N$6,$E112/INDIRECT("F"&$Y112)*INDIRECT("E"&$Y112),"")) ->  | O112: =IF(OR(ISBLANK($C112),$Y112=""),"",IF(MONTH($C112)=O$6,$E112/INDIRECT("F"&$Y112)*INDIRECT("E"&$Y112),"")) ->  | P112: =IF(OR(ISBLANK($C112),$Y112=""),"",IF(MONTH($C112)=P$6,$E112/INDIRECT("F"&$Y112)*INDIRECT("E"&$Y112),"")) ->  | Q112: =IF(OR(ISBLANK($C112),$Y112=""),"",IF(MONTH($C112)=Q$6,$E112/INDIRECT("F"&$Y112)*INDIRECT("E"&$Y112),"")) ->  | R112: =IF(OR(ISBLANK($C112),$Y112=""),"",IF(MONTH($C112)=R$6,$E112/INDIRECT("F"&$Y112)*INDIRECT("E"&$Y112),"")) ->  | S112: =IF(OR(ISBLANK($C112),$Y112=""),"",IF(MONTH($C112)=S$6,$E112/INDIRECT("F"&$Y112)*INDIRECT("E"&$Y112),"")) ->  | T112: =IF(OR(ISBLANK($C112),$Y112=""),"",IF(MONTH($C112)=T$6,$E112/INDIRECT("F"&$Y112)*INDIRECT("E"&$Y112),"")) ->  | U112: =IF(OR(ISBLANK($C112),$Y112=""),"",IF(MONTH($C112)=U$6,$E112/INDIRECT("F"&$Y112)*INDIRECT("E"&$Y112),"")) ->  | V112: =IF(OR(ISBLANK($C112),$Y112=""),"",IF(MONTH($C112)=V$6,$E112/INDIRECT("F"&$Y112)*INDIRECT("E"&$Y112),"")) ->  | X112: 105 | Y112: 105
I113: 0 | K113: =IF(OR(ISBLANK($C113),$Y113=""),"",IF(MONTH($C113)=K$6,$E113/INDIRECT("F"&$Y113)*INDIRECT("E"&$Y113),"")) ->  | L113: =IF(OR(ISBLANK($C113),$Y113=""),"",IF(MONTH($C113)=L$6,$E113/INDIRECT("F"&$Y113)*INDIRECT("E"&$Y113),"")) ->  | M113: =IF(OR(ISBLANK($C113),$Y113=""),"",IF(MONTH($C113)=M$6,$E113/INDIRECT("F"&$Y113)*INDIRECT("E"&$Y113),"")) ->  | N113: =IF(OR(ISBLANK($C113),$Y113=""),"",IF(MONTH($C113)=N$6,$E113/INDIRECT("F"&$Y113)*INDIRECT("E"&$Y113),"")) ->  | O113: =IF(OR(ISBLANK($C113),$Y113=""),"",IF(MONTH($C113)=O$6,$E113/INDIRECT("F"&$Y113)*INDIRECT("E"&$Y113),"")) ->  | P113: =IF(OR(ISBLANK($C113),$Y113=""),"",IF(MONTH($C113)=P$6,$E113/INDIRECT("F"&$Y113)*INDIRECT("E"&$Y113),"")) ->  | Q113: =IF(OR(ISBLANK($C113),$Y113=""),"",IF(MONTH($C113)=Q$6,$E113/INDIRECT("F"&$Y113)*INDIRECT("E"&$Y113),"")) ->  | R113: =IF(OR(ISBLANK($C113),$Y113=""),"",IF(MONTH($C113)=R$6,$E113/INDIRECT("F"&$Y113)*INDIRECT("E"&$Y113),"")) ->  | S113: =IF(OR(ISBLANK($C113),$Y113=""),"",IF(MONTH($C113)=S$6,$E113/INDIRECT("F"&$Y113)*INDIRECT("E"&$Y113),"")) ->  | T113: =IF(OR(ISBLANK($C113),$Y113=""),"",IF(MONTH($C113)=T$6,$E113/INDIRECT("F"&$Y113)*INDIRECT("E"&$Y113),"")) ->  | U113: =IF(OR(ISBLANK($C113),$Y113=""),"",IF(MONTH($C113)=U$6,$E113/INDIRECT("F"&$Y113)*INDIRECT("E"&$Y113),"")) ->  | V113: =IF(OR(ISBLANK($C113),$Y113=""),"",IF(MONTH($C113)=V$6,$E113/INDIRECT("F"&$Y113)*INDIRECT("E"&$Y113),"")) ->  | X113: 105 | Y113: 105
I114: 0 | K114: =IF(OR(ISBLANK($C114),$Y114=""),"",IF(MONTH($C114)=K$6,$E114/INDIRECT("F"&$Y114)*INDIRECT("E"&$Y114),"")) ->  | L114: =IF(OR(ISBLANK($C114),$Y114=""),"",IF(MONTH($C114)=L$6,$E114/INDIRECT("F"&$Y114)*INDIRECT("E"&$Y114),"")) ->  | M114: =IF(OR(ISBLANK($C114),$Y114=""),"",IF(MONTH($C114)=M$6,$E114/INDIRECT("F"&$Y114)*INDIRECT("E"&$Y114),"")) ->  | N114: =IF(OR(ISBLANK($C114),$Y114=""),"",IF(MONTH($C114)=N$6,$E114/INDIRECT("F"&$Y114)*INDIRECT("E"&$Y114),"")) ->  | O114: =IF(OR(ISBLANK($C114),$Y114=""),"",IF(MONTH($C114)=O$6,$E114/INDIRECT("F"&$Y114)*INDIRECT("E"&$Y114),"")) ->  | P114: =IF(OR(ISBLANK($C114),$Y114=""),"",IF(MONTH($C114)=P$6,$E114/INDIRECT("F"&$Y114)*INDIRECT("E"&$Y114),"")) ->  | Q114: =IF(OR(ISBLANK($C114),$Y114=""),"",IF(MONTH($C114)=Q$6,$E114/INDIRECT("F"&$Y114)*INDIRECT("E"&$Y114),"")) ->  | R114: =IF(OR(ISBLANK($C114),$Y114=""),"",IF(MONTH($C114)=R$6,$E114/INDIRECT("F"&$Y114)*INDIRECT("E"&$Y114),"")) ->  | S114: =IF(OR(ISBLANK($C114),$Y114=""),"",IF(MONTH($C114)=S$6,$E114/INDIRECT("F"&$Y114)*INDIRECT("E"&$Y114),"")) ->  | T114: =IF(OR(ISBLANK($C114),$Y114=""),"",IF(MONTH($C114)=T$6,$E114/INDIRECT("F"&$Y114)*INDIRECT("E"&$Y114),"")) ->  | U114: =IF(OR(ISBLANK($C114),$Y114=""),"",IF(MONTH($C114)=U$6,$E114/INDIRECT("F"&$Y114)*INDIRECT("E"&$Y114),"")) ->  | V114: =IF(OR(ISBLANK($C114),$Y114=""),"",IF(MONTH($C114)=V$6,$E114/INDIRECT("F"&$Y114)*INDIRECT("E"&$Y114),"")) ->  | X114: 105 | Y114: 105
I115: 0 | K115: =IF(OR(ISBLANK($C115),$Y115=""),"",IF(MONTH($C115)=K$6,$E115/INDIRECT("F"&$Y115)*INDIRECT("E"&$Y115),"")) ->  | L115: =IF(OR(ISBLANK($C115),$Y115=""),"",IF(MONTH($C115)=L$6,$E115/INDIRECT("F"&$Y115)*INDIRECT("E"&$Y115),"")) ->  | M115: =IF(OR(ISBLANK($C115),$Y115=""),"",IF(MONTH($C115)=M$6,$E115/INDIRECT("F"&$Y115)*INDIRECT("E"&$Y115),"")) ->  | N115: =IF(OR(ISBLANK($C115),$Y115=""),"",IF(MONTH($C115)=N$6,$E115/INDIRECT("F"&$Y115)*INDIRECT("E"&$Y115),"")) ->  | O115: =IF(OR(ISBLANK($C115),$Y115=""),"",IF(MONTH($C115)=O$6,$E115/INDIRECT("F"&$Y115)*INDIRECT("E"&$Y115),"")) ->  | P115: =IF(OR(ISBLANK($C115),$Y115=""),"",IF(MONTH($C115)=P$6,$E115/INDIRECT("F"&$Y115)*INDIRECT("E"&$Y115),"")) ->  | Q115: =IF(OR(ISBLANK($C115),$Y115=""),"",IF(MONTH($C115)=Q$6,$E115/INDIRECT("F"&$Y115)*INDIRECT("E"&$Y115),"")) ->  | R115: =IF(OR(ISBLANK($C115),$Y115=""),"",IF(MONTH($C115)=R$6,$E115/INDIRECT("F"&$Y115)*INDIRECT("E"&$Y115),"")) ->  | S115: =IF(OR(ISBLANK($C115),$Y115=""),"",IF(MONTH($C115)=S$6,$E115/INDIRECT("F"&$Y115)*INDIRECT("E"&$Y115),"")) ->  | T115: =IF(OR(ISBLANK($C115),$Y115=""),"",IF(MONTH($C115)=T$6,$E115/INDIRECT("F"&$Y115)*INDIRECT("E"&$Y115),"")) ->  | U115: =IF(OR(ISBLANK($C115),$Y115=""),"",IF(MONTH($C115)=U$6,$E115/INDIRECT("F"&$Y115)*INDIRECT("E"&$Y115),"")) ->  | V115: =IF(OR(ISBLANK($C115),$Y115=""),"",IF(MONTH($C115)=V$6,$E115/INDIRECT("F"&$Y115)*INDIRECT("E"&$Y115),"")) ->  | X115: 105 | Y115: 105
I116: 0 | K116: =IF(OR(ISBLANK($C116),$Y116=""),"",IF(MONTH($C116)=K$6,$E116/INDIRECT("F"&$Y116)*INDIRECT("E"&$Y116),"")) ->  | L116: =IF(OR(ISBLANK($C116),$Y116=""),"",IF(MONTH($C116)=L$6,$E116/INDIRECT("F"&$Y116)*INDIRECT("E"&$Y116),"")) ->  | M116: =IF(OR(ISBLANK($C116),$Y116=""),"",IF(MONTH($C116)=M$6,$E116/INDIRECT("F"&$Y116)*INDIRECT("E"&$Y116),"")) ->  | N116: =IF(OR(ISBLANK($C116),$Y116=""),"",IF(MONTH($C116)=N$6,$E116/INDIRECT("F"&$Y116)*INDIRECT("E"&$Y116),"")) ->  | O116: =IF(OR(ISBLANK($C116),$Y116=""),"",IF(MONTH($C116)=O$6,$E116/INDIRECT("F"&$Y116)*INDIRECT("E"&$Y116),"")) ->  | P116: =IF(OR(ISBLANK($C116),$Y116=""),"",IF(MONTH($C116)=P$6,$E116/INDIRECT("F"&$Y116)*INDIRECT("E"&$Y116),"")) ->  | Q116: =IF(OR(ISBLANK($C116),$Y116=""),"",IF(MONTH($C116)=Q$6,$E116/INDIRECT("F"&$Y116)*INDIRECT("E"&$Y116),"")) ->  | R116: =IF(OR(ISBLANK($C116),$Y116=""),"",IF(MONTH($C116)=R$6,$E116/INDIRECT("F"&$Y116)*INDIRECT("E"&$Y116),"")) ->  | S116: =IF(OR(ISBLANK($C116),$Y116=""),"",IF(MONTH($C116)=S$6,$E116/INDIRECT("F"&$Y116)*INDIRECT("E"&$Y116),"")) ->  | T116: =IF(OR(ISBLANK($C116),$Y116=""),"",IF(MONTH($C116)=T$6,$E116/INDIRECT("F"&$Y116)*INDIRECT("E"&$Y116),"")) ->  | U116: =IF(OR(ISBLANK($C116),$Y116=""),"",IF(MONTH($C116)=U$6,$E116/INDIRECT("F"&$Y116)*INDIRECT("E"&$Y116),"")) ->  | V116: =IF(OR(ISBLANK($C116),$Y116=""),"",IF(MONTH($C116)=V$6,$E116/INDIRECT("F"&$Y116)*INDIRECT("E"&$Y116),"")) ->  | X116: 105 | Y116: 105
H117: =IFERROR(I117/E117,0) -> 0 | I117: =SUM(I118:J128) -> 0 | K117: =IF(OR(ISBLANK($C117),$Y117=""),"",IF(MONTH($C117)=K$6,$E117/INDIRECT("F"&$Y117)*INDIRECT("E"&$Y117),"")) ->  | L117: =IF(OR(ISBLANK($C117),$Y117=""),"",IF(MONTH($C117)=L$6,$E117/INDIRECT("F"&$Y117)*INDIRECT("E"&$Y117),"")) ->  | M117: =IF(OR(ISBLANK($C117),$Y117=""),"",IF(MONTH($C117)=M$6,$E117/INDIRECT("F"&$Y117)*INDIRECT("E"&$Y117),"")) ->  | N117: =IF(OR(ISBLANK($C117),$Y117=""),"",IF(MONTH($C117)=N$6,$E117/INDIRECT("F"&$Y117)*INDIRECT("E"&$Y117),"")) ->  | O117: =IF(OR(ISBLANK($C117),$Y117=""),"",IF(MONTH($C117)=O$6,$E117/INDIRECT("F"&$Y117)*INDIRECT("E"&$Y117),"")) ->  | P117: =IF(OR(ISBLANK($C117),$Y117=""),"",IF(MONTH($C117)=P$6,$E117/INDIRECT("F"&$Y117)*INDIRECT("E"&$Y117),"")) ->  | Q117: =IF(OR(ISBLANK($C117),$Y117=""),"",IF(MONTH($C117)=Q$6,$E117/INDIRECT("F"&$Y117)*INDIRECT("E"&$Y117),"")) ->  | R117: =IF(OR(ISBLANK($C117),$Y117=""),"",IF(MONTH($C117)=R$6,$E117/INDIRECT("F"&$Y117)*INDIRECT("E"&$Y117),"")) ->  | S117: =IF(OR(ISBLANK($C117),$Y117=""),"",IF(MONTH($C117)=S$6,$E117/INDIRECT("F"&$Y117)*INDIRECT("E"&$Y117),"")) ->  | T117: =IF(OR(ISBLANK($C117),$Y117=""),"",IF(MONTH($C117)=T$6,$E117/INDIRECT("F"&$Y117)*INDIRECT("E"&$Y117),"")) ->  | U117: =IF(OR(ISBLANK($C117),$Y117=""),"",IF(MONTH($C117)=U$6,$E117/INDIRECT("F"&$Y117)*INDIRECT("E"&$Y117),"")) ->  | V117: =IF(OR(ISBLANK($C117),$Y117=""),"",IF(MONTH($C117)=V$6,$E117/INDIRECT("F"&$Y117)*INDIRECT("E"&$Y117),"")) ->  | W117: =IF(H117<>100%,"Niet ok","ok") -> Niet ok | X117: 117
B118: Factuurnummer | C118: Factuurdatum | D118: Omschrijving factuur | E118: Factuurbedrag | K118: =IF(OR(ISBLANK($C118),$Y118=""),"",IF(MONTH($C118)=K$6,$E118/INDIRECT("F"&$Y118)*INDIRECT("E"&$Y118),"")) ->  | L118: =IF(OR(ISBLANK($C118),$Y118=""),"",IF(MONTH($C118)=L$6,$E118/INDIRECT("F"&$Y118)*INDIRECT("E"&$Y118),"")) ->  | M118: =IF(OR(ISBLANK($C118),$Y118=""),"",IF(MONTH($C118)=M$6,$E118/INDIRECT("F"&$Y118)*INDIRECT("E"&$Y118),"")) ->  | N118: =IF(OR(ISBLANK($C118),$Y118=""),"",IF(MONTH($C118)=N$6,$E118/INDIRECT("F"&$Y118)*INDIRECT("E"&$Y118),"")) ->  | O118: =IF(OR(ISBLANK($C118),$Y118=""),"",IF(MONTH($C118)=O$6,$E118/INDIRECT("F"&$Y118)*INDIRECT("E"&$Y118),"")) ->  | P118: =IF(OR(ISBLANK($C118),$Y118=""),"",IF(MONTH($C118)=P$6,$E118/INDIRECT("F"&$Y118)*INDIRECT("E"&$Y118),"")) ->  | Q118: =IF(OR(ISBLANK($C118),$Y118=""),"",IF(MONTH($C118)=Q$6,$E118/INDIRECT("F"&$Y118)*INDIRECT("E"&$Y118),"")) ->  | R118: =IF(OR(ISBLANK($C118),$Y118=""),"",IF(MONTH($C118)=R$6,$E118/INDIRECT("F"&$Y118)*INDIRECT("E"&$Y118),"")) ->  | S118: =IF(OR(ISBLANK($C118),$Y118=""),"",IF(MONTH($C118)=S$6,$E118/INDIRECT("F"&$Y118)*INDIRECT("E"&$Y118),"")) ->  | T118: =IF(OR(ISBLANK($C118),$Y118=""),"",IF(MONTH($C118)=T$6,$E118/INDIRECT("F"&$Y118)*INDIRECT("E"&$Y118),"")) ->  | U118: =IF(OR(ISBLANK($C118),$Y118=""),"",IF(MONTH($C118)=U$6,$E118/INDIRECT("F"&$Y118)*INDIRECT("E"&$Y118),"")) ->  | V118: =IF(OR(ISBLANK($C118),$Y118=""),"",IF(MONTH($C118)=V$6,$E118/INDIRECT("F"&$Y118)*INDIRECT("E"&$Y118),"")) ->  | X118: 117
I119: =SUM(K119:V119) -> 0 | K119: =IF(OR(ISBLANK($C119),$Y119=""),"",IF(MONTH($C119)=K$6,$E119/INDIRECT("F"&$Y119)*INDIRECT("E"&$Y119),"")) ->  | L119: =IF(OR(ISBLANK($C119),$Y119=""),"",IF(MONTH($C119)=L$6,$E119/INDIRECT("F"&$Y119)*INDIRECT("E"&$Y119),"")) ->  | M119: =IF(OR(ISBLANK($C119),$Y119=""),"",IF(MONTH($C119)=M$6,$E119/INDIRECT("F"&$Y119)*INDIRECT("E"&$Y119),"")) ->  | N119: =IF(OR(ISBLANK($C119),$Y119=""),"",IF(MONTH($C119)=N$6,$E119/INDIRECT("F"&$Y119)*INDIRECT("E"&$Y119),"")) ->  | O119: =IF(OR(ISBLANK($C119),$Y119=""),"",IF(MONTH($C119)=O$6,$E119/INDIRECT("F"&$Y119)*INDIRECT("E"&$Y119),"")) ->  | P119: =IF(OR(ISBLANK($C119),$Y119=""),"",IF(MONTH($C119)=P$6,$E119/INDIRECT("F"&$Y119)*INDIRECT("E"&$Y119),"")) ->  | Q119: =IF(OR(ISBLANK($C119),$Y119=""),"",IF(MONTH($C119)=Q$6,$E119/INDIRECT("F"&$Y119)*INDIRECT("E"&$Y119),"")) ->  | R119: =IF(OR(ISBLANK($C119),$Y119=""),"",IF(MONTH($C119)=R$6,$E119/INDIRECT("F"&$Y119)*INDIRECT("E"&$Y119),"")) ->  | S119: =IF(OR(ISBLANK($C119),$Y119=""),"",IF(MONTH($C119)=S$6,$E119/INDIRECT("F"&$Y119)*INDIRECT("E"&$Y119),"")) ->  | T119: =IF(OR(ISBLANK($C119),$Y119=""),"",IF(MONTH($C119)=T$6,$E119/INDIRECT("F"&$Y119)*INDIRECT("E"&$Y119),"")) ->  | U119: =IF(OR(ISBLANK($C119),$Y119=""),"",IF(MONTH($C119)=U$6,$E119/INDIRECT("F"&$Y119)*INDIRECT("E"&$Y119),"")) ->  | V119: =IF(OR(ISBLANK($C119),$Y119=""),"",IF(MONTH($C119)=V$6,$E119/INDIRECT("F"&$Y119)*INDIRECT("E"&$Y119),"")) ->  | X119: 117 | Y119: 117
I120: 0 | K120: =IF(OR(ISBLANK($C120),$Y120=""),"",IF(MONTH($C120)=K$6,$E120/INDIRECT("F"&$Y120)*INDIRECT("E"&$Y120),"")) ->  | L120: =IF(OR(ISBLANK($C120),$Y120=""),"",IF(MONTH($C120)=L$6,$E120/INDIRECT("F"&$Y120)*INDIRECT("E"&$Y120),"")) ->  | M120: =IF(OR(ISBLANK($C120),$Y120=""),"",IF(MONTH($C120)=M$6,$E120/INDIRECT("F"&$Y120)*INDIRECT("E"&$Y120),"")) ->  | N120: =IF(OR(ISBLANK($C120),$Y120=""),"",IF(MONTH($C120)=N$6,$E120/INDIRECT("F"&$Y120)*INDIRECT("E"&$Y120),"")) ->  | O120: =IF(OR(ISBLANK($C120),$Y120=""),"",IF(MONTH($C120)=O$6,$E120/INDIRECT("F"&$Y120)*INDIRECT("E"&$Y120),"")) ->  | P120: =IF(OR(ISBLANK($C120),$Y120=""),"",IF(MONTH($C120)=P$6,$E120/INDIRECT("F"&$Y120)*INDIRECT("E"&$Y120),"")) ->  | Q120: =IF(OR(ISBLANK($C120),$Y120=""),"",IF(MONTH($C120)=Q$6,$E120/INDIRECT("F"&$Y120)*INDIRECT("E"&$Y120),"")) ->  | R120: =IF(OR(ISBLANK($C120),$Y120=""),"",IF(MONTH($C120)=R$6,$E120/INDIRECT("F"&$Y120)*INDIRECT("E"&$Y120),"")) ->  | S120: =IF(OR(ISBLANK($C120),$Y120=""),"",IF(MONTH($C120)=S$6,$E120/INDIRECT("F"&$Y120)*INDIRECT("E"&$Y120),"")) ->  | T120: =IF(OR(ISBLANK($C120),$Y120=""),"",IF(MONTH($C120)=T$6,$E120/INDIRECT("F"&$Y120)*INDIRECT("E"&$Y120),"")) ->  | U120: =IF(OR(ISBLANK($C120),$Y120=""),"",IF(MONTH($C120)=U$6,$E120/INDIRECT("F"&$Y120)*INDIRECT("E"&$Y120),"")) ->  | V120: =IF(OR(ISBLANK($C120),$Y120=""),"",IF(MONTH($C120)=V$6,$E120/INDIRECT("F"&$Y120)*INDIRECT("E"&$Y120),"")) ->  | X120: 117 | Y120: 117
I121: 0 | K121: =IF(OR(ISBLANK($C121),$Y121=""),"",IF(MONTH($C121)=K$6,$E121/INDIRECT("F"&$Y121)*INDIRECT("E"&$Y121),"")) ->  | L121: =IF(OR(ISBLANK($C121),$Y121=""),"",IF(MONTH($C121)=L$6,$E121/INDIRECT("F"&$Y121)*INDIRECT("E"&$Y121),"")) ->  | M121: =IF(OR(ISBLANK($C121),$Y121=""),"",IF(MONTH($C121)=M$6,$E121/INDIRECT("F"&$Y121)*INDIRECT("E"&$Y121),"")) ->  | N121: =IF(OR(ISBLANK($C121),$Y121=""),"",IF(MONTH($C121)=N$6,$E121/INDIRECT("F"&$Y121)*INDIRECT("E"&$Y121),"")) ->  | O121: =IF(OR(ISBLANK($C121),$Y121=""),"",IF(MONTH($C121)=O$6,$E121/INDIRECT("F"&$Y121)*INDIRECT("E"&$Y121),"")) ->  | P121: =IF(OR(ISBLANK($C121),$Y121=""),"",IF(MONTH($C121)=P$6,$E121/INDIRECT("F"&$Y121)*INDIRECT("E"&$Y121),"")) ->  | Q121: =IF(OR(ISBLANK($C121),$Y121=""),"",IF(MONTH($C121)=Q$6,$E121/INDIRECT("F"&$Y121)*INDIRECT("E"&$Y121),"")) ->  | R121: =IF(OR(ISBLANK($C121),$Y121=""),"",IF(MONTH($C121)=R$6,$E121/INDIRECT("F"&$Y121)*INDIRECT("E"&$Y121),"")) ->  | S121: =IF(OR(ISBLANK($C121),$Y121=""),"",IF(MONTH($C121)=S$6,$E121/INDIRECT("F"&$Y121)*INDIRECT("E"&$Y121),"")) ->  | T121: =IF(OR(ISBLANK($C121),$Y121=""),"",IF(MONTH($C121)=T$6,$E121/INDIRECT("F"&$Y121)*INDIRECT("E"&$Y121),"")) ->  | U121: =IF(OR(ISBLANK($C121),$Y121=""),"",IF(MONTH($C121)=U$6,$E121/INDIRECT("F"&$Y121)*INDIRECT("E"&$Y121),"")) ->  | V121: =IF(OR(ISBLANK($C121),$Y121=""),"",IF(MONTH($C121)=V$6,$E121/INDIRECT("F"&$Y121)*INDIRECT("E"&$Y121),"")) ->  | X121: 117 | Y121: 117
I122: 0 | K122: =IF(OR(ISBLANK($C122),$Y122=""),"",IF(MONTH($C122)=K$6,$E122/INDIRECT("F"&$Y122)*INDIRECT("E"&$Y122),"")) ->  | L122: =IF(OR(ISBLANK($C122),$Y122=""),"",IF(MONTH($C122)=L$6,$E122/INDIRECT("F"&$Y122)*INDIRECT("E"&$Y122),"")) ->  | M122: =IF(OR(ISBLANK($C122),$Y122=""),"",IF(MONTH($C122)=M$6,$E122/INDIRECT("F"&$Y122)*INDIRECT("E"&$Y122),"")) ->  | N122: =IF(OR(ISBLANK($C122),$Y122=""),"",IF(MONTH($C122)=N$6,$E122/INDIRECT("F"&$Y122)*INDIRECT("E"&$Y122),"")) ->  | O122: =IF(OR(ISBLANK($C122),$Y122=""),"",IF(MONTH($C122)=O$6,$E122/INDIRECT("F"&$Y122)*INDIRECT("E"&$Y122),"")) ->  | P122: =IF(OR(ISBLANK($C122),$Y122=""),"",IF(MONTH($C122)=P$6,$E122/INDIRECT("F"&$Y122)*INDIRECT("E"&$Y122),"")) ->  | Q122: =IF(OR(ISBLANK($C122),$Y122=""),"",IF(MONTH($C122)=Q$6,$E122/INDIRECT("F"&$Y122)*INDIRECT("E"&$Y122),"")) ->  | R122: =IF(OR(ISBLANK($C122),$Y122=""),"",IF(MONTH($C122)=R$6,$E122/INDIRECT("F"&$Y122)*INDIRECT("E"&$Y122),"")) ->  | S122: =IF(OR(ISBLANK($C122),$Y122=""),"",IF(MONTH($C122)=S$6,$E122/INDIRECT("F"&$Y122)*INDIRECT("E"&$Y122),"")) ->  | T122: =IF(OR(ISBLANK($C122),$Y122=""),"",IF(MONTH($C122)=T$6,$E122/INDIRECT("F"&$Y122)*INDIRECT("E"&$Y122),"")) ->  | U122: =IF(OR(ISBLANK($C122),$Y122=""),"",IF(MONTH($C122)=U$6,$E122/INDIRECT("F"&$Y122)*INDIRECT("E"&$Y122),"")) ->  | V122: =IF(OR(ISBLANK($C122),$Y122=""),"",IF(MONTH($C122)=V$6,$E122/INDIRECT("F"&$Y122)*INDIRECT("E"&$Y122),"")) ->  | X122: 117 | Y122: 117
I123: 0 | K123: =IF(OR(ISBLANK($C123),$Y123=""),"",IF(MONTH($C123)=K$6,$E123/INDIRECT("F"&$Y123)*INDIRECT("E"&$Y123),"")) ->  | L123: =IF(OR(ISBLANK($C123),$Y123=""),"",IF(MONTH($C123)=L$6,$E123/INDIRECT("F"&$Y123)*INDIRECT("E"&$Y123),"")) ->  | M123: =IF(OR(ISBLANK($C123),$Y123=""),"",IF(MONTH($C123)=M$6,$E123/INDIRECT("F"&$Y123)*INDIRECT("E"&$Y123),"")) ->  | N123: =IF(OR(ISBLANK($C123),$Y123=""),"",IF(MONTH($C123)=N$6,$E123/INDIRECT("F"&$Y123)*INDIRECT("E"&$Y123),"")) ->  | O123: =IF(OR(ISBLANK($C123),$Y123=""),"",IF(MONTH($C123)=O$6,$E123/INDIRECT("F"&$Y123)*INDIRECT("E"&$Y123),"")) ->  | P123: =IF(OR(ISBLANK($C123),$Y123=""),"",IF(MONTH($C123)=P$6,$E123/INDIRECT("F"&$Y123)*INDIRECT("E"&$Y123),"")) ->  | Q123: =IF(OR(ISBLANK($C123),$Y123=""),"",IF(MONTH($C123)=Q$6,$E123/INDIRECT("F"&$Y123)*INDIRECT("E"&$Y123),"")) ->  | R123: =IF(OR(ISBLANK($C123),$Y123=""),"",IF(MONTH($C123)=R$6,$E123/INDIRECT("F"&$Y123)*INDIRECT("E"&$Y123),"")) ->  | S123: =IF(OR(ISBLANK($C123),$Y123=""),"",IF(MONTH($C123)=S$6,$E123/INDIRECT("F"&$Y123)*INDIRECT("E"&$Y123),"")) ->  | T123: =IF(OR(ISBLANK($C123),$Y123=""),"",IF(MONTH($C123)=T$6,$E123/INDIRECT("F"&$Y123)*INDIRECT("E"&$Y123),"")) ->  | U123: =IF(OR(ISBLANK($C123),$Y123=""),"",IF(MONTH($C123)=U$6,$E123/INDIRECT("F"&$Y123)*INDIRECT("E"&$Y123),"")) ->  | V123: =IF(OR(ISBLANK($C123),$Y123=""),"",IF(MONTH($C123)=V$6,$E123/INDIRECT("F"&$Y123)*INDIRECT("E"&$Y123),"")) ->  | X123: 117 | Y123: 117
I124: 0 | K124: =IF(OR(ISBLANK($C124),$Y124=""),"",IF(MONTH($C124)=K$6,$E124/INDIRECT("F"&$Y124)*INDIRECT("E"&$Y124),"")) ->  | L124: =IF(OR(ISBLANK($C124),$Y124=""),"",IF(MONTH($C124)=L$6,$E124/INDIRECT("F"&$Y124)*INDIRECT("E"&$Y124),"")) ->  | M124: =IF(OR(ISBLANK($C124),$Y124=""),"",IF(MONTH($C124)=M$6,$E124/INDIRECT("F"&$Y124)*INDIRECT("E"&$Y124),"")) ->  | N124: =IF(OR(ISBLANK($C124),$Y124=""),"",IF(MONTH($C124)=N$6,$E124/INDIRECT("F"&$Y124)*INDIRECT("E"&$Y124),"")) ->  | O124: =IF(OR(ISBLANK($C124),$Y124=""),"",IF(MONTH($C124)=O$6,$E124/INDIRECT("F"&$Y124)*INDIRECT("E"&$Y124),"")) ->  | P124: =IF(OR(ISBLANK($C124),$Y124=""),"",IF(MONTH($C124)=P$6,$E124/INDIRECT("F"&$Y124)*INDIRECT("E"&$Y124),"")) ->  | Q124: =IF(OR(ISBLANK($C124),$Y124=""),"",IF(MONTH($C124)=Q$6,$E124/INDIRECT("F"&$Y124)*INDIRECT("E"&$Y124),"")) ->  | R124: =IF(OR(ISBLANK($C124),$Y124=""),"",IF(MONTH($C124)=R$6,$E124/INDIRECT("F"&$Y124)*INDIRECT("E"&$Y124),"")) ->  | S124: =IF(OR(ISBLANK($C124),$Y124=""),"",IF(MONTH($C124)=S$6,$E124/INDIRECT("F"&$Y124)*INDIRECT("E"&$Y124),"")) ->  | T124: =IF(OR(ISBLANK($C124),$Y124=""),"",IF(MONTH($C124)=T$6,$E124/INDIRECT("F"&$Y124)*INDIRECT("E"&$Y124),"")) ->  | U124: =IF(OR(ISBLANK($C124),$Y124=""),"",IF(MONTH($C124)=U$6,$E124/INDIRECT("F"&$Y124)*INDIRECT("E"&$Y124),"")) ->  | V124: =IF(OR(ISBLANK($C124),$Y124=""),"",IF(MONTH($C124)=V$6,$E124/INDIRECT("F"&$Y124)*INDIRECT("E"&$Y124),"")) ->  | X124: 117 | Y124: 117
I125: 0 | K125: =IF(OR(ISBLANK($C125),$Y125=""),"",IF(MONTH($C125)=K$6,$E125/INDIRECT("F"&$Y125)*INDIRECT("E"&$Y125),"")) ->  | L125: =IF(OR(ISBLANK($C125),$Y125=""),"",IF(MONTH($C125)=L$6,$E125/INDIRECT("F"&$Y125)*INDIRECT("E"&$Y125),"")) ->  | M125: =IF(OR(ISBLANK($C125),$Y125=""),"",IF(MONTH($C125)=M$6,$E125/INDIRECT("F"&$Y125)*INDIRECT("E"&$Y125),"")) ->  | N125: =IF(OR(ISBLANK($C125),$Y125=""),"",IF(MONTH($C125)=N$6,$E125/INDIRECT("F"&$Y125)*INDIRECT("E"&$Y125),"")) ->  | O125: =IF(OR(ISBLANK($C125),$Y125=""),"",IF(MONTH($C125)=O$6,$E125/INDIRECT("F"&$Y125)*INDIRECT("E"&$Y125),"")) ->  | P125: =IF(OR(ISBLANK($C125),$Y125=""),"",IF(MONTH($C125)=P$6,$E125/INDIRECT("F"&$Y125)*INDIRECT("E"&$Y125),"")) ->  | Q125: =IF(OR(ISBLANK($C125),$Y125=""),"",IF(MONTH($C125)=Q$6,$E125/INDIRECT("F"&$Y125)*INDIRECT("E"&$Y125),"")) ->  | R125: =IF(OR(ISBLANK($C125),$Y125=""),"",IF(MONTH($C125)=R$6,$E125/INDIRECT("F"&$Y125)*INDIRECT("E"&$Y125),"")) ->  | S125: =IF(OR(ISBLANK($C125),$Y125=""),"",IF(MONTH($C125)=S$6,$E125/INDIRECT("F"&$Y125)*INDIRECT("E"&$Y125),"")) ->  | T125: =IF(OR(ISBLANK($C125),$Y125=""),"",IF(MONTH($C125)=T$6,$E125/INDIRECT("F"&$Y125)*INDIRECT("E"&$Y125),"")) ->  | U125: =IF(OR(ISBLANK($C125),$Y125=""),"",IF(MONTH($C125)=U$6,$E125/INDIRECT("F"&$Y125)*INDIRECT("E"&$Y125),"")) ->  | V125: =IF(OR(ISBLANK($C125),$Y125=""),"",IF(MONTH($C125)=V$6,$E125/INDIRECT("F"&$Y125)*INDIRECT("E"&$Y125),"")) ->  | X125: 117 | Y125: 117
I126: 0 | K126: =IF(OR(ISBLANK($C126),$Y126=""),"",IF(MONTH($C126)=K$6,$E126/INDIRECT("F"&$Y126)*INDIRECT("E"&$Y126),"")) ->  | L126: =IF(OR(ISBLANK($C126),$Y126=""),"",IF(MONTH($C126)=L$6,$E126/INDIRECT("F"&$Y126)*INDIRECT("E"&$Y126),"")) ->  | M126: =IF(OR(ISBLANK($C126),$Y126=""),"",IF(MONTH($C126)=M$6,$E126/INDIRECT("F"&$Y126)*INDIRECT("E"&$Y126),"")) ->  | N126: =IF(OR(ISBLANK($C126),$Y126=""),"",IF(MONTH($C126)=N$6,$E126/INDIRECT("F"&$Y126)*INDIRECT("E"&$Y126),"")) ->  | O126: =IF(OR(ISBLANK($C126),$Y126=""),"",IF(MONTH($C126)=O$6,$E126/INDIRECT("F"&$Y126)*INDIRECT("E"&$Y126),"")) ->  | P126: =IF(OR(ISBLANK($C126),$Y126=""),"",IF(MONTH($C126)=P$6,$E126/INDIRECT("F"&$Y126)*INDIRECT("E"&$Y126),"")) ->  | Q126: =IF(OR(ISBLANK($C126),$Y126=""),"",IF(MONTH($C126)=Q$6,$E126/INDIRECT("F"&$Y126)*INDIRECT("E"&$Y126),"")) ->  | R126: =IF(OR(ISBLANK($C126),$Y126=""),"",IF(MONTH($C126)=R$6,$E126/INDIRECT("F"&$Y126)*INDIRECT("E"&$Y126),"")) ->  | S126: =IF(OR(ISBLANK($C126),$Y126=""),"",IF(MONTH($C126)=S$6,$E126/INDIRECT("F"&$Y126)*INDIRECT("E"&$Y126),"")) ->  | T126: =IF(OR(ISBLANK($C126),$Y126=""),"",IF(MONTH($C126)=T$6,$E126/INDIRECT("F"&$Y126)*INDIRECT("E"&$Y126),"")) ->  | U126: =IF(OR(ISBLANK($C126),$Y126=""),"",IF(MONTH($C126)=U$6,$E126/INDIRECT("F"&$Y126)*INDIRECT("E"&$Y126),"")) ->  | V126: =IF(OR(ISBLANK($C126),$Y126=""),"",IF(MONTH($C126)=V$6,$E126/INDIRECT("F"&$Y126)*INDIRECT("E"&$Y126),"")) ->  | X126: 117 | Y126: 117
I127: 0 | K127: =IF(OR(ISBLANK($C127),$Y127=""),"",IF(MONTH($C127)=K$6,$E127/INDIRECT("F"&$Y127)*INDIRECT("E"&$Y127),"")) ->  | L127: =IF(OR(ISBLANK($C127),$Y127=""),"",IF(MONTH($C127)=L$6,$E127/INDIRECT("F"&$Y127)*INDIRECT("E"&$Y127),"")) ->  | M127: =IF(OR(ISBLANK($C127),$Y127=""),"",IF(MONTH($C127)=M$6,$E127/INDIRECT("F"&$Y127)*INDIRECT("E"&$Y127),"")) ->  | N127: =IF(OR(ISBLANK($C127),$Y127=""),"",IF(MONTH($C127)=N$6,$E127/INDIRECT("F"&$Y127)*INDIRECT("E"&$Y127),"")) ->  | O127: =IF(OR(ISBLANK($C127),$Y127=""),"",IF(MONTH($C127)=O$6,$E127/INDIRECT("F"&$Y127)*INDIRECT("E"&$Y127),"")) ->  | P127: =IF(OR(ISBLANK($C127),$Y127=""),"",IF(MONTH($C127)=P$6,$E127/INDIRECT("F"&$Y127)*INDIRECT("E"&$Y127),"")) ->  | Q127: =IF(OR(ISBLANK($C127),$Y127=""),"",IF(MONTH($C127)=Q$6,$E127/INDIRECT("F"&$Y127)*INDIRECT("E"&$Y127),"")) ->  | R127: =IF(OR(ISBLANK($C127),$Y127=""),"",IF(MONTH($C127)=R$6,$E127/INDIRECT("F"&$Y127)*INDIRECT("E"&$Y127),"")) ->  | S127: =IF(OR(ISBLANK($C127),$Y127=""),"",IF(MONTH($C127)=S$6,$E127/INDIRECT("F"&$Y127)*INDIRECT("E"&$Y127),"")) ->  | T127: =IF(OR(ISBLANK($C127),$Y127=""),"",IF(MONTH($C127)=T$6,$E127/INDIRECT("F"&$Y127)*INDIRECT("E"&$Y127),"")) ->  | U127: =IF(OR(ISBLANK($C127),$Y127=""),"",IF(MONTH($C127)=U$6,$E127/INDIRECT("F"&$Y127)*INDIRECT("E"&$Y127),"")) ->  | V127: =IF(OR(ISBLANK($C127),$Y127=""),"",IF(MONTH($C127)=V$6,$E127/INDIRECT("F"&$Y127)*INDIRECT("E"&$Y127),"")) ->  | X127: 117 | Y127: 117
I128: 0 | K128: =IF(OR(ISBLANK($C128),$Y128=""),"",IF(MONTH($C128)=K$6,$E128/INDIRECT("F"&$Y128)*INDIRECT("E"&$Y128),"")) ->  | L128: =IF(OR(ISBLANK($C128),$Y128=""),"",IF(MONTH($C128)=L$6,$E128/INDIRECT("F"&$Y128)*INDIRECT("E"&$Y128),"")) ->  | M128: =IF(OR(ISBLANK($C128),$Y128=""),"",IF(MONTH($C128)=M$6,$E128/INDIRECT("F"&$Y128)*INDIRECT("E"&$Y128),"")) ->  | N128: =IF(OR(ISBLANK($C128),$Y128=""),"",IF(MONTH($C128)=N$6,$E128/INDIRECT("F"&$Y128)*INDIRECT("E"&$Y128),"")) ->  | O128: =IF(OR(ISBLANK($C128),$Y128=""),"",IF(MONTH($C128)=O$6,$E128/INDIRECT("F"&$Y128)*INDIRECT("E"&$Y128),"")) ->  | P128: =IF(OR(ISBLANK($C128),$Y128=""),"",IF(MONTH($C128)=P$6,$E128/INDIRECT("F"&$Y128)*INDIRECT("E"&$Y128),"")) ->  | Q128: =IF(OR(ISBLANK($C128),$Y128=""),"",IF(MONTH($C128)=Q$6,$E128/INDIRECT("F"&$Y128)*INDIRECT("E"&$Y128),"")) ->  | R128: =IF(OR(ISBLANK($C128),$Y128=""),"",IF(MONTH($C128)=R$6,$E128/INDIRECT("F"&$Y128)*INDIRECT("E"&$Y128),"")) ->  | S128: =IF(OR(ISBLANK($C128),$Y128=""),"",IF(MONTH($C128)=S$6,$E128/INDIRECT("F"&$Y128)*INDIRECT("E"&$Y128),"")) ->  | T128: =IF(OR(ISBLANK($C128),$Y128=""),"",IF(MONTH($C128)=T$6,$E128/INDIRECT("F"&$Y128)*INDIRECT("E"&$Y128),"")) ->  | U128: =IF(OR(ISBLANK($C128),$Y128=""),"",IF(MONTH($C128)=U$6,$E128/INDIRECT("F"&$Y128)*INDIRECT("E"&$Y128),"")) ->  | V128: =IF(OR(ISBLANK($C128),$Y128=""),"",IF(MONTH($C128)=V$6,$E128/INDIRECT("F"&$Y128)*INDIRECT("E"&$Y128),"")) ->  | X128: 117 | Y128: 117
H129: =IFERROR(I129/E129,0) -> 0 | I129: =SUM(I130:J140) -> 0 | K129: =IF(OR(ISBLANK($C129),$Y129=""),"",IF(MONTH($C129)=K$6,$E129/INDIRECT("F"&$Y129)*INDIRECT("E"&$Y129),"")) ->  | L129: =IF(OR(ISBLANK($C129),$Y129=""),"",IF(MONTH($C129)=L$6,$E129/INDIRECT("F"&$Y129)*INDIRECT("E"&$Y129),"")) ->  | M129: =IF(OR(ISBLANK($C129),$Y129=""),"",IF(MONTH($C129)=M$6,$E129/INDIRECT("F"&$Y129)*INDIRECT("E"&$Y129),"")) ->  | N129: =IF(OR(ISBLANK($C129),$Y129=""),"",IF(MONTH($C129)=N$6,$E129/INDIRECT("F"&$Y129)*INDIRECT("E"&$Y129),"")) ->  | O129: =IF(OR(ISBLANK($C129),$Y129=""),"",IF(MONTH($C129)=O$6,$E129/INDIRECT("F"&$Y129)*INDIRECT("E"&$Y129),"")) ->  | P129: =IF(OR(ISBLANK($C129),$Y129=""),"",IF(MONTH($C129)=P$6,$E129/INDIRECT("F"&$Y129)*INDIRECT("E"&$Y129),"")) ->  | Q129: =IF(OR(ISBLANK($C129),$Y129=""),"",IF(MONTH($C129)=Q$6,$E129/INDIRECT("F"&$Y129)*INDIRECT("E"&$Y129),"")) ->  | R129: =IF(OR(ISBLANK($C129),$Y129=""),"",IF(MONTH($C129)=R$6,$E129/INDIRECT("F"&$Y129)*INDIRECT("E"&$Y129),"")) ->  | S129: =IF(OR(ISBLANK($C129),$Y129=""),"",IF(MONTH($C129)=S$6,$E129/INDIRECT("F"&$Y129)*INDIRECT("E"&$Y129),"")) ->  | T129: =IF(OR(ISBLANK($C129),$Y129=""),"",IF(MONTH($C129)=T$6,$E129/INDIRECT("F"&$Y129)*INDIRECT("E"&$Y129),"")) ->  | U129: =IF(OR(ISBLANK($C129),$Y129=""),"",IF(MONTH($C129)=U$6,$E129/INDIRECT("F"&$Y129)*INDIRECT("E"&$Y129),"")) ->  | V129: =IF(OR(ISBLANK($C129),$Y129=""),"",IF(MONTH($C129)=V$6,$E129/INDIRECT("F"&$Y129)*INDIRECT("E"&$Y129),"")) ->  | W129: =IF(H129<>100%,"Niet ok","ok") -> Niet ok | X129: 129
B130: Factuurnummer | C130: Factuurdatum | D130: Omschrijving factuur | E130: Factuurbedrag | K130: =IF(OR(ISBLANK($C130),$Y130=""),"",IF(MONTH($C130)=K$6,$E130/INDIRECT("F"&$Y130)*INDIRECT("E"&$Y130),"")) ->  | L130: =IF(OR(ISBLANK($C130),$Y130=""),"",IF(MONTH($C130)=L$6,$E130/INDIRECT("F"&$Y130)*INDIRECT("E"&$Y130),"")) ->  | M130: =IF(OR(ISBLANK($C130),$Y130=""),"",IF(MONTH($C130)=M$6,$E130/INDIRECT("F"&$Y130)*INDIRECT("E"&$Y130),"")) ->  | N130: =IF(OR(ISBLANK($C130),$Y130=""),"",IF(MONTH($C130)=N$6,$E130/INDIRECT("F"&$Y130)*INDIRECT("E"&$Y130),"")) ->  | O130: =IF(OR(ISBLANK($C130),$Y130=""),"",IF(MONTH($C130)=O$6,$E130/INDIRECT("F"&$Y130)*INDIRECT("E"&$Y130),"")) ->  | P130: =IF(OR(ISBLANK($C130),$Y130=""),"",IF(MONTH($C130)=P$6,$E130/INDIRECT("F"&$Y130)*INDIRECT("E"&$Y130),"")) ->  | Q130: =IF(OR(ISBLANK($C130),$Y130=""),"",IF(MONTH($C130)=Q$6,$E130/INDIRECT("F"&$Y130)*INDIRECT("E"&$Y130),"")) ->  | R130: =IF(OR(ISBLANK($C130),$Y130=""),"",IF(MONTH($C130)=R$6,$E130/INDIRECT("F"&$Y130)*INDIRECT("E"&$Y130),"")) ->  | S130: =IF(OR(ISBLANK($C130),$Y130=""),"",IF(MONTH($C130)=S$6,$E130/INDIRECT("F"&$Y130)*INDIRECT("E"&$Y130),"")) ->  | T130: =IF(OR(ISBLANK($C130),$Y130=""),"",IF(MONTH($C130)=T$6,$E130/INDIRECT("F"&$Y130)*INDIRECT("E"&$Y130),"")) ->  | U130: =IF(OR(ISBLANK($C130),$Y130=""),"",IF(MONTH($C130)=U$6,$E130/INDIRECT("F"&$Y130)*INDIRECT("E"&$Y130),"")) ->  | V130: =IF(OR(ISBLANK($C130),$Y130=""),"",IF(MONTH($C130)=V$6,$E130/INDIRECT("F"&$Y130)*INDIRECT("E"&$Y130),"")) ->  | X130: 129
I131: =SUM(K131:V131) -> 0 | K131: =IF(OR(ISBLANK($C131),$Y131=""),"",IF(MONTH($C131)=K$6,$E131/INDIRECT("F"&$Y131)*INDIRECT("E"&$Y131),"")) ->  | L131: =IF(OR(ISBLANK($C131),$Y131=""),"",IF(MONTH($C131)=L$6,$E131/INDIRECT("F"&$Y131)*INDIRECT("E"&$Y131),"")) ->  | M131: =IF(OR(ISBLANK($C131),$Y131=""),"",IF(MONTH($C131)=M$6,$E131/INDIRECT("F"&$Y131)*INDIRECT("E"&$Y131),"")) ->  | N131: =IF(OR(ISBLANK($C131),$Y131=""),"",IF(MONTH($C131)=N$6,$E131/INDIRECT("F"&$Y131)*INDIRECT("E"&$Y131),"")) ->  | O131: =IF(OR(ISBLANK($C131),$Y131=""),"",IF(MONTH($C131)=O$6,$E131/INDIRECT("F"&$Y131)*INDIRECT("E"&$Y131),"")) ->  | P131: =IF(OR(ISBLANK($C131),$Y131=""),"",IF(MONTH($C131)=P$6,$E131/INDIRECT("F"&$Y131)*INDIRECT("E"&$Y131),"")) ->  | Q131: =IF(OR(ISBLANK($C131),$Y131=""),"",IF(MONTH($C131)=Q$6,$E131/INDIRECT("F"&$Y131)*INDIRECT("E"&$Y131),"")) ->  | R131: =IF(OR(ISBLANK($C131),$Y131=""),"",IF(MONTH($C131)=R$6,$E131/INDIRECT("F"&$Y131)*INDIRECT("E"&$Y131),"")) ->  | S131: =IF(OR(ISBLANK($C131),$Y131=""),"",IF(MONTH($C131)=S$6,$E131/INDIRECT("F"&$Y131)*INDIRECT("E"&$Y131),"")) ->  | T131: =IF(OR(ISBLANK($C131),$Y131=""),"",IF(MONTH($C131)=T$6,$E131/INDIRECT("F"&$Y131)*INDIRECT("E"&$Y131),"")) ->  | U131: =IF(OR(ISBLANK($C131),$Y131=""),"",IF(MONTH($C131)=U$6,$E131/INDIRECT("F"&$Y131)*INDIRECT("E"&$Y131),"")) ->  | V131: =IF(OR(ISBLANK($C131),$Y131=""),"",IF(MONTH($C131)=V$6,$E131/INDIRECT("F"&$Y131)*INDIRECT("E"&$Y131),"")) ->  | X131: 129 | Y131: 129
I132: 0 | K132: =IF(OR(ISBLANK($C132),$Y132=""),"",IF(MONTH($C132)=K$6,$E132/INDIRECT("F"&$Y132)*INDIRECT("E"&$Y132),"")) ->  | L132: =IF(OR(ISBLANK($C132),$Y132=""),"",IF(MONTH($C132)=L$6,$E132/INDIRECT("F"&$Y132)*INDIRECT("E"&$Y132),"")) ->  | M132: =IF(OR(ISBLANK($C132),$Y132=""),"",IF(MONTH($C132)=M$6,$E132/INDIRECT("F"&$Y132)*INDIRECT("E"&$Y132),"")) ->  | N132: =IF(OR(ISBLANK($C132),$Y132=""),"",IF(MONTH($C132)=N$6,$E132/INDIRECT("F"&$Y132)*INDIRECT("E"&$Y132),"")) ->  | O132: =IF(OR(ISBLANK($C132),$Y132=""),"",IF(MONTH($C132)=O$6,$E132/INDIRECT("F"&$Y132)*INDIRECT("E"&$Y132),"")) ->  | P132: =IF(OR(ISBLANK($C132),$Y132=""),"",IF(MONTH($C132)=P$6,$E132/INDIRECT("F"&$Y132)*INDIRECT("E"&$Y132),"")) ->  | Q132: =IF(OR(ISBLANK($C132),$Y132=""),"",IF(MONTH($C132)=Q$6,$E132/INDIRECT("F"&$Y132)*INDIRECT("E"&$Y132),"")) ->  | R132: =IF(OR(ISBLANK($C132),$Y132=""),"",IF(MONTH($C132)=R$6,$E132/INDIRECT("F"&$Y132)*INDIRECT("E"&$Y132),"")) ->  | S132: =IF(OR(ISBLANK($C132),$Y132=""),"",IF(MONTH($C132)=S$6,$E132/INDIRECT("F"&$Y132)*INDIRECT("E"&$Y132),"")) ->  | T132: =IF(OR(ISBLANK($C132),$Y132=""),"",IF(MONTH($C132)=T$6,$E132/INDIRECT("F"&$Y132)*INDIRECT("E"&$Y132),"")) ->  | U132: =IF(OR(ISBLANK($C132),$Y132=""),"",IF(MONTH($C132)=U$6,$E132/INDIRECT("F"&$Y132)*INDIRECT("E"&$Y132),"")) ->  | V132: =IF(OR(ISBLANK($C132),$Y132=""),"",IF(MONTH($C132)=V$6,$E132/INDIRECT("F"&$Y132)*INDIRECT("E"&$Y132),"")) ->  | X132: 129 | Y132: 129
I133: 0 | K133: =IF(OR(ISBLANK($C133),$Y133=""),"",IF(MONTH($C133)=K$6,$E133/INDIRECT("F"&$Y133)*INDIRECT("E"&$Y133),"")) ->  | L133: =IF(OR(ISBLANK($C133),$Y133=""),"",IF(MONTH($C133)=L$6,$E133/INDIRECT("F"&$Y133)*INDIRECT("E"&$Y133),"")) ->  | M133: =IF(OR(ISBLANK($C133),$Y133=""),"",IF(MONTH($C133)=M$6,$E133/INDIRECT("F"&$Y133)*INDIRECT("E"&$Y133),"")) ->  | N133: =IF(OR(ISBLANK($C133),$Y133=""),"",IF(MONTH($C133)=N$6,$E133/INDIRECT("F"&$Y133)*INDIRECT("E"&$Y133),"")) ->  | O133: =IF(OR(ISBLANK($C133),$Y133=""),"",IF(MONTH($C133)=O$6,$E133/INDIRECT("F"&$Y133)*INDIRECT("E"&$Y133),"")) ->  | P133: =IF(OR(ISBLANK($C133),$Y133=""),"",IF(MONTH($C133)=P$6,$E133/INDIRECT("F"&$Y133)*INDIRECT("E"&$Y133),"")) ->  | Q133: =IF(OR(ISBLANK($C133),$Y133=""),"",IF(MONTH($C133)=Q$6,$E133/INDIRECT("F"&$Y133)*INDIRECT("E"&$Y133),"")) ->  | R133: =IF(OR(ISBLANK($C133),$Y133=""),"",IF(MONTH($C133)=R$6,$E133/INDIRECT("F"&$Y133)*INDIRECT("E"&$Y133),"")) ->  | S133: =IF(OR(ISBLANK($C133),$Y133=""),"",IF(MONTH($C133)=S$6,$E133/INDIRECT("F"&$Y133)*INDIRECT("E"&$Y133),"")) ->  | T133: =IF(OR(ISBLANK($C133),$Y133=""),"",IF(MONTH($C133)=T$6,$E133/INDIRECT("F"&$Y133)*INDIRECT("E"&$Y133),"")) ->  | U133: =IF(OR(ISBLANK($C133),$Y133=""),"",IF(MONTH($C133)=U$6,$E133/INDIRECT("F"&$Y133)*INDIRECT("E"&$Y133),"")) ->  | V133: =IF(OR(ISBLANK($C133),$Y133=""),"",IF(MONTH($C133)=V$6,$E133/INDIRECT("F"&$Y133)*INDIRECT("E"&$Y133),"")) ->  | X133: 129 | Y133: 129
I134: 0 | K134: =IF(OR(ISBLANK($C134),$Y134=""),"",IF(MONTH($C134)=K$6,$E134/INDIRECT("F"&$Y134)*INDIRECT("E"&$Y134),"")) ->  | L134: =IF(OR(ISBLANK($C134),$Y134=""),"",IF(MONTH($C134)=L$6,$E134/INDIRECT("F"&$Y134)*INDIRECT("E"&$Y134),"")) ->  | M134: =IF(OR(ISBLANK($C134),$Y134=""),"",IF(MONTH($C134)=M$6,$E134/INDIRECT("F"&$Y134)*INDIRECT("E"&$Y134),"")) ->  | N134: =IF(OR(ISBLANK($C134),$Y134=""),"",IF(MONTH($C134)=N$6,$E134/INDIRECT("F"&$Y134)*INDIRECT("E"&$Y134),"")) ->  | O134: =IF(OR(ISBLANK($C134),$Y134=""),"",IF(MONTH($C134)=O$6,$E134/INDIRECT("F"&$Y134)*INDIRECT("E"&$Y134),"")) ->  | P134: =IF(OR(ISBLANK($C134),$Y134=""),"",IF(MONTH($C134)=P$6,$E134/INDIRECT("F"&$Y134)*INDIRECT("E"&$Y134),"")) ->  | Q134: =IF(OR(ISBLANK($C134),$Y134=""),"",IF(MONTH($C134)=Q$6,$E134/INDIRECT("F"&$Y134)*INDIRECT("E"&$Y134),"")) ->  | R134: =IF(OR(ISBLANK($C134),$Y134=""),"",IF(MONTH($C134)=R$6,$E134/INDIRECT("F"&$Y134)*INDIRECT("E"&$Y134),"")) ->  | S134: =IF(OR(ISBLANK($C134),$Y134=""),"",IF(MONTH($C134)=S$6,$E134/INDIRECT("F"&$Y134)*INDIRECT("E"&$Y134),"")) ->  | T134: =IF(OR(ISBLANK($C134),$Y134=""),"",IF(MONTH($C134)=T$6,$E134/INDIRECT("F"&$Y134)*INDIRECT("E"&$Y134),"")) ->  | U134: =IF(OR(ISBLANK($C134),$Y134=""),"",IF(MONTH($C134)=U$6,$E134/INDIRECT("F"&$Y134)*INDIRECT("E"&$Y134),"")) ->  | V134: =IF(OR(ISBLANK($C134),$Y134=""),"",IF(MONTH($C134)=V$6,$E134/INDIRECT("F"&$Y134)*INDIRECT("E"&$Y134),"")) ->  | X134: 129 | Y134: 129
I135: 0 | K135: =IF(OR(ISBLANK($C135),$Y135=""),"",IF(MONTH($C135)=K$6,$E135/INDIRECT("F"&$Y135)*INDIRECT("E"&$Y135),"")) ->  | L135: =IF(OR(ISBLANK($C135),$Y135=""),"",IF(MONTH($C135)=L$6,$E135/INDIRECT("F"&$Y135)*INDIRECT("E"&$Y135),"")) ->  | M135: =IF(OR(ISBLANK($C135),$Y135=""),"",IF(MONTH($C135)=M$6,$E135/INDIRECT("F"&$Y135)*INDIRECT("E"&$Y135),"")) ->  | N135: =IF(OR(ISBLANK($C135),$Y135=""),"",IF(MONTH($C135)=N$6,$E135/INDIRECT("F"&$Y135)*INDIRECT("E"&$Y135),"")) ->  | O135: =IF(OR(ISBLANK($C135),$Y135=""),"",IF(MONTH($C135)=O$6,$E135/INDIRECT("F"&$Y135)*INDIRECT("E"&$Y135),"")) ->  | P135: =IF(OR(ISBLANK($C135),$Y135=""),"",IF(MONTH($C135)=P$6,$E135/INDIRECT("F"&$Y135)*INDIRECT("E"&$Y135),"")) ->  | Q135: =IF(OR(ISBLANK($C135),$Y135=""),"",IF(MONTH($C135)=Q$6,$E135/INDIRECT("F"&$Y135)*INDIRECT("E"&$Y135),"")) ->  | R135: =IF(OR(ISBLANK($C135),$Y135=""),"",IF(MONTH($C135)=R$6,$E135/INDIRECT("F"&$Y135)*INDIRECT("E"&$Y135),"")) ->  | S135: =IF(OR(ISBLANK($C135),$Y135=""),"",IF(MONTH($C135)=S$6,$E135/INDIRECT("F"&$Y135)*INDIRECT("E"&$Y135),"")) ->  | T135: =IF(OR(ISBLANK($C135),$Y135=""),"",IF(MONTH($C135)=T$6,$E135/INDIRECT("F"&$Y135)*INDIRECT("E"&$Y135),"")) ->  | U135: =IF(OR(ISBLANK($C135),$Y135=""),"",IF(MONTH($C135)=U$6,$E135/INDIRECT("F"&$Y135)*INDIRECT("E"&$Y135),"")) ->  | V135: =IF(OR(ISBLANK($C135),$Y135=""),"",IF(MONTH($C135)=V$6,$E135/INDIRECT("F"&$Y135)*INDIRECT("E"&$Y135),"")) ->  | X135: 129 | Y135: 129
I136: 0 | K136: =IF(OR(ISBLANK($C136),$Y136=""),"",IF(MONTH($C136)=K$6,$E136/INDIRECT("F"&$Y136)*INDIRECT("E"&$Y136),"")) ->  | L136: =IF(OR(ISBLANK($C136),$Y136=""),"",IF(MONTH($C136)=L$6,$E136/INDIRECT("F"&$Y136)*INDIRECT("E"&$Y136),"")) ->  | M136: =IF(OR(ISBLANK($C136),$Y136=""),"",IF(MONTH($C136)=M$6,$E136/INDIRECT("F"&$Y136)*INDIRECT("E"&$Y136),"")) ->  | N136: =IF(OR(ISBLANK($C136),$Y136=""),"",IF(MONTH($C136)=N$6,$E136/INDIRECT("F"&$Y136)*INDIRECT("E"&$Y136),"")) ->  | O136: =IF(OR(ISBLANK($C136),$Y136=""),"",IF(MONTH($C136)=O$6,$E136/INDIRECT("F"&$Y136)*INDIRECT("E"&$Y136),"")) ->  | P136: =IF(OR(ISBLANK($C136),$Y136=""),"",IF(MONTH($C136)=P$6,$E136/INDIRECT("F"&$Y136)*INDIRECT("E"&$Y136),"")) ->  | Q136: =IF(OR(ISBLANK($C136),$Y136=""),"",IF(MONTH($C136)=Q$6,$E136/INDIRECT("F"&$Y136)*INDIRECT("E"&$Y136),"")) ->  | R136: =IF(OR(ISBLANK($C136),$Y136=""),"",IF(MONTH($C136)=R$6,$E136/INDIRECT("F"&$Y136)*INDIRECT("E"&$Y136),"")) ->  | S136: =IF(OR(ISBLANK($C136),$Y136=""),"",IF(MONTH($C136)=S$6,$E136/INDIRECT("F"&$Y136)*INDIRECT("E"&$Y136),"")) ->  | T136: =IF(OR(ISBLANK($C136),$Y136=""),"",IF(MONTH($C136)=T$6,$E136/INDIRECT("F"&$Y136)*INDIRECT("E"&$Y136),"")) ->  | U136: =IF(OR(ISBLANK($C136),$Y136=""),"",IF(MONTH($C136)=U$6,$E136/INDIRECT("F"&$Y136)*INDIRECT("E"&$Y136),"")) ->  | V136: =IF(OR(ISBLANK($C136),$Y136=""),"",IF(MONTH($C136)=V$6,$E136/INDIRECT("F"&$Y136)*INDIRECT("E"&$Y136),"")) ->  | X136: 129 | Y136: 129
I137: 0 | K137: =IF(OR(ISBLANK($C137),$Y137=""),"",IF(MONTH($C137)=K$6,$E137/INDIRECT("F"&$Y137)*INDIRECT("E"&$Y137),"")) ->  | L137: =IF(OR(ISBLANK($C137),$Y137=""),"",IF(MONTH($C137)=L$6,$E137/INDIRECT("F"&$Y137)*INDIRECT("E"&$Y137),"")) ->  | M137: =IF(OR(ISBLANK($C137),$Y137=""),"",IF(MONTH($C137)=M$6,$E137/INDIRECT("F"&$Y137)*INDIRECT("E"&$Y137),"")) ->  | N137: =IF(OR(ISBLANK($C137),$Y137=""),"",IF(MONTH($C137)=N$6,$E137/INDIRECT("F"&$Y137)*INDIRECT("E"&$Y137),"")) ->  | O137: =IF(OR(ISBLANK($C137),$Y137=""),"",IF(MONTH($C137)=O$6,$E137/INDIRECT("F"&$Y137)*INDIRECT("E"&$Y137),"")) ->  | P137: =IF(OR(ISBLANK($C137),$Y137=""),"",IF(MONTH($C137)=P$6,$E137/INDIRECT("F"&$Y137)*INDIRECT("E"&$Y137),"")) ->  | Q137: =IF(OR(ISBLANK($C137),$Y137=""),"",IF(MONTH($C137)=Q$6,$E137/INDIRECT("F"&$Y137)*INDIRECT("E"&$Y137),"")) ->  | R137: =IF(OR(ISBLANK($C137),$Y137=""),"",IF(MONTH($C137)=R$6,$E137/INDIRECT("F"&$Y137)*INDIRECT("E"&$Y137),"")) ->  | S137: =IF(OR(ISBLANK($C137),$Y137=""),"",IF(MONTH($C137)=S$6,$E137/INDIRECT("F"&$Y137)*INDIRECT("E"&$Y137),"")) ->  | T137: =IF(OR(ISBLANK($C137),$Y137=""),"",IF(MONTH($C137)=T$6,$E137/INDIRECT("F"&$Y137)*INDIRECT("E"&$Y137),"")) ->  | U137: =IF(OR(ISBLANK($C137),$Y137=""),"",IF(MONTH($C137)=U$6,$E137/INDIRECT("F"&$Y137)*INDIRECT("E"&$Y137),"")) ->  | V137: =IF(OR(ISBLANK($C137),$Y137=""),"",IF(MONTH($C137)=V$6,$E137/INDIRECT("F"&$Y137)*INDIRECT("E"&$Y137),"")) ->  | X137: 129 | Y137: 129
I138: 0 | K138: =IF(OR(ISBLANK($C138),$Y138=""),"",IF(MONTH($C138)=K$6,$E138/INDIRECT("F"&$Y138)*INDIRECT("E"&$Y138),"")) ->  | L138: =IF(OR(ISBLANK($C138),$Y138=""),"",IF(MONTH($C138)=L$6,$E138/INDIRECT("F"&$Y138)*INDIRECT("E"&$Y138),"")) ->  | M138: =IF(OR(ISBLANK($C138),$Y138=""),"",IF(MONTH($C138)=M$6,$E138/INDIRECT("F"&$Y138)*INDIRECT("E"&$Y138),"")) ->  | N138: =IF(OR(ISBLANK($C138),$Y138=""),"",IF(MONTH($C138)=N$6,$E138/INDIRECT("F"&$Y138)*INDIRECT("E"&$Y138),"")) ->  | O138: =IF(OR(ISBLANK($C138),$Y138=""),"",IF(MONTH($C138)=O$6,$E138/INDIRECT("F"&$Y138)*INDIRECT("E"&$Y138),"")) ->  | P138: =IF(OR(ISBLANK($C138),$Y138=""),"",IF(MONTH($C138)=P$6,$E138/INDIRECT("F"&$Y138)*INDIRECT("E"&$Y138),"")) ->  | Q138: =IF(OR(ISBLANK($C138),$Y138=""),"",IF(MONTH($C138)=Q$6,$E138/INDIRECT("F"&$Y138)*INDIRECT("E"&$Y138),"")) ->  | R138: =IF(OR(ISBLANK($C138),$Y138=""),"",IF(MONTH($C138)=R$6,$E138/INDIRECT("F"&$Y138)*INDIRECT("E"&$Y138),"")) ->  | S138: =IF(OR(ISBLANK($C138),$Y138=""),"",IF(MONTH($C138)=S$6,$E138/INDIRECT("F"&$Y138)*INDIRECT("E"&$Y138),"")) ->  | T138: =IF(OR(ISBLANK($C138),$Y138=""),"",IF(MONTH($C138)=T$6,$E138/INDIRECT("F"&$Y138)*INDIRECT("E"&$Y138),"")) ->  | U138: =IF(OR(ISBLANK($C138),$Y138=""),"",IF(MONTH($C138)=U$6,$E138/INDIRECT("F"&$Y138)*INDIRECT("E"&$Y138),"")) ->  | V138: =IF(OR(ISBLANK($C138),$Y138=""),"",IF(MONTH($C138)=V$6,$E138/INDIRECT("F"&$Y138)*INDIRECT("E"&$Y138),"")) ->  | X138: =ROW()-MOD(ROW()-9,12) -> 129 | Y138: =IF(OR(X138=ROW(),X138=ROW()-1),"",X138) -> 129
I139: 0 | K139: =IF(OR(ISBLANK($C139),$Y139=""),"",IF(MONTH($C139)=K$6,$E139/INDIRECT("F"&$Y139)*INDIRECT("E"&$Y139),"")) ->  | L139: =IF(OR(ISBLANK($C139),$Y139=""),"",IF(MONTH($C139)=L$6,$E139/INDIRECT("F"&$Y139)*INDIRECT("E"&$Y139),"")) ->  | M139: =IF(OR(ISBLANK($C139),$Y139=""),"",IF(MONTH($C139)=M$6,$E139/INDIRECT("F"&$Y139)*INDIRECT("E"&$Y139),"")) ->  | N139: =IF(OR(ISBLANK($C139),$Y139=""),"",IF(MONTH($C139)=N$6,$E139/INDIRECT("F"&$Y139)*INDIRECT("E"&$Y139),"")) ->  | O139: =IF(OR(ISBLANK($C139),$Y139=""),"",IF(MONTH($C139)=O$6,$E139/INDIRECT("F"&$Y139)*INDIRECT("E"&$Y139),"")) ->  | P139: =IF(OR(ISBLANK($C139),$Y139=""),"",IF(MONTH($C139)=P$6,$E139/INDIRECT("F"&$Y139)*INDIRECT("E"&$Y139),"")) ->  | Q139: =IF(OR(ISBLANK($C139),$Y139=""),"",IF(MONTH($C139)=Q$6,$E139/INDIRECT("F"&$Y139)*INDIRECT("E"&$Y139),"")) ->  | R139: =IF(OR(ISBLANK($C139),$Y139=""),"",IF(MONTH($C139)=R$6,$E139/INDIRECT("F"&$Y139)*INDIRECT("E"&$Y139),"")) ->  | S139: =IF(OR(ISBLANK($C139),$Y139=""),"",IF(MONTH($C139)=S$6,$E139/INDIRECT("F"&$Y139)*INDIRECT("E"&$Y139),"")) ->  | T139: =IF(OR(ISBLANK($C139),$Y139=""),"",IF(MONTH($C139)=T$6,$E139/INDIRECT("F"&$Y139)*INDIRECT("E"&$Y139),"")) ->  | U139: =IF(OR(ISBLANK($C139),$Y139=""),"",IF(MONTH($C139)=U$6,$E139/INDIRECT("F"&$Y139)*INDIRECT("E"&$Y139),"")) ->  | V139: =IF(OR(ISBLANK($C139),$Y139=""),"",IF(MONTH($C139)=V$6,$E139/INDIRECT("F"&$Y139)*INDIRECT("E"&$Y139),"")) ->  | X139: 129 | Y139: 129
I140: 0 | K140: =IF(OR(ISBLANK($C140),$Y140=""),"",IF(MONTH($C140)=K$6,$E140/INDIRECT("F"&$Y140)*INDIRECT("E"&$Y140),"")) ->  | L140: =IF(OR(ISBLANK($C140),$Y140=""),"",IF(MONTH($C140)=L$6,$E140/INDIRECT("F"&$Y140)*INDIRECT("E"&$Y140),"")) ->  | M140: =IF(OR(ISBLANK($C140),$Y140=""),"",IF(MONTH($C140)=M$6,$E140/INDIRECT("F"&$Y140)*INDIRECT("E"&$Y140),"")) ->  | N140: =IF(OR(ISBLANK($C140),$Y140=""),"",IF(MONTH($C140)=N$6,$E140/INDIRECT("F"&$Y140)*INDIRECT("E"&$Y140),"")) ->  | O140: =IF(OR(ISBLANK($C140),$Y140=""),"",IF(MONTH($C140)=O$6,$E140/INDIRECT("F"&$Y140)*INDIRECT("E"&$Y140),"")) ->  | P140: =IF(OR(ISBLANK($C140),$Y140=""),"",IF(MONTH($C140)=P$6,$E140/INDIRECT("F"&$Y140)*INDIRECT("E"&$Y140),"")) ->  | Q140: =IF(OR(ISBLANK($C140),$Y140=""),"",IF(MONTH($C140)=Q$6,$E140/INDIRECT("F"&$Y140)*INDIRECT("E"&$Y140),"")) ->  | R140: =IF(OR(ISBLANK($C140),$Y140=""),"",IF(MONTH($C140)=R$6,$E140/INDIRECT("F"&$Y140)*INDIRECT("E"&$Y140),"")) ->  | S140: =IF(OR(ISBLANK($C140),$Y140=""),"",IF(MONTH($C140)=S$6,$E140/INDIRECT("F"&$Y140)*INDIRECT("E"&$Y140),"")) ->  | T140: =IF(OR(ISBLANK($C140),$Y140=""),"",IF(MONTH($C140)=T$6,$E140/INDIRECT("F"&$Y140)*INDIRECT("E"&$Y140),"")) ->  | U140: =IF(OR(ISBLANK($C140),$Y140=""),"",IF(MONTH($C140)=U$6,$E140/INDIRECT("F"&$Y140)*INDIRECT("E"&$Y140),"")) ->  | V140: =IF(OR(ISBLANK($C140),$Y140=""),"",IF(MONTH($C140)=V$6,$E140/INDIRECT("F"&$Y140)*INDIRECT("E"&$Y140),"")) ->  | X140: 129 | Y140: 129
H141: =IFERROR(I141/E141,0) -> 0 | I141: =SUM(I142:J152) -> 0 | K141: =IF(OR(ISBLANK($C141),$Y141=""),"",IF(MONTH($C141)=K$6,$E141/INDIRECT("F"&$Y141)*INDIRECT("E"&$Y141),"")) ->  | L141: =IF(OR(ISBLANK($C141),$Y141=""),"",IF(MONTH($C141)=L$6,$E141/INDIRECT("F"&$Y141)*INDIRECT("E"&$Y141),"")) ->  | M141: =IF(OR(ISBLANK($C141),$Y141=""),"",IF(MONTH($C141)=M$6,$E141/INDIRECT("F"&$Y141)*INDIRECT("E"&$Y141),"")) ->  | N141: =IF(OR(ISBLANK($C141),$Y141=""),"",IF(MONTH($C141)=N$6,$E141/INDIRECT("F"&$Y141)*INDIRECT("E"&$Y141),"")) ->  | O141: =IF(OR(ISBLANK($C141),$Y141=""),"",IF(MONTH($C141)=O$6,$E141/INDIRECT("F"&$Y141)*INDIRECT("E"&$Y141),"")) ->  | P141: =IF(OR(ISBLANK($C141),$Y141=""),"",IF(MONTH($C141)=P$6,$E141/INDIRECT("F"&$Y141)*INDIRECT("E"&$Y141),"")) ->  | Q141: =IF(OR(ISBLANK($C141),$Y141=""),"",IF(MONTH($C141)=Q$6,$E141/INDIRECT("F"&$Y141)*INDIRECT("E"&$Y141),"")) ->  | R141: =IF(OR(ISBLANK($C141),$Y141=""),"",IF(MONTH($C141)=R$6,$E141/INDIRECT("F"&$Y141)*INDIRECT("E"&$Y141),"")) ->  | S141: =IF(OR(ISBLANK($C141),$Y141=""),"",IF(MONTH($C141)=S$6,$E141/INDIRECT("F"&$Y141)*INDIRECT("E"&$Y141),"")) ->  | T141: =IF(OR(ISBLANK($C141),$Y141=""),"",IF(MONTH($C141)=T$6,$E141/INDIRECT("F"&$Y141)*INDIRECT("E"&$Y141),"")) ->  | U141: =IF(OR(ISBLANK($C141),$Y141=""),"",IF(MONTH($C141)=U$6,$E141/INDIRECT("F"&$Y141)*INDIRECT("E"&$Y141),"")) ->  | V141: =IF(OR(ISBLANK($C141),$Y141=""),"",IF(MONTH($C141)=V$6,$E141/INDIRECT("F"&$Y141)*INDIRECT("E"&$Y141),"")) ->  | W141: =IF(H141<>100%,"Niet ok","ok") -> Niet ok | X141: 141
B142: Factuurnummer | C142: Factuurdatum | D142: Omschrijving factuur | E142: Factuurbedrag | K142: =IF(OR(ISBLANK($C142),$Y142=""),"",IF(MONTH($C142)=K$6,$E142/INDIRECT("F"&$Y142)*INDIRECT("E"&$Y142),"")) ->  | L142: =IF(OR(ISBLANK($C142),$Y142=""),"",IF(MONTH($C142)=L$6,$E142/INDIRECT("F"&$Y142)*INDIRECT("E"&$Y142),"")) ->  | M142: =IF(OR(ISBLANK($C142),$Y142=""),"",IF(MONTH($C142)=M$6,$E142/INDIRECT("F"&$Y142)*INDIRECT("E"&$Y142),"")) ->  | N142: =IF(OR(ISBLANK($C142),$Y142=""),"",IF(MONTH($C142)=N$6,$E142/INDIRECT("F"&$Y142)*INDIRECT("E"&$Y142),"")) ->  | O142: =IF(OR(ISBLANK($C142),$Y142=""),"",IF(MONTH($C142)=O$6,$E142/INDIRECT("F"&$Y142)*INDIRECT("E"&$Y142),"")) ->  | P142: =IF(OR(ISBLANK($C142),$Y142=""),"",IF(MONTH($C142)=P$6,$E142/INDIRECT("F"&$Y142)*INDIRECT("E"&$Y142),"")) ->  | Q142: =IF(OR(ISBLANK($C142),$Y142=""),"",IF(MONTH($C142)=Q$6,$E142/INDIRECT("F"&$Y142)*INDIRECT("E"&$Y142),"")) ->  | R142: =IF(OR(ISBLANK($C142),$Y142=""),"",IF(MONTH($C142)=R$6,$E142/INDIRECT("F"&$Y142)*INDIRECT("E"&$Y142),"")) ->  | S142: =IF(OR(ISBLANK($C142),$Y142=""),"",IF(MONTH($C142)=S$6,$E142/INDIRECT("F"&$Y142)*INDIRECT("E"&$Y142),"")) ->  | T142: =IF(OR(ISBLANK($C142),$Y142=""),"",IF(MONTH($C142)=T$6,$E142/INDIRECT("F"&$Y142)*INDIRECT("E"&$Y142),"")) ->  | U142: =IF(OR(ISBLANK($C142),$Y142=""),"",IF(MONTH($C142)=U$6,$E142/INDIRECT("F"&$Y142)*INDIRECT("E"&$Y142),"")) ->  | V142: =IF(OR(ISBLANK($C142),$Y142=""),"",IF(MONTH($C142)=V$6,$E142/INDIRECT("F"&$Y142)*INDIRECT("E"&$Y142),"")) ->  | X142: 141
I143: =SUM(K143:V143) -> 0 | K143: =IF(OR(ISBLANK($C143),$Y143=""),"",IF(MONTH($C143)=K$6,$E143/INDIRECT("F"&$Y143)*INDIRECT("E"&$Y143),"")) ->  | L143: =IF(OR(ISBLANK($C143),$Y143=""),"",IF(MONTH($C143)=L$6,$E143/INDIRECT("F"&$Y143)*INDIRECT("E"&$Y143),"")) ->  | M143: =IF(OR(ISBLANK($C143),$Y143=""),"",IF(MONTH($C143)=M$6,$E143/INDIRECT("F"&$Y143)*INDIRECT("E"&$Y143),"")) ->  | N143: =IF(OR(ISBLANK($C143),$Y143=""),"",IF(MONTH($C143)=N$6,$E143/INDIRECT("F"&$Y143)*INDIRECT("E"&$Y143),"")) ->  | O143: =IF(OR(ISBLANK($C143),$Y143=""),"",IF(MONTH($C143)=O$6,$E143/INDIRECT("F"&$Y143)*INDIRECT("E"&$Y143),"")) ->  | P143: =IF(OR(ISBLANK($C143),$Y143=""),"",IF(MONTH($C143)=P$6,$E143/INDIRECT("F"&$Y143)*INDIRECT("E"&$Y143),"")) ->  | Q143: =IF(OR(ISBLANK($C143),$Y143=""),"",IF(MONTH($C143)=Q$6,$E143/INDIRECT("F"&$Y143)*INDIRECT("E"&$Y143),"")) ->  | R143: =IF(OR(ISBLANK($C143),$Y143=""),"",IF(MONTH($C143)=R$6,$E143/INDIRECT("F"&$Y143)*INDIRECT("E"&$Y143),"")) ->  | S143: =IF(OR(ISBLANK($C143),$Y143=""),"",IF(MONTH($C143)=S$6,$E143/INDIRECT("F"&$Y143)*INDIRECT("E"&$Y143),"")) ->  | T143: =IF(OR(ISBLANK($C143),$Y143=""),"",IF(MONTH($C143)=T$6,$E143/INDIRECT("F"&$Y143)*INDIRECT("E"&$Y143),"")) ->  | U143: =IF(OR(ISBLANK($C143),$Y143=""),"",IF(MONTH($C143)=U$6,$E143/INDIRECT("F"&$Y143)*INDIRECT("E"&$Y143),"")) ->  | V143: =IF(OR(ISBLANK($C143),$Y143=""),"",IF(MONTH($C143)=V$6,$E143/INDIRECT("F"&$Y143)*INDIRECT("E"&$Y143),"")) ->  | X143: 141 | Y143: 141
I144: 0 | K144: =IF(OR(ISBLANK($C144),$Y144=""),"",IF(MONTH($C144)=K$6,$E144/INDIRECT("F"&$Y144)*INDIRECT("E"&$Y144),"")) ->  | L144: =IF(OR(ISBLANK($C144),$Y144=""),"",IF(MONTH($C144)=L$6,$E144/INDIRECT("F"&$Y144)*INDIRECT("E"&$Y144),"")) ->  | M144: =IF(OR(ISBLANK($C144),$Y144=""),"",IF(MONTH($C144)=M$6,$E144/INDIRECT("F"&$Y144)*INDIRECT("E"&$Y144),"")) ->  | N144: =IF(OR(ISBLANK($C144),$Y144=""),"",IF(MONTH($C144)=N$6,$E144/INDIRECT("F"&$Y144)*INDIRECT("E"&$Y144),"")) ->  | O144: =IF(OR(ISBLANK($C144),$Y144=""),"",IF(MONTH($C144)=O$6,$E144/INDIRECT("F"&$Y144)*INDIRECT("E"&$Y144),"")) ->  | P144: =IF(OR(ISBLANK($C144),$Y144=""),"",IF(MONTH($C144)=P$6,$E144/INDIRECT("F"&$Y144)*INDIRECT("E"&$Y144),"")) ->  | Q144: =IF(OR(ISBLANK($C144),$Y144=""),"",IF(MONTH($C144)=Q$6,$E144/INDIRECT("F"&$Y144)*INDIRECT("E"&$Y144),"")) ->  | R144: =IF(OR(ISBLANK($C144),$Y144=""),"",IF(MONTH($C144)=R$6,$E144/INDIRECT("F"&$Y144)*INDIRECT("E"&$Y144),"")) ->  | S144: =IF(OR(ISBLANK($C144),$Y144=""),"",IF(MONTH($C144)=S$6,$E144/INDIRECT("F"&$Y144)*INDIRECT("E"&$Y144),"")) ->  | T144: =IF(OR(ISBLANK($C144),$Y144=""),"",IF(MONTH($C144)=T$6,$E144/INDIRECT("F"&$Y144)*INDIRECT("E"&$Y144),"")) ->  | U144: =IF(OR(ISBLANK($C144),$Y144=""),"",IF(MONTH($C144)=U$6,$E144/INDIRECT("F"&$Y144)*INDIRECT("E"&$Y144),"")) ->  | V144: =IF(OR(ISBLANK($C144),$Y144=""),"",IF(MONTH($C144)=V$6,$E144/INDIRECT("F"&$Y144)*INDIRECT("E"&$Y144),"")) ->  | X144: 141 | Y144: 141
I145: 0 | K145: =IF(OR(ISBLANK($C145),$Y145=""),"",IF(MONTH($C145)=K$6,$E145/INDIRECT("F"&$Y145)*INDIRECT("E"&$Y145),"")) ->  | L145: =IF(OR(ISBLANK($C145),$Y145=""),"",IF(MONTH($C145)=L$6,$E145/INDIRECT("F"&$Y145)*INDIRECT("E"&$Y145),"")) ->  | M145: =IF(OR(ISBLANK($C145),$Y145=""),"",IF(MONTH($C145)=M$6,$E145/INDIRECT("F"&$Y145)*INDIRECT("E"&$Y145),"")) ->  | N145: =IF(OR(ISBLANK($C145),$Y145=""),"",IF(MONTH($C145)=N$6,$E145/INDIRECT("F"&$Y145)*INDIRECT("E"&$Y145),"")) ->  | O145: =IF(OR(ISBLANK($C145),$Y145=""),"",IF(MONTH($C145)=O$6,$E145/INDIRECT("F"&$Y145)*INDIRECT("E"&$Y145),"")) ->  | P145: =IF(OR(ISBLANK($C145),$Y145=""),"",IF(MONTH($C145)=P$6,$E145/INDIRECT("F"&$Y145)*INDIRECT("E"&$Y145),"")) ->  | Q145: =IF(OR(ISBLANK($C145),$Y145=""),"",IF(MONTH($C145)=Q$6,$E145/INDIRECT("F"&$Y145)*INDIRECT("E"&$Y145),"")) ->  | R145: =IF(OR(ISBLANK($C145),$Y145=""),"",IF(MONTH($C145)=R$6,$E145/INDIRECT("F"&$Y145)*INDIRECT("E"&$Y145),"")) ->  | S145: =IF(OR(ISBLANK($C145),$Y145=""),"",IF(MONTH($C145)=S$6,$E145/INDIRECT("F"&$Y145)*INDIRECT("E"&$Y145),"")) ->  | T145: =IF(OR(ISBLANK($C145),$Y145=""),"",IF(MONTH($C145)=T$6,$E145/INDIRECT("F"&$Y145)*INDIRECT("E"&$Y145),"")) ->  | U145: =IF(OR(ISBLANK($C145),$Y145=""),"",IF(MONTH($C145)=U$6,$E145/INDIRECT("F"&$Y145)*INDIRECT("E"&$Y145),"")) ->  | V145: =IF(OR(ISBLANK($C145),$Y145=""),"",IF(MONTH($C145)=V$6,$E145/INDIRECT("F"&$Y145)*INDIRECT("E"&$Y145),"")) ->  | X145: 141 | Y145: 141
I146: 0 | K146: =IF(OR(ISBLANK($C146),$Y146=""),"",IF(MONTH($C146)=K$6,$E146/INDIRECT("F"&$Y146)*INDIRECT("E"&$Y146),"")) ->  | L146: =IF(OR(ISBLANK($C146),$Y146=""),"",IF(MONTH($C146)=L$6,$E146/INDIRECT("F"&$Y146)*INDIRECT("E"&$Y146),"")) ->  | M146: =IF(OR(ISBLANK($C146),$Y146=""),"",IF(MONTH($C146)=M$6,$E146/INDIRECT("F"&$Y146)*INDIRECT("E"&$Y146),"")) ->  | N146: =IF(OR(ISBLANK($C146),$Y146=""),"",IF(MONTH($C146)=N$6,$E146/INDIRECT("F"&$Y146)*INDIRECT("E"&$Y146),"")) ->  | O146: =IF(OR(ISBLANK($C146),$Y146=""),"",IF(MONTH($C146)=O$6,$E146/INDIRECT("F"&$Y146)*INDIRECT("E"&$Y146),"")) ->  | P146: =IF(OR(ISBLANK($C146),$Y146=""),"",IF(MONTH($C146)=P$6,$E146/INDIRECT("F"&$Y146)*INDIRECT("E"&$Y146),"")) ->  | Q146: =IF(OR(ISBLANK($C146),$Y146=""),"",IF(MONTH($C146)=Q$6,$E146/INDIRECT("F"&$Y146)*INDIRECT("E"&$Y146),"")) ->  | R146: =IF(OR(ISBLANK($C146),$Y146=""),"",IF(MONTH($C146)=R$6,$E146/INDIRECT("F"&$Y146)*INDIRECT("E"&$Y146),"")) ->  | S146: =IF(OR(ISBLANK($C146),$Y146=""),"",IF(MONTH($C146)=S$6,$E146/INDIRECT("F"&$Y146)*INDIRECT("E"&$Y146),"")) ->  | T146: =IF(OR(ISBLANK($C146),$Y146=""),"",IF(MONTH($C146)=T$6,$E146/INDIRECT("F"&$Y146)*INDIRECT("E"&$Y146),"")) ->  | U146: =IF(OR(ISBLANK($C146),$Y146=""),"",IF(MONTH($C146)=U$6,$E146/INDIRECT("F"&$Y146)*INDIRECT("E"&$Y146),"")) ->  | V146: =IF(OR(ISBLANK($C146),$Y146=""),"",IF(MONTH($C146)=V$6,$E146/INDIRECT("F"&$Y146)*INDIRECT("E"&$Y146),"")) ->  | X146: 141 | Y146: 141
I147: 0 | K147: =IF(OR(ISBLANK($C147),$Y147=""),"",IF(MONTH($C147)=K$6,$E147/INDIRECT("F"&$Y147)*INDIRECT("E"&$Y147),"")) ->  | L147: =IF(OR(ISBLANK($C147),$Y147=""),"",IF(MONTH($C147)=L$6,$E147/INDIRECT("F"&$Y147)*INDIRECT("E"&$Y147),"")) ->  | M147: =IF(OR(ISBLANK($C147),$Y147=""),"",IF(MONTH($C147)=M$6,$E147/INDIRECT("F"&$Y147)*INDIRECT("E"&$Y147),"")) ->  | N147: =IF(OR(ISBLANK($C147),$Y147=""),"",IF(MONTH($C147)=N$6,$E147/INDIRECT("F"&$Y147)*INDIRECT("E"&$Y147),"")) ->  | O147: =IF(OR(ISBLANK($C147),$Y147=""),"",IF(MONTH($C147)=O$6,$E147/INDIRECT("F"&$Y147)*INDIRECT("E"&$Y147),"")) ->  | P147: =IF(OR(ISBLANK($C147),$Y147=""),"",IF(MONTH($C147)=P$6,$E147/INDIRECT("F"&$Y147)*INDIRECT("E"&$Y147),"")) ->  | Q147: =IF(OR(ISBLANK($C147),$Y147=""),"",IF(MONTH($C147)=Q$6,$E147/INDIRECT("F"&$Y147)*INDIRECT("E"&$Y147),"")) ->  | R147: =IF(OR(ISBLANK($C147),$Y147=""),"",IF(MONTH($C147)=R$6,$E147/INDIRECT("F"&$Y147)*INDIRECT("E"&$Y147),"")) ->  | S147: =IF(OR(ISBLANK($C147),$Y147=""),"",IF(MONTH($C147)=S$6,$E147/INDIRECT("F"&$Y147)*INDIRECT("E"&$Y147),"")) ->  | T147: =IF(OR(ISBLANK($C147),$Y147=""),"",IF(MONTH($C147)=T$6,$E147/INDIRECT("F"&$Y147)*INDIRECT("E"&$Y147),"")) ->  | U147: =IF(OR(ISBLANK($C147),$Y147=""),"",IF(MONTH($C147)=U$6,$E147/INDIRECT("F"&$Y147)*INDIRECT("E"&$Y147),"")) ->  | V147: =IF(OR(ISBLANK($C147),$Y147=""),"",IF(MONTH($C147)=V$6,$E147/INDIRECT("F"&$Y147)*INDIRECT("E"&$Y147),"")) ->  | X147: 141 | Y147: 141
I148: 0 | K148: =IF(OR(ISBLANK($C148),$Y148=""),"",IF(MONTH($C148)=K$6,$E148/INDIRECT("F"&$Y148)*INDIRECT("E"&$Y148),"")) ->  | L148: =IF(OR(ISBLANK($C148),$Y148=""),"",IF(MONTH($C148)=L$6,$E148/INDIRECT("F"&$Y148)*INDIRECT("E"&$Y148),"")) ->  | M148: =IF(OR(ISBLANK($C148),$Y148=""),"",IF(MONTH($C148)=M$6,$E148/INDIRECT("F"&$Y148)*INDIRECT("E"&$Y148),"")) ->  | N148: =IF(OR(ISBLANK($C148),$Y148=""),"",IF(MONTH($C148)=N$6,$E148/INDIRECT("F"&$Y148)*INDIRECT("E"&$Y148),"")) ->  | O148: =IF(OR(ISBLANK($C148),$Y148=""),"",IF(MONTH($C148)=O$6,$E148/INDIRECT("F"&$Y148)*INDIRECT("E"&$Y148),"")) ->  | P148: =IF(OR(ISBLANK($C148),$Y148=""),"",IF(MONTH($C148)=P$6,$E148/INDIRECT("F"&$Y148)*INDIRECT("E"&$Y148),"")) ->  | Q148: =IF(OR(ISBLANK($C148),$Y148=""),"",IF(MONTH($C148)=Q$6,$E148/INDIRECT("F"&$Y148)*INDIRECT("E"&$Y148),"")) ->  | R148: =IF(OR(ISBLANK($C148),$Y148=""),"",IF(MONTH($C148)=R$6,$E148/INDIRECT("F"&$Y148)*INDIRECT("E"&$Y148),"")) ->  | S148: =IF(OR(ISBLANK($C148),$Y148=""),"",IF(MONTH($C148)=S$6,$E148/INDIRECT("F"&$Y148)*INDIRECT("E"&$Y148),"")) ->  | T148: =IF(OR(ISBLANK($C148),$Y148=""),"",IF(MONTH($C148)=T$6,$E148/INDIRECT("F"&$Y148)*INDIRECT("E"&$Y148),"")) ->  | U148: =IF(OR(ISBLANK($C148),$Y148=""),"",IF(MONTH($C148)=U$6,$E148/INDIRECT("F"&$Y148)*INDIRECT("E"&$Y148),"")) ->  | V148: =IF(OR(ISBLANK($C148),$Y148=""),"",IF(MONTH($C148)=V$6,$E148/INDIRECT("F"&$Y148)*INDIRECT("E"&$Y148),"")) ->  | X148: 141 | Y148: 141
I149: 0 | K149: =IF(OR(ISBLANK($C149),$Y149=""),"",IF(MONTH($C149)=K$6,$E149/INDIRECT("F"&$Y149)*INDIRECT("E"&$Y149),"")) ->  | L149: =IF(OR(ISBLANK($C149),$Y149=""),"",IF(MONTH($C149)=L$6,$E149/INDIRECT("F"&$Y149)*INDIRECT("E"&$Y149),"")) ->  | M149: =IF(OR(ISBLANK($C149),$Y149=""),"",IF(MONTH($C149)=M$6,$E149/INDIRECT("F"&$Y149)*INDIRECT("E"&$Y149),"")) ->  | N149: =IF(OR(ISBLANK($C149),$Y149=""),"",IF(MONTH($C149)=N$6,$E149/INDIRECT("F"&$Y149)*INDIRECT("E"&$Y149),"")) ->  | O149: =IF(OR(ISBLANK($C149),$Y149=""),"",IF(MONTH($C149)=O$6,$E149/INDIRECT("F"&$Y149)*INDIRECT("E"&$Y149),"")) ->  | P149: =IF(OR(ISBLANK($C149),$Y149=""),"",IF(MONTH($C149)=P$6,$E149/INDIRECT("F"&$Y149)*INDIRECT("E"&$Y149),"")) ->  | Q149: =IF(OR(ISBLANK($C149),$Y149=""),"",IF(MONTH($C149)=Q$6,$E149/INDIRECT("F"&$Y149)*INDIRECT("E"&$Y149),"")) ->  | R149: =IF(OR(ISBLANK($C149),$Y149=""),"",IF(MONTH($C149)=R$6,$E149/INDIRECT("F"&$Y149)*INDIRECT("E"&$Y149),"")) ->  | S149: =IF(OR(ISBLANK($C149),$Y149=""),"",IF(MONTH($C149)=S$6,$E149/INDIRECT("F"&$Y149)*INDIRECT("E"&$Y149),"")) ->  | T149: =IF(OR(ISBLANK($C149),$Y149=""),"",IF(MONTH($C149)=T$6,$E149/INDIRECT("F"&$Y149)*INDIRECT("E"&$Y149),"")) ->  | U149: =IF(OR(ISBLANK($C149),$Y149=""),"",IF(MONTH($C149)=U$6,$E149/INDIRECT("F"&$Y149)*INDIRECT("E"&$Y149),"")) ->  | V149: =IF(OR(ISBLANK($C149),$Y149=""),"",IF(MONTH($C149)=V$6,$E149/INDIRECT("F"&$Y149)*INDIRECT("E"&$Y149),"")) ->  | X149: 141 | Y149: 141
I150: 0 | K150: =IF(OR(ISBLANK($C150),$Y150=""),"",IF(MONTH($C150)=K$6,$E150/INDIRECT("F"&$Y150)*INDIRECT("E"&$Y150),"")) ->  | L150: =IF(OR(ISBLANK($C150),$Y150=""),"",IF(MONTH($C150)=L$6,$E150/INDIRECT("F"&$Y150)*INDIRECT("E"&$Y150),"")) ->  | M150: =IF(OR(ISBLANK($C150),$Y150=""),"",IF(MONTH($C150)=M$6,$E150/INDIRECT("F"&$Y150)*INDIRECT("E"&$Y150),"")) ->  | N150: =IF(OR(ISBLANK($C150),$Y150=""),"",IF(MONTH($C150)=N$6,$E150/INDIRECT("F"&$Y150)*INDIRECT("E"&$Y150),"")) ->  | O150: =IF(OR(ISBLANK($C150),$Y150=""),"",IF(MONTH($C150)=O$6,$E150/INDIRECT("F"&$Y150)*INDIRECT("E"&$Y150),"")) ->  | P150: =IF(OR(ISBLANK($C150),$Y150=""),"",IF(MONTH($C150)=P$6,$E150/INDIRECT("F"&$Y150)*INDIRECT("E"&$Y150),"")) ->  | Q150: =IF(OR(ISBLANK($C150),$Y150=""),"",IF(MONTH($C150)=Q$6,$E150/INDIRECT("F"&$Y150)*INDIRECT("E"&$Y150),"")) ->  | R150: =IF(OR(ISBLANK($C150),$Y150=""),"",IF(MONTH($C150)=R$6,$E150/INDIRECT("F"&$Y150)*INDIRECT("E"&$Y150),"")) ->  | S150: =IF(OR(ISBLANK($C150),$Y150=""),"",IF(MONTH($C150)=S$6,$E150/INDIRECT("F"&$Y150)*INDIRECT("E"&$Y150),"")) ->  | T150: =IF(OR(ISBLANK($C150),$Y150=""),"",IF(MONTH($C150)=T$6,$E150/INDIRECT("F"&$Y150)*INDIRECT("E"&$Y150),"")) ->  | U150: =IF(OR(ISBLANK($C150),$Y150=""),"",IF(MONTH($C150)=U$6,$E150/INDIRECT("F"&$Y150)*INDIRECT("E"&$Y150),"")) ->  | V150: =IF(OR(ISBLANK($C150),$Y150=""),"",IF(MONTH($C150)=V$6,$E150/INDIRECT("F"&$Y150)*INDIRECT("E"&$Y150),"")) ->  | X150: 141 | Y150: 141
I151: 0 | K151: =IF(OR(ISBLANK($C151),$Y151=""),"",IF(MONTH($C151)=K$6,$E151/INDIRECT("F"&$Y151)*INDIRECT("E"&$Y151),"")) ->  | L151: =IF(OR(ISBLANK($C151),$Y151=""),"",IF(MONTH($C151)=L$6,$E151/INDIRECT("F"&$Y151)*INDIRECT("E"&$Y151),"")) ->  | M151: =IF(OR(ISBLANK($C151),$Y151=""),"",IF(MONTH($C151)=M$6,$E151/INDIRECT("F"&$Y151)*INDIRECT("E"&$Y151),"")) ->  | N151: =IF(OR(ISBLANK($C151),$Y151=""),"",IF(MONTH($C151)=N$6,$E151/INDIRECT("F"&$Y151)*INDIRECT("E"&$Y151),"")) ->  | O151: =IF(OR(ISBLANK($C151),$Y151=""),"",IF(MONTH($C151)=O$6,$E151/INDIRECT("F"&$Y151)*INDIRECT("E"&$Y151),"")) ->  | P151: =IF(OR(ISBLANK($C151),$Y151=""),"",IF(MONTH($C151)=P$6,$E151/INDIRECT("F"&$Y151)*INDIRECT("E"&$Y151),"")) ->  | Q151: =IF(OR(ISBLANK($C151),$Y151=""),"",IF(MONTH($C151)=Q$6,$E151/INDIRECT("F"&$Y151)*INDIRECT("E"&$Y151),"")) ->  | R151: =IF(OR(ISBLANK($C151),$Y151=""),"",IF(MONTH($C151)=R$6,$E151/INDIRECT("F"&$Y151)*INDIRECT("E"&$Y151),"")) ->  | S151: =IF(OR(ISBLANK($C151),$Y151=""),"",IF(MONTH($C151)=S$6,$E151/INDIRECT("F"&$Y151)*INDIRECT("E"&$Y151),"")) ->  | T151: =IF(OR(ISBLANK($C151),$Y151=""),"",IF(MONTH($C151)=T$6,$E151/INDIRECT("F"&$Y151)*INDIRECT("E"&$Y151),"")) ->  | U151: =IF(OR(ISBLANK($C151),$Y151=""),"",IF(MONTH($C151)=U$6,$E151/INDIRECT("F"&$Y151)*INDIRECT("E"&$Y151),"")) ->  | V151: =IF(OR(ISBLANK($C151),$Y151=""),"",IF(MONTH($C151)=V$6,$E151/INDIRECT("F"&$Y151)*INDIRECT("E"&$Y151),"")) ->  | X151: 141 | Y151: 141
I152: 0 | K152: =IF(OR(ISBLANK($C152),$Y152=""),"",IF(MONTH($C152)=K$6,$E152/INDIRECT("F"&$Y152)*INDIRECT("E"&$Y152),"")) ->  | L152: =IF(OR(ISBLANK($C152),$Y152=""),"",IF(MONTH($C152)=L$6,$E152/INDIRECT("F"&$Y152)*INDIRECT("E"&$Y152),"")) ->  | M152: =IF(OR(ISBLANK($C152),$Y152=""),"",IF(MONTH($C152)=M$6,$E152/INDIRECT("F"&$Y152)*INDIRECT("E"&$Y152),"")) ->  | N152: =IF(OR(ISBLANK($C152),$Y152=""),"",IF(MONTH($C152)=N$6,$E152/INDIRECT("F"&$Y152)*INDIRECT("E"&$Y152),"")) ->  | O152: =IF(OR(ISBLANK($C152),$Y152=""),"",IF(MONTH($C152)=O$6,$E152/INDIRECT("F"&$Y152)*INDIRECT("E"&$Y152),"")) ->  | P152: =IF(OR(ISBLANK($C152),$Y152=""),"",IF(MONTH($C152)=P$6,$E152/INDIRECT("F"&$Y152)*INDIRECT("E"&$Y152),"")) ->  | Q152: =IF(OR(ISBLANK($C152),$Y152=""),"",IF(MONTH($C152)=Q$6,$E152/INDIRECT("F"&$Y152)*INDIRECT("E"&$Y152),"")) ->  | R152: =IF(OR(ISBLANK($C152),$Y152=""),"",IF(MONTH($C152)=R$6,$E152/INDIRECT("F"&$Y152)*INDIRECT("E"&$Y152),"")) ->  | S152: =IF(OR(ISBLANK($C152),$Y152=""),"",IF(MONTH($C152)=S$6,$E152/INDIRECT("F"&$Y152)*INDIRECT("E"&$Y152),"")) ->  | T152: =IF(OR(ISBLANK($C152),$Y152=""),"",IF(MONTH($C152)=T$6,$E152/INDIRECT("F"&$Y152)*INDIRECT("E"&$Y152),"")) ->  | U152: =IF(OR(ISBLANK($C152),$Y152=""),"",IF(MONTH($C152)=U$6,$E152/INDIRECT("F"&$Y152)*INDIRECT("E"&$Y152),"")) ->  | V152: =IF(OR(ISBLANK($C152),$Y152=""),"",IF(MONTH($C152)=V$6,$E152/INDIRECT("F"&$Y152)*INDIRECT("E"&$Y152),"")) ->  | X152: 141 | Y152: 141
H153: =IFERROR(I153/E153,0) -> 0 | I153: =SUM(I154:J164) -> 0 | K153: =IF(OR(ISBLANK($C153),$Y153=""),"",IF(MONTH($C153)=K$6,$E153/INDIRECT("F"&$Y153)*INDIRECT("E"&$Y153),"")) ->  | L153: =IF(OR(ISBLANK($C153),$Y153=""),"",IF(MONTH($C153)=L$6,$E153/INDIRECT("F"&$Y153)*INDIRECT("E"&$Y153),"")) ->  | M153: =IF(OR(ISBLANK($C153),$Y153=""),"",IF(MONTH($C153)=M$6,$E153/INDIRECT("F"&$Y153)*INDIRECT("E"&$Y153),"")) ->  | N153: =IF(OR(ISBLANK($C153),$Y153=""),"",IF(MONTH($C153)=N$6,$E153/INDIRECT("F"&$Y153)*INDIRECT("E"&$Y153),"")) ->  | O153: =IF(OR(ISBLANK($C153),$Y153=""),"",IF(MONTH($C153)=O$6,$E153/INDIRECT("F"&$Y153)*INDIRECT("E"&$Y153),"")) ->  | P153: =IF(OR(ISBLANK($C153),$Y153=""),"",IF(MONTH($C153)=P$6,$E153/INDIRECT("F"&$Y153)*INDIRECT("E"&$Y153),"")) ->  | Q153: =IF(OR(ISBLANK($C153),$Y153=""),"",IF(MONTH($C153)=Q$6,$E153/INDIRECT("F"&$Y153)*INDIRECT("E"&$Y153),"")) ->  | R153: =IF(OR(ISBLANK($C153),$Y153=""),"",IF(MONTH($C153)=R$6,$E153/INDIRECT("F"&$Y153)*INDIRECT("E"&$Y153),"")) ->  | S153: =IF(OR(ISBLANK($C153),$Y153=""),"",IF(MONTH($C153)=S$6,$E153/INDIRECT("F"&$Y153)*INDIRECT("E"&$Y153),"")) ->  | T153: =IF(OR(ISBLANK($C153),$Y153=""),"",IF(MONTH($C153)=T$6,$E153/INDIRECT("F"&$Y153)*INDIRECT("E"&$Y153),"")) ->  | U153: =IF(OR(ISBLANK($C153),$Y153=""),"",IF(MONTH($C153)=U$6,$E153/INDIRECT("F"&$Y153)*INDIRECT("E"&$Y153),"")) ->  | V153: =IF(OR(ISBLANK($C153),$Y153=""),"",IF(MONTH($C153)=V$6,$E153/INDIRECT("F"&$Y153)*INDIRECT("E"&$Y153),"")) ->  | W153: =IF(H153<>100%,"Niet ok","ok") -> Niet ok | X153: 153
B154: Factuurnummer | C154: Factuurdatum | D154: Omschrijving factuur | E154: Factuurbedrag | K154: =IF(OR(ISBLANK($C154),$Y154=""),"",IF(MONTH($C154)=K$6,$E154/INDIRECT("F"&$Y154)*INDIRECT("E"&$Y154),"")) ->  | L154: =IF(OR(ISBLANK($C154),$Y154=""),"",IF(MONTH($C154)=L$6,$E154/INDIRECT("F"&$Y154)*INDIRECT("E"&$Y154),"")) ->  | M154: =IF(OR(ISBLANK($C154),$Y154=""),"",IF(MONTH($C154)=M$6,$E154/INDIRECT("F"&$Y154)*INDIRECT("E"&$Y154),"")) ->  | N154: =IF(OR(ISBLANK($C154),$Y154=""),"",IF(MONTH($C154)=N$6,$E154/INDIRECT("F"&$Y154)*INDIRECT("E"&$Y154),"")) ->  | O154: =IF(OR(ISBLANK($C154),$Y154=""),"",IF(MONTH($C154)=O$6,$E154/INDIRECT("F"&$Y154)*INDIRECT("E"&$Y154),"")) ->  | P154: =IF(OR(ISBLANK($C154),$Y154=""),"",IF(MONTH($C154)=P$6,$E154/INDIRECT("F"&$Y154)*INDIRECT("E"&$Y154),"")) ->  | Q154: =IF(OR(ISBLANK($C154),$Y154=""),"",IF(MONTH($C154)=Q$6,$E154/INDIRECT("F"&$Y154)*INDIRECT("E"&$Y154),"")) ->  | R154: =IF(OR(ISBLANK($C154),$Y154=""),"",IF(MONTH($C154)=R$6,$E154/INDIRECT("F"&$Y154)*INDIRECT("E"&$Y154),"")) ->  | S154: =IF(OR(ISBLANK($C154),$Y154=""),"",IF(MONTH($C154)=S$6,$E154/INDIRECT("F"&$Y154)*INDIRECT("E"&$Y154),"")) ->  | T154: =IF(OR(ISBLANK($C154),$Y154=""),"",IF(MONTH($C154)=T$6,$E154/INDIRECT("F"&$Y154)*INDIRECT("E"&$Y154),"")) ->  | U154: =IF(OR(ISBLANK($C154),$Y154=""),"",IF(MONTH($C154)=U$6,$E154/INDIRECT("F"&$Y154)*INDIRECT("E"&$Y154),"")) ->  | V154: =IF(OR(ISBLANK($C154),$Y154=""),"",IF(MONTH($C154)=V$6,$E154/INDIRECT("F"&$Y154)*INDIRECT("E"&$Y154),"")) ->  | X154: 153
I155: =SUM(K155:V155) -> 0 | K155: =IF(OR(ISBLANK($C155),$Y155=""),"",IF(MONTH($C155)=K$6,$E155/INDIRECT("F"&$Y155)*INDIRECT("E"&$Y155),"")) ->  | L155: =IF(OR(ISBLANK($C155),$Y155=""),"",IF(MONTH($C155)=L$6,$E155/INDIRECT("F"&$Y155)*INDIRECT("E"&$Y155),"")) ->  | M155: =IF(OR(ISBLANK($C155),$Y155=""),"",IF(MONTH($C155)=M$6,$E155/INDIRECT("F"&$Y155)*INDIRECT("E"&$Y155),"")) ->  | N155: =IF(OR(ISBLANK($C155),$Y155=""),"",IF(MONTH($C155)=N$6,$E155/INDIRECT("F"&$Y155)*INDIRECT("E"&$Y155),"")) ->  | O155: =IF(OR(ISBLANK($C155),$Y155=""),"",IF(MONTH($C155)=O$6,$E155/INDIRECT("F"&$Y155)*INDIRECT("E"&$Y155),"")) ->  | P155: =IF(OR(ISBLANK($C155),$Y155=""),"",IF(MONTH($C155)=P$6,$E155/INDIRECT("F"&$Y155)*INDIRECT("E"&$Y155),"")) ->  | Q155: =IF(OR(ISBLANK($C155),$Y155=""),"",IF(MONTH($C155)=Q$6,$E155/INDIRECT("F"&$Y155)*INDIRECT("E"&$Y155),"")) ->  | R155: =IF(OR(ISBLANK($C155),$Y155=""),"",IF(MONTH($C155)=R$6,$E155/INDIRECT("F"&$Y155)*INDIRECT("E"&$Y155),"")) ->  | S155: =IF(OR(ISBLANK($C155),$Y155=""),"",IF(MONTH($C155)=S$6,$E155/INDIRECT("F"&$Y155)*INDIRECT("E"&$Y155),"")) ->  | T155: =IF(OR(ISBLANK($C155),$Y155=""),"",IF(MONTH($C155)=T$6,$E155/INDIRECT("F"&$Y155)*INDIRECT("E"&$Y155),"")) ->  | U155: =IF(OR(ISBLANK($C155),$Y155=""),"",IF(MONTH($C155)=U$6,$E155/INDIRECT("F"&$Y155)*INDIRECT("E"&$Y155),"")) ->  | V155: =IF(OR(ISBLANK($C155),$Y155=""),"",IF(MONTH($C155)=V$6,$E155/INDIRECT("F"&$Y155)*INDIRECT("E"&$Y155),"")) ->  | X155: 153 | Y155: 153
I156: 0 | K156: =IF(OR(ISBLANK($C156),$Y156=""),"",IF(MONTH($C156)=K$6,$E156/INDIRECT("F"&$Y156)*INDIRECT("E"&$Y156),"")) ->  | L156: =IF(OR(ISBLANK($C156),$Y156=""),"",IF(MONTH($C156)=L$6,$E156/INDIRECT("F"&$Y156)*INDIRECT("E"&$Y156),"")) ->  | M156: =IF(OR(ISBLANK($C156),$Y156=""),"",IF(MONTH($C156)=M$6,$E156/INDIRECT("F"&$Y156)*INDIRECT("E"&$Y156),"")) ->  | N156: =IF(OR(ISBLANK($C156),$Y156=""),"",IF(MONTH($C156)=N$6,$E156/INDIRECT("F"&$Y156)*INDIRECT("E"&$Y156),"")) ->  | O156: =IF(OR(ISBLANK($C156),$Y156=""),"",IF(MONTH($C156)=O$6,$E156/INDIRECT("F"&$Y156)*INDIRECT("E"&$Y156),"")) ->  | P156: =IF(OR(ISBLANK($C156),$Y156=""),"",IF(MONTH($C156)=P$6,$E156/INDIRECT("F"&$Y156)*INDIRECT("E"&$Y156),"")) ->  | Q156: =IF(OR(ISBLANK($C156),$Y156=""),"",IF(MONTH($C156)=Q$6,$E156/INDIRECT("F"&$Y156)*INDIRECT("E"&$Y156),"")) ->  | R156: =IF(OR(ISBLANK($C156),$Y156=""),"",IF(MONTH($C156)=R$6,$E156/INDIRECT("F"&$Y156)*INDIRECT("E"&$Y156),"")) ->  | S156: =IF(OR(ISBLANK($C156),$Y156=""),"",IF(MONTH($C156)=S$6,$E156/INDIRECT("F"&$Y156)*INDIRECT("E"&$Y156),"")) ->  | T156: =IF(OR(ISBLANK($C156),$Y156=""),"",IF(MONTH($C156)=T$6,$E156/INDIRECT("F"&$Y156)*INDIRECT("E"&$Y156),"")) ->  | U156: =IF(OR(ISBLANK($C156),$Y156=""),"",IF(MONTH($C156)=U$6,$E156/INDIRECT("F"&$Y156)*INDIRECT("E"&$Y156),"")) ->  | V156: =IF(OR(ISBLANK($C156),$Y156=""),"",IF(MONTH($C156)=V$6,$E156/INDIRECT("F"&$Y156)*INDIRECT("E"&$Y156),"")) ->  | X156: 153 | Y156: 153
I157: 0 | K157: =IF(OR(ISBLANK($C157),$Y157=""),"",IF(MONTH($C157)=K$6,$E157/INDIRECT("F"&$Y157)*INDIRECT("E"&$Y157),"")) ->  | L157: =IF(OR(ISBLANK($C157),$Y157=""),"",IF(MONTH($C157)=L$6,$E157/INDIRECT("F"&$Y157)*INDIRECT("E"&$Y157),"")) ->  | M157: =IF(OR(ISBLANK($C157),$Y157=""),"",IF(MONTH($C157)=M$6,$E157/INDIRECT("F"&$Y157)*INDIRECT("E"&$Y157),"")) ->  | N157: =IF(OR(ISBLANK($C157),$Y157=""),"",IF(MONTH($C157)=N$6,$E157/INDIRECT("F"&$Y157)*INDIRECT("E"&$Y157),"")) ->  | O157: =IF(OR(ISBLANK($C157),$Y157=""),"",IF(MONTH($C157)=O$6,$E157/INDIRECT("F"&$Y157)*INDIRECT("E"&$Y157),"")) ->  | P157: =IF(OR(ISBLANK($C157),$Y157=""),"",IF(MONTH($C157)=P$6,$E157/INDIRECT("F"&$Y157)*INDIRECT("E"&$Y157),"")) ->  | Q157: =IF(OR(ISBLANK($C157),$Y157=""),"",IF(MONTH($C157)=Q$6,$E157/INDIRECT("F"&$Y157)*INDIRECT("E"&$Y157),"")) ->  | R157: =IF(OR(ISBLANK($C157),$Y157=""),"",IF(MONTH($C157)=R$6,$E157/INDIRECT("F"&$Y157)*INDIRECT("E"&$Y157),"")) ->  | S157: =IF(OR(ISBLANK($C157),$Y157=""),"",IF(MONTH($C157)=S$6,$E157/INDIRECT("F"&$Y157)*INDIRECT("E"&$Y157),"")) ->  | T157: =IF(OR(ISBLANK($C157),$Y157=""),"",IF(MONTH($C157)=T$6,$E157/INDIRECT("F"&$Y157)*INDIRECT("E"&$Y157),"")) ->  | U157: =IF(OR(ISBLANK($C157),$Y157=""),"",IF(MONTH($C157)=U$6,$E157/INDIRECT("F"&$Y157)*INDIRECT("E"&$Y157),"")) ->  | V157: =IF(OR(ISBLANK($C157),$Y157=""),"",IF(MONTH($C157)=V$6,$E157/INDIRECT("F"&$Y157)*INDIRECT("E"&$Y157),"")) ->  | X157: 153 | Y157: 153
I158: 0 | K158: =IF(OR(ISBLANK($C158),$Y158=""),"",IF(MONTH($C158)=K$6,$E158/INDIRECT("F"&$Y158)*INDIRECT("E"&$Y158),"")) ->  | L158: =IF(OR(ISBLANK($C158),$Y158=""),"",IF(MONTH($C158)=L$6,$E158/INDIRECT("F"&$Y158)*INDIRECT("E"&$Y158),"")) ->  | M158: =IF(OR(ISBLANK($C158),$Y158=""),"",IF(MONTH($C158)=M$6,$E158/INDIRECT("F"&$Y158)*INDIRECT("E"&$Y158),"")) ->  | N158: =IF(OR(ISBLANK($C158),$Y158=""),"",IF(MONTH($C158)=N$6,$E158/INDIRECT("F"&$Y158)*INDIRECT("E"&$Y158),"")) ->  | O158: =IF(OR(ISBLANK($C158),$Y158=""),"",IF(MONTH($C158)=O$6,$E158/INDIRECT("F"&$Y158)*INDIRECT("E"&$Y158),"")) ->  | P158: =IF(OR(ISBLANK($C158),$Y158=""),"",IF(MONTH($C158)=P$6,$E158/INDIRECT("F"&$Y158)*INDIRECT("E"&$Y158),"")) ->  | Q158: =IF(OR(ISBLANK($C158),$Y158=""),"",IF(MONTH($C158)=Q$6,$E158/INDIRECT("F"&$Y158)*INDIRECT("E"&$Y158),"")) ->  | R158: =IF(OR(ISBLANK($C158),$Y158=""),"",IF(MONTH($C158)=R$6,$E158/INDIRECT("F"&$Y158)*INDIRECT("E"&$Y158),"")) ->  | S158: =IF(OR(ISBLANK($C158),$Y158=""),"",IF(MONTH($C158)=S$6,$E158/INDIRECT("F"&$Y158)*INDIRECT("E"&$Y158),"")) ->  | T158: =IF(OR(ISBLANK($C158),$Y158=""),"",IF(MONTH($C158)=T$6,$E158/INDIRECT("F"&$Y158)*INDIRECT("E"&$Y158),"")) ->  | U158: =IF(OR(ISBLANK($C158),$Y158=""),"",IF(MONTH($C158)=U$6,$E158/INDIRECT("F"&$Y158)*INDIRECT("E"&$Y158),"")) ->  | V158: =IF(OR(ISBLANK($C158),$Y158=""),"",IF(MONTH($C158)=V$6,$E158/INDIRECT("F"&$Y158)*INDIRECT("E"&$Y158),"")) ->  | X158: 153 | Y158: 153
I159: 0 | K159: =IF(OR(ISBLANK($C159),$Y159=""),"",IF(MONTH($C159)=K$6,$E159/INDIRECT("F"&$Y159)*INDIRECT("E"&$Y159),"")) ->  | L159: =IF(OR(ISBLANK($C159),$Y159=""),"",IF(MONTH($C159)=L$6,$E159/INDIRECT("F"&$Y159)*INDIRECT("E"&$Y159),"")) ->  | M159: =IF(OR(ISBLANK($C159),$Y159=""),"",IF(MONTH($C159)=M$6,$E159/INDIRECT("F"&$Y159)*INDIRECT("E"&$Y159),"")) ->  | N159: =IF(OR(ISBLANK($C159),$Y159=""),"",IF(MONTH($C159)=N$6,$E159/INDIRECT("F"&$Y159)*INDIRECT("E"&$Y159),"")) ->  | O159: =IF(OR(ISBLANK($C159),$Y159=""),"",IF(MONTH($C159)=O$6,$E159/INDIRECT("F"&$Y159)*INDIRECT("E"&$Y159),"")) ->  | P159: =IF(OR(ISBLANK($C159),$Y159=""),"",IF(MONTH($C159)=P$6,$E159/INDIRECT("F"&$Y159)*INDIRECT("E"&$Y159),"")) ->  | Q159: =IF(OR(ISBLANK($C159),$Y159=""),"",IF(MONTH($C159)=Q$6,$E159/INDIRECT("F"&$Y159)*INDIRECT("E"&$Y159),"")) ->  | R159: =IF(OR(ISBLANK($C159),$Y159=""),"",IF(MONTH($C159)=R$6,$E159/INDIRECT("F"&$Y159)*INDIRECT("E"&$Y159),"")) ->  | S159: =IF(OR(ISBLANK($C159),$Y159=""),"",IF(MONTH($C159)=S$6,$E159/INDIRECT("F"&$Y159)*INDIRECT("E"&$Y159),"")) ->  | T159: =IF(OR(ISBLANK($C159),$Y159=""),"",IF(MONTH($C159)=T$6,$E159/INDIRECT("F"&$Y159)*INDIRECT("E"&$Y159),"")) ->  | U159: =IF(OR(ISBLANK($C159),$Y159=""),"",IF(MONTH($C159)=U$6,$E159/INDIRECT("F"&$Y159)*INDIRECT("E"&$Y159),"")) ->  | V159: =IF(OR(ISBLANK($C159),$Y159=""),"",IF(MONTH($C159)=V$6,$E159/INDIRECT("F"&$Y159)*INDIRECT("E"&$Y159),"")) ->  | X159: 153 | Y159: 153
I160: 0 | K160: =IF(OR(ISBLANK($C160),$Y160=""),"",IF(MONTH($C160)=K$6,$E160/INDIRECT("F"&$Y160)*INDIRECT("E"&$Y160),"")) ->  | L160: =IF(OR(ISBLANK($C160),$Y160=""),"",IF(MONTH($C160)=L$6,$E160/INDIRECT("F"&$Y160)*INDIRECT("E"&$Y160),"")) ->  | M160: =IF(OR(ISBLANK($C160),$Y160=""),"",IF(MONTH($C160)=M$6,$E160/INDIRECT("F"&$Y160)*INDIRECT("E"&$Y160),"")) ->  | N160: =IF(OR(ISBLANK($C160),$Y160=""),"",IF(MONTH($C160)=N$6,$E160/INDIRECT("F"&$Y160)*INDIRECT("E"&$Y160),"")) ->  | O160: =IF(OR(ISBLANK($C160),$Y160=""),"",IF(MONTH($C160)=O$6,$E160/INDIRECT("F"&$Y160)*INDIRECT("E"&$Y160),"")) ->  | P160: =IF(OR(ISBLANK($C160),$Y160=""),"",IF(MONTH($C160)=P$6,$E160/INDIRECT("F"&$Y160)*INDIRECT("E"&$Y160),"")) ->  | Q160: =IF(OR(ISBLANK($C160),$Y160=""),"",IF(MONTH($C160)=Q$6,$E160/INDIRECT("F"&$Y160)*INDIRECT("E"&$Y160),"")) ->  | R160: =IF(OR(ISBLANK($C160),$Y160=""),"",IF(MONTH($C160)=R$6,$E160/INDIRECT("F"&$Y160)*INDIRECT("E"&$Y160),"")) ->  | S160: =IF(OR(ISBLANK($C160),$Y160=""),"",IF(MONTH($C160)=S$6,$E160/INDIRECT("F"&$Y160)*INDIRECT("E"&$Y160),"")) ->  | T160: =IF(OR(ISBLANK($C160),$Y160=""),"",IF(MONTH($C160)=T$6,$E160/INDIRECT("F"&$Y160)*INDIRECT("E"&$Y160),"")) ->  | U160: =IF(OR(ISBLANK($C160),$Y160=""),"",IF(MONTH($C160)=U$6,$E160/INDIRECT("F"&$Y160)*INDIRECT("E"&$Y160),"")) ->  | V160: =IF(OR(ISBLANK($C160),$Y160=""),"",IF(MONTH($C160)=V$6,$E160/INDIRECT("F"&$Y160)*INDIRECT("E"&$Y160),"")) ->  | X160: 153 | Y160: 153
I161: 0 | K161: =IF(OR(ISBLANK($C161),$Y161=""),"",IF(MONTH($C161)=K$6,$E161/INDIRECT("F"&$Y161)*INDIRECT("E"&$Y161),"")) ->  | L161: =IF(OR(ISBLANK($C161),$Y161=""),"",IF(MONTH($C161)=L$6,$E161/INDIRECT("F"&$Y161)*INDIRECT("E"&$Y161),"")) ->  | M161: =IF(OR(ISBLANK($C161),$Y161=""),"",IF(MONTH($C161)=M$6,$E161/INDIRECT("F"&$Y161)*INDIRECT("E"&$Y161),"")) ->  | N161: =IF(OR(ISBLANK($C161),$Y161=""),"",IF(MONTH($C161)=N$6,$E161/INDIRECT("F"&$Y161)*INDIRECT("E"&$Y161),"")) ->  | O161: =IF(OR(ISBLANK($C161),$Y161=""),"",IF(MONTH($C161)=O$6,$E161/INDIRECT("F"&$Y161)*INDIRECT("E"&$Y161),"")) ->  | P161: =IF(OR(ISBLANK($C161),$Y161=""),"",IF(MONTH($C161)=P$6,$E161/INDIRECT("F"&$Y161)*INDIRECT("E"&$Y161),"")) ->  | Q161: =IF(OR(ISBLANK($C161),$Y161=""),"",IF(MONTH($C161)=Q$6,$E161/INDIRECT("F"&$Y161)*INDIRECT("E"&$Y161),"")) ->  | R161: =IF(OR(ISBLANK($C161),$Y161=""),"",IF(MONTH($C161)=R$6,$E161/INDIRECT("F"&$Y161)*INDIRECT("E"&$Y161),"")) ->  | S161: =IF(OR(ISBLANK($C161),$Y161=""),"",IF(MONTH($C161)=S$6,$E161/INDIRECT("F"&$Y161)*INDIRECT("E"&$Y161),"")) ->  | T161: =IF(OR(ISBLANK($C161),$Y161=""),"",IF(MONTH($C161)=T$6,$E161/INDIRECT("F"&$Y161)*INDIRECT("E"&$Y161),"")) ->  | U161: =IF(OR(ISBLANK($C161),$Y161=""),"",IF(MONTH($C161)=U$6,$E161/INDIRECT("F"&$Y161)*INDIRECT("E"&$Y161),"")) ->  | V161: =IF(OR(ISBLANK($C161),$Y161=""),"",IF(MONTH($C161)=V$6,$E161/INDIRECT("F"&$Y161)*INDIRECT("E"&$Y161),"")) ->  | X161: 153 | Y161: 153
I162: 0 | K162: =IF(OR(ISBLANK($C162),$Y162=""),"",IF(MONTH($C162)=K$6,$E162/INDIRECT("F"&$Y162)*INDIRECT("E"&$Y162),"")) ->  | L162: =IF(OR(ISBLANK($C162),$Y162=""),"",IF(MONTH($C162)=L$6,$E162/INDIRECT("F"&$Y162)*INDIRECT("E"&$Y162),"")) ->  | M162: =IF(OR(ISBLANK($C162),$Y162=""),"",IF(MONTH($C162)=M$6,$E162/INDIRECT("F"&$Y162)*INDIRECT("E"&$Y162),"")) ->  | N162: =IF(OR(ISBLANK($C162),$Y162=""),"",IF(MONTH($C162)=N$6,$E162/INDIRECT("F"&$Y162)*INDIRECT("E"&$Y162),"")) ->  | O162: =IF(OR(ISBLANK($C162),$Y162=""),"",IF(MONTH($C162)=O$6,$E162/INDIRECT("F"&$Y162)*INDIRECT("E"&$Y162),"")) ->  | P162: =IF(OR(ISBLANK($C162),$Y162=""),"",IF(MONTH($C162)=P$6,$E162/INDIRECT("F"&$Y162)*INDIRECT("E"&$Y162),"")) ->  | Q162: =IF(OR(ISBLANK($C162),$Y162=""),"",IF(MONTH($C162)=Q$6,$E162/INDIRECT("F"&$Y162)*INDIRECT("E"&$Y162),"")) ->  | R162: =IF(OR(ISBLANK($C162),$Y162=""),"",IF(MONTH($C162)=R$6,$E162/INDIRECT("F"&$Y162)*INDIRECT("E"&$Y162),"")) ->  | S162: =IF(OR(ISBLANK($C162),$Y162=""),"",IF(MONTH($C162)=S$6,$E162/INDIRECT("F"&$Y162)*INDIRECT("E"&$Y162),"")) ->  | T162: =IF(OR(ISBLANK($C162),$Y162=""),"",IF(MONTH($C162)=T$6,$E162/INDIRECT("F"&$Y162)*INDIRECT("E"&$Y162),"")) ->  | U162: =IF(OR(ISBLANK($C162),$Y162=""),"",IF(MONTH($C162)=U$6,$E162/INDIRECT("F"&$Y162)*INDIRECT("E"&$Y162),"")) ->  | V162: =IF(OR(ISBLANK($C162),$Y162=""),"",IF(MONTH($C162)=V$6,$E162/INDIRECT("F"&$Y162)*INDIRECT("E"&$Y162),"")) ->  | X162: 153 | Y162: 153
I163: 0 | K163: =IF(OR(ISBLANK($C163),$Y163=""),"",IF(MONTH($C163)=K$6,$E163/INDIRECT("F"&$Y163)*INDIRECT("E"&$Y163),"")) ->  | L163: =IF(OR(ISBLANK($C163),$Y163=""),"",IF(MONTH($C163)=L$6,$E163/INDIRECT("F"&$Y163)*INDIRECT("E"&$Y163),"")) ->  | M163: =IF(OR(ISBLANK($C163),$Y163=""),"",IF(MONTH($C163)=M$6,$E163/INDIRECT("F"&$Y163)*INDIRECT("E"&$Y163),"")) ->  | N163: =IF(OR(ISBLANK($C163),$Y163=""),"",IF(MONTH($C163)=N$6,$E163/INDIRECT("F"&$Y163)*INDIRECT("E"&$Y163),"")) ->  | O163: =IF(OR(ISBLANK($C163),$Y163=""),"",IF(MONTH($C163)=O$6,$E163/INDIRECT("F"&$Y163)*INDIRECT("E"&$Y163),"")) ->  | P163: =IF(OR(ISBLANK($C163),$Y163=""),"",IF(MONTH($C163)=P$6,$E163/INDIRECT("F"&$Y163)*INDIRECT("E"&$Y163),"")) ->  | Q163: =IF(OR(ISBLANK($C163),$Y163=""),"",IF(MONTH($C163)=Q$6,$E163/INDIRECT("F"&$Y163)*INDIRECT("E"&$Y163),"")) ->  | R163: =IF(OR(ISBLANK($C163),$Y163=""),"",IF(MONTH($C163)=R$6,$E163/INDIRECT("F"&$Y163)*INDIRECT("E"&$Y163),"")) ->  | S163: =IF(OR(ISBLANK($C163),$Y163=""),"",IF(MONTH($C163)=S$6,$E163/INDIRECT("F"&$Y163)*INDIRECT("E"&$Y163),"")) ->  | T163: =IF(OR(ISBLANK($C163),$Y163=""),"",IF(MONTH($C163)=T$6,$E163/INDIRECT("F"&$Y163)*INDIRECT("E"&$Y163),"")) ->  | U163: =IF(OR(ISBLANK($C163),$Y163=""),"",IF(MONTH($C163)=U$6,$E163/INDIRECT("F"&$Y163)*INDIRECT("E"&$Y163),"")) ->  | V163: =IF(OR(ISBLANK($C163),$Y163=""),"",IF(MONTH($C163)=V$6,$E163/INDIRECT("F"&$Y163)*INDIRECT("E"&$Y163),"")) ->  | X163: 153 | Y163: 153
I164: 0 | K164: =IF(OR(ISBLANK($C164),$Y164=""),"",IF(MONTH($C164)=K$6,$E164/INDIRECT("F"&$Y164)*INDIRECT("E"&$Y164),"")) ->  | L164: =IF(OR(ISBLANK($C164),$Y164=""),"",IF(MONTH($C164)=L$6,$E164/INDIRECT("F"&$Y164)*INDIRECT("E"&$Y164),"")) ->  | M164: =IF(OR(ISBLANK($C164),$Y164=""),"",IF(MONTH($C164)=M$6,$E164/INDIRECT("F"&$Y164)*INDIRECT("E"&$Y164),"")) ->  | N164: =IF(OR(ISBLANK($C164),$Y164=""),"",IF(MONTH($C164)=N$6,$E164/INDIRECT("F"&$Y164)*INDIRECT("E"&$Y164),"")) ->  | O164: =IF(OR(ISBLANK($C164),$Y164=""),"",IF(MONTH($C164)=O$6,$E164/INDIRECT("F"&$Y164)*INDIRECT("E"&$Y164),"")) ->  | P164: =IF(OR(ISBLANK($C164),$Y164=""),"",IF(MONTH($C164)=P$6,$E164/INDIRECT("F"&$Y164)*INDIRECT("E"&$Y164),"")) ->  | Q164: =IF(OR(ISBLANK($C164),$Y164=""),"",IF(MONTH($C164)=Q$6,$E164/INDIRECT("F"&$Y164)*INDIRECT("E"&$Y164),"")) ->  | R164: =IF(OR(ISBLANK($C164),$Y164=""),"",IF(MONTH($C164)=R$6,$E164/INDIRECT("F"&$Y164)*INDIRECT("E"&$Y164),"")) ->  | S164: =IF(OR(ISBLANK($C164),$Y164=""),"",IF(MONTH($C164)=S$6,$E164/INDIRECT("F"&$Y164)*INDIRECT("E"&$Y164),"")) ->  | T164: =IF(OR(ISBLANK($C164),$Y164=""),"",IF(MONTH($C164)=T$6,$E164/INDIRECT("F"&$Y164)*INDIRECT("E"&$Y164),"")) ->  | U164: =IF(OR(ISBLANK($C164),$Y164=""),"",IF(MONTH($C164)=U$6,$E164/INDIRECT("F"&$Y164)*INDIRECT("E"&$Y164),"")) ->  | V164: =IF(OR(ISBLANK($C164),$Y164=""),"",IF(MONTH($C164)=V$6,$E164/INDIRECT("F"&$Y164)*INDIRECT("E"&$Y164),"")) ->  | X164: 153 | Y164: 153
H165: =IFERROR(I165/E165,0) -> 0 | I165: =SUM(I166:J176) -> 0 | K165: =IF(OR(ISBLANK($C165),$Y165=""),"",IF(MONTH($C165)=K$6,$E165/INDIRECT("F"&$Y165)*INDIRECT("E"&$Y165),"")) ->  | L165: =IF(OR(ISBLANK($C165),$Y165=""),"",IF(MONTH($C165)=L$6,$E165/INDIRECT("F"&$Y165)*INDIRECT("E"&$Y165),"")) ->  | M165: =IF(OR(ISBLANK($C165),$Y165=""),"",IF(MONTH($C165)=M$6,$E165/INDIRECT("F"&$Y165)*INDIRECT("E"&$Y165),"")) ->  | N165: =IF(OR(ISBLANK($C165),$Y165=""),"",IF(MONTH($C165)=N$6,$E165/INDIRECT("F"&$Y165)*INDIRECT("E"&$Y165),"")) ->  | O165: =IF(OR(ISBLANK($C165),$Y165=""),"",IF(MONTH($C165)=O$6,$E165/INDIRECT("F"&$Y165)*INDIRECT("E"&$Y165),"")) ->  | P165: =IF(OR(ISBLANK($C165),$Y165=""),"",IF(MONTH($C165)=P$6,$E165/INDIRECT("F"&$Y165)*INDIRECT("E"&$Y165),"")) ->  | Q165: =IF(OR(ISBLANK($C165),$Y165=""),"",IF(MONTH($C165)=Q$6,$E165/INDIRECT("F"&$Y165)*INDIRECT("E"&$Y165),"")) ->  | R165: =IF(OR(ISBLANK($C165),$Y165=""),"",IF(MONTH($C165)=R$6,$E165/INDIRECT("F"&$Y165)*INDIRECT("E"&$Y165),"")) ->  | S165: =IF(OR(ISBLANK($C165),$Y165=""),"",IF(MONTH($C165)=S$6,$E165/INDIRECT("F"&$Y165)*INDIRECT("E"&$Y165),"")) ->  | T165: =IF(OR(ISBLANK($C165),$Y165=""),"",IF(MONTH($C165)=T$6,$E165/INDIRECT("F"&$Y165)*INDIRECT("E"&$Y165),"")) ->  | U165: =IF(OR(ISBLANK($C165),$Y165=""),"",IF(MONTH($C165)=U$6,$E165/INDIRECT("F"&$Y165)*INDIRECT("E"&$Y165),"")) ->  | V165: =IF(OR(ISBLANK($C165),$Y165=""),"",IF(MONTH($C165)=V$6,$E165/INDIRECT("F"&$Y165)*INDIRECT("E"&$Y165),"")) ->  | W165: =IF(H165<>100%,"Niet ok","ok") -> Niet ok | X165: 165
B166: Factuurnummer | C166: Factuurdatum | D166: Omschrijving factuur | E166: Factuurbedrag | K166: =IF(OR(ISBLANK($C166),$Y166=""),"",IF(MONTH($C166)=K$6,$E166/INDIRECT("F"&$Y166)*INDIRECT("E"&$Y166),"")) ->  | L166: =IF(OR(ISBLANK($C166),$Y166=""),"",IF(MONTH($C166)=L$6,$E166/INDIRECT("F"&$Y166)*INDIRECT("E"&$Y166),"")) ->  | M166: =IF(OR(ISBLANK($C166),$Y166=""),"",IF(MONTH($C166)=M$6,$E166/INDIRECT("F"&$Y166)*INDIRECT("E"&$Y166),"")) ->  | N166: =IF(OR(ISBLANK($C166),$Y166=""),"",IF(MONTH($C166)=N$6,$E166/INDIRECT("F"&$Y166)*INDIRECT("E"&$Y166),"")) ->  | O166: =IF(OR(ISBLANK($C166),$Y166=""),"",IF(MONTH($C166)=O$6,$E166/INDIRECT("F"&$Y166)*INDIRECT("E"&$Y166),"")) ->  | P166: =IF(OR(ISBLANK($C166),$Y166=""),"",IF(MONTH($C166)=P$6,$E166/INDIRECT("F"&$Y166)*INDIRECT("E"&$Y166),"")) ->  | Q166: =IF(OR(ISBLANK($C166),$Y166=""),"",IF(MONTH($C166)=Q$6,$E166/INDIRECT("F"&$Y166)*INDIRECT("E"&$Y166),"")) ->  | R166: =IF(OR(ISBLANK($C166),$Y166=""),"",IF(MONTH($C166)=R$6,$E166/INDIRECT("F"&$Y166)*INDIRECT("E"&$Y166),"")) ->  | S166: =IF(OR(ISBLANK($C166),$Y166=""),"",IF(MONTH($C166)=S$6,$E166/INDIRECT("F"&$Y166)*INDIRECT("E"&$Y166),"")) ->  | T166: =IF(OR(ISBLANK($C166),$Y166=""),"",IF(MONTH($C166)=T$6,$E166/INDIRECT("F"&$Y166)*INDIRECT("E"&$Y166),"")) ->  | U166: =IF(OR(ISBLANK($C166),$Y166=""),"",IF(MONTH($C166)=U$6,$E166/INDIRECT("F"&$Y166)*INDIRECT("E"&$Y166),"")) ->  | V166: =IF(OR(ISBLANK($C166),$Y166=""),"",IF(MONTH($C166)=V$6,$E166/INDIRECT("F"&$Y166)*INDIRECT("E"&$Y166),"")) ->  | X166: 165
I167: =SUM(K167:V167) -> 0 | K167: =IF(OR(ISBLANK($C167),$Y167=""),"",IF(MONTH($C167)=K$6,$E167/INDIRECT("F"&$Y167)*INDIRECT("E"&$Y167),"")) ->  | L167: =IF(OR(ISBLANK($C167),$Y167=""),"",IF(MONTH($C167)=L$6,$E167/INDIRECT("F"&$Y167)*INDIRECT("E"&$Y167),"")) ->  | M167: =IF(OR(ISBLANK($C167),$Y167=""),"",IF(MONTH($C167)=M$6,$E167/INDIRECT("F"&$Y167)*INDIRECT("E"&$Y167),"")) ->  | N167: =IF(OR(ISBLANK($C167),$Y167=""),"",IF(MONTH($C167)=N$6,$E167/INDIRECT("F"&$Y167)*INDIRECT("E"&$Y167),"")) ->  | O167: =IF(OR(ISBLANK($C167),$Y167=""),"",IF(MONTH($C167)=O$6,$E167/INDIRECT("F"&$Y167)*INDIRECT("E"&$Y167),"")) ->  | P167: =IF(OR(ISBLANK($C167),$Y167=""),"",IF(MONTH($C167)=P$6,$E167/INDIRECT("F"&$Y167)*INDIRECT("E"&$Y167),"")) ->  | Q167: =IF(OR(ISBLANK($C167),$Y167=""),"",IF(MONTH($C167)=Q$6,$E167/INDIRECT("F"&$Y167)*INDIRECT("E"&$Y167),"")) ->  | R167: =IF(OR(ISBLANK($C167),$Y167=""),"",IF(MONTH($C167)=R$6,$E167/INDIRECT("F"&$Y167)*INDIRECT("E"&$Y167),"")) ->  | S167: =IF(OR(ISBLANK($C167),$Y167=""),"",IF(MONTH($C167)=S$6,$E167/INDIRECT("F"&$Y167)*INDIRECT("E"&$Y167),"")) ->  | T167: =IF(OR(ISBLANK($C167),$Y167=""),"",IF(MONTH($C167)=T$6,$E167/INDIRECT("F"&$Y167)*INDIRECT("E"&$Y167),"")) ->  | U167: =IF(OR(ISBLANK($C167),$Y167=""),"",IF(MONTH($C167)=U$6,$E167/INDIRECT("F"&$Y167)*INDIRECT("E"&$Y167),"")) ->  | V167: =IF(OR(ISBLANK($C167),$Y167=""),"",IF(MONTH($C167)=V$6,$E167/INDIRECT("F"&$Y167)*INDIRECT("E"&$Y167),"")) ->  | X167: 165 | Y167: 165
I168: 0 | K168: =IF(OR(ISBLANK($C168),$Y168=""),"",IF(MONTH($C168)=K$6,$E168/INDIRECT("F"&$Y168)*INDIRECT("E"&$Y168),"")) ->  | L168: =IF(OR(ISBLANK($C168),$Y168=""),"",IF(MONTH($C168)=L$6,$E168/INDIRECT("F"&$Y168)*INDIRECT("E"&$Y168),"")) ->  | M168: =IF(OR(ISBLANK($C168),$Y168=""),"",IF(MONTH($C168)=M$6,$E168/INDIRECT("F"&$Y168)*INDIRECT("E"&$Y168),"")) ->  | N168: =IF(OR(ISBLANK($C168),$Y168=""),"",IF(MONTH($C168)=N$6,$E168/INDIRECT("F"&$Y168)*INDIRECT("E"&$Y168),"")) ->  | O168: =IF(OR(ISBLANK($C168),$Y168=""),"",IF(MONTH($C168)=O$6,$E168/INDIRECT("F"&$Y168)*INDIRECT("E"&$Y168),"")) ->  | P168: =IF(OR(ISBLANK($C168),$Y168=""),"",IF(MONTH($C168)=P$6,$E168/INDIRECT("F"&$Y168)*INDIRECT("E"&$Y168),"")) ->  | Q168: =IF(OR(ISBLANK($C168),$Y168=""),"",IF(MONTH($C168)=Q$6,$E168/INDIRECT("F"&$Y168)*INDIRECT("E"&$Y168),"")) ->  | R168: =IF(OR(ISBLANK($C168),$Y168=""),"",IF(MONTH($C168)=R$6,$E168/INDIRECT("F"&$Y168)*INDIRECT("E"&$Y168),"")) ->  | S168: =IF(OR(ISBLANK($C168),$Y168=""),"",IF(MONTH($C168)=S$6,$E168/INDIRECT("F"&$Y168)*INDIRECT("E"&$Y168),"")) ->  | T168: =IF(OR(ISBLANK($C168),$Y168=""),"",IF(MONTH($C168)=T$6,$E168/INDIRECT("F"&$Y168)*INDIRECT("E"&$Y168),"")) ->  | U168: =IF(OR(ISBLANK($C168),$Y168=""),"",IF(MONTH($C168)=U$6,$E168/INDIRECT("F"&$Y168)*INDIRECT("E"&$Y168),"")) ->  | V168: =IF(OR(ISBLANK($C168),$Y168=""),"",IF(MONTH($C168)=V$6,$E168/INDIRECT("F"&$Y168)*INDIRECT("E"&$Y168),"")) ->  | X168: 165 | Y168: 165
I169: 0 | K169: =IF(OR(ISBLANK($C169),$Y169=""),"",IF(MONTH($C169)=K$6,$E169/INDIRECT("F"&$Y169)*INDIRECT("E"&$Y169),"")) ->  | L169: =IF(OR(ISBLANK($C169),$Y169=""),"",IF(MONTH($C169)=L$6,$E169/INDIRECT("F"&$Y169)*INDIRECT("E"&$Y169),"")) ->  | M169: =IF(OR(ISBLANK($C169),$Y169=""),"",IF(MONTH($C169)=M$6,$E169/INDIRECT("F"&$Y169)*INDIRECT("E"&$Y169),"")) ->  | N169: =IF(OR(ISBLANK($C169),$Y169=""),"",IF(MONTH($C169)=N$6,$E169/INDIRECT("F"&$Y169)*INDIRECT("E"&$Y169),"")) ->  | O169: =IF(OR(ISBLANK($C169),$Y169=""),"",IF(MONTH($C169)=O$6,$E169/INDIRECT("F"&$Y169)*INDIRECT("E"&$Y169),"")) ->  | P169: =IF(OR(ISBLANK($C169),$Y169=""),"",IF(MONTH($C169)=P$6,$E169/INDIRECT("F"&$Y169)*INDIRECT("E"&$Y169),"")) ->  | Q169: =IF(OR(ISBLANK($C169),$Y169=""),"",IF(MONTH($C169)=Q$6,$E169/INDIRECT("F"&$Y169)*INDIRECT("E"&$Y169),"")) ->  | R169: =IF(OR(ISBLANK($C169),$Y169=""),"",IF(MONTH($C169)=R$6,$E169/INDIRECT("F"&$Y169)*INDIRECT("E"&$Y169),"")) ->  | S169: =IF(OR(ISBLANK($C169),$Y169=""),"",IF(MONTH($C169)=S$6,$E169/INDIRECT("F"&$Y169)*INDIRECT("E"&$Y169),"")) ->  | T169: =IF(OR(ISBLANK($C169),$Y169=""),"",IF(MONTH($C169)=T$6,$E169/INDIRECT("F"&$Y169)*INDIRECT("E"&$Y169),"")) ->  | U169: =IF(OR(ISBLANK($C169),$Y169=""),"",IF(MONTH($C169)=U$6,$E169/INDIRECT("F"&$Y169)*INDIRECT("E"&$Y169),"")) ->  | V169: =IF(OR(ISBLANK($C169),$Y169=""),"",IF(MONTH($C169)=V$6,$E169/INDIRECT("F"&$Y169)*INDIRECT("E"&$Y169),"")) ->  | X169: 165 | Y169: 165
I170: 0 | K170: =IF(OR(ISBLANK($C170),$Y170=""),"",IF(MONTH($C170)=K$6,$E170/INDIRECT("F"&$Y170)*INDIRECT("E"&$Y170),"")) ->  | L170: =IF(OR(ISBLANK($C170),$Y170=""),"",IF(MONTH($C170)=L$6,$E170/INDIRECT("F"&$Y170)*INDIRECT("E"&$Y170),"")) ->  | M170: =IF(OR(ISBLANK($C170),$Y170=""),"",IF(MONTH($C170)=M$6,$E170/INDIRECT("F"&$Y170)*INDIRECT("E"&$Y170),"")) ->  | N170: =IF(OR(ISBLANK($C170),$Y170=""),"",IF(MONTH($C170)=N$6,$E170/INDIRECT("F"&$Y170)*INDIRECT("E"&$Y170),"")) ->  | O170: =IF(OR(ISBLANK($C170),$Y170=""),"",IF(MONTH($C170)=O$6,$E170/INDIRECT("F"&$Y170)*INDIRECT("E"&$Y170),"")) ->  | P170: =IF(OR(ISBLANK($C170),$Y170=""),"",IF(MONTH($C170)=P$6,$E170/INDIRECT("F"&$Y170)*INDIRECT("E"&$Y170),"")) ->  | Q170: =IF(OR(ISBLANK($C170),$Y170=""),"",IF(MONTH($C170)=Q$6,$E170/INDIRECT("F"&$Y170)*INDIRECT("E"&$Y170),"")) ->  | R170: =IF(OR(ISBLANK($C170),$Y170=""),"",IF(MONTH($C170)=R$6,$E170/INDIRECT("F"&$Y170)*INDIRECT("E"&$Y170),"")) ->  | S170: =IF(OR(ISBLANK($C170),$Y170=""),"",IF(MONTH($C170)=S$6,$E170/INDIRECT("F"&$Y170)*INDIRECT("E"&$Y170),"")) ->  | T170: =IF(OR(ISBLANK($C170),$Y170=""),"",IF(MONTH($C170)=T$6,$E170/INDIRECT("F"&$Y170)*INDIRECT("E"&$Y170),"")) ->  | U170: =IF(OR(ISBLANK($C170),$Y170=""),"",IF(MONTH($C170)=U$6,$E170/INDIRECT("F"&$Y170)*INDIRECT("E"&$Y170),"")) ->  | V170: =IF(OR(ISBLANK($C170),$Y170=""),"",IF(MONTH($C170)=V$6,$E170/INDIRECT("F"&$Y170)*INDIRECT("E"&$Y170),"")) ->  | X170: 165 | Y170: 165
I171: 0 | K171: =IF(OR(ISBLANK($C171),$Y171=""),"",IF(MONTH($C171)=K$6,$E171/INDIRECT("F"&$Y171)*INDIRECT("E"&$Y171),"")) ->  | L171: =IF(OR(ISBLANK($C171),$Y171=""),"",IF(MONTH($C171)=L$6,$E171/INDIRECT("F"&$Y171)*INDIRECT("E"&$Y171),"")) ->  | M171: =IF(OR(ISBLANK($C171),$Y171=""),"",IF(MONTH($C171)=M$6,$E171/INDIRECT("F"&$Y171)*INDIRECT("E"&$Y171),"")) ->  | N171: =IF(OR(ISBLANK($C171),$Y171=""),"",IF(MONTH($C171)=N$6,$E171/INDIRECT("F"&$Y171)*INDIRECT("E"&$Y171),"")) ->  | O171: =IF(OR(ISBLANK($C171),$Y171=""),"",IF(MONTH($C171)=O$6,$E171/INDIRECT("F"&$Y171)*INDIRECT("E"&$Y171),"")) ->  | P171: =IF(OR(ISBLANK($C171),$Y171=""),"",IF(MONTH($C171)=P$6,$E171/INDIRECT("F"&$Y171)*INDIRECT("E"&$Y171),"")) ->  | Q171: =IF(OR(ISBLANK($C171),$Y171=""),"",IF(MONTH($C171)=Q$6,$E171/INDIRECT("F"&$Y171)*INDIRECT("E"&$Y171),"")) ->  | R171: =IF(OR(ISBLANK($C171),$Y171=""),"",IF(MONTH($C171)=R$6,$E171/INDIRECT("F"&$Y171)*INDIRECT("E"&$Y171),"")) ->  | S171: =IF(OR(ISBLANK($C171),$Y171=""),"",IF(MONTH($C171)=S$6,$E171/INDIRECT("F"&$Y171)*INDIRECT("E"&$Y171),"")) ->  | T171: =IF(OR(ISBLANK($C171),$Y171=""),"",IF(MONTH($C171)=T$6,$E171/INDIRECT("F"&$Y171)*INDIRECT("E"&$Y171),"")) ->  | U171: =IF(OR(ISBLANK($C171),$Y171=""),"",IF(MONTH($C171)=U$6,$E171/INDIRECT("F"&$Y171)*INDIRECT("E"&$Y171),"")) ->  | V171: =IF(OR(ISBLANK($C171),$Y171=""),"",IF(MONTH($C171)=V$6,$E171/INDIRECT("F"&$Y171)*INDIRECT("E"&$Y171),"")) ->  | X171: 165 | Y171: 165
I172: 0 | K172: =IF(OR(ISBLANK($C172),$Y172=""),"",IF(MONTH($C172)=K$6,$E172/INDIRECT("F"&$Y172)*INDIRECT("E"&$Y172),"")) ->  | L172: =IF(OR(ISBLANK($C172),$Y172=""),"",IF(MONTH($C172)=L$6,$E172/INDIRECT("F"&$Y172)*INDIRECT("E"&$Y172),"")) ->  | M172: =IF(OR(ISBLANK($C172),$Y172=""),"",IF(MONTH($C172)=M$6,$E172/INDIRECT("F"&$Y172)*INDIRECT("E"&$Y172),"")) ->  | N172: =IF(OR(ISBLANK($C172),$Y172=""),"",IF(MONTH($C172)=N$6,$E172/INDIRECT("F"&$Y172)*INDIRECT("E"&$Y172),"")) ->  | O172: =IF(OR(ISBLANK($C172),$Y172=""),"",IF(MONTH($C172)=O$6,$E172/INDIRECT("F"&$Y172)*INDIRECT("E"&$Y172),"")) ->  | P172: =IF(OR(ISBLANK($C172),$Y172=""),"",IF(MONTH($C172)=P$6,$E172/INDIRECT("F"&$Y172)*INDIRECT("E"&$Y172),"")) ->  | Q172: =IF(OR(ISBLANK($C172),$Y172=""),"",IF(MONTH($C172)=Q$6,$E172/INDIRECT("F"&$Y172)*INDIRECT("E"&$Y172),"")) ->  | R172: =IF(OR(ISBLANK($C172),$Y172=""),"",IF(MONTH($C172)=R$6,$E172/INDIRECT("F"&$Y172)*INDIRECT("E"&$Y172),"")) ->  | S172: =IF(OR(ISBLANK($C172),$Y172=""),"",IF(MONTH($C172)=S$6,$E172/INDIRECT("F"&$Y172)*INDIRECT("E"&$Y172),"")) ->  | T172: =IF(OR(ISBLANK($C172),$Y172=""),"",IF(MONTH($C172)=T$6,$E172/INDIRECT("F"&$Y172)*INDIRECT("E"&$Y172),"")) ->  | U172: =IF(OR(ISBLANK($C172),$Y172=""),"",IF(MONTH($C172)=U$6,$E172/INDIRECT("F"&$Y172)*INDIRECT("E"&$Y172),"")) ->  | V172: =IF(OR(ISBLANK($C172),$Y172=""),"",IF(MONTH($C172)=V$6,$E172/INDIRECT("F"&$Y172)*INDIRECT("E"&$Y172),"")) ->  | X172: 165 | Y172: 165
I173: 0 | K173: =IF(OR(ISBLANK($C173),$Y173=""),"",IF(MONTH($C173)=K$6,$E173/INDIRECT("F"&$Y173)*INDIRECT("E"&$Y173),"")) ->  | L173: =IF(OR(ISBLANK($C173),$Y173=""),"",IF(MONTH($C173)=L$6,$E173/INDIRECT("F"&$Y173)*INDIRECT("E"&$Y173),"")) ->  | M173: =IF(OR(ISBLANK($C173),$Y173=""),"",IF(MONTH($C173)=M$6,$E173/INDIRECT("F"&$Y173)*INDIRECT("E"&$Y173),"")) ->  | N173: =IF(OR(ISBLANK($C173),$Y173=""),"",IF(MONTH($C173)=N$6,$E173/INDIRECT("F"&$Y173)*INDIRECT("E"&$Y173),"")) ->  | O173: =IF(OR(ISBLANK($C173),$Y173=""),"",IF(MONTH($C173)=O$6,$E173/INDIRECT("F"&$Y173)*INDIRECT("E"&$Y173),"")) ->  | P173: =IF(OR(ISBLANK($C173),$Y173=""),"",IF(MONTH($C173)=P$6,$E173/INDIRECT("F"&$Y173)*INDIRECT("E"&$Y173),"")) ->  | Q173: =IF(OR(ISBLANK($C173),$Y173=""),"",IF(MONTH($C173)=Q$6,$E173/INDIRECT("F"&$Y173)*INDIRECT("E"&$Y173),"")) ->  | R173: =IF(OR(ISBLANK($C173),$Y173=""),"",IF(MONTH($C173)=R$6,$E173/INDIRECT("F"&$Y173)*INDIRECT("E"&$Y173),"")) ->  | S173: =IF(OR(ISBLANK($C173),$Y173=""),"",IF(MONTH($C173)=S$6,$E173/INDIRECT("F"&$Y173)*INDIRECT("E"&$Y173),"")) ->  | T173: =IF(OR(ISBLANK($C173),$Y173=""),"",IF(MONTH($C173)=T$6,$E173/INDIRECT("F"&$Y173)*INDIRECT("E"&$Y173),"")) ->  | U173: =IF(OR(ISBLANK($C173),$Y173=""),"",IF(MONTH($C173)=U$6,$E173/INDIRECT("F"&$Y173)*INDIRECT("E"&$Y173),"")) ->  | V173: =IF(OR(ISBLANK($C173),$Y173=""),"",IF(MONTH($C173)=V$6,$E173/INDIRECT("F"&$Y173)*INDIRECT("E"&$Y173),"")) ->  | X173: 165 | Y173: 165
I174: 0 | K174: =IF(OR(ISBLANK($C174),$Y174=""),"",IF(MONTH($C174)=K$6,$E174/INDIRECT("F"&$Y174)*INDIRECT("E"&$Y174),"")) ->  | L174: =IF(OR(ISBLANK($C174),$Y174=""),"",IF(MONTH($C174)=L$6,$E174/INDIRECT("F"&$Y174)*INDIRECT("E"&$Y174),"")) ->  | M174: =IF(OR(ISBLANK($C174),$Y174=""),"",IF(MONTH($C174)=M$6,$E174/INDIRECT("F"&$Y174)*INDIRECT("E"&$Y174),"")) ->  | N174: =IF(OR(ISBLANK($C174),$Y174=""),"",IF(MONTH($C174)=N$6,$E174/INDIRECT("F"&$Y174)*INDIRECT("E"&$Y174),"")) ->  | O174: =IF(OR(ISBLANK($C174),$Y174=""),"",IF(MONTH($C174)=O$6,$E174/INDIRECT("F"&$Y174)*INDIRECT("E"&$Y174),"")) ->  | P174: =IF(OR(ISBLANK($C174),$Y174=""),"",IF(MONTH($C174)=P$6,$E174/INDIRECT("F"&$Y174)*INDIRECT("E"&$Y174),"")) ->  | Q174: =IF(OR(ISBLANK($C174),$Y174=""),"",IF(MONTH($C174)=Q$6,$E174/INDIRECT("F"&$Y174)*INDIRECT("E"&$Y174),"")) ->  | R174: =IF(OR(ISBLANK($C174),$Y174=""),"",IF(MONTH($C174)=R$6,$E174/INDIRECT("F"&$Y174)*INDIRECT("E"&$Y174),"")) ->  | S174: =IF(OR(ISBLANK($C174),$Y174=""),"",IF(MONTH($C174)=S$6,$E174/INDIRECT("F"&$Y174)*INDIRECT("E"&$Y174),"")) ->  | T174: =IF(OR(ISBLANK($C174),$Y174=""),"",IF(MONTH($C174)=T$6,$E174/INDIRECT("F"&$Y174)*INDIRECT("E"&$Y174),"")) ->  | U174: =IF(OR(ISBLANK($C174),$Y174=""),"",IF(MONTH($C174)=U$6,$E174/INDIRECT("F"&$Y174)*INDIRECT("E"&$Y174),"")) ->  | V174: =IF(OR(ISBLANK($C174),$Y174=""),"",IF(MONTH($C174)=V$6,$E174/INDIRECT("F"&$Y174)*INDIRECT("E"&$Y174),"")) ->  | X174: 165 | Y174: 165
I175: 0 | K175: =IF(OR(ISBLANK($C175),$Y175=""),"",IF(MONTH($C175)=K$6,$E175/INDIRECT("F"&$Y175)*INDIRECT("E"&$Y175),"")) ->  | L175: =IF(OR(ISBLANK($C175),$Y175=""),"",IF(MONTH($C175)=L$6,$E175/INDIRECT("F"&$Y175)*INDIRECT("E"&$Y175),"")) ->  | M175: =IF(OR(ISBLANK($C175),$Y175=""),"",IF(MONTH($C175)=M$6,$E175/INDIRECT("F"&$Y175)*INDIRECT("E"&$Y175),"")) ->  | N175: =IF(OR(ISBLANK($C175),$Y175=""),"",IF(MONTH($C175)=N$6,$E175/INDIRECT("F"&$Y175)*INDIRECT("E"&$Y175),"")) ->  | O175: =IF(OR(ISBLANK($C175),$Y175=""),"",IF(MONTH($C175)=O$6,$E175/INDIRECT("F"&$Y175)*INDIRECT("E"&$Y175),"")) ->  | P175: =IF(OR(ISBLANK($C175),$Y175=""),"",IF(MONTH($C175)=P$6,$E175/INDIRECT("F"&$Y175)*INDIRECT("E"&$Y175),"")) ->  | Q175: =IF(OR(ISBLANK($C175),$Y175=""),"",IF(MONTH($C175)=Q$6,$E175/INDIRECT("F"&$Y175)*INDIRECT("E"&$Y175),"")) ->  | R175: =IF(OR(ISBLANK($C175),$Y175=""),"",IF(MONTH($C175)=R$6,$E175/INDIRECT("F"&$Y175)*INDIRECT("E"&$Y175),"")) ->  | S175: =IF(OR(ISBLANK($C175),$Y175=""),"",IF(MONTH($C175)=S$6,$E175/INDIRECT("F"&$Y175)*INDIRECT("E"&$Y175),"")) ->  | T175: =IF(OR(ISBLANK($C175),$Y175=""),"",IF(MONTH($C175)=T$6,$E175/INDIRECT("F"&$Y175)*INDIRECT("E"&$Y175),"")) ->  | U175: =IF(OR(ISBLANK($C175),$Y175=""),"",IF(MONTH($C175)=U$6,$E175/INDIRECT("F"&$Y175)*INDIRECT("E"&$Y175),"")) ->  | V175: =IF(OR(ISBLANK($C175),$Y175=""),"",IF(MONTH($C175)=V$6,$E175/INDIRECT("F"&$Y175)*INDIRECT("E"&$Y175),"")) ->  | X175: 165 | Y175: 165
I176: 0 | K176: =IF(OR(ISBLANK($C176),$Y176=""),"",IF(MONTH($C176)=K$6,$E176/INDIRECT("F"&$Y176)*INDIRECT("E"&$Y176),"")) ->  | L176: =IF(OR(ISBLANK($C176),$Y176=""),"",IF(MONTH($C176)=L$6,$E176/INDIRECT("F"&$Y176)*INDIRECT("E"&$Y176),"")) ->  | M176: =IF(OR(ISBLANK($C176),$Y176=""),"",IF(MONTH($C176)=M$6,$E176/INDIRECT("F"&$Y176)*INDIRECT("E"&$Y176),"")) ->  | N176: =IF(OR(ISBLANK($C176),$Y176=""),"",IF(MONTH($C176)=N$6,$E176/INDIRECT("F"&$Y176)*INDIRECT("E"&$Y176),"")) ->  | O176: =IF(OR(ISBLANK($C176),$Y176=""),"",IF(MONTH($C176)=O$6,$E176/INDIRECT("F"&$Y176)*INDIRECT("E"&$Y176),"")) ->  | P176: =IF(OR(ISBLANK($C176),$Y176=""),"",IF(MONTH($C176)=P$6,$E176/INDIRECT("F"&$Y176)*INDIRECT("E"&$Y176),"")) ->  | Q176: =IF(OR(ISBLANK($C176),$Y176=""),"",IF(MONTH($C176)=Q$6,$E176/INDIRECT("F"&$Y176)*INDIRECT("E"&$Y176),"")) ->  | R176: =IF(OR(ISBLANK($C176),$Y176=""),"",IF(MONTH($C176)=R$6,$E176/INDIRECT("F"&$Y176)*INDIRECT("E"&$Y176),"")) ->  | S176: =IF(OR(ISBLANK($C176),$Y176=""),"",IF(MONTH($C176)=S$6,$E176/INDIRECT("F"&$Y176)*INDIRECT("E"&$Y176),"")) ->  | T176: =IF(OR(ISBLANK($C176),$Y176=""),"",IF(MONTH($C176)=T$6,$E176/INDIRECT("F"&$Y176)*INDIRECT("E"&$Y176),"")) ->  | U176: =IF(OR(ISBLANK($C176),$Y176=""),"",IF(MONTH($C176)=U$6,$E176/INDIRECT("F"&$Y176)*INDIRECT("E"&$Y176),"")) ->  | V176: =IF(OR(ISBLANK($C176),$Y176=""),"",IF(MONTH($C176)=V$6,$E176/INDIRECT("F"&$Y176)*INDIRECT("E"&$Y176),"")) ->  | X176: 165 | Y176: 165
H177: =IFERROR(I177/E177,0) -> 0 | I177: =SUM(I178:J188) -> 0 | K177: =IF(OR(ISBLANK($C177),$Y177=""),"",IF(MONTH($C177)=K$6,$E177/INDIRECT("F"&$Y177)*INDIRECT("E"&$Y177),"")) ->  | L177: =IF(OR(ISBLANK($C177),$Y177=""),"",IF(MONTH($C177)=L$6,$E177/INDIRECT("F"&$Y177)*INDIRECT("E"&$Y177),"")) ->  | M177: =IF(OR(ISBLANK($C177),$Y177=""),"",IF(MONTH($C177)=M$6,$E177/INDIRECT("F"&$Y177)*INDIRECT("E"&$Y177),"")) ->  | N177: =IF(OR(ISBLANK($C177),$Y177=""),"",IF(MONTH($C177)=N$6,$E177/INDIRECT("F"&$Y177)*INDIRECT("E"&$Y177),"")) ->  | O177: =IF(OR(ISBLANK($C177),$Y177=""),"",IF(MONTH($C177)=O$6,$E177/INDIRECT("F"&$Y177)*INDIRECT("E"&$Y177),"")) ->  | P177: =IF(OR(ISBLANK($C177),$Y177=""),"",IF(MONTH($C177)=P$6,$E177/INDIRECT("F"&$Y177)*INDIRECT("E"&$Y177),"")) ->  | Q177: =IF(OR(ISBLANK($C177),$Y177=""),"",IF(MONTH($C177)=Q$6,$E177/INDIRECT("F"&$Y177)*INDIRECT("E"&$Y177),"")) ->  | R177: =IF(OR(ISBLANK($C177),$Y177=""),"",IF(MONTH($C177)=R$6,$E177/INDIRECT("F"&$Y177)*INDIRECT("E"&$Y177),"")) ->  | S177: =IF(OR(ISBLANK($C177),$Y177=""),"",IF(MONTH($C177)=S$6,$E177/INDIRECT("F"&$Y177)*INDIRECT("E"&$Y177),"")) ->  | T177: =IF(OR(ISBLANK($C177),$Y177=""),"",IF(MONTH($C177)=T$6,$E177/INDIRECT("F"&$Y177)*INDIRECT("E"&$Y177),"")) ->  | U177: =IF(OR(ISBLANK($C177),$Y177=""),"",IF(MONTH($C177)=U$6,$E177/INDIRECT("F"&$Y177)*INDIRECT("E"&$Y177),"")) ->  | V177: =IF(OR(ISBLANK($C177),$Y177=""),"",IF(MONTH($C177)=V$6,$E177/INDIRECT("F"&$Y177)*INDIRECT("E"&$Y177),"")) ->  | W177: =IF(H177<>100%,"Niet ok","ok") -> Niet ok | X177: 177
B178: Factuurnummer | C178: Factuurdatum | D178: Omschrijving factuur | E178: Factuurbedrag | K178: =IF(OR(ISBLANK($C178),$Y178=""),"",IF(MONTH($C178)=K$6,$E178/INDIRECT("F"&$Y178)*INDIRECT("E"&$Y178),"")) ->  | L178: =IF(OR(ISBLANK($C178),$Y178=""),"",IF(MONTH($C178)=L$6,$E178/INDIRECT("F"&$Y178)*INDIRECT("E"&$Y178),"")) ->  | M178: =IF(OR(ISBLANK($C178),$Y178=""),"",IF(MONTH($C178)=M$6,$E178/INDIRECT("F"&$Y178)*INDIRECT("E"&$Y178),"")) ->  | N178: =IF(OR(ISBLANK($C178),$Y178=""),"",IF(MONTH($C178)=N$6,$E178/INDIRECT("F"&$Y178)*INDIRECT("E"&$Y178),"")) ->  | O178: =IF(OR(ISBLANK($C178),$Y178=""),"",IF(MONTH($C178)=O$6,$E178/INDIRECT("F"&$Y178)*INDIRECT("E"&$Y178),"")) ->  | P178: =IF(OR(ISBLANK($C178),$Y178=""),"",IF(MONTH($C178)=P$6,$E178/INDIRECT("F"&$Y178)*INDIRECT("E"&$Y178),"")) ->  | Q178: =IF(OR(ISBLANK($C178),$Y178=""),"",IF(MONTH($C178)=Q$6,$E178/INDIRECT("F"&$Y178)*INDIRECT("E"&$Y178),"")) ->  | R178: =IF(OR(ISBLANK($C178),$Y178=""),"",IF(MONTH($C178)=R$6,$E178/INDIRECT("F"&$Y178)*INDIRECT("E"&$Y178),"")) ->  | S178: =IF(OR(ISBLANK($C178),$Y178=""),"",IF(MONTH($C178)=S$6,$E178/INDIRECT("F"&$Y178)*INDIRECT("E"&$Y178),"")) ->  | T178: =IF(OR(ISBLANK($C178),$Y178=""),"",IF(MONTH($C178)=T$6,$E178/INDIRECT("F"&$Y178)*INDIRECT("E"&$Y178),"")) ->  | U178: =IF(OR(ISBLANK($C178),$Y178=""),"",IF(MONTH($C178)=U$6,$E178/INDIRECT("F"&$Y178)*INDIRECT("E"&$Y178),"")) ->  | V178: =IF(OR(ISBLANK($C178),$Y178=""),"",IF(MONTH($C178)=V$6,$E178/INDIRECT("F"&$Y178)*INDIRECT("E"&$Y178),"")) ->  | X178: 177
I179: =SUM(K179:V179) -> 0 | K179: =IF(OR(ISBLANK($C179),$Y179=""),"",IF(MONTH($C179)=K$6,$E179/INDIRECT("F"&$Y179)*INDIRECT("E"&$Y179),"")) ->  | L179: =IF(OR(ISBLANK($C179),$Y179=""),"",IF(MONTH($C179)=L$6,$E179/INDIRECT("F"&$Y179)*INDIRECT("E"&$Y179),"")) ->  | M179: =IF(OR(ISBLANK($C179),$Y179=""),"",IF(MONTH($C179)=M$6,$E179/INDIRECT("F"&$Y179)*INDIRECT("E"&$Y179),"")) ->  | N179: =IF(OR(ISBLANK($C179),$Y179=""),"",IF(MONTH($C179)=N$6,$E179/INDIRECT("F"&$Y179)*INDIRECT("E"&$Y179),"")) ->  | O179: =IF(OR(ISBLANK($C179),$Y179=""),"",IF(MONTH($C179)=O$6,$E179/INDIRECT("F"&$Y179)*INDIRECT("E"&$Y179),"")) ->  | P179: =IF(OR(ISBLANK($C179),$Y179=""),"",IF(MONTH($C179)=P$6,$E179/INDIRECT("F"&$Y179)*INDIRECT("E"&$Y179),"")) ->  | Q179: =IF(OR(ISBLANK($C179),$Y179=""),"",IF(MONTH($C179)=Q$6,$E179/INDIRECT("F"&$Y179)*INDIRECT("E"&$Y179),"")) ->  | R179: =IF(OR(ISBLANK($C179),$Y179=""),"",IF(MONTH($C179)=R$6,$E179/INDIRECT("F"&$Y179)*INDIRECT("E"&$Y179),"")) ->  | S179: =IF(OR(ISBLANK($C179),$Y179=""),"",IF(MONTH($C179)=S$6,$E179/INDIRECT("F"&$Y179)*INDIRECT("E"&$Y179),"")) ->  | T179: =IF(OR(ISBLANK($C179),$Y179=""),"",IF(MONTH($C179)=T$6,$E179/INDIRECT("F"&$Y179)*INDIRECT("E"&$Y179),"")) ->  | U179: =IF(OR(ISBLANK($C179),$Y179=""),"",IF(MONTH($C179)=U$6,$E179/INDIRECT("F"&$Y179)*INDIRECT("E"&$Y179),"")) ->  | V179: =IF(OR(ISBLANK($C179),$Y179=""),"",IF(MONTH($C179)=V$6,$E179/INDIRECT("F"&$Y179)*INDIRECT("E"&$Y179),"")) ->  | X179: 177 | Y179: 177
I180: 0 | K180: =IF(OR(ISBLANK($C180),$Y180=""),"",IF(MONTH($C180)=K$6,$E180/INDIRECT("F"&$Y180)*INDIRECT("E"&$Y180),"")) ->  | L180: =IF(OR(ISBLANK($C180),$Y180=""),"",IF(MONTH($C180)=L$6,$E180/INDIRECT("F"&$Y180)*INDIRECT("E"&$Y180),"")) ->  | M180: =IF(OR(ISBLANK($C180),$Y180=""),"",IF(MONTH($C180)=M$6,$E180/INDIRECT("F"&$Y180)*INDIRECT("E"&$Y180),"")) ->  | N180: =IF(OR(ISBLANK($C180),$Y180=""),"",IF(MONTH($C180)=N$6,$E180/INDIRECT("F"&$Y180)*INDIRECT("E"&$Y180),"")) ->  | O180: =IF(OR(ISBLANK($C180),$Y180=""),"",IF(MONTH($C180)=O$6,$E180/INDIRECT("F"&$Y180)*INDIRECT("E"&$Y180),"")) ->  | P180: =IF(OR(ISBLANK($C180),$Y180=""),"",IF(MONTH($C180)=P$6,$E180/INDIRECT("F"&$Y180)*INDIRECT("E"&$Y180),"")) ->  | Q180: =IF(OR(ISBLANK($C180),$Y180=""),"",IF(MONTH($C180)=Q$6,$E180/INDIRECT("F"&$Y180)*INDIRECT("E"&$Y180),"")) ->  | R180: =IF(OR(ISBLANK($C180),$Y180=""),"",IF(MONTH($C180)=R$6,$E180/INDIRECT("F"&$Y180)*INDIRECT("E"&$Y180),"")) ->  | S180: =IF(OR(ISBLANK($C180),$Y180=""),"",IF(MONTH($C180)=S$6,$E180/INDIRECT("F"&$Y180)*INDIRECT("E"&$Y180),"")) ->  | T180: =IF(OR(ISBLANK($C180),$Y180=""),"",IF(MONTH($C180)=T$6,$E180/INDIRECT("F"&$Y180)*INDIRECT("E"&$Y180),"")) ->  | U180: =IF(OR(ISBLANK($C180),$Y180=""),"",IF(MONTH($C180)=U$6,$E180/INDIRECT("F"&$Y180)*INDIRECT("E"&$Y180),"")) ->  | V180: =IF(OR(ISBLANK($C180),$Y180=""),"",IF(MONTH($C180)=V$6,$E180/INDIRECT("F"&$Y180)*INDIRECT("E"&$Y180),"")) ->  | X180: 177 | Y180: 177
I181: 0 | K181: =IF(OR(ISBLANK($C181),$Y181=""),"",IF(MONTH($C181)=K$6,$E181/INDIRECT("F"&$Y181)*INDIRECT("E"&$Y181),"")) ->  | L181: =IF(OR(ISBLANK($C181),$Y181=""),"",IF(MONTH($C181)=L$6,$E181/INDIRECT("F"&$Y181)*INDIRECT("E"&$Y181),"")) ->  | M181: =IF(OR(ISBLANK($C181),$Y181=""),"",IF(MONTH($C181)=M$6,$E181/INDIRECT("F"&$Y181)*INDIRECT("E"&$Y181),"")) ->  | N181: =IF(OR(ISBLANK($C181),$Y181=""),"",IF(MONTH($C181)=N$6,$E181/INDIRECT("F"&$Y181)*INDIRECT("E"&$Y181),"")) ->  | O181: =IF(OR(ISBLANK($C181),$Y181=""),"",IF(MONTH($C181)=O$6,$E181/INDIRECT("F"&$Y181)*INDIRECT("E"&$Y181),"")) ->  | P181: =IF(OR(ISBLANK($C181),$Y181=""),"",IF(MONTH($C181)=P$6,$E181/INDIRECT("F"&$Y181)*INDIRECT("E"&$Y181),"")) ->  | Q181: =IF(OR(ISBLANK($C181),$Y181=""),"",IF(MONTH($C181)=Q$6,$E181/INDIRECT("F"&$Y181)*INDIRECT("E"&$Y181),"")) ->  | R181: =IF(OR(ISBLANK($C181),$Y181=""),"",IF(MONTH($C181)=R$6,$E181/INDIRECT("F"&$Y181)*INDIRECT("E"&$Y181),"")) ->  | S181: =IF(OR(ISBLANK($C181),$Y181=""),"",IF(MONTH($C181)=S$6,$E181/INDIRECT("F"&$Y181)*INDIRECT("E"&$Y181),"")) ->  | T181: =IF(OR(ISBLANK($C181),$Y181=""),"",IF(MONTH($C181)=T$6,$E181/INDIRECT("F"&$Y181)*INDIRECT("E"&$Y181),"")) ->  | U181: =IF(OR(ISBLANK($C181),$Y181=""),"",IF(MONTH($C181)=U$6,$E181/INDIRECT("F"&$Y181)*INDIRECT("E"&$Y181),"")) ->  | V181: =IF(OR(ISBLANK($C181),$Y181=""),"",IF(MONTH($C181)=V$6,$E181/INDIRECT("F"&$Y181)*INDIRECT("E"&$Y181),"")) ->  | X181: 177 | Y181: 177
I182: 0 | K182: =IF(OR(ISBLANK($C182),$Y182=""),"",IF(MONTH($C182)=K$6,$E182/INDIRECT("F"&$Y182)*INDIRECT("E"&$Y182),"")) ->  | L182: =IF(OR(ISBLANK($C182),$Y182=""),"",IF(MONTH($C182)=L$6,$E182/INDIRECT("F"&$Y182)*INDIRECT("E"&$Y182),"")) ->  | M182: =IF(OR(ISBLANK($C182),$Y182=""),"",IF(MONTH($C182)=M$6,$E182/INDIRECT("F"&$Y182)*INDIRECT("E"&$Y182),"")) ->  | N182: =IF(OR(ISBLANK($C182),$Y182=""),"",IF(MONTH($C182)=N$6,$E182/INDIRECT("F"&$Y182)*INDIRECT("E"&$Y182),"")) ->  | O182: =IF(OR(ISBLANK($C182),$Y182=""),"",IF(MONTH($C182)=O$6,$E182/INDIRECT("F"&$Y182)*INDIRECT("E"&$Y182),"")) ->  | P182: =IF(OR(ISBLANK($C182),$Y182=""),"",IF(MONTH($C182)=P$6,$E182/INDIRECT("F"&$Y182)*INDIRECT("E"&$Y182),"")) ->  | Q182: =IF(OR(ISBLANK($C182),$Y182=""),"",IF(MONTH($C182)=Q$6,$E182/INDIRECT("F"&$Y182)*INDIRECT("E"&$Y182),"")) ->  | R182: =IF(OR(ISBLANK($C182),$Y182=""),"",IF(MONTH($C182)=R$6,$E182/INDIRECT("F"&$Y182)*INDIRECT("E"&$Y182),"")) ->  | S182: =IF(OR(ISBLANK($C182),$Y182=""),"",IF(MONTH($C182)=S$6,$E182/INDIRECT("F"&$Y182)*INDIRECT("E"&$Y182),"")) ->  | T182: =IF(OR(ISBLANK($C182),$Y182=""),"",IF(MONTH($C182)=T$6,$E182/INDIRECT("F"&$Y182)*INDIRECT("E"&$Y182),"")) ->  | U182: =IF(OR(ISBLANK($C182),$Y182=""),"",IF(MONTH($C182)=U$6,$E182/INDIRECT("F"&$Y182)*INDIRECT("E"&$Y182),"")) ->  | V182: =IF(OR(ISBLANK($C182),$Y182=""),"",IF(MONTH($C182)=V$6,$E182/INDIRECT("F"&$Y182)*INDIRECT("E"&$Y182),"")) ->  | X182: 177 | Y182: 177
I183: 0 | K183: =IF(OR(ISBLANK($C183),$Y183=""),"",IF(MONTH($C183)=K$6,$E183/INDIRECT("F"&$Y183)*INDIRECT("E"&$Y183),"")) ->  | L183: =IF(OR(ISBLANK($C183),$Y183=""),"",IF(MONTH($C183)=L$6,$E183/INDIRECT("F"&$Y183)*INDIRECT("E"&$Y183),"")) ->  | M183: =IF(OR(ISBLANK($C183),$Y183=""),"",IF(MONTH($C183)=M$6,$E183/INDIRECT("F"&$Y183)*INDIRECT("E"&$Y183),"")) ->  | N183: =IF(OR(ISBLANK($C183),$Y183=""),"",IF(MONTH($C183)=N$6,$E183/INDIRECT("F"&$Y183)*INDIRECT("E"&$Y183),"")) ->  | O183: =IF(OR(ISBLANK($C183),$Y183=""),"",IF(MONTH($C183)=O$6,$E183/INDIRECT("F"&$Y183)*INDIRECT("E"&$Y183),"")) ->  | P183: =IF(OR(ISBLANK($C183),$Y183=""),"",IF(MONTH($C183)=P$6,$E183/INDIRECT("F"&$Y183)*INDIRECT("E"&$Y183),"")) ->  | Q183: =IF(OR(ISBLANK($C183),$Y183=""),"",IF(MONTH($C183)=Q$6,$E183/INDIRECT("F"&$Y183)*INDIRECT("E"&$Y183),"")) ->  | R183: =IF(OR(ISBLANK($C183),$Y183=""),"",IF(MONTH($C183)=R$6,$E183/INDIRECT("F"&$Y183)*INDIRECT("E"&$Y183),"")) ->  | S183: =IF(OR(ISBLANK($C183),$Y183=""),"",IF(MONTH($C183)=S$6,$E183/INDIRECT("F"&$Y183)*INDIRECT("E"&$Y183),"")) ->  | T183: =IF(OR(ISBLANK($C183),$Y183=""),"",IF(MONTH($C183)=T$6,$E183/INDIRECT("F"&$Y183)*INDIRECT("E"&$Y183),"")) ->  | U183: =IF(OR(ISBLANK($C183),$Y183=""),"",IF(MONTH($C183)=U$6,$E183/INDIRECT("F"&$Y183)*INDIRECT("E"&$Y183),"")) ->  | V183: =IF(OR(ISBLANK($C183),$Y183=""),"",IF(MONTH($C183)=V$6,$E183/INDIRECT("F"&$Y183)*INDIRECT("E"&$Y183),"")) ->  | X183: 177 | Y183: 177
I184: 0 | K184: =IF(OR(ISBLANK($C184),$Y184=""),"",IF(MONTH($C184)=K$6,$E184/INDIRECT("F"&$Y184)*INDIRECT("E"&$Y184),"")) ->  | L184: =IF(OR(ISBLANK($C184),$Y184=""),"",IF(MONTH($C184)=L$6,$E184/INDIRECT("F"&$Y184)*INDIRECT("E"&$Y184),"")) ->  | M184: =IF(OR(ISBLANK($C184),$Y184=""),"",IF(MONTH($C184)=M$6,$E184/INDIRECT("F"&$Y184)*INDIRECT("E"&$Y184),"")) ->  | N184: =IF(OR(ISBLANK($C184),$Y184=""),"",IF(MONTH($C184)=N$6,$E184/INDIRECT("F"&$Y184)*INDIRECT("E"&$Y184),"")) ->  | O184: =IF(OR(ISBLANK($C184),$Y184=""),"",IF(MONTH($C184)=O$6,$E184/INDIRECT("F"&$Y184)*INDIRECT("E"&$Y184),"")) ->  | P184: =IF(OR(ISBLANK($C184),$Y184=""),"",IF(MONTH($C184)=P$6,$E184/INDIRECT("F"&$Y184)*INDIRECT("E"&$Y184),"")) ->  | Q184: =IF(OR(ISBLANK($C184),$Y184=""),"",IF(MONTH($C184)=Q$6,$E184/INDIRECT("F"&$Y184)*INDIRECT("E"&$Y184),"")) ->  | R184: =IF(OR(ISBLANK($C184),$Y184=""),"",IF(MONTH($C184)=R$6,$E184/INDIRECT("F"&$Y184)*INDIRECT("E"&$Y184),"")) ->  | S184: =IF(OR(ISBLANK($C184),$Y184=""),"",IF(MONTH($C184)=S$6,$E184/INDIRECT("F"&$Y184)*INDIRECT("E"&$Y184),"")) ->  | T184: =IF(OR(ISBLANK($C184),$Y184=""),"",IF(MONTH($C184)=T$6,$E184/INDIRECT("F"&$Y184)*INDIRECT("E"&$Y184),"")) ->  | U184: =IF(OR(ISBLANK($C184),$Y184=""),"",IF(MONTH($C184)=U$6,$E184/INDIRECT("F"&$Y184)*INDIRECT("E"&$Y184),"")) ->  | V184: =IF(OR(ISBLANK($C184),$Y184=""),"",IF(MONTH($C184)=V$6,$E184/INDIRECT("F"&$Y184)*INDIRECT("E"&$Y184),"")) ->  | X184: 177 | Y184: 177
I185: 0 | K185: =IF(OR(ISBLANK($C185),$Y185=""),"",IF(MONTH($C185)=K$6,$E185/INDIRECT("F"&$Y185)*INDIRECT("E"&$Y185),"")) ->  | L185: =IF(OR(ISBLANK($C185),$Y185=""),"",IF(MONTH($C185)=L$6,$E185/INDIRECT("F"&$Y185)*INDIRECT("E"&$Y185),"")) ->  | M185: =IF(OR(ISBLANK($C185),$Y185=""),"",IF(MONTH($C185)=M$6,$E185/INDIRECT("F"&$Y185)*INDIRECT("E"&$Y185),"")) ->  | N185: =IF(OR(ISBLANK($C185),$Y185=""),"",IF(MONTH($C185)=N$6,$E185/INDIRECT("F"&$Y185)*INDIRECT("E"&$Y185),"")) ->  | O185: =IF(OR(ISBLANK($C185),$Y185=""),"",IF(MONTH($C185)=O$6,$E185/INDIRECT("F"&$Y185)*INDIRECT("E"&$Y185),"")) ->  | P185: =IF(OR(ISBLANK($C185),$Y185=""),"",IF(MONTH($C185)=P$6,$E185/INDIRECT("F"&$Y185)*INDIRECT("E"&$Y185),"")) ->  | Q185: =IF(OR(ISBLANK($C185),$Y185=""),"",IF(MONTH($C185)=Q$6,$E185/INDIRECT("F"&$Y185)*INDIRECT("E"&$Y185),"")) ->  | R185: =IF(OR(ISBLANK($C185),$Y185=""),"",IF(MONTH($C185)=R$6,$E185/INDIRECT("F"&$Y185)*INDIRECT("E"&$Y185),"")) ->  | S185: =IF(OR(ISBLANK($C185),$Y185=""),"",IF(MONTH($C185)=S$6,$E185/INDIRECT("F"&$Y185)*INDIRECT("E"&$Y185),"")) ->  | T185: =IF(OR(ISBLANK($C185),$Y185=""),"",IF(MONTH($C185)=T$6,$E185/INDIRECT("F"&$Y185)*INDIRECT("E"&$Y185),"")) ->  | U185: =IF(OR(ISBLANK($C185),$Y185=""),"",IF(MONTH($C185)=U$6,$E185/INDIRECT("F"&$Y185)*INDIRECT("E"&$Y185),"")) ->  | V185: =IF(OR(ISBLANK($C185),$Y185=""),"",IF(MONTH($C185)=V$6,$E185/INDIRECT("F"&$Y185)*INDIRECT("E"&$Y185),"")) ->  | X185: 177 | Y185: 177
I186: 0 | K186: =IF(OR(ISBLANK($C186),$Y186=""),"",IF(MONTH($C186)=K$6,$E186/INDIRECT("F"&$Y186)*INDIRECT("E"&$Y186),"")) ->  | L186: =IF(OR(ISBLANK($C186),$Y186=""),"",IF(MONTH($C186)=L$6,$E186/INDIRECT("F"&$Y186)*INDIRECT("E"&$Y186),"")) ->  | M186: =IF(OR(ISBLANK($C186),$Y186=""),"",IF(MONTH($C186)=M$6,$E186/INDIRECT("F"&$Y186)*INDIRECT("E"&$Y186),"")) ->  | N186: =IF(OR(ISBLANK($C186),$Y186=""),"",IF(MONTH($C186)=N$6,$E186/INDIRECT("F"&$Y186)*INDIRECT("E"&$Y186),"")) ->  | O186: =IF(OR(ISBLANK($C186),$Y186=""),"",IF(MONTH($C186)=O$6,$E186/INDIRECT("F"&$Y186)*INDIRECT("E"&$Y186),"")) ->  | P186: =IF(OR(ISBLANK($C186),$Y186=""),"",IF(MONTH($C186)=P$6,$E186/INDIRECT("F"&$Y186)*INDIRECT("E"&$Y186),"")) ->  | Q186: =IF(OR(ISBLANK($C186),$Y186=""),"",IF(MONTH($C186)=Q$6,$E186/INDIRECT("F"&$Y186)*INDIRECT("E"&$Y186),"")) ->  | R186: =IF(OR(ISBLANK($C186),$Y186=""),"",IF(MONTH($C186)=R$6,$E186/INDIRECT("F"&$Y186)*INDIRECT("E"&$Y186),"")) ->  | S186: =IF(OR(ISBLANK($C186),$Y186=""),"",IF(MONTH($C186)=S$6,$E186/INDIRECT("F"&$Y186)*INDIRECT("E"&$Y186),"")) ->  | T186: =IF(OR(ISBLANK($C186),$Y186=""),"",IF(MONTH($C186)=T$6,$E186/INDIRECT("F"&$Y186)*INDIRECT("E"&$Y186),"")) ->  | U186: =IF(OR(ISBLANK($C186),$Y186=""),"",IF(MONTH($C186)=U$6,$E186/INDIRECT("F"&$Y186)*INDIRECT("E"&$Y186),"")) ->  | V186: =IF(OR(ISBLANK($C186),$Y186=""),"",IF(MONTH($C186)=V$6,$E186/INDIRECT("F"&$Y186)*INDIRECT("E"&$Y186),"")) ->  | X186: 177 | Y186: 177
I187: 0 | K187: =IF(OR(ISBLANK($C187),$Y187=""),"",IF(MONTH($C187)=K$6,$E187/INDIRECT("F"&$Y187)*INDIRECT("E"&$Y187),"")) ->  | L187: =IF(OR(ISBLANK($C187),$Y187=""),"",IF(MONTH($C187)=L$6,$E187/INDIRECT("F"&$Y187)*INDIRECT("E"&$Y187),"")) ->  | M187: =IF(OR(ISBLANK($C187),$Y187=""),"",IF(MONTH($C187)=M$6,$E187/INDIRECT("F"&$Y187)*INDIRECT("E"&$Y187),"")) ->  | N187: =IF(OR(ISBLANK($C187),$Y187=""),"",IF(MONTH($C187)=N$6,$E187/INDIRECT("F"&$Y187)*INDIRECT("E"&$Y187),"")) ->  | O187: =IF(OR(ISBLANK($C187),$Y187=""),"",IF(MONTH($C187)=O$6,$E187/INDIRECT("F"&$Y187)*INDIRECT("E"&$Y187),"")) ->  | P187: =IF(OR(ISBLANK($C187),$Y187=""),"",IF(MONTH($C187)=P$6,$E187/INDIRECT("F"&$Y187)*INDIRECT("E"&$Y187),"")) ->  | Q187: =IF(OR(ISBLANK($C187),$Y187=""),"",IF(MONTH($C187)=Q$6,$E187/INDIRECT("F"&$Y187)*INDIRECT("E"&$Y187),"")) ->  | R187: =IF(OR(ISBLANK($C187),$Y187=""),"",IF(MONTH($C187)=R$6,$E187/INDIRECT("F"&$Y187)*INDIRECT("E"&$Y187),"")) ->  | S187: =IF(OR(ISBLANK($C187),$Y187=""),"",IF(MONTH($C187)=S$6,$E187/INDIRECT("F"&$Y187)*INDIRECT("E"&$Y187),"")) ->  | T187: =IF(OR(ISBLANK($C187),$Y187=""),"",IF(MONTH($C187)=T$6,$E187/INDIRECT("F"&$Y187)*INDIRECT("E"&$Y187),"")) ->  | U187: =IF(OR(ISBLANK($C187),$Y187=""),"",IF(MONTH($C187)=U$6,$E187/INDIRECT("F"&$Y187)*INDIRECT("E"&$Y187),"")) ->  | V187: =IF(OR(ISBLANK($C187),$Y187=""),"",IF(MONTH($C187)=V$6,$E187/INDIRECT("F"&$Y187)*INDIRECT("E"&$Y187),"")) ->  | X187: 177 | Y187: 177
I188: 0 | K188: =IF(OR(ISBLANK($C188),$Y188=""),"",IF(MONTH($C188)=K$6,$E188/INDIRECT("F"&$Y188)*INDIRECT("E"&$Y188),"")) ->  | L188: =IF(OR(ISBLANK($C188),$Y188=""),"",IF(MONTH($C188)=L$6,$E188/INDIRECT("F"&$Y188)*INDIRECT("E"&$Y188),"")) ->  | M188: =IF(OR(ISBLANK($C188),$Y188=""),"",IF(MONTH($C188)=M$6,$E188/INDIRECT("F"&$Y188)*INDIRECT("E"&$Y188),"")) ->  | N188: =IF(OR(ISBLANK($C188),$Y188=""),"",IF(MONTH($C188)=N$6,$E188/INDIRECT("F"&$Y188)*INDIRECT("E"&$Y188),"")) ->  | O188: =IF(OR(ISBLANK($C188),$Y188=""),"",IF(MONTH($C188)=O$6,$E188/INDIRECT("F"&$Y188)*INDIRECT("E"&$Y188),"")) ->  | P188: =IF(OR(ISBLANK($C188),$Y188=""),"",IF(MONTH($C188)=P$6,$E188/INDIRECT("F"&$Y188)*INDIRECT("E"&$Y188),"")) ->  | Q188: =IF(OR(ISBLANK($C188),$Y188=""),"",IF(MONTH($C188)=Q$6,$E188/INDIRECT("F"&$Y188)*INDIRECT("E"&$Y188),"")) ->  | R188: =IF(OR(ISBLANK($C188),$Y188=""),"",IF(MONTH($C188)=R$6,$E188/INDIRECT("F"&$Y188)*INDIRECT("E"&$Y188),"")) ->  | S188: =IF(OR(ISBLANK($C188),$Y188=""),"",IF(MONTH($C188)=S$6,$E188/INDIRECT("F"&$Y188)*INDIRECT("E"&$Y188),"")) ->  | T188: =IF(OR(ISBLANK($C188),$Y188=""),"",IF(MONTH($C188)=T$6,$E188/INDIRECT("F"&$Y188)*INDIRECT("E"&$Y188),"")) ->  | U188: =IF(OR(ISBLANK($C188),$Y188=""),"",IF(MONTH($C188)=U$6,$E188/INDIRECT("F"&$Y188)*INDIRECT("E"&$Y188),"")) ->  | V188: =IF(OR(ISBLANK($C188),$Y188=""),"",IF(MONTH($C188)=V$6,$E188/INDIRECT("F"&$Y188)*INDIRECT("E"&$Y188),"")) ->  | X188: 177 | Y188: 177
H189: =IFERROR(I189/E189,0) -> 0 | I189: =SUM(I190:J200) -> 0 | K189: =IF(OR(ISBLANK($C189),$Y189=""),"",IF(MONTH($C189)=K$6,$E189/INDIRECT("F"&$Y189)*INDIRECT("E"&$Y189),"")) ->  | L189: =IF(OR(ISBLANK($C189),$Y189=""),"",IF(MONTH($C189)=L$6,$E189/INDIRECT("F"&$Y189)*INDIRECT("E"&$Y189),"")) ->  | M189: =IF(OR(ISBLANK($C189),$Y189=""),"",IF(MONTH($C189)=M$6,$E189/INDIRECT("F"&$Y189)*INDIRECT("E"&$Y189),"")) ->  | N189: =IF(OR(ISBLANK($C189),$Y189=""),"",IF(MONTH($C189)=N$6,$E189/INDIRECT("F"&$Y189)*INDIRECT("E"&$Y189),"")) ->  | O189: =IF(OR(ISBLANK($C189),$Y189=""),"",IF(MONTH($C189)=O$6,$E189/INDIRECT("F"&$Y189)*INDIRECT("E"&$Y189),"")) ->  | P189: =IF(OR(ISBLANK($C189),$Y189=""),"",IF(MONTH($C189)=P$6,$E189/INDIRECT("F"&$Y189)*INDIRECT("E"&$Y189),"")) ->  | Q189: =IF(OR(ISBLANK($C189),$Y189=""),"",IF(MONTH($C189)=Q$6,$E189/INDIRECT("F"&$Y189)*INDIRECT("E"&$Y189),"")) ->  | R189: =IF(OR(ISBLANK($C189),$Y189=""),"",IF(MONTH($C189)=R$6,$E189/INDIRECT("F"&$Y189)*INDIRECT("E"&$Y189),"")) ->  | S189: =IF(OR(ISBLANK($C189),$Y189=""),"",IF(MONTH($C189)=S$6,$E189/INDIRECT("F"&$Y189)*INDIRECT("E"&$Y189),"")) ->  | T189: =IF(OR(ISBLANK($C189),$Y189=""),"",IF(MONTH($C189)=T$6,$E189/INDIRECT("F"&$Y189)*INDIRECT("E"&$Y189),"")) ->  | U189: =IF(OR(ISBLANK($C189),$Y189=""),"",IF(MONTH($C189)=U$6,$E189/INDIRECT("F"&$Y189)*INDIRECT("E"&$Y189),"")) ->  | V189: =IF(OR(ISBLANK($C189),$Y189=""),"",IF(MONTH($C189)=V$6,$E189/INDIRECT("F"&$Y189)*INDIRECT("E"&$Y189),"")) ->  | W189: =IF(H189<>100%,"Niet ok","ok") -> Niet ok | X189: 189
B190: Factuurnummer | C190: Factuurdatum | D190: Omschrijving factuur | E190: Factuurbedrag | K190: =IF(OR(ISBLANK($C190),$Y190=""),"",IF(MONTH($C190)=K$6,$E190/INDIRECT("F"&$Y190)*INDIRECT("E"&$Y190),"")) ->  | L190: =IF(OR(ISBLANK($C190),$Y190=""),"",IF(MONTH($C190)=L$6,$E190/INDIRECT("F"&$Y190)*INDIRECT("E"&$Y190),"")) ->  | M190: =IF(OR(ISBLANK($C190),$Y190=""),"",IF(MONTH($C190)=M$6,$E190/INDIRECT("F"&$Y190)*INDIRECT("E"&$Y190),"")) ->  | N190: =IF(OR(ISBLANK($C190),$Y190=""),"",IF(MONTH($C190)=N$6,$E190/INDIRECT("F"&$Y190)*INDIRECT("E"&$Y190),"")) ->  | O190: =IF(OR(ISBLANK($C190),$Y190=""),"",IF(MONTH($C190)=O$6,$E190/INDIRECT("F"&$Y190)*INDIRECT("E"&$Y190),"")) ->  | P190: =IF(OR(ISBLANK($C190),$Y190=""),"",IF(MONTH($C190)=P$6,$E190/INDIRECT("F"&$Y190)*INDIRECT("E"&$Y190),"")) ->  | Q190: =IF(OR(ISBLANK($C190),$Y190=""),"",IF(MONTH($C190)=Q$6,$E190/INDIRECT("F"&$Y190)*INDIRECT("E"&$Y190),"")) ->  | R190: =IF(OR(ISBLANK($C190),$Y190=""),"",IF(MONTH($C190)=R$6,$E190/INDIRECT("F"&$Y190)*INDIRECT("E"&$Y190),"")) ->  | S190: =IF(OR(ISBLANK($C190),$Y190=""),"",IF(MONTH($C190)=S$6,$E190/INDIRECT("F"&$Y190)*INDIRECT("E"&$Y190),"")) ->  | T190: =IF(OR(ISBLANK($C190),$Y190=""),"",IF(MONTH($C190)=T$6,$E190/INDIRECT("F"&$Y190)*INDIRECT("E"&$Y190),"")) ->  | U190: =IF(OR(ISBLANK($C190),$Y190=""),"",IF(MONTH($C190)=U$6,$E190/INDIRECT("F"&$Y190)*INDIRECT("E"&$Y190),"")) ->  | V190: =IF(OR(ISBLANK($C190),$Y190=""),"",IF(MONTH($C190)=V$6,$E190/INDIRECT("F"&$Y190)*INDIRECT("E"&$Y190),"")) ->  | X190: 189
I191: =SUM(K191:V191) -> 0 | K191: =IF(OR(ISBLANK($C191),$Y191=""),"",IF(MONTH($C191)=K$6,$E191/INDIRECT("F"&$Y191)*INDIRECT("E"&$Y191),"")) ->  | L191: =IF(OR(ISBLANK($C191),$Y191=""),"",IF(MONTH($C191)=L$6,$E191/INDIRECT("F"&$Y191)*INDIRECT("E"&$Y191),"")) ->  | M191: =IF(OR(ISBLANK($C191),$Y191=""),"",IF(MONTH($C191)=M$6,$E191/INDIRECT("F"&$Y191)*INDIRECT("E"&$Y191),"")) ->  | N191: =IF(OR(ISBLANK($C191),$Y191=""),"",IF(MONTH($C191)=N$6,$E191/INDIRECT("F"&$Y191)*INDIRECT("E"&$Y191),"")) ->  | O191: =IF(OR(ISBLANK($C191),$Y191=""),"",IF(MONTH($C191)=O$6,$E191/INDIRECT("F"&$Y191)*INDIRECT("E"&$Y191),"")) ->  | P191: =IF(OR(ISBLANK($C191),$Y191=""),"",IF(MONTH($C191)=P$6,$E191/INDIRECT("F"&$Y191)*INDIRECT("E"&$Y191),"")) ->  | Q191: =IF(OR(ISBLANK($C191),$Y191=""),"",IF(MONTH($C191)=Q$6,$E191/INDIRECT("F"&$Y191)*INDIRECT("E"&$Y191),"")) ->  | R191: =IF(OR(ISBLANK($C191),$Y191=""),"",IF(MONTH($C191)=R$6,$E191/INDIRECT("F"&$Y191)*INDIRECT("E"&$Y191),"")) ->  | S191: =IF(OR(ISBLANK($C191),$Y191=""),"",IF(MONTH($C191)=S$6,$E191/INDIRECT("F"&$Y191)*INDIRECT("E"&$Y191),"")) ->  | T191: =IF(OR(ISBLANK($C191),$Y191=""),"",IF(MONTH($C191)=T$6,$E191/INDIRECT("F"&$Y191)*INDIRECT("E"&$Y191),"")) ->  | U191: =IF(OR(ISBLANK($C191),$Y191=""),"",IF(MONTH($C191)=U$6,$E191/INDIRECT("F"&$Y191)*INDIRECT("E"&$Y191),"")) ->  | V191: =IF(OR(ISBLANK($C191),$Y191=""),"",IF(MONTH($C191)=V$6,$E191/INDIRECT("F"&$Y191)*INDIRECT("E"&$Y191),"")) ->  | X191: 189 | Y191: 189
I192: 0 | K192: =IF(OR(ISBLANK($C192),$Y192=""),"",IF(MONTH($C192)=K$6,$E192/INDIRECT("F"&$Y192)*INDIRECT("E"&$Y192),"")) ->  | L192: =IF(OR(ISBLANK($C192),$Y192=""),"",IF(MONTH($C192)=L$6,$E192/INDIRECT("F"&$Y192)*INDIRECT("E"&$Y192),"")) ->  | M192: =IF(OR(ISBLANK($C192),$Y192=""),"",IF(MONTH($C192)=M$6,$E192/INDIRECT("F"&$Y192)*INDIRECT("E"&$Y192),"")) ->  | N192: =IF(OR(ISBLANK($C192),$Y192=""),"",IF(MONTH($C192)=N$6,$E192/INDIRECT("F"&$Y192)*INDIRECT("E"&$Y192),"")) ->  | O192: =IF(OR(ISBLANK($C192),$Y192=""),"",IF(MONTH($C192)=O$6,$E192/INDIRECT("F"&$Y192)*INDIRECT("E"&$Y192),"")) ->  | P192: =IF(OR(ISBLANK($C192),$Y192=""),"",IF(MONTH($C192)=P$6,$E192/INDIRECT("F"&$Y192)*INDIRECT("E"&$Y192),"")) ->  | Q192: =IF(OR(ISBLANK($C192),$Y192=""),"",IF(MONTH($C192)=Q$6,$E192/INDIRECT("F"&$Y192)*INDIRECT("E"&$Y192),"")) ->  | R192: =IF(OR(ISBLANK($C192),$Y192=""),"",IF(MONTH($C192)=R$6,$E192/INDIRECT("F"&$Y192)*INDIRECT("E"&$Y192),"")) ->  | S192: =IF(OR(ISBLANK($C192),$Y192=""),"",IF(MONTH($C192)=S$6,$E192/INDIRECT("F"&$Y192)*INDIRECT("E"&$Y192),"")) ->  | T192: =IF(OR(ISBLANK($C192),$Y192=""),"",IF(MONTH($C192)=T$6,$E192/INDIRECT("F"&$Y192)*INDIRECT("E"&$Y192),"")) ->  | U192: =IF(OR(ISBLANK($C192),$Y192=""),"",IF(MONTH($C192)=U$6,$E192/INDIRECT("F"&$Y192)*INDIRECT("E"&$Y192),"")) ->  | V192: =IF(OR(ISBLANK($C192),$Y192=""),"",IF(MONTH($C192)=V$6,$E192/INDIRECT("F"&$Y192)*INDIRECT("E"&$Y192),"")) ->  | X192: 189 | Y192: 189
I193: 0 | K193: =IF(OR(ISBLANK($C193),$Y193=""),"",IF(MONTH($C193)=K$6,$E193/INDIRECT("F"&$Y193)*INDIRECT("E"&$Y193),"")) ->  | L193: =IF(OR(ISBLANK($C193),$Y193=""),"",IF(MONTH($C193)=L$6,$E193/INDIRECT("F"&$Y193)*INDIRECT("E"&$Y193),"")) ->  | M193: =IF(OR(ISBLANK($C193),$Y193=""),"",IF(MONTH($C193)=M$6,$E193/INDIRECT("F"&$Y193)*INDIRECT("E"&$Y193),"")) ->  | N193: =IF(OR(ISBLANK($C193),$Y193=""),"",IF(MONTH($C193)=N$6,$E193/INDIRECT("F"&$Y193)*INDIRECT("E"&$Y193),"")) ->  | O193: =IF(OR(ISBLANK($C193),$Y193=""),"",IF(MONTH($C193)=O$6,$E193/INDIRECT("F"&$Y193)*INDIRECT("E"&$Y193),"")) ->  | P193: =IF(OR(ISBLANK($C193),$Y193=""),"",IF(MONTH($C193)=P$6,$E193/INDIRECT("F"&$Y193)*INDIRECT("E"&$Y193),"")) ->  | Q193: =IF(OR(ISBLANK($C193),$Y193=""),"",IF(MONTH($C193)=Q$6,$E193/INDIRECT("F"&$Y193)*INDIRECT("E"&$Y193),"")) ->  | R193: =IF(OR(ISBLANK($C193),$Y193=""),"",IF(MONTH($C193)=R$6,$E193/INDIRECT("F"&$Y193)*INDIRECT("E"&$Y193),"")) ->  | S193: =IF(OR(ISBLANK($C193),$Y193=""),"",IF(MONTH($C193)=S$6,$E193/INDIRECT("F"&$Y193)*INDIRECT("E"&$Y193),"")) ->  | T193: =IF(OR(ISBLANK($C193),$Y193=""),"",IF(MONTH($C193)=T$6,$E193/INDIRECT("F"&$Y193)*INDIRECT("E"&$Y193),"")) ->  | U193: =IF(OR(ISBLANK($C193),$Y193=""),"",IF(MONTH($C193)=U$6,$E193/INDIRECT("F"&$Y193)*INDIRECT("E"&$Y193),"")) ->  | V193: =IF(OR(ISBLANK($C193),$Y193=""),"",IF(MONTH($C193)=V$6,$E193/INDIRECT("F"&$Y193)*INDIRECT("E"&$Y193),"")) ->  | X193: 189 | Y193: 189
I194: 0 | K194: =IF(OR(ISBLANK($C194),$Y194=""),"",IF(MONTH($C194)=K$6,$E194/INDIRECT("F"&$Y194)*INDIRECT("E"&$Y194),"")) ->  | L194: =IF(OR(ISBLANK($C194),$Y194=""),"",IF(MONTH($C194)=L$6,$E194/INDIRECT("F"&$Y194)*INDIRECT("E"&$Y194),"")) ->  | M194: =IF(OR(ISBLANK($C194),$Y194=""),"",IF(MONTH($C194)=M$6,$E194/INDIRECT("F"&$Y194)*INDIRECT("E"&$Y194),"")) ->  | N194: =IF(OR(ISBLANK($C194),$Y194=""),"",IF(MONTH($C194)=N$6,$E194/INDIRECT("F"&$Y194)*INDIRECT("E"&$Y194),"")) ->  | O194: =IF(OR(ISBLANK($C194),$Y194=""),"",IF(MONTH($C194)=O$6,$E194/INDIRECT("F"&$Y194)*INDIRECT("E"&$Y194),"")) ->  | P194: =IF(OR(ISBLANK($C194),$Y194=""),"",IF(MONTH($C194)=P$6,$E194/INDIRECT("F"&$Y194)*INDIRECT("E"&$Y194),"")) ->  | Q194: =IF(OR(ISBLANK($C194),$Y194=""),"",IF(MONTH($C194)=Q$6,$E194/INDIRECT("F"&$Y194)*INDIRECT("E"&$Y194),"")) ->  | R194: =IF(OR(ISBLANK($C194),$Y194=""),"",IF(MONTH($C194)=R$6,$E194/INDIRECT("F"&$Y194)*INDIRECT("E"&$Y194),"")) ->  | S194: =IF(OR(ISBLANK($C194),$Y194=""),"",IF(MONTH($C194)=S$6,$E194/INDIRECT("F"&$Y194)*INDIRECT("E"&$Y194),"")) ->  | T194: =IF(OR(ISBLANK($C194),$Y194=""),"",IF(MONTH($C194)=T$6,$E194/INDIRECT("F"&$Y194)*INDIRECT("E"&$Y194),"")) ->  | U194: =IF(OR(ISBLANK($C194),$Y194=""),"",IF(MONTH($C194)=U$6,$E194/INDIRECT("F"&$Y194)*INDIRECT("E"&$Y194),"")) ->  | V194: =IF(OR(ISBLANK($C194),$Y194=""),"",IF(MONTH($C194)=V$6,$E194/INDIRECT("F"&$Y194)*INDIRECT("E"&$Y194),"")) ->  | X194: 189 | Y194: 189
I195: 0 | K195: =IF(OR(ISBLANK($C195),$Y195=""),"",IF(MONTH($C195)=K$6,$E195/INDIRECT("F"&$Y195)*INDIRECT("E"&$Y195),"")) ->  | L195: =IF(OR(ISBLANK($C195),$Y195=""),"",IF(MONTH($C195)=L$6,$E195/INDIRECT("F"&$Y195)*INDIRECT("E"&$Y195),"")) ->  | M195: =IF(OR(ISBLANK($C195),$Y195=""),"",IF(MONTH($C195)=M$6,$E195/INDIRECT("F"&$Y195)*INDIRECT("E"&$Y195),"")) ->  | N195: =IF(OR(ISBLANK($C195),$Y195=""),"",IF(MONTH($C195)=N$6,$E195/INDIRECT("F"&$Y195)*INDIRECT("E"&$Y195),"")) ->  | O195: =IF(OR(ISBLANK($C195),$Y195=""),"",IF(MONTH($C195)=O$6,$E195/INDIRECT("F"&$Y195)*INDIRECT("E"&$Y195),"")) ->  | P195: =IF(OR(ISBLANK($C195),$Y195=""),"",IF(MONTH($C195)=P$6,$E195/INDIRECT("F"&$Y195)*INDIRECT("E"&$Y195),"")) ->  | Q195: =IF(OR(ISBLANK($C195),$Y195=""),"",IF(MONTH($C195)=Q$6,$E195/INDIRECT("F"&$Y195)*INDIRECT("E"&$Y195),"")) ->  | R195: =IF(OR(ISBLANK($C195),$Y195=""),"",IF(MONTH($C195)=R$6,$E195/INDIRECT("F"&$Y195)*INDIRECT("E"&$Y195),"")) ->  | S195: =IF(OR(ISBLANK($C195),$Y195=""),"",IF(MONTH($C195)=S$6,$E195/INDIRECT("F"&$Y195)*INDIRECT("E"&$Y195),"")) ->  | T195: =IF(OR(ISBLANK($C195),$Y195=""),"",IF(MONTH($C195)=T$6,$E195/INDIRECT("F"&$Y195)*INDIRECT("E"&$Y195),"")) ->  | U195: =IF(OR(ISBLANK($C195),$Y195=""),"",IF(MONTH($C195)=U$6,$E195/INDIRECT("F"&$Y195)*INDIRECT("E"&$Y195),"")) ->  | V195: =IF(OR(ISBLANK($C195),$Y195=""),"",IF(MONTH($C195)=V$6,$E195/INDIRECT("F"&$Y195)*INDIRECT("E"&$Y195),"")) ->  | X195: 189 | Y195: 189
